Workbook

Sheet Cover Sheet
D2: Call Volume Projection Tool
G11: Authors (alphabetical order):
F12: Bishwa Adhikari, PhD
F13: Emily B. Kahn, PhD
F14: Lisa Koonin, DrPH
E15: Melissa Latigo, MD, PhD
F16: Martin Meltzer, PhD
F17: Kellye Sliger, MPH
E18: Michael Washington, PhD

Sheet Main Menu
D2: Call Volume Projection Tool

Sheet Objectives
C3: Call Volume Projection Tool

Sheet Model_Dashboard
B9: Step 1: | C9: Select attack rate from the dropdown menu [Ref. 1]
B10: Step 2: | C10: Select the seed from the dropdown menu [Ref. 1]
B12: Step 3: | C12: Select severity level | E12: =IF('Data Lists'!C40=4,"1957-Like Pandemic",IF('Data Lists'!C40=3,"1968-Like Pandemic",IF('Data Lists'!C40=2,"2009-Like Pandemic", "Non-Pandemic"))) -> 1957-Like Pandemic
C13: Call-to-hospitalization ratio [Ref. 2] | D13: =IF(Severity = 1, Severity1Lo, IF(Severity = 2, Severity2Lo, IF(Severity = 3, Severity3Lo,IF(Severity = 4, Severity4Lo,) ))) -> 0.015 | E13: =IF(Severity = 1, Severity1Hi, IF(Severity = 2, Severity2Hi, IF(Severity = 3, Severity3Hi,IF(Severity = 4, Severity4Hi)))) -> 0.03
B15: Step 4: | C15: Enter US population [Ref. 3] | D15: 323100000
B24: Step 1: Enter the week when the call center opens (START/PEAK) of the influenza pandemic
C25: Call Center opens | D25: 19 | E25: Week(s) before the peak week of pandemic
C27: or Call center opens | D27: =IF(D28-D25>0, D28-D25,1) -> 1 | E27: week(s) after the start of the influenza pandemic
C28: Peak week | D28: =IF(AND(AttackRate=1,Seed=1),20,IF(AND(AttackRate=1,Seed=2),18,12)) -> 12
B29: Step 2: Data set used to estimate the call volumes
C31: Method/data used:
B36: Steps 3 - 5: Parameters used to estimate call volume in influenza pandemic | D36: Lower Bound | E36: Upper Bound
B38: Step 3a: | C38: Select media activity level at start of pandemic
B39: Step 3b: | C39: Select media activity level during pandemic | D39: Media Activities
D40: Low | E40: Moderate | F40: High
B41: Step 4: | C41: Multiplier to adjust call volume based on media activity levels | D41: 1 | E41: 1.1 | F41: 1.3
C42: (throughout pandemic) [ Ref. 4]
B44: Step 3: | C44: Call to hospitalization ratio [Ref. 5 - 6] | D44: 19.9 | E44: 24.1
B45: =IF(Data_Start_to_Peak>1,"Skip step 6 & 7 and go to Step 8","") -> 
B46: Step 4: | C46: Initial call rate per 100,000 population | D46: 0 | E46: 0
C47: (applies if call center is opened before the peak of the pandemic) [3, 5]
D48: High | E48: Low
B49: Step 5: | C49: Calls decline rate after start of pandemic [4] | D49: 0 | E49: 0
D50: 0.23 | E50: 0.43
B54: =IF(Data_Start_to_Peak=1,"Skip Steps 8 & Proceed from Step 9...", "Go to Step 8 and proceed step 9 ") -> Skip Steps 8 & Proceed from Step 9...
B55: Step 8: Parameters used to calculate call volume during the influenza pandemic
D56: Lower Bound | E56: Upper Bound
B57: Step 8: | C57: Media to call rate ratio [Ref. 4 - 5] | D57: 19.67 | E57: 13.15
D59: Note: the ratio is used as denominator (inversely proportional)
D63: 0.2225 | E63: 0.2225
B69: Step 6 : Enter data on the types of calls
D70: Lower Bound | E70: Upper Bound
B71: Step 6: | C71: Proportions of callers: Symptomatic [Ref. 5] | D71: 0.374 | E71: 0.374
C74: Proportion of callers: Seeking only information [Ref. 5] | D74: 0.402 | E74: 0.402
C77: Proportion of callers: ended prematurely [Ref. 5] | D77: =1-PropSympCallsLow-PropNonSymSeekInfoLow -> 0.224 | E77: =1-PropSympCallsLow-PropNonSymSeekInfoLow -> 0.224
D78: (Computed: Don't enter data in dark cells)

Sheet Media_Method (hidden)
C5: ("Media-to-call-rate" Ratio Method)
B7: Step 1: Enter the Attack Rate
B9: Select attack rate from the dropdown menu [Ref. 1]
B10: Step 2: | C10: Select the seed from the dropdown menu [Ref. 1]
B12: Step 3: | C12: Select severity level
C13: Case-to-hospitalization ratio [Ref. 2] | D13: =IF(Severity_m = 1, Severity1Lo_m, IF(Severity_m = 2, Severity2Lo_m, IF(Severity_m = 3, Severity3Lo_m, IF(Severity_m= 4, Severity4Lo_m, IF(Severity_m = 5, Severity5Lo_m, IF(Severity_m = 6, Severity6Lo_m, IF(Severity_m = 7, Severity7Lo_m,0))))))) -> 0.001 | E13: =IF(Severity_m = 1, Severity1Hi_m, IF(Severity_m = 2, Severity2Hi_m, IF(Severity_m = 3, Severity3Hi_m, IF(Severity_m= 4, Severity4Hi_m, IF(Severity_m = 5, Severity5Hi_m, IF(Severity_m = 6, Severity6Hi_m, IF(Severity_m = 7, Severity7Hi_m,0))))))) -> 0.005
D14: (Low) | E14: (High)
B15: Select the seed from the dropdown menu [Ref. 1]
B17: Enter US population [Ref. 3] | D17: 323100000
B20: =IF('Data Lists'!C40=4,"1957-Like Pandemic",IF('Data Lists'!C40=3,"1968-Like Pandemic",IF('Data Lists'!C40=2,"2009-Like Pandemic", "Mild Pandemic"))) -> 1957-Like Pandemic
B23: Information about the week when the call center opens
C24: Call center opens
C25: Call center opens | D25: =WKOpenCallCenter -> 1 | E25: week(s) after the start of the pandemic
B27: Step 2: Method used to estimate the call volumes | D27: Method/data used:
B28: Pandemic Attack Rate Adjustment Factor | C28: =IF(AttackRate_m=1,1,1.5) -> 1 | F28: Media Stories Adj. Factor | H28: 1.3
F29: (Upper bound)
B34: Steps 3 - 5: Parameters used to estimate call volume in influenza pandemic
D35: Background Media Activities
B36: Step 3a: | C36: Select media activity level at start of pandemic
B37: Step 3b: | C37: Select media activity level during pandemic | D37: Low | E37: Moderate | F37: High
C39: Multiplier to adjust call volume based on media activity level selected | D39: 1 | E39: 1 | F39: 1
C40: (throughout pandemic) [ Ref. 4]
B42: Step 5: | C42: Call to hospitalization ratio [Ref. 5 - 6] | D42: 1 | E42: 1
B44: Step 6: | C44: Initial call rate per 100,000 population | D44: 1 | E44: 1
C45: (applies if call center is opened before the peak of the pandemic) [3, 5]
D46: Lower Bound | E46: Upper Bound
B47: Step 7: | C47: Calls decline rate after start of pandemic [4] | D47: 1 | E47: 1
D51: Data Inputs for the given population in the Model to estimate call volume
D52: Starting week of pandemic | E52: No. of Media Stories (Default) | F52: Number of Calls (Default) | G52: No. of Media Stories | H52: Number of Calls (MN) | I52: Media-to-Call Ratio | J52: Media-to-Call Rate per 100,000 population | K52: Description on Default Data Entered:
B54: Step 3: Enter the number of media stories and number of calls per week(Prints and internet stories only) | D54: 1 | E54: 860 | F54: 300 | G54: 860 | H54: 300 | I54: =G54/H54 -> 2.866666667 | J54: =IFERROR(I54*MinnesotaPop_m/100000,"") -> 152.04585 | K54: 1. "Week" column represents the week number of the 2009 flu pandemic in Minnesota (not the Epi week of year)
D55: 2 | E55: 875 | F55: 650 | G55: 875 | H55: 650 | I55: =G55/H55 -> 1.346153846 | J55: 71.39899038 | K55: 2. "Number of calls" represent the number of calls made to the Minnesota flu line per week
D56: 3 | E56: 773 | F56: 1400 | G56: 773 | H56: 1400 | I56: 0.5521428571 | J56: 29.28524304 | K56: 3. The "print/internet stories" column represents the number of print/internet stories per week
D57: 4 | E57: 728 | F57: 2200 | G57: 728 | H57: 2200 | I57: 0.3309090909 | J57: 17.55117 | K57: 4. Numbers in red color fonts of media stories and number of calls in "grey cells" are from Minnesota Flu-line, 2009
D58: 5 | E58: 687 | F58: 3800 | G58: 687 | H58: 3800 | I58: 0.1807894737 | J58: 9.588938092 | K58: 5. Number of calls from "week 1 to 7" are imputed based on the data from "week 8 to 14" assuming symmetrical distribution"
D59: 6 | E59: 867 | F59: 3800 | G59: 867 | H59: 3800 | I59: 0.2281578947 | J59: 12.10132362 | K59: 6. After 14 weeks of pandemic weekly media stories and corresponding number of calls were assumed to be constant up to the end of pandemic.
B60: Note: Do not change default data in "Grey" Cells and Media-to Call Ratios are from intermediate computation | D60: 7 | E60: 717 | F60: 6800 | G60: 717 | H60: 6800 | I60: 0.1054411765 | J60: 5.592520919 | K60: 7. Users can change the weekly data inputs beyond our assumptions and compute the media-to-call rate ratio and estimate the “call volume” using the Media_method.
D61: 8 | E61: 1287 | F61: 9000 | G61: 1287 | H61: 9000 | I61: 0.143 | J61: 7.58461275
D62: 9 | E62: 6800 | F62: 6800 | G62: 6800 | H62: 6800 | I62: 1 | J62: 53.03925
D63: 10 | E63: 954 | F63: 3800 | G63: 954 | H63: 3800 | I63: 0.2510526316 | J63: 13.31564329
D64: 11 | E64: 793 | F64: 2200 | G64: 793 | H64: 2200 | I64: 0.3604545455 | J64: 19.11823875
D65: 12 | E65: 524 | F65: 1400 | G65: 524 | H65: 1400 | I65: 0.3742857143 | J65: 19.85183357
D66: 13 | E66: 329 | F66: 650 | G66: 329 | H66: 650 | I66: 0.5061538462 | J66: 26.84602038
D67: 14 | E67: =E66 -> 329 | F67: 300 | G67: =G66 -> 329 | H67: 300 | I67: 1.096666667 | J67: 58.1663775
D68: 15 | E68: =E67 -> 329 | F68: =F67 -> 300 | G68: =G67 -> 329 | H68: =H67 -> 300 | I68: 1.096666667 | J68: 58.1663775
D69: 16 | E69: 329 | F69: 300 | G69: 329 | H69: 300 | I69: 1.096666667 | J69: 58.1663775
D70: 17 | E70: 329 | F70: 300 | G70: 329 | H70: 300 | I70: 1.096666667 | J70: 58.1663775
D71: 18 | E71: 329 | F71: 300 | G71: 329 | H71: 300 | I71: 1.096666667 | J71: 58.1663775
D72: 19 | E72: 329 | F72: 300 | G72: 329 | H72: 300 | I72: 1.096666667 | J72: 58.1663775
D73: 20 | E73: 329 | F73: 300 | G73: 329 | H73: 300 | I73: 1.096666667 | J73: 58.1663775
D74: 21 | E74: 329 | F74: 300 | G74: 329 | H74: 300 | I74: 1.096666667 | J74: 58.1663775
D75: 22 | E75: 329 | F75: 300 | G75: 329 | H75: 300 | I75: 1.096666667 | J75: 58.1663775
D76: 23 | E76: 329 | F76: 300 | G76: 329 | H76: 300 | I76: 1.096666667 | J76: 58.1663775
D77: 24 | E77: 329 | F77: 300 | G77: 329 | H77: 300 | I77: 1.096666667 | J77: 58.1663775 | K77: Interactive chart of media stories and calls inputs
D78: 25 | E78: 329 | F78: 300 | G78: 329 | H78: 300 | I78: 1.096666667 | J78: 58.1663775
D79: 26 | E79: 329 | F79: 300 | G79: 329 | H79: 300 | I79: 1.096666667 | J79: 58.1663775
D80: 27 | E80: 329 | F80: 300 | G80: 329 | H80: 300 | I80: 1.096666667 | J80: 58.1663775
D81: 28 | E81: 329 | F81: 300 | G81: 329 | H81: 300 | I81: 1.096666667 | J81: 58.1663775
D82: 29 | E82: 329 | F82: 300 | G82: 329 | H82: 300 | I82: 1.096666667 | J82: 58.1663775
D83: 30 | E83: 329 | F83: 300 | G83: 329 | H83: 300 | I83: 1.096666667 | J83: 58.1663775
D84: 31 | E84: 329 | F84: 300 | G84: 329 | H84: 300 | I84: 1.096666667 | J84: 58.1663775
D85: 32 | E85: 329 | F85: 300 | G85: 329 | H85: 300 | I85: 1.096666667 | J85: 58.1663775
D86: 33 | E86: 329 | F86: 300 | G86: 329 | H86: 300 | I86: 1.096666667 | J86: 58.1663775
D87: 34 | E87: 329 | F87: 300 | G87: 329 | H87: 300 | I87: 1.096666667 | J87: 58.1663775
D88: 35 | E88: 329 | F88: 300 | G88: 329 | H88: 300 | I88: 1.096666667 | J88: 58.1663775
D89: 36 | E89: 329 | F89: 300 | G89: 329 | H89: 300 | I89: 1.096666667 | J89: 58.1663775
D90: 37 | E90: 329 | F90: 300 | G90: 329 | H90: 300 | I90: 1.096666667 | J90: 58.1663775
D91: 38 | E91: 329 | F91: 300 | G91: 329 | H91: 300 | I91: 1.096666667 | J91: 58.1663775
D92: 39 | E92: 329 | F92: 300 | G92: 329 | H92: 300 | I92: 1.096666667 | J92: 58.1663775
D93: 40 | E93: 329 | F93: 300 | G93: 329 | H93: 300 | I93: 1.096666667 | J93: 58.1663775
D94: 41 | E94: 329 | F94: 300 | G94: 329 | H94: 300 | I94: 1.096666667 | J94: 58.1663775
D95: 42 | E95: 329 | F95: 300 | G95: 329 | H95: 300 | I95: 1.096666667 | J95: 58.1663775
B98: Step 4: Parameters used to calculate call volume during the influenza pandemic
D99: Lower Bound | E99: Upper Bound
C100: Media-to-call rate ratio | D100: 1 | E100: 1
C101: Influenza cases reported to CDC-to-Media stories Ratio | D101: 1 | E101: 1
C102: Proportion of ILI cases being tested positive(reported to CDC) | D102: 1 | E102: 1
B103: Step 4 : NEXT, enter data on the types of calls
B105: Proportions of callers: Symptomatic [Ref. 5] | D105: 0.4139 | E105: 0.4139
D107: 0.2225 | E107: 0.2225
B108: Proportion of callers: Seeking only information [Ref. 5] | D108: 0.2225 | E108: 0.2225
B111: Proportion of callers: ended prematurely [Ref. 5] | D111: =1-PropSympCallsLow_m-PropNonSymSeekInfoLow_m -> 0.3636 | E111: =1-PropSympCallsHigh_m-PropNonSymSeekInfoHigh_m -> 0.3636
D112: (Computed: Don't enter data here)

Sheet Cases_Hosp
B1: Influenza Cases,Hospitalization
B4: Attack rate | C4: =IF(AttackRate=1,20,IF(AttackRate=2,30)) -> 30
B5: Seed | C5: =IF(Seed=1,10,IF(Seed=2,100)) -> 10
B6: Flu line opened | C6: =WKOpenCallCenter -> 1 | D6: week(s) after | E6: =IF(CenterOpen = 1, "START", IF(CenterOpen = 2, "PEAK")) -> START | F6: of pandemic
B7: Media activity level is | C7: =IF(MediaActivityCenterOpen= 1, "LOW", IF(MediaActivityCenterOpen= 2, "MODERATE", IF(MediaActivityCenterOpen = 3, "HIGH"))) -> LOW | D7: at start of pandemic
B8: Media activity level is | C8: =IF(MediaActivityPandemic = 1, "LOW", IF(MediaActivityPandemic= 2, "MODERATE", IF(MediaActivityPandemic= 3, "HIGH"))) -> LOW | D8: throughout pandemic | AG8: IFERROR(IF(OptUseCallVolStarttoPeak=1, IF(S22 - W22>0, (S22 - W22)*PropNonSymSeekInfoLow, ""),""),"")
B9: Method used to calculated call volume from start to peak of the pandemic | C9: =IF(Data_Start_to_Peak= 1, "Hospital-to-call", IF(Data_Start_to_Peak= 2, "Media-to-call", IF(Data_Start_to_Peak= "Media-to-call_Fall",0))) -> Hospital-to-call | E9: Begin cases (week) | F9: Peak Week
E10: =WkCasesStartAppear -> 1 | F10: =PeakWk -> 14
B13: Week (Pandemic starts) | C13: Week when pandemic cases start to appear | D13: Number of influenza cases | E13: Hospitalizations (Lower bound) | F13: Hospitalizations (Upper bound)
B14: 1 | C14: =IFERROR(IF(D14>0,1,"")+C13,IF(D14>0,1,"")) -> 1 | D14: =IFERROR(IF(AND(AttackRate = 1, Seed = 1), 'Data Source - Case Projections '!D9, IF(AND(AttackRate = 1, Seed = 2), 'Data Source - Case Projections '!E9, IF(AND(AttackRate = 2,Seed = 1),'Data Source - Case Projections '!F9, 'Data Source - Case Projections '!G9))),"") -> 45 | E14: =D14*CasetoHospRatioLow -> 0.675 | F14: =D14*CasetoHospRatioHigh -> 1.35
B15: 2 | C15: 2 | D15: =IFERROR(IF(AND(AttackRate = 1, Seed = 1), 'Data Source - Case Projections '!D10, IF(AND(AttackRate = 1, Seed = 2), 'Data Source - Case Projections '!E10, IF(AND(AttackRate = 2,Seed = 1),'Data Source - Case Projections '!F10, 'Data Source - Case Projections '!G10))),"") -> 130 | E15: 1.95 | F15: 3.9
B16: 3 | C16: 3 | D16: =IFERROR(IF(AND(AttackRate = 1, Seed = 1), 'Data Source - Case Projections '!D11, IF(AND(AttackRate = 1, Seed = 2), 'Data Source - Case Projections '!E11, IF(AND(AttackRate = 2,Seed = 1),'Data Source - Case Projections '!F11, 'Data Source - Case Projections '!G11))),"") -> 400 | E16: 6 | F16: 12
B17: 4 | C17: 4 | D17: =IFERROR(IF(AND(AttackRate = 1, Seed = 1), 'Data Source - Case Projections '!D12, IF(AND(AttackRate = 1, Seed = 2), 'Data Source - Case Projections '!E12, IF(AND(AttackRate = 2,Seed = 1),'Data Source - Case Projections '!F12, 'Data Source - Case Projections '!G12))),"") -> 1200 | E17: 18 | F17: 36
B18: 5 | C18: 5 | D18: =IFERROR(IF(AND(AttackRate = 1, Seed = 1), 'Data Source - Case Projections '!D13, IF(AND(AttackRate = 1, Seed = 2), 'Data Source - Case Projections '!E13, IF(AND(AttackRate = 2,Seed = 1),'Data Source - Case Projections '!F13, 'Data Source - Case Projections '!G13))),"") -> 3400 | E18: 51 | F18: 102
B19: 6 | C19: 6 | D19: =IFERROR(IF(AND(AttackRate = 1, Seed = 1), 'Data Source - Case Projections '!D14, IF(AND(AttackRate = 1, Seed = 2), 'Data Source - Case Projections '!E14, IF(AND(AttackRate = 2,Seed = 1),'Data Source - Case Projections '!F14, 'Data Source - Case Projections '!G14))),"") -> 10800 | E19: 162 | F19: 324
B20: 7 | C20: 7 | D20: =IFERROR(IF(AND(AttackRate = 1, Seed = 1), 'Data Source - Case Projections '!D15, IF(AND(AttackRate = 1, Seed = 2), 'Data Source - Case Projections '!E15, IF(AND(AttackRate = 2,Seed = 1),'Data Source - Case Projections '!F15, 'Data Source - Case Projections '!G15))),"") -> 34150 | E20: 512.25 | F20: 1024.5
B21: 8 | C21: 8 | D21: =IFERROR(IF(AND(AttackRate = 1, Seed = 1), 'Data Source - Case Projections '!D16, IF(AND(AttackRate = 1, Seed = 2), 'Data Source - Case Projections '!E16, IF(AND(AttackRate = 2,Seed = 1),'Data Source - Case Projections '!F16, 'Data Source - Case Projections '!G16))),"") -> 106600 | E21: 1599 | F21: 3198
B22: 9 | C22: 9 | D22: =IFERROR(IF(AND(AttackRate = 1, Seed = 1), 'Data Source - Case Projections '!D17, IF(AND(AttackRate = 1, Seed = 2), 'Data Source - Case Projections '!E17, IF(AND(AttackRate = 2,Seed = 1),'Data Source - Case Projections '!F17, 'Data Source - Case Projections '!G17))),"") -> 331700 | E22: 4975.5 | F22: 9951
B23: 10 | C23: 10 | D23: =IFERROR(IF(AND(AttackRate = 1, Seed = 1), 'Data Source - Case Projections '!D18, IF(AND(AttackRate = 1, Seed = 2), 'Data Source - Case Projections '!E18, IF(AND(AttackRate = 2,Seed = 1),'Data Source - Case Projections '!F18, 'Data Source - Case Projections '!G18))),"") -> 1021400 | E23: 15321 | F23: 30642
B24: 11 | C24: 11 | D24: =IFERROR(IF(AND(AttackRate = 1, Seed = 1), 'Data Source - Case Projections '!D19, IF(AND(AttackRate = 1, Seed = 2), 'Data Source - Case Projections '!E19, IF(AND(AttackRate = 2,Seed = 1),'Data Source - Case Projections '!F19, 'Data Source - Case Projections '!G19))),"") -> 3042400 | E24: 45636 | F24: 91272
B25: 12 | C25: 12 | D25: =IFERROR(IF(AND(AttackRate = 1, Seed = 1), 'Data Source - Case Projections '!D20, IF(AND(AttackRate = 1, Seed = 2), 'Data Source - Case Projections '!E20, IF(AND(AttackRate = 2,Seed = 1),'Data Source - Case Projections '!F20, 'Data Source - Case Projections '!G20))),"") -> 8240950 | E25: 123614.25 | F25: 247228.5
B26: 13 | C26: 13 | D26: =IFERROR(IF(AND(AttackRate = 1, Seed = 1), 'Data Source - Case Projections '!D21, IF(AND(AttackRate = 1, Seed = 2), 'Data Source - Case Projections '!E21, IF(AND(AttackRate = 2,Seed = 1),'Data Source - Case Projections '!F21, 'Data Source - Case Projections '!G21))),"") -> 17655450 | E26: 264831.75 | F26: 529663.5
B27: 14 | C27: 14 | D27: =IFERROR(IF(AND(AttackRate = 1, Seed = 1), 'Data Source - Case Projections '!D22, IF(AND(AttackRate = 1, Seed = 2), 'Data Source - Case Projections '!E22, IF(AND(AttackRate = 2,Seed = 1),'Data Source - Case Projections '!F22, 'Data Source - Case Projections '!G22))),"") -> 24528950 | E27: 367934.25 | F27: 735868.5
B28: 15 | C28: 15 | D28: =IFERROR(IF(AND(AttackRate = 1, Seed = 1), 'Data Source - Case Projections '!D23, IF(AND(AttackRate = 1, Seed = 2), 'Data Source - Case Projections '!E23, IF(AND(AttackRate = 2,Seed = 1),'Data Source - Case Projections '!F23, 'Data Source - Case Projections '!G23))),"") -> 20108850 | E28: 301632.75 | F28: 603265.5
B29: 16 | C29: 16 | D29: =IFERROR(IF(AND(AttackRate = 1, Seed = 1), 'Data Source - Case Projections '!D24, IF(AND(AttackRate = 1, Seed = 2), 'Data Source - Case Projections '!E24, IF(AND(AttackRate = 2,Seed = 1),'Data Source - Case Projections '!F24, 'Data Source - Case Projections '!G24))),"") -> 10947250 | E29: 164208.75 | F29: 328417.5
B30: 17 | C30: 17 | D30: =IFERROR(IF(AND(AttackRate = 1, Seed = 1), 'Data Source - Case Projections '!D25, IF(AND(AttackRate = 1, Seed = 2), 'Data Source - Case Projections '!E25, IF(AND(AttackRate = 2,Seed = 1),'Data Source - Case Projections '!F25, 'Data Source - Case Projections '!G25))),"") -> 4805950 | E30: 72089.25 | F30: 144178.5
B31: 18 | C31: 18 | D31: =IFERROR(IF(AND(AttackRate = 1, Seed = 1), 'Data Source - Case Projections '!D26, IF(AND(AttackRate = 1, Seed = 2), 'Data Source - Case Projections '!E26, IF(AND(AttackRate = 2,Seed = 1),'Data Source - Case Projections '!F26, 'Data Source - Case Projections '!G26))),"") -> 1928850 | E31: 28932.75 | F31: 57865.5
B32: 19 | C32: 19 | D32: =IFERROR(IF(AND(AttackRate = 1, Seed = 1), 'Data Source - Case Projections '!D27, IF(AND(AttackRate = 1, Seed = 2), 'Data Source - Case Projections '!E27, IF(AND(AttackRate = 2,Seed = 1),'Data Source - Case Projections '!F27, 'Data Source - Case Projections '!G27))),"") -> 747750 | E32: 11216.25 | F32: 22432.5
B33: 20 | C33: 20 | D33: =IFERROR(IF(AND(AttackRate = 1, Seed = 1), 'Data Source - Case Projections '!D28, IF(AND(AttackRate = 1, Seed = 2), 'Data Source - Case Projections '!E28, IF(AND(AttackRate = 2,Seed = 1),'Data Source - Case Projections '!F28, 'Data Source - Case Projections '!G28))),"") -> 286100 | E33: 4291.5 | F33: 8583
B34: 21 | C34: 21 | D34: =IFERROR(IF(AND(AttackRate = 1, Seed = 1), 'Data Source - Case Projections '!D29, IF(AND(AttackRate = 1, Seed = 2), 'Data Source - Case Projections '!E29, IF(AND(AttackRate = 2,Seed = 1),'Data Source - Case Projections '!F29, 'Data Source - Case Projections '!G29))),"") -> 108900 | E34: 1633.5 | F34: 3267
B35: 22 | C35: 22 | D35: =IFERROR(IF(AND(AttackRate = 1, Seed = 1), 'Data Source - Case Projections '!D30, IF(AND(AttackRate = 1, Seed = 2), 'Data Source - Case Projections '!E30, IF(AND(AttackRate = 2,Seed = 1),'Data Source - Case Projections '!F30, 'Data Source - Case Projections '!G30))),"") -> 41350 | E35: 620.25 | F35: 1240.5
B36: 23 | C36: 23 | D36: =IFERROR(IF(AND(AttackRate = 1, Seed = 1), 'Data Source - Case Projections '!D31, IF(AND(AttackRate = 1, Seed = 2), 'Data Source - Case Projections '!E31, IF(AND(AttackRate = 2,Seed = 1),'Data Source - Case Projections '!F31, 'Data Source - Case Projections '!G31))),"") -> 15750 | E36: 236.25 | F36: 472.5
B37: 24 | C37: 24 | D37: =IFERROR(IF(AND(AttackRate = 1, Seed = 1), 'Data Source - Case Projections '!D32, IF(AND(AttackRate = 1, Seed = 2), 'Data Source - Case Projections '!E32, IF(AND(AttackRate = 2,Seed = 1),'Data Source - Case Projections '!F32, 'Data Source - Case Projections '!G32))),"") -> 6000 | E37: 90 | F37: 180
B38: 25 | C38: 25 | D38: =IFERROR(IF(AND(AttackRate = 1, Seed = 1), 'Data Source - Case Projections '!D33, IF(AND(AttackRate = 1, Seed = 2), 'Data Source - Case Projections '!E33, IF(AND(AttackRate = 2,Seed = 1),'Data Source - Case Projections '!F33, 'Data Source - Case Projections '!G33))),"") -> 2300 | E38: 34.5 | F38: 69
B39: 26 | C39: 26 | D39: =IFERROR(IF(AND(AttackRate = 1, Seed = 1), 'Data Source - Case Projections '!D34, IF(AND(AttackRate = 1, Seed = 2), 'Data Source - Case Projections '!E34, IF(AND(AttackRate = 2,Seed = 1),'Data Source - Case Projections '!F34, 'Data Source - Case Projections '!G34))),"") -> 850 | E39: 12.75 | F39: 25.5
B40: 27 | C40: 27 | D40: =IFERROR(IF(AND(AttackRate = 1, Seed = 1), 'Data Source - Case Projections '!D35, IF(AND(AttackRate = 1, Seed = 2), 'Data Source - Case Projections '!E35, IF(AND(AttackRate = 2,Seed = 1),'Data Source - Case Projections '!F35, 'Data Source - Case Projections '!G35))),"") -> 300 | E40: 4.5 | F40: 9
B41: 28 | C41: 28 | D41: =IFERROR(IF(AND(AttackRate = 1, Seed = 1), 'Data Source - Case Projections '!D36, IF(AND(AttackRate = 1, Seed = 2), 'Data Source - Case Projections '!E36, IF(AND(AttackRate = 2,Seed = 1),'Data Source - Case Projections '!F36, 'Data Source - Case Projections '!G36))),"") -> 50 | E41: 0.75 | F41: 1.5
B42: 29 | C42: 29 | D42: =IFERROR(IF(AND(AttackRate = 1, Seed = 1), 'Data Source - Case Projections '!D37, IF(AND(AttackRate = 1, Seed = 2), 'Data Source - Case Projections '!E37, IF(AND(AttackRate = 2,Seed = 1),'Data Source - Case Projections '!F37, 'Data Source - Case Projections '!G37))),"") -> 50 | E42: 0.75 | F42: 1.5
B43: 30 | D43: =IFERROR(IF(AND(AttackRate = 1, Seed = 1), 'Data Source - Case Projections '!D38, IF(AND(AttackRate = 1, Seed = 2), 'Data Source - Case Projections '!E38, IF(AND(AttackRate = 2,Seed = 1),'Data Source - Case Projections '!F38, 'Data Source - Case Projections '!G38))),"") -> 0 | E43: 0 | F43: 0
B44: 31 | D44: =IFERROR(IF(AND(AttackRate = 1, Seed = 1), 'Data Source - Case Projections '!D39, IF(AND(AttackRate = 1, Seed = 2), 'Data Source - Case Projections '!E39, IF(AND(AttackRate = 2,Seed = 1),'Data Source - Case Projections '!F39, 'Data Source - Case Projections '!G39))),"") -> 0 | E44: 0 | F44: 0
B45: 32 | D45: =IFERROR(IF(AND(AttackRate = 1, Seed = 1), 'Data Source - Case Projections '!D40, IF(AND(AttackRate = 1, Seed = 2), 'Data Source - Case Projections '!E40, IF(AND(AttackRate = 2,Seed = 1),'Data Source - Case Projections '!F40, 'Data Source - Case Projections '!G40))),"") -> 0 | E45: 0 | F45: 0
B46: 33 | D46: =IFERROR(IF(AND(AttackRate = 1, Seed = 1), 'Data Source - Case Projections '!D41, IF(AND(AttackRate = 1, Seed = 2), 'Data Source - Case Projections '!E41, IF(AND(AttackRate = 2,Seed = 1),'Data Source - Case Projections '!F41, 'Data Source - Case Projections '!G41))),"") -> 0 | E46: 0 | F46: 0
B47: 34 | D47: =IFERROR(IF(AND(AttackRate = 1, Seed = 1), 'Data Source - Case Projections '!D42, IF(AND(AttackRate = 1, Seed = 2), 'Data Source - Case Projections '!E42, IF(AND(AttackRate = 2,Seed = 1),'Data Source - Case Projections '!F42, 'Data Source - Case Projections '!G42))),"") -> 0 | E47: 0 | F47: 0
B48: 35 | D48: =IFERROR(IF(AND(AttackRate = 1, Seed = 1), 'Data Source - Case Projections '!D43, IF(AND(AttackRate = 1, Seed = 2), 'Data Source - Case Projections '!E43, IF(AND(AttackRate = 2,Seed = 1),'Data Source - Case Projections '!F43, 'Data Source - Case Projections '!G43))),"") -> 0 | E48: 0 | F48: 0
B49: 36 | D49: =IFERROR(IF(AND(AttackRate = 1, Seed = 1), 'Data Source - Case Projections '!D44, IF(AND(AttackRate = 1, Seed = 2), 'Data Source - Case Projections '!E44, IF(AND(AttackRate = 2,Seed = 1),'Data Source - Case Projections '!F44, 'Data Source - Case Projections '!G44))),"") -> 0 | E49: 0 | F49: 0
B50: 37 | D50: =IFERROR(IF(AND(AttackRate = 1, Seed = 1), 'Data Source - Case Projections '!D45, IF(AND(AttackRate = 1, Seed = 2), 'Data Source - Case Projections '!E45, IF(AND(AttackRate = 2,Seed = 1),'Data Source - Case Projections '!F45, 'Data Source - Case Projections '!G45))),"") -> 0 | E50: 0 | F50: 0
B51: 38 | D51: =IFERROR(IF(AND(AttackRate = 1, Seed = 1), 'Data Source - Case Projections '!D46, IF(AND(AttackRate = 1, Seed = 2), 'Data Source - Case Projections '!E46, IF(AND(AttackRate = 2,Seed = 1),'Data Source - Case Projections '!F46, 'Data Source - Case Projections '!G46))),"") -> 0 | E51: 0 | F51: 0
B52: 39 | D52: =IFERROR(IF(AND(AttackRate = 1, Seed = 1), 'Data Source - Case Projections '!D47, IF(AND(AttackRate = 1, Seed = 2), 'Data Source - Case Projections '!E47, IF(AND(AttackRate = 2,Seed = 1),'Data Source - Case Projections '!F47, 'Data Source - Case Projections '!G47))),"") -> 0 | E52: 0 | F52: 0
B53: 40 | D53: =IFERROR(IF(AND(AttackRate = 1, Seed = 1), 'Data Source - Case Projections '!D48, IF(AND(AttackRate = 1, Seed = 2), 'Data Source - Case Projections '!E48, IF(AND(AttackRate = 2,Seed = 1),'Data Source - Case Projections '!F48, 'Data Source - Case Projections '!G48))),"") -> 0 | E53: 0 | F53: 0
B54: 41 | D54: =IFERROR(IF(AND(AttackRate = 1, Seed = 1), 'Data Source - Case Projections '!D49, IF(AND(AttackRate = 1, Seed = 2), 'Data Source - Case Projections '!E49, IF(AND(AttackRate = 2,Seed = 1),'Data Source - Case Projections '!F49, 'Data Source - Case Projections '!G49))),"") -> 0 | E54: 0 | F54: 0
B55: 42 | D55: =IFERROR(IF(AND(AttackRate = 1, Seed = 1), 'Data Source - Case Projections '!D50, IF(AND(AttackRate = 1, Seed = 2), 'Data Source - Case Projections '!E50, IF(AND(AttackRate = 2,Seed = 1),'Data Source - Case Projections '!F50, 'Data Source - Case Projections '!G50))),"") -> 0 | E55: 0 | F55: 0
B56: 43 | D56: =IFERROR(IF(AND(AttackRate = 1, Seed = 1), 'Data Source - Case Projections '!D51, IF(AND(AttackRate = 1, Seed = 2), 'Data Source - Case Projections '!E51, IF(AND(AttackRate = 2,Seed = 1),'Data Source - Case Projections '!F51, 'Data Source - Case Projections '!G51))),"") -> 0 | E56: 0 | F56: 0
B57: 44 | D57: =IFERROR(IF(AND(AttackRate = 1, Seed = 1), 'Data Source - Case Projections '!D52, IF(AND(AttackRate = 1, Seed = 2), 'Data Source - Case Projections '!E52, IF(AND(AttackRate = 2,Seed = 1),'Data Source - Case Projections '!F52, 'Data Source - Case Projections '!G52))),"") -> 0 | E57: 0 | F57: 0
B58: 45 | D58: =IFERROR(IF(AND(AttackRate = 1, Seed = 1), 'Data Source - Case Projections '!D53, IF(AND(AttackRate = 1, Seed = 2), 'Data Source - Case Projections '!E53, IF(AND(AttackRate = 2,Seed = 1),'Data Source - Case Projections '!F53, 'Data Source - Case Projections '!G53))),"") -> 0 | E58: 0 | F58: 0
B59: 46 | D59: =IFERROR(IF(AND(AttackRate = 1, Seed = 1), 'Data Source - Case Projections '!D54, IF(AND(AttackRate = 1, Seed = 2), 'Data Source - Case Projections '!E54, IF(AND(AttackRate = 2,Seed = 1),'Data Source - Case Projections '!F54, 'Data Source - Case Projections '!G54))),"") -> 0 | E59: 0 | F59: 0
B60: 47

Sheet Media_counts (hidden)
B1: Media counts projection | I1: Do not delete these data
E2: Modeled Media Counts | I2: Media counts Distributions
B3: Week (Pandemic starts) | C3: Week when pandemic cases start to appear | D3: Number of influenza cases (US) | E3: Media stories (Low) | F3: Media stories (High]) | I3: Media stories (1st wave) | J3: Media stories (2nd wave)
B4: 1 | C4: =IFERROR(IF(D4>0,1,"")+C3,IF(D4>0,1,"")) -> 1 | D4: =IFERROR(IF(AND(AttackRate_m = 1, Seed = 1), 'Data Source - Case Projections '!D9, IF(AND(AttackRate_m = 1, Seed = 2), 'Data Source - Case Projections '!E9, IF(AND(AttackRate_m = 2,Seed = 1),'Data Source - Case Projections '!F9, 'Data Source - Case Projections '!G9))),"") -> 15 | E4: =Media_Method!G54 -> 860 | F4: =E4*Media_Method!$H$28 -> 1118 | I4: =IFERROR((_xlfn.LOGNORM.DIST(C4,3.77,3.2,FALSE))*16631,"") -> 1035.816312 | J4: =IF(AND(C4>0,D4<>""), RANDBETWEEN(655, 875), "") -> 823
B5: 2 | C5: 2 | D5: =IFERROR(IF(AND(AttackRate_m = 1, Seed = 1), 'Data Source - Case Projections '!D10, IF(AND(AttackRate_m = 1, Seed = 2), 'Data Source - Case Projections '!E10, IF(AND(AttackRate_m = 2,Seed = 1),'Data Source - Case Projections '!F10, 'Data Source - Case Projections '!G10))),"") -> 25 | E5: =Media_Method!G55 -> 875 | F5: =E5*Media_Method!$H$28 -> 1137.5 | I5: 652.969345 | J5: 874
B6: 3 | C6: 3 | D6: =IFERROR(IF(AND(AttackRate_m = 1, Seed = 1), 'Data Source - Case Projections '!D11, IF(AND(AttackRate_m = 1, Seed = 2), 'Data Source - Case Projections '!E11, IF(AND(AttackRate_m = 2,Seed = 1),'Data Source - Case Projections '!F11, 'Data Source - Case Projections '!G11))),"") -> 50 | E6: =Media_Method!G56 -> 773 | F6: =E6*Media_Method!$H$28 -> 1004.9 | I6: 487.7823595 | J6: 792
B7: 4 | C7: 4 | D7: =IFERROR(IF(AND(AttackRate_m = 1, Seed = 1), 'Data Source - Case Projections '!D12, IF(AND(AttackRate_m = 1, Seed = 2), 'Data Source - Case Projections '!E12, IF(AND(AttackRate_m = 2,Seed = 1),'Data Source - Case Projections '!F12, 'Data Source - Case Projections '!G12))),"") -> 100 | E7: =Media_Method!G57 -> 728 | F7: =E7*Media_Method!$H$28 -> 946.4 | I7: 392.7589344 | J7: 870
B8: 5 | C8: 5 | D8: =IFERROR(IF(AND(AttackRate_m = 1, Seed = 1), 'Data Source - Case Projections '!D13, IF(AND(AttackRate_m = 1, Seed = 2), 'Data Source - Case Projections '!E13, IF(AND(AttackRate_m = 2,Seed = 1),'Data Source - Case Projections '!F13, 'Data Source - Case Projections '!G13))),"") -> 400 | E8: =Media_Method!G58 -> 687 | F8: =E8*Media_Method!$H$28 -> 893.1 | I8: 330.1560318 | J8: 829
B9: 6 | C9: 6 | D9: =IFERROR(IF(AND(AttackRate_m = 1, Seed = 1), 'Data Source - Case Projections '!D14, IF(AND(AttackRate_m = 1, Seed = 2), 'Data Source - Case Projections '!E14, IF(AND(AttackRate_m = 2,Seed = 1),'Data Source - Case Projections '!F14, 'Data Source - Case Projections '!G14))),"") -> 650 | E9: =Media_Method!G59 -> 867 | F9: =E9*Media_Method!$H$28 -> 1127.1 | I9: 285.4563615 | J9: 823
B10: 7 | C10: 7 | D10: =IFERROR(IF(AND(AttackRate_m = 1, Seed = 1), 'Data Source - Case Projections '!D15, IF(AND(AttackRate_m = 1, Seed = 2), 'Data Source - Case Projections '!E15, IF(AND(AttackRate_m = 2,Seed = 1),'Data Source - Case Projections '!F15, 'Data Source - Case Projections '!G15))),"") -> 1150 | E10: =Media_Method!G60 -> 717 | F10: =E10*Media_Method!$H$28 -> 932.1 | I10: 251.7806333 | J10: 705
B11: 8 | C11: 8 | D11: =IFERROR(IF(AND(AttackRate_m = 1, Seed = 1), 'Data Source - Case Projections '!D16, IF(AND(AttackRate_m = 1, Seed = 2), 'Data Source - Case Projections '!E16, IF(AND(AttackRate_m = 2,Seed = 1),'Data Source - Case Projections '!F16, 'Data Source - Case Projections '!G16))),"") -> 2450 | E11: =Media_Method!G61 -> 1287 | F11: =E11*Media_Method!$H$28 -> 1673.1 | I11: 225.4148827 | J11: 831
B12: 9 | C12: 9 | D12: =IFERROR(IF(AND(AttackRate_m = 1, Seed = 1), 'Data Source - Case Projections '!D17, IF(AND(AttackRate_m = 1, Seed = 2), 'Data Source - Case Projections '!E17, IF(AND(AttackRate_m = 2,Seed = 1),'Data Source - Case Projections '!F17, 'Data Source - Case Projections '!G17))),"") -> 4350 | E12: =Media_Method!G62 -> 6800 | F12: =E12*Media_Method!$H$28 -> 8840 | I12: 204.1647839 | J12: 814
B13: 10 | C13: 10 | D13: =IFERROR(IF(AND(AttackRate_m = 1, Seed = 1), 'Data Source - Case Projections '!D18, IF(AND(AttackRate_m = 1, Seed = 2), 'Data Source - Case Projections '!E18, IF(AND(AttackRate_m = 2,Seed = 1),'Data Source - Case Projections '!F18, 'Data Source - Case Projections '!G18))),"") -> 8500 | E13: =Media_Method!G63 -> 954 | F13: =E13*Media_Method!$H$28 -> 1240.2 | I13: 186.6448004 | J13: 824
B14: 11 | C14: 11 | D14: =IFERROR(IF(AND(AttackRate_m = 1, Seed = 1), 'Data Source - Case Projections '!D19, IF(AND(AttackRate_m = 1, Seed = 2), 'Data Source - Case Projections '!E19, IF(AND(AttackRate_m = 2,Seed = 1),'Data Source - Case Projections '!F19, 'Data Source - Case Projections '!G19))),"") -> 16300 | E14: =Media_Method!G64 -> 793 | F14: =E14*Media_Method!$H$28 -> 1030.9 | I14: 171.9341876 | J14: 667
B15: 12 | C15: 12 | D15: =IFERROR(IF(AND(AttackRate_m = 1, Seed = 1), 'Data Source - Case Projections '!D20, IF(AND(AttackRate_m = 1, Seed = 2), 'Data Source - Case Projections '!E20, IF(AND(AttackRate_m = 2,Seed = 1),'Data Source - Case Projections '!F20, 'Data Source - Case Projections '!G20))),"") -> 31100 | E15: =Media_Method!G65 -> 524 | F15: =E15*Media_Method!$H$28 -> 681.2 | I15: 159.3956975 | J15: 655
B16: 13 | C16: 13 | D16: =IFERROR(IF(AND(AttackRate_m = 1, Seed = 1), 'Data Source - Case Projections '!D21, IF(AND(AttackRate_m = 1, Seed = 2), 'Data Source - Case Projections '!E21, IF(AND(AttackRate_m = 2,Seed = 1),'Data Source - Case Projections '!F21, 'Data Source - Case Projections '!G21))),"") -> 59300 | E16: =Media_Method!G66 -> 329 | F16: =E16*Media_Method!$H$28 -> 427.7 | I16: 148.5734404 | J16: 854
B17: 14 | C17: 14 | D17: =IFERROR(IF(AND(AttackRate_m = 1, Seed = 1), 'Data Source - Case Projections '!D22, IF(AND(AttackRate_m = 1, Seed = 2), 'Data Source - Case Projections '!E22, IF(AND(AttackRate_m = 2,Seed = 1),'Data Source - Case Projections '!F22, 'Data Source - Case Projections '!G22))),"") -> 113250 | E17: =Media_Method!G67 -> 329 | F17: =E17*Media_Method!$H$28 -> 427.7 | I17: 139.1321678 | J17: 783
B18: 15 | C18: 15 | D18: =IFERROR(IF(AND(AttackRate_m = 1, Seed = 1), 'Data Source - Case Projections '!D23, IF(AND(AttackRate_m = 1, Seed = 2), 'Data Source - Case Projections '!E23, IF(AND(AttackRate_m = 2,Seed = 1),'Data Source - Case Projections '!F23, 'Data Source - Case Projections '!G23))),"") -> 215050 | E18: =Media_Method!G68 -> 329 | F18: =E18*Media_Method!$H$28 -> 427.7 | I18: 130.8195453 | J18: 721
B19: 16 | C19: 16 | D19: =IFERROR(IF(AND(AttackRate_m = 1, Seed = 1), 'Data Source - Case Projections '!D24, IF(AND(AttackRate_m = 1, Seed = 2), 'Data Source - Case Projections '!E24, IF(AND(AttackRate_m = 2,Seed = 1),'Data Source - Case Projections '!F24, 'Data Source - Case Projections '!G24))),"") -> 407300 | E19: =Media_Method!G69 -> 329 | F19: =E19*Media_Method!$H$28 -> 427.7 | I19: 123.4418247 | J19: 730
B20: 17 | C20: 17 | D20: =IFERROR(IF(AND(AttackRate_m = 1, Seed = 1), 'Data Source - Case Projections '!D25, IF(AND(AttackRate_m = 1, Seed = 2), 'Data Source - Case Projections '!E25, IF(AND(AttackRate_m = 2,Seed = 1),'Data Source - Case Projections '!F25, 'Data Source - Case Projections '!G25))),"") -> 763300 | E20: =Media_Method!G70 -> 329 | F20: =E20*Media_Method!$H$28 -> 427.7 | I20: 116.8476507 | J20: 794
B21: 18 | C21: 18 | D21: =IFERROR(IF(AND(AttackRate_m = 1, Seed = 1), 'Data Source - Case Projections '!D26, IF(AND(AttackRate_m = 1, Seed = 2), 'Data Source - Case Projections '!E26, IF(AND(AttackRate_m = 2,Seed = 1),'Data Source - Case Projections '!F26, 'Data Source - Case Projections '!G26))),"") -> 1405050 | E21: =Media_Method!G71 -> 329 | F21: =E21*Media_Method!$H$28 -> 427.7 | I21: 110.9169855 | J21: 852
B22: 19 | C22: 19 | D22: =IFERROR(IF(AND(AttackRate_m = 1, Seed = 1), 'Data Source - Case Projections '!D27, IF(AND(AttackRate_m = 1, Seed = 2), 'Data Source - Case Projections '!E27, IF(AND(AttackRate_m = 2,Seed = 1),'Data Source - Case Projections '!F27, 'Data Source - Case Projections '!G27))),"") -> 2503550 | E22: =Media_Method!G72 -> 329 | F22: =E22*Media_Method!$H$28 -> 427.7 | I22: 105.5533511 | J22: 794
B23: 20 | C23: 20 | D23: =IFERROR(IF(AND(AttackRate_m = 1, Seed = 1), 'Data Source - Case Projections '!D28, IF(AND(AttackRate_m = 1, Seed = 2), 'Data Source - Case Projections '!E28, IF(AND(AttackRate_m = 2,Seed = 1),'Data Source - Case Projections '!F28, 'Data Source - Case Projections '!G28))),"") -> 4214400 | E23: =Media_Method!G73 -> 329 | F23: =E23*Media_Method!$H$28 -> 427.7 | I23: 100.6782802 | J23: 702
B24: 21 | C24: 21 | D24: =IFERROR(IF(AND(AttackRate_m = 1, Seed = 1), 'Data Source - Case Projections '!D29, IF(AND(AttackRate_m = 1, Seed = 2), 'Data Source - Case Projections '!E29, IF(AND(AttackRate_m = 2,Seed = 1),'Data Source - Case Projections '!F29, 'Data Source - Case Projections '!G29))),"") -> 6465650 | E24: =Media_Method!G74 -> 329 | F24: =E24*Media_Method!$H$28 -> 427.7 | I24: 96.22727254 | J24: 717
B25: 22 | C25: 22 | D25: =IFERROR(IF(AND(AttackRate_m = 1, Seed = 1), 'Data Source - Case Projections '!D30, IF(AND(AttackRate_m = 1, Seed = 2), 'Data Source - Case Projections '!E30, IF(AND(AttackRate_m = 2,Seed = 1),'Data Source - Case Projections '!F30, 'Data Source - Case Projections '!G30))),"") -> 8656950 | E25: =Media_Method!G75 -> 329 | F25: =E25*Media_Method!$H$28 -> 427.7 | I25: 92.14679964 | J25: 667
B26: 23 | C26: 23 | D26: =IFERROR(IF(AND(AttackRate_m = 1, Seed = 1), 'Data Source - Case Projections '!D31, IF(AND(AttackRate_m = 1, Seed = 2), 'Data Source - Case Projections '!E31, IF(AND(AttackRate_m = 2,Seed = 1),'Data Source - Case Projections '!F31, 'Data Source - Case Projections '!G31))),"") -> 9748000 | E26: =Media_Method!G76 -> 329 | F26: =E26*Media_Method!$H$28 -> 427.7 | I26: 88.39205219 | J26: 769
B27: 24 | C27: 24 | D27: =IFERROR(IF(AND(AttackRate_m = 1, Seed = 1), 'Data Source - Case Projections '!D32, IF(AND(AttackRate_m = 1, Seed = 2), 'Data Source - Case Projections '!E32, IF(AND(AttackRate_m = 2,Seed = 1),'Data Source - Case Projections '!F32, 'Data Source - Case Projections '!G32))),"") -> 9113800 | E27: =Media_Method!G77 -> 329 | F27: =E27*Media_Method!$H$28 -> 427.7 | I27: 84.92522311 | J27: 680
B28: 25 | C28: 25 | D28: =IFERROR(IF(AND(AttackRate_m = 1, Seed = 1), 'Data Source - Case Projections '!D33, IF(AND(AttackRate_m = 1, Seed = 2), 'Data Source - Case Projections '!E33, IF(AND(AttackRate_m = 2,Seed = 1),'Data Source - Case Projections '!F33, 'Data Source - Case Projections '!G33))),"") -> 7208600 | E28: =Media_Method!G78 -> 329 | F28: =E28*Media_Method!$H$28 -> 427.7 | I28: 81.71418295 | J28: 778
B29: 26 | C29: 26 | D29: =IFERROR(IF(AND(AttackRate_m = 1, Seed = 1), 'Data Source - Case Projections '!D34, IF(AND(AttackRate_m = 1, Seed = 2), 'Data Source - Case Projections '!E34, IF(AND(AttackRate_m = 2,Seed = 1),'Data Source - Case Projections '!F34, 'Data Source - Case Projections '!G34))),"") -> 5014000 | E29: =Media_Method!G79 -> 329 | F29: =E29*Media_Method!$H$28 -> 427.7 | I29: 78.73144635 | J29: 798
B30: 27 | C30: 27 | D30: =IFERROR(IF(AND(AttackRate_m = 1, Seed = 1), 'Data Source - Case Projections '!D35, IF(AND(AttackRate_m = 1, Seed = 2), 'Data Source - Case Projections '!E35, IF(AND(AttackRate_m = 2,Seed = 1),'Data Source - Case Projections '!F35, 'Data Source - Case Projections '!G35))),"") -> 3194350 | E30: =Media_Method!G80 -> 329 | F30: =E30*Media_Method!$H$28 -> 427.7 | I30: 75.95335738 | J30: 680
B31: 28 | C31: 28 | D31: =IFERROR(IF(AND(AttackRate_m = 1, Seed = 1), 'Data Source - Case Projections '!D36, IF(AND(AttackRate_m = 1, Seed = 2), 'Data Source - Case Projections '!E36, IF(AND(AttackRate_m = 2,Seed = 1),'Data Source - Case Projections '!F36, 'Data Source - Case Projections '!G36))),"") -> 1926600 | E31: =Media_Method!G81 -> 329 | F31: =E31*Media_Method!$H$28 -> 427.7 | I31: 73.35944131 | J31: 866
B32: 29 | C32: 29 | D32: =IFERROR(IF(AND(AttackRate_m = 1, Seed = 1), 'Data Source - Case Projections '!D37, IF(AND(AttackRate_m = 1, Seed = 2), 'Data Source - Case Projections '!E37, IF(AND(AttackRate_m = 2,Seed = 1),'Data Source - Case Projections '!F37, 'Data Source - Case Projections '!G37))),"") -> 1124250 | E32: =Media_Method!G82 -> 329 | F32: =E32*Media_Method!$H$28 -> 427.7 | I32: 70.93188433 | J32: 660
B33: 30 | C33: 30 | D33: =IFERROR(IF(AND(AttackRate_m = 1, Seed = 1), 'Data Source - Case Projections '!D38, IF(AND(AttackRate_m = 1, Seed = 2), 'Data Source - Case Projections '!E38, IF(AND(AttackRate_m = 2,Seed = 1),'Data Source - Case Projections '!F38, 'Data Source - Case Projections '!G38))),"") -> 643800 | E33: =Media_Method!G83 -> 329 | F33: =E33*Media_Method!$H$28 -> 427.7 | I33: 68.65511257 | J33: 844
B34: 31 | C34: 31 | D34: =IFERROR(IF(AND(AttackRate_m = 1, Seed = 1), 'Data Source - Case Projections '!D39, IF(AND(AttackRate_m = 1, Seed = 2), 'Data Source - Case Projections '!E39, IF(AND(AttackRate_m = 2,Seed = 1),'Data Source - Case Projections '!F39, 'Data Source - Case Projections '!G39))),"") -> 364700 | E34: =Media_Method!G84 -> 329 | F34: =E34*Media_Method!$H$28 -> 427.7 | I34: 66.51544892 | J34: 754
B35: 32 | C35: 32 | D35: =IFERROR(IF(AND(AttackRate_m = 1, Seed = 1), 'Data Source - Case Projections '!D40, IF(AND(AttackRate_m = 1, Seed = 2), 'Data Source - Case Projections '!E40, IF(AND(AttackRate_m = 2,Seed = 1),'Data Source - Case Projections '!F40, 'Data Source - Case Projections '!G40))),"") -> 205200 | E35: =Media_Method!G85 -> 329 | F35: =E35*Media_Method!$H$28 -> 427.7 | I35: 64.50083136 | J35: 834
B36: 33 | C36: 33 | D36: =IFERROR(IF(AND(AttackRate_m = 1, Seed = 1), 'Data Source - Case Projections '!D41, IF(AND(AttackRate_m = 1, Seed = 2), 'Data Source - Case Projections '!E41, IF(AND(AttackRate_m = 2,Seed = 1),'Data Source - Case Projections '!F41, 'Data Source - Case Projections '!G41))),"") -> 115200 | E36: =Media_Method!G86 -> 329 | F36: =E36*Media_Method!$H$28 -> 427.7 | I36: 62.60058021 | J36: 868
B37: 34 | C37: 34 | D37: =IFERROR(IF(AND(AttackRate_m = 1, Seed = 1), 'Data Source - Case Projections '!D42, IF(AND(AttackRate_m = 1, Seed = 2), 'Data Source - Case Projections '!E42, IF(AND(AttackRate_m = 2,Seed = 1),'Data Source - Case Projections '!F42, 'Data Source - Case Projections '!G42))),"") -> 64550 | E37: =Media_Method!G87 -> 329 | F37: =E37*Media_Method!$H$28 -> 427.7 | I37: 60.80520465 | J37: 787
B38: 35 | C38: 35 | D38: =IFERROR(IF(AND(AttackRate_m = 1, Seed = 1), 'Data Source - Case Projections '!D43, IF(AND(AttackRate_m = 1, Seed = 2), 'Data Source - Case Projections '!E43, IF(AND(AttackRate_m = 2,Seed = 1),'Data Source - Case Projections '!F43, 'Data Source - Case Projections '!G43))),"") -> 36050 | E38: =Media_Method!G88 -> 329 | F38: =E38*Media_Method!$H$28 -> 427.7 | I38: 59.10624104 | J38: 660
B39: 36 | C39: 36 | D39: =IFERROR(IF(AND(AttackRate_m = 1, Seed = 1), 'Data Source - Case Projections '!D44, IF(AND(AttackRate_m = 1, Seed = 2), 'Data Source - Case Projections '!E44, IF(AND(AttackRate_m = 2,Seed = 1),'Data Source - Case Projections '!F44, 'Data Source - Case Projections '!G44))),"") -> 20100 | E39: =Media_Method!G89 -> 329 | F39: =E39*Media_Method!$H$28 -> 427.7 | I39: 57.49611694 | J39: 676
B40: 37 | C40: 37 | D40: =IFERROR(IF(AND(AttackRate_m = 1, Seed = 1), 'Data Source - Case Projections '!D45, IF(AND(AttackRate_m = 1, Seed = 2), 'Data Source - Case Projections '!E45, IF(AND(AttackRate_m = 2,Seed = 1),'Data Source - Case Projections '!F45, 'Data Source - Case Projections '!G45))),"") -> 11300 | E40: =Media_Method!G90 -> 329 | F40: =E40*Media_Method!$H$28 -> 427.7 | I40: 55.96803635 | J40: 717
B41: 38 | C41: 38 | D41: =IFERROR(IF(AND(AttackRate_m = 1, Seed = 1), 'Data Source - Case Projections '!D46, IF(AND(AttackRate_m = 1, Seed = 2), 'Data Source - Case Projections '!E46, IF(AND(AttackRate_m = 2,Seed = 1),'Data Source - Case Projections '!F46, 'Data Source - Case Projections '!G46))),"") -> 6300 | E41: =Media_Method!G91 -> 329 | F41: =E41*Media_Method!$H$28 -> 427.7 | I41: 54.5158822 | J41: 831
B42: 39 | C42: 39 | D42: =IFERROR(IF(AND(AttackRate_m = 1, Seed = 1), 'Data Source - Case Projections '!D47, IF(AND(AttackRate_m = 1, Seed = 2), 'Data Source - Case Projections '!E47, IF(AND(AttackRate_m = 2,Seed = 1),'Data Source - Case Projections '!F47, 'Data Source - Case Projections '!G47))),"") -> 3450 | E42: =Media_Method!G92 -> 329 | F42: =E42*Media_Method!$H$28 -> 427.7 | I42: 53.13413331 | J42: 822
B43: 40 | C43: 40 | D43: =IFERROR(IF(AND(AttackRate_m = 1, Seed = 1), 'Data Source - Case Projections '!D48, IF(AND(AttackRate_m = 1, Seed = 2), 'Data Source - Case Projections '!E48, IF(AND(AttackRate_m = 2,Seed = 1),'Data Source - Case Projections '!F48, 'Data Source - Case Projections '!G48))),"") -> 2000 | E43: =Media_Method!G93 -> 329 | F43: =E43*Media_Method!$H$28 -> 427.7 | I43: 51.81779328 | J43: 785
B44: 41 | C44: 41 | D44: =IFERROR(IF(AND(AttackRate_m = 1, Seed = 1), 'Data Source - Case Projections '!D49, IF(AND(AttackRate_m = 1, Seed = 2), 'Data Source - Case Projections '!E49, IF(AND(AttackRate_m = 2,Seed = 1),'Data Source - Case Projections '!F49, 'Data Source - Case Projections '!G49))),"") -> 1100 | E44: =Media_Method!G94 -> 329 | F44: =E44*Media_Method!$H$28 -> 427.7 | I44: 50.5623293 | J44: 795
B45: 42 | C45: 42 | D45: =IFERROR(IF(AND(AttackRate_m = 1, Seed = 1), 'Data Source - Case Projections '!D50, IF(AND(AttackRate_m = 1, Seed = 2), 'Data Source - Case Projections '!E50, IF(AND(AttackRate_m = 2,Seed = 1),'Data Source - Case Projections '!F50, 'Data Source - Case Projections '!G50))),"") -> 650 | E45: =Media_Method!G95 -> 329 | F45: =E45*Media_Method!$H$28 -> 427.7 | I45: 49.36361941 | J45: 845
B46: 43 | C46: 43 | D46: =IFERROR(IF(AND(AttackRate_m = 1, Seed = 1), 'Data Source - Case Projections '!D51, IF(AND(AttackRate_m = 1, Seed = 2), 'Data Source - Case Projections '!E51, IF(AND(AttackRate_m = 2,Seed = 1),'Data Source - Case Projections '!F51, 'Data Source - Case Projections '!G51))),"") -> 350 | E46: =Media_Method!G96 -> 0 | F46: =E46*Media_Method!$H$28 -> 0 | I46: 48.21790682 | J46: 811
B47: 44 | C47: 44 | D47: =IFERROR(IF(AND(AttackRate_m = 1, Seed = 1), 'Data Source - Case Projections '!D52, IF(AND(AttackRate_m = 1, Seed = 2), 'Data Source - Case Projections '!E52, IF(AND(AttackRate_m = 2,Seed = 1),'Data Source - Case Projections '!F52, 'Data Source - Case Projections '!G52))),"") -> 300 | E47: =Media_Method!G97 -> 0 | F47: =E47*Media_Method!$H$28 -> 0 | I47: 47.1217602 | J47: 759
B48: 45 | C48: 45 | D48: =IFERROR(IF(AND(AttackRate_m = 1, Seed = 1), 'Data Source - Case Projections '!D53, IF(AND(AttackRate_m = 1, Seed = 2), 'Data Source - Case Projections '!E53, IF(AND(AttackRate_m = 2,Seed = 1),'Data Source - Case Projections '!F53, 'Data Source - Case Projections '!G53))),"") -> 50 | E48: =Media_Method!G98 -> 0 | F48: =E48*Media_Method!$H$28 -> 0 | I48: 46.07203907 | J48: 819
B49: 46 | D49: =IFERROR(IF(AND(AttackRate_m = 1, Seed = 1), 'Data Source - Case Projections '!D54, IF(AND(AttackRate_m = 1, Seed = 2), 'Data Source - Case Projections '!E54, IF(AND(AttackRate_m = 2,Seed = 1),'Data Source - Case Projections '!F54, 'Data Source - Case Projections '!G54))),"") -> 0 | E49: =Media_Method!G99 -> 0 | F49: =E49*Media_Method!$H$28 -> 0 | J49: 726
B50: 47 | D50: =IFERROR(IF(AND(AttackRate_m = 1, Seed = 1), 'Data Source - Case Projections '!D55, IF(AND(AttackRate_m = 1, Seed = 2), 'Data Source - Case Projections '!E55, IF(AND(AttackRate_m = 2,Seed = 1),'Data Source - Case Projections '!F55, 'Data Source - Case Projections '!G55))),"") -> 0 | E50: =Media_Method!G100 -> 0 | F50: =E50*Media_Method!$H$28 -> 0
D51: =SUM(D4:D50) -> 63673590 | E51: =SUM(E4:E50) -> 25735 | F51: =SUM(F4:F50) -> 33455.5

Sheet Calculations
A1: Estimated call volumes by week after start of pandemic
H3: Data Selected from Dash Board
G4: Attack rate | H4: =IF(AttackRate=1,20,IF(AttackRate=2,30)) -> 30 | Q4: Low | R4: High
G5: Seed | H5: =IF(Seed=1,10,IF(Seed=2,100)) -> 10 | O5: Information only | Q5: =PropNonSymSeekInfoLow -> 0.402 | R5: =PropNonSymSeekInfoHigh -> 0.402
A6: Pandemic | G6: Flu line opened | H6: =WKOpenCallCenter -> 1 | I6: week(s) after | J6: =IF(CenterOpen = 1, "START", IF(CenterOpen = 2, "PEAK")) -> START | K6: of pandemic | O6: Symptomatic | Q6: =PropSympCallsLow -> 0.374 | R6: =PropSympCallsHigh -> 0.374
A7: Year | B7: 2009 | G7: Media activity level is | H7: =IF(MediaActivityCenterOpen= 1, "LOW", IF(MediaActivityCenterOpen= 2, "MODERATE", IF(MediaActivityCenterOpen = 3, "HIGH"))) -> LOW | I7: at start of pandemic | O7: Prematurely ended | Q7: =PropNonSymEndCallLow -> 0.224 | R7: =PropNonSymEndCallHigh -> 0.224
A8: Start | B8: =DATE(B7,1,-2)-WEEKDAY(DATE(B7,1,3))+A18*7 -> 2009-01-19 | G8: Media activity level is | H8: =IF(MediaActivityPandemic = 1, "LOW", IF(MediaActivityPandemic= 2, "MODERATE", IF(MediaActivityPandemic= 3, "HIGH"))) -> LOW | I8: throughout pandemic
A9: End | B9: =DATE(B7,1,-2)-WEEKDAY(DATE(B7,1,3))+A59*7 -> 2009-11-02 | G9: Method used to calculated call volume from start to peak of the pandemic | H9: =IF(Data_Start_to_Peak= 1, "Call-to-hospitalization", IF(Data_Start_to_Peak= 2, "MEDIA COUNTS TO CALL", IF(Data_Start_to_Peak= "MEDIA COUNTS - 2nd WAVE",0))) -> Call-to-hospitalization
G10: Definition: Low represents the lower bound and high is upper bound estimate
C11: Calls before the peak week | M11: Combined calls: before and after the peak
A12: =Model_Dashboard!E12 -> 1957-Like Pandemic | C12: "Call-to-hospitalization" Ratio Method | G12: "Media-to-call-rate" ratio method (1st wave) | I12: Media-to-Call Ratio method (2nd wave) | K12: Calls after peak week | M12: Total calls | O12: Information-only | Q12: Symptomatic | S12: End prematurely
A13: Week | B13: Week when pandemic starts | C13: Low estimate | D13: High estimate | E13: Low | F13: High | G13: Low estimate | H13: High estimate | I13: Low | J13: High | K13: Low | L13: High | M13: Low | N13: High | O13: Low | P13: High | Q13: Low | R13: High | S13: Low | T13: High
C14: Initial surge at start | E14: Calls based on Flu Hosp | K14: Calls based on Flu Hosp | M14: Combined calls | O14: Calls Classification
A15: 1 | B15: =Cases_Hosp!C14 -> 1 | C15: =IFERROR(IF(AND(CenterOpen=1, Data_H = 1,A15=SUM(WkCasesStartAppear,WKOpenCallCenter), A15 <PeakWk ), InitialCallVol*MultAdjCallBasedMediaStart,IF(AND(CenterOpen=1, A15>SUM(WkCasesStartAppear,WKOpenCallCenter), A15 <PeakWk),(C14-(C14*DeclineRateHigh))*MultAdjCallBasedMediaDuring,"")),"") ->  | D15: =IFERROR(IF(AND(CenterOpen=1, Data_H= 1,A15=SUM(WkCasesStartAppear,WKOpenCallCenter), A15<PeakWk ), InitialCallVolHigh*MultAdjCallBasedMediaStart,IF(AND(CenterOpen=1, A15>SUM(WkCasesStartAppear,WKOpenCallCenter), A15 <PeakWk),(D14-(D14*DeclineRateLow))*MultAdjCallBasedMediaDuring,"")),"") ->  | E15: =IFERROR(IF(AND(CenterOpen=1, A15=SUM(WkCasesStartAppear,WKOpenCallCenter),A15 <PeakWk), Cases_Hosp!E14*CalltoHospRatioLow,IF(AND(CenterOpen=1, A15>SUM(WkCasesStartAppear,WKOpenCallCenter), A15 <PeakWk),(Cases_Hosp!E14*CalltoHospRatioLow),"")),"") ->  | F15: =IFERROR(IF(AND(CenterOpen=1,A15=SUM(WkCasesStartAppear,WKOpenCallCenter),A15 <PeakWk), Cases_Hosp!F14*CalltoHospRatioHigh,IF(AND(CenterOpen=1, A15>SUM(WkCasesStartAppear,WKOpenCallCenter), A15 <PeakWk),(Cases_Hosp!F14*CalltoHospRatioHigh),"")),"") ->  | G15: =IFERROR(IF(AND(CenterOpen = 1, Data_H= 2, Cases_Hosp!B14>=SUM(WkCasesStartAppear,WKOpenCallCenter)), (((Media_counts!E4/MediatoCallLow)/per100K)*USPop),""),"") ->  | H15: =IFERROR(IF(AND(CenterOpen = 1, Data_H = 2, Cases_Hosp!B14>=SUM(WkCasesStartAppear,WKOpenCallCenter), Cases_Hosp!B14<PeakWk), (((Media_counts!E4/MediatoCallHigh)/per100K)*USPop), ""),"") ->  | I15: =IFERROR(IF(AND(CenterOpen=1,Data_Start_to_Peak=3,Cases_Hosp!B14>=SUM(WkCasesStartAppear,WKOpenCallCenter),Cases_Hosp!B14<PeakWk),(((Media_counts!J4/MediatoCallLow)/per100K)*USPop),""),"") ->  | J15: =IFERROR(IF(AND(CenterOpen = 1, Data_Start_to_Peak = 3, Cases_Hosp!B14>=SUM(WkCasesStartAppear,WKOpenCallCenter), Cases_Hosp!B14<PeakWk), (((Media_counts!J4/MediatoCallHigh)/per100K)*USPop), ""),"") ->  | K15: =IFERROR(IF(AND(CenterOpen=1,Cases_Hosp!B14>=PeakWk),(Cases_Hosp!E14*CalltoHospRatioLow),""),"") ->  | L15: =IFERROR(IF(AND(CenterOpen=1,Cases_Hosp!B14>=PeakWk),(Cases_Hosp!F14*CalltoHospRatioHigh),""),"") ->  | M15: =IFERROR(IF(Data_Start_to_Peak= 1, SUM(Calculations!C15, E15, K15), IF(Data_Start_to_Peak= 2, SUM(E15,G15, K15), IF(Data_Start_to_Peak= 3, SUM(E15,I15,K15), ""))),"") -> 0 | N15: =IFERROR(IF(Data_Start_to_Peak= 1, SUM(Calculations!D15, F15, L15), IF(Data_Start_to_Peak= 2, SUM(F15,H15, L15), IF(Data_Start_to_Peak= 3, SUM(F15,J15,L15), ""))),"") -> 0 | O15: =IFERROR(IF(Data_Start_to_Peak>0, (M15*$Q$5), ""), "") -> 0 | P15: =IFERROR(IF(Data_Start_to_Peak>0,(N15*$R$5),""),"") -> 0 | Q15: =IFERROR(IF(Data_Start_to_Peak>0, (M15*$Q$6), ""), "") -> 0 | R15: =IFERROR(IF(Data_Start_to_Peak>0,(N15*$R$6),""),"") -> 0 | S15: =IFERROR(IF(Data_Start_to_Peak>0,(M15*$R$7),""),"") -> 0 | T15: =IFERROR(IF(Data_Start_to_Peak>0,(N15*$R$7),""),"") -> 0
A16: 2 | B16: =Cases_Hosp!C15 -> 2 | C16: 0 | D16: 0 | E16: =IFERROR(IF(AND(CenterOpen=1, A16=SUM(WkCasesStartAppear,WKOpenCallCenter),A16 <PeakWk), Cases_Hosp!E15*CalltoHospRatioLow,IF(AND(CenterOpen=1, A16>SUM(WkCasesStartAppear,WKOpenCallCenter), A16 <PeakWk),(Cases_Hosp!E15*CalltoHospRatioLow),"")),"") -> 38.805 | F16: =IFERROR(IF(AND(CenterOpen=1,A16=SUM(WkCasesStartAppear,WKOpenCallCenter),A16 <PeakWk), Cases_Hosp!F15*CalltoHospRatioHigh,IF(AND(CenterOpen=1, A16>SUM(WkCasesStartAppear,WKOpenCallCenter), A16 <PeakWk),(Cases_Hosp!F15*CalltoHospRatioHigh),"")),"") -> 93.99 | G16: =IFERROR(IF(AND(CenterOpen = 1, Data_H= 2, Cases_Hosp!B15>=SUM(WkCasesStartAppear,WKOpenCallCenter)), (((Media_counts!#REF!/MediatoCallLow)/per100K)*USPop),""),"") ->  | H16: =IFERROR(IF(AND(CenterOpen = 1, Data_H = 2, Cases_Hosp!B15>=SUM(WkCasesStartAppear,WKOpenCallCenter), Cases_Hosp!B15<PeakWk), (((Media_counts!#REF!/MediatoCallHigh)/per100K)*USPop), ""),"") ->  | I16: =IFERROR(IF(AND(CenterOpen=1,Data_Start_to_Peak=3,Cases_Hosp!B15>=SUM(WkCasesStartAppear,WKOpenCallCenter),Cases_Hosp!B15<PeakWk),(((Media_counts!J5/MediatoCallLow)/per100K)*USPop),""),"") ->  | J16: =IFERROR(IF(AND(CenterOpen = 1, Data_Start_to_Peak = 3, Cases_Hosp!B15>=SUM(WkCasesStartAppear,WKOpenCallCenter), Cases_Hosp!B15<PeakWk), (((Media_counts!J5/MediatoCallLow)/per100K)*USPop), ""),"") ->  | K16: =IFERROR(IF(AND(CenterOpen=1,Cases_Hosp!B15>=PeakWk),(Cases_Hosp!E15*CalltoHospRatioLow),""),"") ->  | L16: =IFERROR(IF(AND(CenterOpen=1,Cases_Hosp!B15>=PeakWk),(Cases_Hosp!F15*CalltoHospRatioHigh),""),"") ->  | M16: =IFERROR(IF(Data_Start_to_Peak= 1, SUM(Calculations!C16, E16, K16), IF(Data_Start_to_Peak= 2, SUM(E16,G16, K16), IF(Data_Start_to_Peak= 3, SUM(E16,I16,K16), ""))),"") -> 38.805 | N16: =IFERROR(IF(Data_Start_to_Peak= 1, SUM(Calculations!D16, F16, L16), IF(Data_Start_to_Peak= 2, SUM(F16,H16, L16), IF(Data_Start_to_Peak= 3, SUM(F16,J16,L16), ""))),"") -> 93.99 | O16: 15.59961 | P16: 37.78398 | Q16: 14.51307 | R16: 35.15226 | S16: 8.69232 | T16: 21.05376
A17: 3 | B17: =Cases_Hosp!C16 -> 3 | C17: 0 | D17: 0 | E17: =IFERROR(IF(AND(CenterOpen=1, A17=SUM(WkCasesStartAppear,WKOpenCallCenter),A17 <PeakWk), Cases_Hosp!E16*CalltoHospRatioLow,IF(AND(CenterOpen=1, A17>SUM(WkCasesStartAppear,WKOpenCallCenter), A17 <PeakWk),(Cases_Hosp!E16*CalltoHospRatioLow),"")),"") -> 119.4 | F17: =IFERROR(IF(AND(CenterOpen=1,A17=SUM(WkCasesStartAppear,WKOpenCallCenter),A17 <PeakWk), Cases_Hosp!F16*CalltoHospRatioHigh,IF(AND(CenterOpen=1, A17>SUM(WkCasesStartAppear,WKOpenCallCenter), A17 <PeakWk),(Cases_Hosp!F16*CalltoHospRatioHigh),"")),"") -> 289.2 | G17: =IFERROR(IF(AND(CenterOpen = 1, Data_H= 2, Cases_Hosp!B16>=SUM(WkCasesStartAppear,WKOpenCallCenter)), (((Media_counts!#REF!/MediatoCallLow)/per100K)*USPop),""),"") ->  | H17: =IFERROR(IF(AND(CenterOpen = 1, Data_H = 2, Cases_Hosp!B16>=SUM(WkCasesStartAppear,WKOpenCallCenter), Cases_Hosp!B16<PeakWk), (((Media_counts!#REF!/MediatoCallHigh)/per100K)*USPop), ""),"") ->  | I17: =IFERROR(IF(AND(CenterOpen=1,Data_Start_to_Peak=3,Cases_Hosp!B16>=SUM(WkCasesStartAppear,WKOpenCallCenter),Cases_Hosp!B16<PeakWk),(((Media_counts!J6/MediatoCallLow)/per100K)*USPop),""),"") ->  | J17: =IFERROR(IF(AND(CenterOpen = 1, Data_Start_to_Peak = 3, Cases_Hosp!B16>=SUM(WkCasesStartAppear,WKOpenCallCenter), Cases_Hosp!B16<PeakWk), (((Media_counts!J6/MediatoCallLow)/per100K)*USPop), ""),"") ->  | K17: =IFERROR(IF(AND(CenterOpen=1,Cases_Hosp!B16>=PeakWk),(Cases_Hosp!E16*CalltoHospRatioLow),""),"") ->  | L17: =IFERROR(IF(AND(CenterOpen=1,Cases_Hosp!B16>=PeakWk),(Cases_Hosp!F16*CalltoHospRatioHigh),""),"") ->  | M17: =IFERROR(IF(Data_Start_to_Peak= 1, SUM(Calculations!C17, E17, K17), IF(Data_Start_to_Peak= 2, SUM(E17,G17, K17), IF(Data_Start_to_Peak= 3, SUM(E17,I17,K17), ""))),"") -> 119.4 | N17: =IFERROR(IF(Data_Start_to_Peak= 1, SUM(Calculations!D17, F17, L17), IF(Data_Start_to_Peak= 2, SUM(F17,H17, L17), IF(Data_Start_to_Peak= 3, SUM(F17,J17,L17), ""))),"") -> 289.2 | O17: 47.9988 | P17: 116.2584 | Q17: 44.6556 | R17: 108.1608 | S17: 26.7456 | T17: 64.7808
A18: 4 | B18: =Cases_Hosp!C17 -> 4 | C18: 0 | D18: 0 | E18: =IFERROR(IF(AND(CenterOpen=1, A18=SUM(WkCasesStartAppear,WKOpenCallCenter),A18 <PeakWk), Cases_Hosp!E17*CalltoHospRatioLow,IF(AND(CenterOpen=1, A18>SUM(WkCasesStartAppear,WKOpenCallCenter), A18 <PeakWk),(Cases_Hosp!E17*CalltoHospRatioLow),"")),"") -> 358.2 | F18: =IFERROR(IF(AND(CenterOpen=1,A18=SUM(WkCasesStartAppear,WKOpenCallCenter),A18 <PeakWk), Cases_Hosp!F17*CalltoHospRatioHigh,IF(AND(CenterOpen=1, A18>SUM(WkCasesStartAppear,WKOpenCallCenter), A18 <PeakWk),(Cases_Hosp!F17*CalltoHospRatioHigh),"")),"") -> 867.6 | G18: =IFERROR(IF(AND(CenterOpen = 1, Data_H= 2, Cases_Hosp!B17>=SUM(WkCasesStartAppear,WKOpenCallCenter)), (((Media_counts!#REF!/MediatoCallLow)/per100K)*USPop),""),"") ->  | H18: =IFERROR(IF(AND(CenterOpen = 1, Data_H = 2, Cases_Hosp!B17>=SUM(WkCasesStartAppear,WKOpenCallCenter), Cases_Hosp!B17<PeakWk), (((Media_counts!#REF!/MediatoCallHigh)/per100K)*USPop), ""),"") ->  | I18: =IFERROR(IF(AND(CenterOpen=1,Data_Start_to_Peak=3,Cases_Hosp!B17>=SUM(WkCasesStartAppear,WKOpenCallCenter),Cases_Hosp!B17<PeakWk),(((Media_counts!J7/MediatoCallLow)/per100K)*USPop),""),"") ->  | J18: =IFERROR(IF(AND(CenterOpen = 1, Data_Start_to_Peak = 3, Cases_Hosp!B17>=SUM(WkCasesStartAppear,WKOpenCallCenter), Cases_Hosp!B17<PeakWk), (((Media_counts!J7/MediatoCallLow)/per100K)*USPop), ""),"") ->  | K18: =IFERROR(IF(AND(CenterOpen=1,Cases_Hosp!B17>=PeakWk),(Cases_Hosp!E17*CalltoHospRatioLow),""),"") ->  | L18: =IFERROR(IF(AND(CenterOpen=1,Cases_Hosp!B17>=PeakWk),(Cases_Hosp!F17*CalltoHospRatioHigh),""),"") ->  | M18: =IFERROR(IF(Data_Start_to_Peak= 1, SUM(Calculations!C18, E18, K18), IF(Data_Start_to_Peak= 2, SUM(E18,G18, K18), IF(Data_Start_to_Peak= 3, SUM(E18,I18,K18), ""))),"") -> 358.2 | N18: =IFERROR(IF(Data_Start_to_Peak= 1, SUM(Calculations!D18, F18, L18), IF(Data_Start_to_Peak= 2, SUM(F18,H18, L18), IF(Data_Start_to_Peak= 3, SUM(F18,J18,L18), ""))),"") -> 867.6 | O18: 143.9964 | P18: 348.7752 | Q18: 133.9668 | R18: 324.4824 | S18: 80.2368 | T18: 194.3424
A19: 5 | B19: =Cases_Hosp!C18 -> 5 | C19: 0 | D19: 0 | E19: =IFERROR(IF(AND(CenterOpen=1, A19=SUM(WkCasesStartAppear,WKOpenCallCenter),A19 <PeakWk), Cases_Hosp!E18*CalltoHospRatioLow,IF(AND(CenterOpen=1, A19>SUM(WkCasesStartAppear,WKOpenCallCenter), A19 <PeakWk),(Cases_Hosp!E18*CalltoHospRatioLow),"")),"") -> 1014.9 | F19: =IFERROR(IF(AND(CenterOpen=1,A19=SUM(WkCasesStartAppear,WKOpenCallCenter),A19 <PeakWk), Cases_Hosp!F18*CalltoHospRatioHigh,IF(AND(CenterOpen=1, A19>SUM(WkCasesStartAppear,WKOpenCallCenter), A19 <PeakWk),(Cases_Hosp!F18*CalltoHospRatioHigh),"")),"") -> 2458.2 | G19: =IFERROR(IF(AND(CenterOpen = 1, Data_H= 2, Cases_Hosp!B18>=SUM(WkCasesStartAppear,WKOpenCallCenter)), (((Media_counts!#REF!/MediatoCallLow)/per100K)*USPop),""),"") ->  | H19: =IFERROR(IF(AND(CenterOpen = 1, Data_H = 2, Cases_Hosp!B18>=SUM(WkCasesStartAppear,WKOpenCallCenter), Cases_Hosp!B18<PeakWk), (((Media_counts!#REF!/MediatoCallHigh)/per100K)*USPop), ""),"") ->  | I19: =IFERROR(IF(AND(CenterOpen=1,Data_Start_to_Peak=3,Cases_Hosp!B18>=SUM(WkCasesStartAppear,WKOpenCallCenter),Cases_Hosp!B18<PeakWk),(((Media_counts!J8/MediatoCallLow)/per100K)*USPop),""),"") ->  | J19: =IFERROR(IF(AND(CenterOpen = 1, Data_Start_to_Peak = 3, Cases_Hosp!B18>=SUM(WkCasesStartAppear,WKOpenCallCenter), Cases_Hosp!B18<PeakWk), (((Media_counts!J8/MediatoCallLow)/per100K)*USPop), ""),"") ->  | K19: =IFERROR(IF(AND(CenterOpen=1,Cases_Hosp!B18>=PeakWk),(Cases_Hosp!E18*CalltoHospRatioLow),""),"") ->  | L19: =IFERROR(IF(AND(CenterOpen=1,Cases_Hosp!B18>=PeakWk),(Cases_Hosp!F18*CalltoHospRatioHigh),""),"") ->  | M19: =IFERROR(IF(Data_Start_to_Peak= 1, SUM(Calculations!C19, E19, K19), IF(Data_Start_to_Peak= 2, SUM(E19,G19, K19), IF(Data_Start_to_Peak= 3, SUM(E19,I19,K19), ""))),"") -> 1014.9 | N19: =IFERROR(IF(Data_Start_to_Peak= 1, SUM(Calculations!D19, F19, L19), IF(Data_Start_to_Peak= 2, SUM(F19,H19, L19), IF(Data_Start_to_Peak= 3, SUM(F19,J19,L19), ""))),"") -> 2458.2 | O19: 407.9898 | P19: 988.1964 | Q19: 379.5726 | R19: 919.3668 | S19: 227.3376 | T19: 550.6368
A20: 6 | B20: =Cases_Hosp!C19 -> 6 | C20: 0 | D20: 0 | E20: =IFERROR(IF(AND(CenterOpen=1, A20=SUM(WkCasesStartAppear,WKOpenCallCenter),A20 <PeakWk), Cases_Hosp!E19*CalltoHospRatioLow,IF(AND(CenterOpen=1, A20>SUM(WkCasesStartAppear,WKOpenCallCenter), A20 <PeakWk),(Cases_Hosp!E19*CalltoHospRatioLow),"")),"") -> 3223.8 | F20: =IFERROR(IF(AND(CenterOpen=1,A20=SUM(WkCasesStartAppear,WKOpenCallCenter),A20 <PeakWk), Cases_Hosp!F19*CalltoHospRatioHigh,IF(AND(CenterOpen=1, A20>SUM(WkCasesStartAppear,WKOpenCallCenter), A20 <PeakWk),(Cases_Hosp!F19*CalltoHospRatioHigh),"")),"") -> 7808.4 | G20: =IFERROR(IF(AND(CenterOpen = 1, Data_H= 2, Cases_Hosp!B19>=SUM(WkCasesStartAppear,WKOpenCallCenter)), (((Media_counts!#REF!/MediatoCallLow)/per100K)*USPop),""),"") ->  | H20: =IFERROR(IF(AND(CenterOpen = 1, Data_H = 2, Cases_Hosp!B19>=SUM(WkCasesStartAppear,WKOpenCallCenter), Cases_Hosp!B19<PeakWk), (((Media_counts!#REF!/MediatoCallHigh)/per100K)*USPop), ""),"") ->  | I20: =IFERROR(IF(AND(CenterOpen=1,Data_Start_to_Peak=3,Cases_Hosp!B19>=SUM(WkCasesStartAppear,WKOpenCallCenter),Cases_Hosp!B19<PeakWk),(((Media_counts!J9/MediatoCallLow)/per100K)*USPop),""),"") ->  | J20: =IFERROR(IF(AND(CenterOpen = 1, Data_Start_to_Peak = 3, Cases_Hosp!B19>=SUM(WkCasesStartAppear,WKOpenCallCenter), Cases_Hosp!B19<PeakWk), (((Media_counts!J9/MediatoCallLow)/per100K)*USPop), ""),"") ->  | K20: =IFERROR(IF(AND(CenterOpen=1,Cases_Hosp!B19>=PeakWk),(Cases_Hosp!E19*CalltoHospRatioLow),""),"") ->  | L20: =IFERROR(IF(AND(CenterOpen=1,Cases_Hosp!B19>=PeakWk),(Cases_Hosp!F19*CalltoHospRatioHigh),""),"") ->  | M20: =IFERROR(IF(Data_Start_to_Peak= 1, SUM(Calculations!C20, E20, K20), IF(Data_Start_to_Peak= 2, SUM(E20,G20, K20), IF(Data_Start_to_Peak= 3, SUM(E20,I20,K20), ""))),"") -> 3223.8 | N20: =IFERROR(IF(Data_Start_to_Peak= 1, SUM(Calculations!D20, F20, L20), IF(Data_Start_to_Peak= 2, SUM(F20,H20, L20), IF(Data_Start_to_Peak= 3, SUM(F20,J20,L20), ""))),"") -> 7808.4 | O20: 1295.9676 | P20: 3138.9768 | Q20: 1205.7012 | R20: 2920.3416 | S20: 722.1312 | T20: 1749.0816
A21: 7 | B21: =Cases_Hosp!C20 -> 7 | C21: 0 | D21: 0 | E21: =IFERROR(IF(AND(CenterOpen=1, A21=SUM(WkCasesStartAppear,WKOpenCallCenter),A21 <PeakWk), Cases_Hosp!E20*CalltoHospRatioLow,IF(AND(CenterOpen=1, A21>SUM(WkCasesStartAppear,WKOpenCallCenter), A21 <PeakWk),(Cases_Hosp!E20*CalltoHospRatioLow),"")),"") -> 10193.775 | F21: =IFERROR(IF(AND(CenterOpen=1,A21=SUM(WkCasesStartAppear,WKOpenCallCenter),A21 <PeakWk), Cases_Hosp!F20*CalltoHospRatioHigh,IF(AND(CenterOpen=1, A21>SUM(WkCasesStartAppear,WKOpenCallCenter), A21 <PeakWk),(Cases_Hosp!F20*CalltoHospRatioHigh),"")),"") -> 24690.45 | G21: =IFERROR(IF(AND(CenterOpen = 1, Data_H= 2, Cases_Hosp!B20>=SUM(WkCasesStartAppear,WKOpenCallCenter)), (((Media_counts!#REF!/MediatoCallLow)/per100K)*USPop),""),"") ->  | H21: =IFERROR(IF(AND(CenterOpen = 1, Data_H = 2, Cases_Hosp!B20>=SUM(WkCasesStartAppear,WKOpenCallCenter), Cases_Hosp!B20<PeakWk), (((Media_counts!#REF!/MediatoCallHigh)/per100K)*USPop), ""),"") ->  | I21: =IFERROR(IF(AND(CenterOpen=1,Data_Start_to_Peak=3,Cases_Hosp!B20>=SUM(WkCasesStartAppear,WKOpenCallCenter),Cases_Hosp!B20<PeakWk),(((Media_counts!J10/MediatoCallLow)/per100K)*USPop),""),"") ->  | J21: =IFERROR(IF(AND(CenterOpen = 1, Data_Start_to_Peak = 3, Cases_Hosp!B20>=SUM(WkCasesStartAppear,WKOpenCallCenter), Cases_Hosp!B20<PeakWk), (((Media_counts!J10/MediatoCallLow)/per100K)*USPop), ""),"") ->  | K21: =IFERROR(IF(AND(CenterOpen=1,Cases_Hosp!B20>=PeakWk),(Cases_Hosp!E20*CalltoHospRatioLow),""),"") ->  | L21: =IFERROR(IF(AND(CenterOpen=1,Cases_Hosp!B20>=PeakWk),(Cases_Hosp!F20*CalltoHospRatioHigh),""),"") ->  | M21: =IFERROR(IF(Data_Start_to_Peak= 1, SUM(Calculations!C21, E21, K21), IF(Data_Start_to_Peak= 2, SUM(E21,G21, K21), IF(Data_Start_to_Peak= 3, SUM(E21,I21,K21), ""))),"") -> 10193.775 | N21: =IFERROR(IF(Data_Start_to_Peak= 1, SUM(Calculations!D21, F21, L21), IF(Data_Start_to_Peak= 2, SUM(F21,H21, L21), IF(Data_Start_to_Peak= 3, SUM(F21,J21,L21), ""))),"") -> 24690.45 | O21: 4097.89755 | P21: 9925.5609 | Q21: 3812.47185 | R21: 9234.2283 | S21: 2283.4056 | T21: 5530.6608
A22: 8 | B22: =Cases_Hosp!C21 -> 8 | C22: 0 | D22: 0 | E22: =IFERROR(IF(AND(CenterOpen=1, A22=SUM(WkCasesStartAppear,WKOpenCallCenter),A22 <PeakWk), Cases_Hosp!E21*CalltoHospRatioLow,IF(AND(CenterOpen=1, A22>SUM(WkCasesStartAppear,WKOpenCallCenter), A22 <PeakWk),(Cases_Hosp!E21*CalltoHospRatioLow),"")),"") -> 31820.1 | F22: =IFERROR(IF(AND(CenterOpen=1,A22=SUM(WkCasesStartAppear,WKOpenCallCenter),A22 <PeakWk), Cases_Hosp!F21*CalltoHospRatioHigh,IF(AND(CenterOpen=1, A22>SUM(WkCasesStartAppear,WKOpenCallCenter), A22 <PeakWk),(Cases_Hosp!F21*CalltoHospRatioHigh),"")),"") -> 77071.8 | G22: =IFERROR(IF(AND(CenterOpen = 1, Data_H= 2, Cases_Hosp!B21>=SUM(WkCasesStartAppear,WKOpenCallCenter)), (((Media_counts!#REF!/MediatoCallLow)/per100K)*USPop),""),"") ->  | H22: =IFERROR(IF(AND(CenterOpen = 1, Data_H = 2, Cases_Hosp!B21>=SUM(WkCasesStartAppear,WKOpenCallCenter), Cases_Hosp!B21<PeakWk), (((Media_counts!#REF!/MediatoCallHigh)/per100K)*USPop), ""),"") ->  | I22: =IFERROR(IF(AND(CenterOpen=1,Data_Start_to_Peak=3,Cases_Hosp!B21>=SUM(WkCasesStartAppear,WKOpenCallCenter),Cases_Hosp!B21<PeakWk),(((Media_counts!J11/MediatoCallLow)/per100K)*USPop),""),"") ->  | J22: =IFERROR(IF(AND(CenterOpen = 1, Data_Start_to_Peak = 3, Cases_Hosp!B21>=SUM(WkCasesStartAppear,WKOpenCallCenter), Cases_Hosp!B21<PeakWk), (((Media_counts!J11/MediatoCallLow)/per100K)*USPop), ""),"") ->  | K22: =IFERROR(IF(AND(CenterOpen=1,Cases_Hosp!B21>=PeakWk),(Cases_Hosp!E21*CalltoHospRatioLow),""),"") ->  | L22: =IFERROR(IF(AND(CenterOpen=1,Cases_Hosp!B21>=PeakWk),(Cases_Hosp!F21*CalltoHospRatioHigh),""),"") ->  | M22: =IFERROR(IF(Data_Start_to_Peak= 1, SUM(Calculations!C22, E22, K22), IF(Data_Start_to_Peak= 2, SUM(E22,G22, K22), IF(Data_Start_to_Peak= 3, SUM(E22,I22,K22), ""))),"") -> 31820.1 | N22: =IFERROR(IF(Data_Start_to_Peak= 1, SUM(Calculations!D22, F22, L22), IF(Data_Start_to_Peak= 2, SUM(F22,H22, L22), IF(Data_Start_to_Peak= 3, SUM(F22,J22,L22), ""))),"") -> 77071.8 | O22: 12791.6802 | P22: 30982.8636 | Q22: 11900.7174 | R22: 28824.8532 | S22: 7127.7024 | T22: 17264.0832
A23: 9 | B23: =Cases_Hosp!C22 -> 9 | C23: 0 | D23: 0 | E23: =IFERROR(IF(AND(CenterOpen=1, A23=SUM(WkCasesStartAppear,WKOpenCallCenter),A23 <PeakWk), Cases_Hosp!E22*CalltoHospRatioLow,IF(AND(CenterOpen=1, A23>SUM(WkCasesStartAppear,WKOpenCallCenter), A23 <PeakWk),(Cases_Hosp!E22*CalltoHospRatioLow),"")),"") -> 99012.45 | F23: =IFERROR(IF(AND(CenterOpen=1,A23=SUM(WkCasesStartAppear,WKOpenCallCenter),A23 <PeakWk), Cases_Hosp!F22*CalltoHospRatioHigh,IF(AND(CenterOpen=1, A23>SUM(WkCasesStartAppear,WKOpenCallCenter), A23 <PeakWk),(Cases_Hosp!F22*CalltoHospRatioHigh),"")),"") -> 239819.1 | G23: =IFERROR(IF(AND(CenterOpen = 1, Data_H= 2, Cases_Hosp!B22>=SUM(WkCasesStartAppear,WKOpenCallCenter)), (((Media_counts!#REF!/MediatoCallLow)/per100K)*USPop),""),"") ->  | H23: =IFERROR(IF(AND(CenterOpen = 1, Data_H = 2, Cases_Hosp!B22>=SUM(WkCasesStartAppear,WKOpenCallCenter), Cases_Hosp!B22<PeakWk), (((Media_counts!#REF!/MediatoCallHigh)/per100K)*USPop), ""),"") ->  | I23: =IFERROR(IF(AND(CenterOpen=1,Data_Start_to_Peak=3,Cases_Hosp!B22>=SUM(WkCasesStartAppear,WKOpenCallCenter),Cases_Hosp!B22<PeakWk),(((Media_counts!J12/MediatoCallLow)/per100K)*USPop),""),"") ->  | J23: =IFERROR(IF(AND(CenterOpen = 1, Data_Start_to_Peak = 3, Cases_Hosp!B22>=SUM(WkCasesStartAppear,WKOpenCallCenter), Cases_Hosp!B22<PeakWk), (((Media_counts!J12/MediatoCallLow)/per100K)*USPop), ""),"") ->  | K23: =IFERROR(IF(AND(CenterOpen=1,Cases_Hosp!B22>=PeakWk),(Cases_Hosp!E22*CalltoHospRatioLow),""),"") ->  | L23: =IFERROR(IF(AND(CenterOpen=1,Cases_Hosp!B22>=PeakWk),(Cases_Hosp!F22*CalltoHospRatioHigh),""),"") ->  | M23: =IFERROR(IF(Data_Start_to_Peak= 1, SUM(Calculations!C23, E23, K23), IF(Data_Start_to_Peak= 2, SUM(E23,G23, K23), IF(Data_Start_to_Peak= 3, SUM(E23,I23,K23), ""))),"") -> 99012.45 | N23: =IFERROR(IF(Data_Start_to_Peak= 1, SUM(Calculations!D23, F23, L23), IF(Data_Start_to_Peak= 2, SUM(F23,H23, L23), IF(Data_Start_to_Peak= 3, SUM(F23,J23,L23), ""))),"") -> 239819.1 | O23: 39803.0049 | P23: 96407.2782 | Q23: 37030.6563 | R23: 89692.3434 | S23: 22178.7888 | T23: 53719.4784
A24: 10 | B24: =Cases_Hosp!C23 -> 10 | C24: 0 | D24: 0 | E24: =IFERROR(IF(AND(CenterOpen=1, A24=SUM(WkCasesStartAppear,WKOpenCallCenter),A24 <PeakWk), Cases_Hosp!E23*CalltoHospRatioLow,IF(AND(CenterOpen=1, A24>SUM(WkCasesStartAppear,WKOpenCallCenter), A24 <PeakWk),(Cases_Hosp!E23*CalltoHospRatioLow),"")),"") -> 304887.9 | F24: =IFERROR(IF(AND(CenterOpen=1,A24=SUM(WkCasesStartAppear,WKOpenCallCenter),A24 <PeakWk), Cases_Hosp!F23*CalltoHospRatioHigh,IF(AND(CenterOpen=1, A24>SUM(WkCasesStartAppear,WKOpenCallCenter), A24 <PeakWk),(Cases_Hosp!F23*CalltoHospRatioHigh),"")),"") -> 738472.2 | G24: =IFERROR(IF(AND(CenterOpen = 1, Data_H= 2, Cases_Hosp!B23>=SUM(WkCasesStartAppear,WKOpenCallCenter)), (((Media_counts!#REF!/MediatoCallLow)/per100K)*USPop),""),"") ->  | H24: =IFERROR(IF(AND(CenterOpen = 1, Data_H = 2, Cases_Hosp!B23>=SUM(WkCasesStartAppear,WKOpenCallCenter), Cases_Hosp!B23<PeakWk), (((Media_counts!#REF!/MediatoCallHigh)/per100K)*USPop), ""),"") ->  | I24: =IFERROR(IF(AND(CenterOpen=1,Data_Start_to_Peak=3,Cases_Hosp!B23>=SUM(WkCasesStartAppear,WKOpenCallCenter),Cases_Hosp!B23<PeakWk),(((Media_counts!J13/MediatoCallLow)/per100K)*USPop),""),"") ->  | J24: =IFERROR(IF(AND(CenterOpen = 1, Data_Start_to_Peak = 3, Cases_Hosp!B23>=SUM(WkCasesStartAppear,WKOpenCallCenter), Cases_Hosp!B23<PeakWk), (((Media_counts!J13/MediatoCallLow)/per100K)*USPop), ""),"") ->  | K24: =IFERROR(IF(AND(CenterOpen=1,Cases_Hosp!B23>=PeakWk),(Cases_Hosp!E23*CalltoHospRatioLow),""),"") ->  | L24: =IFERROR(IF(AND(CenterOpen=1,Cases_Hosp!B23>=PeakWk),(Cases_Hosp!F23*CalltoHospRatioHigh),""),"") ->  | M24: =IFERROR(IF(Data_Start_to_Peak= 1, SUM(Calculations!C24, E24, K24), IF(Data_Start_to_Peak= 2, SUM(E24,G24, K24), IF(Data_Start_to_Peak= 3, SUM(E24,I24,K24), ""))),"") -> 304887.9 | N24: =IFERROR(IF(Data_Start_to_Peak= 1, SUM(Calculations!D24, F24, L24), IF(Data_Start_to_Peak= 2, SUM(F24,H24, L24), IF(Data_Start_to_Peak= 3, SUM(F24,J24,L24), ""))),"") -> 738472.2 | O24: 122564.9358 | P24: 296865.8244 | Q24: 114028.0746 | R24: 276188.6028 | S24: 68294.8896 | T24: 165417.7728
A25: 11 | B25: =Cases_Hosp!C24 -> 11 | C25: 0 | D25: 0 | E25: =IFERROR(IF(AND(CenterOpen=1, A25=SUM(WkCasesStartAppear,WKOpenCallCenter),A25 <PeakWk), Cases_Hosp!E24*CalltoHospRatioLow,IF(AND(CenterOpen=1, A25>SUM(WkCasesStartAppear,WKOpenCallCenter), A25 <PeakWk),(Cases_Hosp!E24*CalltoHospRatioLow),"")),"") -> 908156.4 | F25: =IFERROR(IF(AND(CenterOpen=1,A25=SUM(WkCasesStartAppear,WKOpenCallCenter),A25 <PeakWk), Cases_Hosp!F24*CalltoHospRatioHigh,IF(AND(CenterOpen=1, A25>SUM(WkCasesStartAppear,WKOpenCallCenter), A25 <PeakWk),(Cases_Hosp!F24*CalltoHospRatioHigh),"")),"") -> 2199655.2 | G25: =IFERROR(IF(AND(CenterOpen = 1, Data_H= 2, Cases_Hosp!B24>=SUM(WkCasesStartAppear,WKOpenCallCenter)), (((Media_counts!#REF!/MediatoCallLow)/per100K)*USPop),""),"") ->  | H25: =IFERROR(IF(AND(CenterOpen = 1, Data_H = 2, Cases_Hosp!B24>=SUM(WkCasesStartAppear,WKOpenCallCenter), Cases_Hosp!B24<PeakWk), (((Media_counts!#REF!/MediatoCallHigh)/per100K)*USPop), ""),"") ->  | I25: =IFERROR(IF(AND(CenterOpen=1,Data_Start_to_Peak=3,Cases_Hosp!B24>=SUM(WkCasesStartAppear,WKOpenCallCenter),Cases_Hosp!B24<PeakWk),(((Media_counts!J14/MediatoCallLow)/per100K)*USPop),""),"") ->  | J25: =IFERROR(IF(AND(CenterOpen = 1, Data_Start_to_Peak = 3, Cases_Hosp!B24>=SUM(WkCasesStartAppear,WKOpenCallCenter), Cases_Hosp!B24<PeakWk), (((Media_counts!J14/MediatoCallLow)/per100K)*USPop), ""),"") ->  | K25: =IFERROR(IF(AND(CenterOpen=1,Cases_Hosp!B24>=PeakWk),(Cases_Hosp!E24*CalltoHospRatioLow),""),"") ->  | L25: =IFERROR(IF(AND(CenterOpen=1,Cases_Hosp!B24>=PeakWk),(Cases_Hosp!F24*CalltoHospRatioHigh),""),"") ->  | M25: =IFERROR(IF(Data_Start_to_Peak= 1, SUM(Calculations!C25, E25, K25), IF(Data_Start_to_Peak= 2, SUM(E25,G25, K25), IF(Data_Start_to_Peak= 3, SUM(E25,I25,K25), ""))),"") -> 908156.4 | N25: =IFERROR(IF(Data_Start_to_Peak= 1, SUM(Calculations!D25, F25, L25), IF(Data_Start_to_Peak= 2, SUM(F25,H25, L25), IF(Data_Start_to_Peak= 3, SUM(F25,J25,L25), ""))),"") -> 2199655.2 | O25: 365078.8728 | P25: 884261.3904 | Q25: 339650.4936 | R25: 822671.0448 | S25: 203427.0336 | T25: 492722.7648
A26: 12 | B26: =Cases_Hosp!C25 -> 12 | C26: 0 | D26: 0 | E26: =IFERROR(IF(AND(CenterOpen=1, A26=SUM(WkCasesStartAppear,WKOpenCallCenter),A26 <PeakWk), Cases_Hosp!E25*CalltoHospRatioLow,IF(AND(CenterOpen=1, A26>SUM(WkCasesStartAppear,WKOpenCallCenter), A26 <PeakWk),(Cases_Hosp!E25*CalltoHospRatioLow),"")),"") -> 2459923.575 | F26: =IFERROR(IF(AND(CenterOpen=1,A26=SUM(WkCasesStartAppear,WKOpenCallCenter),A26 <PeakWk), Cases_Hosp!F25*CalltoHospRatioHigh,IF(AND(CenterOpen=1, A26>SUM(WkCasesStartAppear,WKOpenCallCenter), A26 <PeakWk),(Cases_Hosp!F25*CalltoHospRatioHigh),"")),"") -> 5958206.85 | G26: =IFERROR(IF(AND(CenterOpen = 1, Data_H= 2, Cases_Hosp!B25>=SUM(WkCasesStartAppear,WKOpenCallCenter)), (((Media_counts!#REF!/MediatoCallLow)/per100K)*USPop),""),"") ->  | H26: =IFERROR(IF(AND(CenterOpen = 1, Data_H = 2, Cases_Hosp!B25>=SUM(WkCasesStartAppear,WKOpenCallCenter), Cases_Hosp!B25<PeakWk), (((Media_counts!#REF!/MediatoCallHigh)/per100K)*USPop), ""),"") ->  | I26: =IFERROR(IF(AND(CenterOpen=1,Data_Start_to_Peak=3,Cases_Hosp!B25>=SUM(WkCasesStartAppear,WKOpenCallCenter),Cases_Hosp!B25<PeakWk),(((Media_counts!J15/MediatoCallLow)/per100K)*USPop),""),"") ->  | J26: =IFERROR(IF(AND(CenterOpen = 1, Data_Start_to_Peak = 3, Cases_Hosp!B25>=SUM(WkCasesStartAppear,WKOpenCallCenter), Cases_Hosp!B25<PeakWk), (((Media_counts!J15/MediatoCallLow)/per100K)*USPop), ""),"") ->  | K26: =IFERROR(IF(AND(CenterOpen=1,Cases_Hosp!B25>=PeakWk),(Cases_Hosp!E25*CalltoHospRatioLow),""),"") ->  | L26: =IFERROR(IF(AND(CenterOpen=1,Cases_Hosp!B25>=PeakWk),(Cases_Hosp!F25*CalltoHospRatioHigh),""),"") ->  | M26: =IFERROR(IF(Data_Start_to_Peak= 1, SUM(Calculations!C26, E26, K26), IF(Data_Start_to_Peak= 2, SUM(E26,G26, K26), IF(Data_Start_to_Peak= 3, SUM(E26,I26,K26), ""))),"") -> 2459923.575 | N26: =IFERROR(IF(Data_Start_to_Peak= 1, SUM(Calculations!D26, F26, L26), IF(Data_Start_to_Peak= 2, SUM(F26,H26, L26), IF(Data_Start_to_Peak= 3, SUM(F26,J26,L26), ""))),"") -> 5958206.85 | O26: 988889.2771 | P26: 2395199.154 | Q26: 920011.417 | R26: 2228369.362 | S26: 551022.8808 | T26: 1334638.334
A27: 13 | B27: =Cases_Hosp!C26 -> 13 | C27: 0 | D27: 0 | E27: =IFERROR(IF(AND(CenterOpen=1, A27=SUM(WkCasesStartAppear,WKOpenCallCenter),A27 <PeakWk), Cases_Hosp!E26*CalltoHospRatioLow,IF(AND(CenterOpen=1, A27>SUM(WkCasesStartAppear,WKOpenCallCenter), A27 <PeakWk),(Cases_Hosp!E26*CalltoHospRatioLow),"")),"") -> 5270151.825 | F27: =IFERROR(IF(AND(CenterOpen=1,A27=SUM(WkCasesStartAppear,WKOpenCallCenter),A27 <PeakWk), Cases_Hosp!F26*CalltoHospRatioHigh,IF(AND(CenterOpen=1, A27>SUM(WkCasesStartAppear,WKOpenCallCenter), A27 <PeakWk),(Cases_Hosp!F26*CalltoHospRatioHigh),"")),"") -> 12764890.35 | G27: =IFERROR(IF(AND(CenterOpen = 1, Data_H= 2, Cases_Hosp!B26>=SUM(WkCasesStartAppear,WKOpenCallCenter)), (((Media_counts!#REF!/MediatoCallLow)/per100K)*USPop),""),"") ->  | H27: =IFERROR(IF(AND(CenterOpen = 1, Data_H = 2, Cases_Hosp!B26>=SUM(WkCasesStartAppear,WKOpenCallCenter), Cases_Hosp!B26<PeakWk), (((Media_counts!#REF!/MediatoCallHigh)/per100K)*USPop), ""),"") ->  | I27: =IFERROR(IF(AND(CenterOpen=1,Data_Start_to_Peak=3,Cases_Hosp!B26>=SUM(WkCasesStartAppear,WKOpenCallCenter),Cases_Hosp!B26<PeakWk),(((Media_counts!J16/MediatoCallLow)/per100K)*USPop),""),"") ->  | J27: =IFERROR(IF(AND(CenterOpen = 1, Data_Start_to_Peak = 3, Cases_Hosp!B26>=SUM(WkCasesStartAppear,WKOpenCallCenter), Cases_Hosp!B26<PeakWk), (((Media_counts!J16/MediatoCallLow)/per100K)*USPop), ""),"") ->  | K27: =IFERROR(IF(AND(CenterOpen=1,Cases_Hosp!B26>=PeakWk),(Cases_Hosp!E26*CalltoHospRatioLow),""),"") ->  | L27: =IFERROR(IF(AND(CenterOpen=1,Cases_Hosp!B26>=PeakWk),(Cases_Hosp!F26*CalltoHospRatioHigh),""),"") ->  | M27: =IFERROR(IF(Data_Start_to_Peak= 1, SUM(Calculations!C27, E27, K27), IF(Data_Start_to_Peak= 2, SUM(E27,G27, K27), IF(Data_Start_to_Peak= 3, SUM(E27,I27,K27), ""))),"") -> 5270151.825 | N27: =IFERROR(IF(Data_Start_to_Peak= 1, SUM(Calculations!D27, F27, L27), IF(Data_Start_to_Peak= 2, SUM(F27,H27, L27), IF(Data_Start_to_Peak= 3, SUM(F27,J27,L27), ""))),"") -> 12764890.35 | O27: 2118601.034 | P27: 5131485.921 | Q27: 1971036.783 | R27: 4774068.991 | S27: 1180514.009 | T27: 2859335.438
A28: 14 | B28: =Cases_Hosp!C27 -> 14 | E28: =IFERROR(IF(AND(CenterOpen=1, A28=SUM(WkCasesStartAppear,WKOpenCallCenter),A28 <PeakWk), Cases_Hosp!E27*CalltoHospRatioLow,IF(AND(CenterOpen=1, A28>SUM(WkCasesStartAppear,WKOpenCallCenter), A28 <PeakWk),(Cases_Hosp!E27*CalltoHospRatioLow),"")),"") ->  | F28: =IFERROR(IF(AND(CenterOpen=1,A28=SUM(WkCasesStartAppear,WKOpenCallCenter),A28 <PeakWk), Cases_Hosp!F27*CalltoHospRatioHigh,IF(AND(CenterOpen=1, A28>SUM(WkCasesStartAppear,WKOpenCallCenter), A28 <PeakWk),(Cases_Hosp!F27*CalltoHospRatioHigh),"")),"") ->  | G28: =IFERROR(IF(AND(CenterOpen = 1, Data_H= 2, Cases_Hosp!B27>=SUM(WkCasesStartAppear,WKOpenCallCenter)), (((Media_counts!#REF!/MediatoCallLow)/per100K)*USPop),""),"") ->  | H28: =IFERROR(IF(AND(CenterOpen = 1, Data_H = 2, Cases_Hosp!B27>=SUM(WkCasesStartAppear,WKOpenCallCenter), Cases_Hosp!B27<PeakWk), (((Media_counts!#REF!/MediatoCallHigh)/per100K)*USPop), ""),"") ->  | I28: =IFERROR(IF(AND(CenterOpen=1,Data_Start_to_Peak=3,Cases_Hosp!B27>=SUM(WkCasesStartAppear,WKOpenCallCenter),Cases_Hosp!B27<PeakWk),(((Media_counts!J17/MediatoCallLow)/per100K)*USPop),""),"") ->  | J28: =IFERROR(IF(AND(CenterOpen = 1, Data_Start_to_Peak = 3, Cases_Hosp!B27>=SUM(WkCasesStartAppear,WKOpenCallCenter), Cases_Hosp!B27<PeakWk), (((Media_counts!J17/MediatoCallLow)/per100K)*USPop), ""),"") ->  | K28: =IFERROR(IF(AND(CenterOpen=1,Cases_Hosp!B27>=PeakWk),(Cases_Hosp!E27*CalltoHospRatioLow),""),"") -> 7321891.575 | L28: =IFERROR(IF(AND(CenterOpen=1,Cases_Hosp!B27>=PeakWk),(Cases_Hosp!F27*CalltoHospRatioHigh),""),"") -> 17734430.85 | M28: =IFERROR(IF(Data_Start_to_Peak= 1, SUM(Calculations!C28, E28, K28), IF(Data_Start_to_Peak= 2, SUM(E28,G28, K28), IF(Data_Start_to_Peak= 3, SUM(E28,I28,K28), ""))),"") -> 7321891.575 | N28: =IFERROR(IF(Data_Start_to_Peak= 1, SUM(Calculations!D28, F28, L28), IF(Data_Start_to_Peak= 2, SUM(F28,H28, L28), IF(Data_Start_to_Peak= 3, SUM(F28,J28,L28), ""))),"") -> 17734430.85 | O28: 2943400.413 | P28: 7129241.202 | Q28: 2738387.449 | R28: 6632677.138 | S28: 1640103.713 | T28: 3972512.51
A29: 15 | B29: =Cases_Hosp!C28 -> 15 | E29: =IFERROR(IF(AND(CenterOpen=1, A29=SUM(WkCasesStartAppear,WKOpenCallCenter),A29 <PeakWk), Cases_Hosp!E28*CalltoHospRatioLow,IF(AND(CenterOpen=1, A29>SUM(WkCasesStartAppear,WKOpenCallCenter), A29 <PeakWk),(Cases_Hosp!E28*CalltoHospRatioLow),"")),"") ->  | F29: =IFERROR(IF(AND(CenterOpen=1,A29=SUM(WkCasesStartAppear,WKOpenCallCenter),A29 <PeakWk), Cases_Hosp!F28*CalltoHospRatioHigh,IF(AND(CenterOpen=1, A29>SUM(WkCasesStartAppear,WKOpenCallCenter), A29 <PeakWk),(Cases_Hosp!F28*CalltoHospRatioHigh),"")),"") ->  | G29: =IFERROR(IF(AND(CenterOpen = 1, Data_H= 2, Cases_Hosp!B28>=SUM(WkCasesStartAppear,WKOpenCallCenter)), (((Media_counts!#REF!/MediatoCallLow)/per100K)*USPop),""),"") ->  | H29: =IFERROR(IF(AND(CenterOpen = 1, Data_H = 2, Cases_Hosp!B28>=SUM(WkCasesStartAppear,WKOpenCallCenter), Cases_Hosp!B28<PeakWk), (((Media_counts!#REF!/MediatoCallHigh)/per100K)*USPop), ""),"") ->  | I29: =IFERROR(IF(AND(CenterOpen=1,Data_Start_to_Peak=3,Cases_Hosp!B28>=SUM(WkCasesStartAppear,WKOpenCallCenter),Cases_Hosp!B28<PeakWk),(((Media_counts!J18/MediatoCallLow)/per100K)*USPop),""),"") ->  | J29: =IFERROR(IF(AND(CenterOpen = 1, Data_Start_to_Peak = 3, Cases_Hosp!B28>=SUM(WkCasesStartAppear,WKOpenCallCenter), Cases_Hosp!B28<PeakWk), (((Media_counts!J18/MediatoCallLow)/per100K)*USPop), ""),"") ->  | K29: =IFERROR(IF(AND(CenterOpen=1,Cases_Hosp!B28>=PeakWk),(Cases_Hosp!E28*CalltoHospRatioLow),""),"") -> 6002491.725 | L29: =IFERROR(IF(AND(CenterOpen=1,Cases_Hosp!B28>=PeakWk),(Cases_Hosp!F28*CalltoHospRatioHigh),""),"") -> 14538698.55 | M29: =IFERROR(IF(Data_Start_to_Peak= 1, SUM(Calculations!C29, E29, K29), IF(Data_Start_to_Peak= 2, SUM(E29,G29, K29), IF(Data_Start_to_Peak= 3, SUM(E29,I29,K29), ""))),"") -> 6002491.725 | N29: =IFERROR(IF(Data_Start_to_Peak= 1, SUM(Calculations!D29, F29, L29), IF(Data_Start_to_Peak= 2, SUM(F29,H29, L29), IF(Data_Start_to_Peak= 3, SUM(F29,J29,L29), ""))),"") -> 14538698.55 | O29: 2413001.673 | P29: 5844556.817 | Q29: 2244931.905 | R29: 5437473.258 | S29: 1344558.146 | T29: 3256668.475
A30: 16 | B30: =Cases_Hosp!C29 -> 16 | E30: =IFERROR(IF(AND(CenterOpen=1, A30=SUM(WkCasesStartAppear,WKOpenCallCenter),A30 <PeakWk), Cases_Hosp!E29*CalltoHospRatioLow,IF(AND(CenterOpen=1, A30>SUM(WkCasesStartAppear,WKOpenCallCenter), A30 <PeakWk),(Cases_Hosp!E29*CalltoHospRatioLow),"")),"") ->  | F30: =IFERROR(IF(AND(CenterOpen=1,A30=SUM(WkCasesStartAppear,WKOpenCallCenter),A30 <PeakWk), Cases_Hosp!F29*CalltoHospRatioHigh,IF(AND(CenterOpen=1, A30>SUM(WkCasesStartAppear,WKOpenCallCenter), A30 <PeakWk),(Cases_Hosp!F29*CalltoHospRatioHigh),"")),"") ->  | G30: =IFERROR(IF(AND(CenterOpen = 1, Data_H= 2, Cases_Hosp!B29>=SUM(WkCasesStartAppear,WKOpenCallCenter)), (((Media_counts!#REF!/MediatoCallLow)/per100K)*USPop),""),"") ->  | H30: =IFERROR(IF(AND(CenterOpen = 1, Data_H = 2, Cases_Hosp!B29>=SUM(WkCasesStartAppear,WKOpenCallCenter), Cases_Hosp!B29<PeakWk), (((Media_counts!#REF!/MediatoCallHigh)/per100K)*USPop), ""),"") ->  | I30: =IFERROR(IF(AND(CenterOpen=1,Data_Start_to_Peak=3,Cases_Hosp!B29>=SUM(WkCasesStartAppear,WKOpenCallCenter),Cases_Hosp!B29<PeakWk),(((Media_counts!J19/MediatoCallLow)/per100K)*USPop),""),"") ->  | J30: =IFERROR(IF(AND(CenterOpen = 1, Data_Start_to_Peak = 3, Cases_Hosp!B29>=SUM(WkCasesStartAppear,WKOpenCallCenter), Cases_Hosp!B29<PeakWk), (((Media_counts!J19/MediatoCallLow)/per100K)*USPop), ""),"") ->  | K30: =IFERROR(IF(AND(CenterOpen=1,Cases_Hosp!B29>=PeakWk),(Cases_Hosp!E29*CalltoHospRatioLow),""),"") -> 3267754.125 | L30: =IFERROR(IF(AND(CenterOpen=1,Cases_Hosp!B29>=PeakWk),(Cases_Hosp!F29*CalltoHospRatioHigh),""),"") -> 7914861.75 | M30: =IFERROR(IF(Data_Start_to_Peak= 1, SUM(Calculations!C30, E30, K30), IF(Data_Start_to_Peak= 2, SUM(E30,G30, K30), IF(Data_Start_to_Peak= 3, SUM(E30,I30,K30), ""))),"") -> 3267754.125 | N30: =IFERROR(IF(Data_Start_to_Peak= 1, SUM(Calculations!D30, F30, L30), IF(Data_Start_to_Peak= 2, SUM(F30,H30, L30), IF(Data_Start_to_Peak= 3, SUM(F30,J30,L30), ""))),"") -> 7914861.75 | O30: 1313637.158 | P30: 3181774.424 | Q30: 1222140.043 | R30: 2960158.295 | S30: 731976.924 | T30: 1772929.032
A31: 17 | B31: =Cases_Hosp!C30 -> 17 | E31: =IFERROR(IF(AND(CenterOpen=1, A31=SUM(WkCasesStartAppear,WKOpenCallCenter),A31 <PeakWk), Cases_Hosp!E30*CalltoHospRatioLow,IF(AND(CenterOpen=1, A31>SUM(WkCasesStartAppear,WKOpenCallCenter), A31 <PeakWk),(Cases_Hosp!E30*CalltoHospRatioLow),"")),"") ->  | F31: =IFERROR(IF(AND(CenterOpen=1,A31=SUM(WkCasesStartAppear,WKOpenCallCenter),A31 <PeakWk), Cases_Hosp!F30*CalltoHospRatioHigh,IF(AND(CenterOpen=1, A31>SUM(WkCasesStartAppear,WKOpenCallCenter), A31 <PeakWk),(Cases_Hosp!F30*CalltoHospRatioHigh),"")),"") ->  | G31: =IFERROR(IF(AND(CenterOpen = 1, Data_H= 2, Cases_Hosp!B30>=SUM(WkCasesStartAppear,WKOpenCallCenter)), (((Media_counts!#REF!/MediatoCallLow)/per100K)*USPop),""),"") ->  | H31: =IFERROR(IF(AND(CenterOpen = 1, Data_H = 2, Cases_Hosp!B30>=SUM(WkCasesStartAppear,WKOpenCallCenter), Cases_Hosp!B30<PeakWk), (((Media_counts!#REF!/MediatoCallHigh)/per100K)*USPop), ""),"") ->  | I31: =IFERROR(IF(AND(CenterOpen=1,Data_Start_to_Peak=3,Cases_Hosp!B30>=SUM(WkCasesStartAppear,WKOpenCallCenter),Cases_Hosp!B30<PeakWk),(((Media_counts!J20/MediatoCallLow)/per100K)*USPop),""),"") ->  | J31: =IFERROR(IF(AND(CenterOpen = 1, Data_Start_to_Peak = 3, Cases_Hosp!B30>=SUM(WkCasesStartAppear,WKOpenCallCenter), Cases_Hosp!B30<PeakWk), (((Media_counts!J20/MediatoCallLow)/per100K)*USPop), ""),"") ->  | K31: =IFERROR(IF(AND(CenterOpen=1,Cases_Hosp!B30>=PeakWk),(Cases_Hosp!E30*CalltoHospRatioLow),""),"") -> 1434576.075 | L31: =IFERROR(IF(AND(CenterOpen=1,Cases_Hosp!B30>=PeakWk),(Cases_Hosp!F30*CalltoHospRatioHigh),""),"") -> 3474701.85 | M31: =IFERROR(IF(Data_Start_to_Peak= 1, SUM(Calculations!C31, E31, K31), IF(Data_Start_to_Peak= 2, SUM(E31,G31, K31), IF(Data_Start_to_Peak= 3, SUM(E31,I31,K31), ""))),"") -> 1434576.075 | N31: =IFERROR(IF(Data_Start_to_Peak= 1, SUM(Calculations!D31, F31, L31), IF(Data_Start_to_Peak= 2, SUM(F31,H31, L31), IF(Data_Start_to_Peak= 3, SUM(F31,J31,L31), ""))),"") -> 3474701.85 | O31: 576699.5822 | P31: 1396830.144 | Q31: 536531.452 | R31: 1299538.492 | S31: 321345.0408 | T31: 778333.2144
A32: 18 | B32: =Cases_Hosp!C31 -> 18 | E32: =IFERROR(IF(AND(CenterOpen=1, A32=SUM(WkCasesStartAppear,WKOpenCallCenter),A32 <PeakWk), Cases_Hosp!E31*CalltoHospRatioLow,IF(AND(CenterOpen=1, A32>SUM(WkCasesStartAppear,WKOpenCallCenter), A32 <PeakWk),(Cases_Hosp!E31*CalltoHospRatioLow),"")),"") ->  | F32: =IFERROR(IF(AND(CenterOpen=1,A32=SUM(WkCasesStartAppear,WKOpenCallCenter),A32 <PeakWk), Cases_Hosp!F31*CalltoHospRatioHigh,IF(AND(CenterOpen=1, A32>SUM(WkCasesStartAppear,WKOpenCallCenter), A32 <PeakWk),(Cases_Hosp!F31*CalltoHospRatioHigh),"")),"") ->  | G32: =IFERROR(IF(AND(CenterOpen = 1, Data_H= 2, Cases_Hosp!B31>=SUM(WkCasesStartAppear,WKOpenCallCenter)), (((Media_counts!#REF!/MediatoCallLow)/per100K)*USPop),""),"") ->  | H32: =IFERROR(IF(AND(CenterOpen = 1, Data_H = 2, Cases_Hosp!B31>=SUM(WkCasesStartAppear,WKOpenCallCenter), Cases_Hosp!B31<PeakWk), (((Media_counts!#REF!/MediatoCallHigh)/per100K)*USPop), ""),"") ->  | I32: =IFERROR(IF(AND(CenterOpen=1,Data_Start_to_Peak=3,Cases_Hosp!B31>=SUM(WkCasesStartAppear,WKOpenCallCenter),Cases_Hosp!B31<PeakWk),(((Media_counts!J21/MediatoCallLow)/per100K)*USPop),""),"") ->  | J32: =IFERROR(IF(AND(CenterOpen = 1, Data_Start_to_Peak = 3, Cases_Hosp!B31>=SUM(WkCasesStartAppear,WKOpenCallCenter), Cases_Hosp!B31<PeakWk), (((Media_counts!J21/MediatoCallLow)/per100K)*USPop), ""),"") ->  | K32: =IFERROR(IF(AND(CenterOpen=1,Cases_Hosp!B31>=PeakWk),(Cases_Hosp!E31*CalltoHospRatioLow),""),"") -> 575761.725 | L32: =IFERROR(IF(AND(CenterOpen=1,Cases_Hosp!B31>=PeakWk),(Cases_Hosp!F31*CalltoHospRatioHigh),""),"") -> 1394558.55 | M32: =IFERROR(IF(Data_Start_to_Peak= 1, SUM(Calculations!C32, E32, K32), IF(Data_Start_to_Peak= 2, SUM(E32,G32, K32), IF(Data_Start_to_Peak= 3, SUM(E32,I32,K32), ""))),"") -> 575761.725 | N32: =IFERROR(IF(Data_Start_to_Peak= 1, SUM(Calculations!D32, F32, L32), IF(Data_Start_to_Peak= 2, SUM(F32,H32, L32), IF(Data_Start_to_Peak= 3, SUM(F32,J32,L32), ""))),"") -> 1394558.55 | O32: 231456.2135 | P32: 560612.5371 | Q32: 215334.8851 | R32: 521564.8977 | S32: 128970.6264 | T32: 312381.1152
A33: 19 | B33: =Cases_Hosp!C32 -> 19 | E33: =IFERROR(IF(AND(CenterOpen=1, A33=SUM(WkCasesStartAppear,WKOpenCallCenter),A33 <PeakWk), Cases_Hosp!E32*CalltoHospRatioLow,IF(AND(CenterOpen=1, A33>SUM(WkCasesStartAppear,WKOpenCallCenter), A33 <PeakWk),(Cases_Hosp!E32*CalltoHospRatioLow),"")),"") ->  | F33: =IFERROR(IF(AND(CenterOpen=1,A33=SUM(WkCasesStartAppear,WKOpenCallCenter),A33 <PeakWk), Cases_Hosp!F32*CalltoHospRatioHigh,IF(AND(CenterOpen=1, A33>SUM(WkCasesStartAppear,WKOpenCallCenter), A33 <PeakWk),(Cases_Hosp!F32*CalltoHospRatioHigh),"")),"") ->  | G33: =IFERROR(IF(AND(CenterOpen = 1, Data_H= 2, Cases_Hosp!B32>=SUM(WkCasesStartAppear,WKOpenCallCenter)), (((Media_counts!#REF!/MediatoCallLow)/per100K)*USPop),""),"") ->  | H33: =IFERROR(IF(AND(CenterOpen = 1, Data_H = 2, Cases_Hosp!B32>=SUM(WkCasesStartAppear,WKOpenCallCenter), Cases_Hosp!B32<PeakWk), (((Media_counts!#REF!/MediatoCallHigh)/per100K)*USPop), ""),"") ->  | I33: =IFERROR(IF(AND(CenterOpen=1,Data_Start_to_Peak=3,Cases_Hosp!B32>=SUM(WkCasesStartAppear,WKOpenCallCenter),Cases_Hosp!B32<PeakWk),(((Media_counts!J22/MediatoCallLow)/per100K)*USPop),""),"") ->  | J33: =IFERROR(IF(AND(CenterOpen = 1, Data_Start_to_Peak = 3, Cases_Hosp!B32>=SUM(WkCasesStartAppear,WKOpenCallCenter), Cases_Hosp!B32<PeakWk), (((Media_counts!J22/MediatoCallLow)/per100K)*USPop), ""),"") ->  | K33: =IFERROR(IF(AND(CenterOpen=1,Cases_Hosp!B32>=PeakWk),(Cases_Hosp!E32*CalltoHospRatioLow),""),"") -> 223203.375 | L33: =IFERROR(IF(AND(CenterOpen=1,Cases_Hosp!B32>=PeakWk),(Cases_Hosp!F32*CalltoHospRatioHigh),""),"") -> 540623.25 | M33: =IFERROR(IF(Data_Start_to_Peak= 1, SUM(Calculations!C33, E33, K33), IF(Data_Start_to_Peak= 2, SUM(E33,G33, K33), IF(Data_Start_to_Peak= 3, SUM(E33,I33,K33), ""))),"") -> 223203.375 | N33: =IFERROR(IF(Data_Start_to_Peak= 1, SUM(Calculations!D33, F33, L33), IF(Data_Start_to_Peak= 2, SUM(F33,H33, L33), IF(Data_Start_to_Peak= 3, SUM(F33,J33,L33), ""))),"") -> 540623.25 | O33: 89727.75675 | P33: 217330.5465 | Q33: 83478.06225 | R33: 202193.0955 | S33: 49997.556 | T33: 121099.608
A34: 20 | B34: =Cases_Hosp!C33 -> 20 | E34: =IFERROR(IF(AND(CenterOpen=1, A34=SUM(WkCasesStartAppear,WKOpenCallCenter),A34 <PeakWk), Cases_Hosp!E33*CalltoHospRatioLow,IF(AND(CenterOpen=1, A34>SUM(WkCasesStartAppear,WKOpenCallCenter), A34 <PeakWk),(Cases_Hosp!E33*CalltoHospRatioLow),"")),"") ->  | F34: =IFERROR(IF(AND(CenterOpen=1,A34=SUM(WkCasesStartAppear,WKOpenCallCenter),A34 <PeakWk), Cases_Hosp!F33*CalltoHospRatioHigh,IF(AND(CenterOpen=1, A34>SUM(WkCasesStartAppear,WKOpenCallCenter), A34 <PeakWk),(Cases_Hosp!F33*CalltoHospRatioHigh),"")),"") ->  | G34: =IFERROR(IF(AND(CenterOpen = 1, Data_H= 2, Cases_Hosp!B33>=SUM(WkCasesStartAppear,WKOpenCallCenter)), (((Media_counts!#REF!/MediatoCallLow)/per100K)*USPop),""),"") ->  | H34: =IFERROR(IF(AND(CenterOpen = 1, Data_H = 2, Cases_Hosp!B33>=SUM(WkCasesStartAppear,WKOpenCallCenter), Cases_Hosp!B33<PeakWk), (((Media_counts!#REF!/MediatoCallHigh)/per100K)*USPop), ""),"") ->  | I34: =IFERROR(IF(AND(CenterOpen=1,Data_Start_to_Peak=3,Cases_Hosp!B33>=SUM(WkCasesStartAppear,WKOpenCallCenter),Cases_Hosp!B33<PeakWk),(((Media_counts!J23/MediatoCallLow)/per100K)*USPop),""),"") ->  | J34: =IFERROR(IF(AND(CenterOpen = 1, Data_Start_to_Peak = 3, Cases_Hosp!B33>=SUM(WkCasesStartAppear,WKOpenCallCenter), Cases_Hosp!B33<PeakWk), (((Media_counts!J23/MediatoCallLow)/per100K)*USPop), ""),"") ->  | K34: =IFERROR(IF(AND(CenterOpen=1,Cases_Hosp!B33>=PeakWk),(Cases_Hosp!E33*CalltoHospRatioLow),""),"") -> 85400.85 | L34: =IFERROR(IF(AND(CenterOpen=1,Cases_Hosp!B33>=PeakWk),(Cases_Hosp!F33*CalltoHospRatioHigh),""),"") -> 206850.3 | M34: =IFERROR(IF(Data_Start_to_Peak= 1, SUM(Calculations!C34, E34, K34), IF(Data_Start_to_Peak= 2, SUM(E34,G34, K34), IF(Data_Start_to_Peak= 3, SUM(E34,I34,K34), ""))),"") -> 85400.85 | N34: =IFERROR(IF(Data_Start_to_Peak= 1, SUM(Calculations!D34, F34, L34), IF(Data_Start_to_Peak= 2, SUM(F34,H34, L34), IF(Data_Start_to_Peak= 3, SUM(F34,J34,L34), ""))),"") -> 206850.3 | O34: 34331.1417 | P34: 83153.8206 | Q34: 31939.9179 | R34: 77362.0122 | S34: 19129.7904 | T34: 46334.4672
A35: 21 | B35: =Cases_Hosp!C34 -> 21 | E35: =IFERROR(IF(AND(CenterOpen=1, A35=SUM(WkCasesStartAppear,WKOpenCallCenter),A35 <PeakWk), Cases_Hosp!E34*CalltoHospRatioLow,IF(AND(CenterOpen=1, A35>SUM(WkCasesStartAppear,WKOpenCallCenter), A35 <PeakWk),(Cases_Hosp!E34*CalltoHospRatioLow),"")),"") ->  | F35: =IFERROR(IF(AND(CenterOpen=1,A35=SUM(WkCasesStartAppear,WKOpenCallCenter),A35 <PeakWk), Cases_Hosp!F34*CalltoHospRatioHigh,IF(AND(CenterOpen=1, A35>SUM(WkCasesStartAppear,WKOpenCallCenter), A35 <PeakWk),(Cases_Hosp!F34*CalltoHospRatioHigh),"")),"") ->  | G35: =IFERROR(IF(AND(CenterOpen = 1, Data_H= 2, Cases_Hosp!B34>=SUM(WkCasesStartAppear,WKOpenCallCenter)), (((Media_counts!#REF!/MediatoCallLow)/per100K)*USPop),""),"") ->  | H35: =IFERROR(IF(AND(CenterOpen = 1, Data_H = 2, Cases_Hosp!B34>=SUM(WkCasesStartAppear,WKOpenCallCenter), Cases_Hosp!B34<PeakWk), (((Media_counts!#REF!/MediatoCallHigh)/per100K)*USPop), ""),"") ->  | I35: =IFERROR(IF(AND(CenterOpen=1,Data_Start_to_Peak=3,Cases_Hosp!B34>=SUM(WkCasesStartAppear,WKOpenCallCenter),Cases_Hosp!B34<PeakWk),(((Media_counts!J24/MediatoCallLow)/per100K)*USPop),""),"") ->  | J35: =IFERROR(IF(AND(CenterOpen = 1, Data_Start_to_Peak = 3, Cases_Hosp!B34>=SUM(WkCasesStartAppear,WKOpenCallCenter), Cases_Hosp!B34<PeakWk), (((Media_counts!J24/MediatoCallLow)/per100K)*USPop), ""),"") ->  | K35: =IFERROR(IF(AND(CenterOpen=1,Cases_Hosp!B34>=PeakWk),(Cases_Hosp!E34*CalltoHospRatioLow),""),"") -> 32506.65 | L35: =IFERROR(IF(AND(CenterOpen=1,Cases_Hosp!B34>=PeakWk),(Cases_Hosp!F34*CalltoHospRatioHigh),""),"") -> 78734.7 | M35: =IFERROR(IF(Data_Start_to_Peak= 1, SUM(Calculations!C35, E35, K35), IF(Data_Start_to_Peak= 2, SUM(E35,G35, K35), IF(Data_Start_to_Peak= 3, SUM(E35,I35,K35), ""))),"") -> 32506.65 | N35: =IFERROR(IF(Data_Start_to_Peak= 1, SUM(Calculations!D35, F35, L35), IF(Data_Start_to_Peak= 2, SUM(F35,H35, L35), IF(Data_Start_to_Peak= 3, SUM(F35,J35,L35), ""))),"") -> 78734.7 | O35: 13067.6733 | P35: 31651.3494 | Q35: 12157.4871 | R35: 29446.7778 | S35: 7281.4896 | T35: 17636.5728
A36: 22 | B36: =Cases_Hosp!C35 -> 22 | E36: =IFERROR(IF(AND(CenterOpen=1, A36=SUM(WkCasesStartAppear,WKOpenCallCenter),A36 <PeakWk), Cases_Hosp!E35*CalltoHospRatioLow,IF(AND(CenterOpen=1, A36>SUM(WkCasesStartAppear,WKOpenCallCenter), A36 <PeakWk),(Cases_Hosp!E35*CalltoHospRatioLow),"")),"") ->  | F36: =IFERROR(IF(AND(CenterOpen=1,A36=SUM(WkCasesStartAppear,WKOpenCallCenter),A36 <PeakWk), Cases_Hosp!F35*CalltoHospRatioHigh,IF(AND(CenterOpen=1, A36>SUM(WkCasesStartAppear,WKOpenCallCenter), A36 <PeakWk),(Cases_Hosp!F35*CalltoHospRatioHigh),"")),"") ->  | G36: =IFERROR(IF(AND(CenterOpen = 1, Data_H= 2, Cases_Hosp!B35>=SUM(WkCasesStartAppear,WKOpenCallCenter)), (((Media_counts!#REF!/MediatoCallLow)/per100K)*USPop),""),"") ->  | H36: =IFERROR(IF(AND(CenterOpen = 1, Data_H = 2, Cases_Hosp!B35>=SUM(WkCasesStartAppear,WKOpenCallCenter), Cases_Hosp!B35<PeakWk), (((Media_counts!#REF!/MediatoCallHigh)/per100K)*USPop), ""),"") ->  | I36: =IFERROR(IF(AND(CenterOpen=1,Data_Start_to_Peak=3,Cases_Hosp!B35>=SUM(WkCasesStartAppear,WKOpenCallCenter),Cases_Hosp!B35<PeakWk),(((Media_counts!J25/MediatoCallLow)/per100K)*USPop),""),"") ->  | J36: =IFERROR(IF(AND(CenterOpen = 1, Data_Start_to_Peak = 3, Cases_Hosp!B35>=SUM(WkCasesStartAppear,WKOpenCallCenter), Cases_Hosp!B35<PeakWk), (((Media_counts!J25/MediatoCallLow)/per100K)*USPop), ""),"") ->  | K36: =IFERROR(IF(AND(CenterOpen=1,Cases_Hosp!B35>=PeakWk),(Cases_Hosp!E35*CalltoHospRatioLow),""),"") -> 12342.975 | L36: =IFERROR(IF(AND(CenterOpen=1,Cases_Hosp!B35>=PeakWk),(Cases_Hosp!F35*CalltoHospRatioHigh),""),"") -> 29896.05 | M36: =IFERROR(IF(Data_Start_to_Peak= 1, SUM(Calculations!C36, E36, K36), IF(Data_Start_to_Peak= 2, SUM(E36,G36, K36), IF(Data_Start_to_Peak= 3, SUM(E36,I36,K36), ""))),"") -> 12342.975 | N36: =IFERROR(IF(Data_Start_to_Peak= 1, SUM(Calculations!D36, F36, L36), IF(Data_Start_to_Peak= 2, SUM(F36,H36, L36), IF(Data_Start_to_Peak= 3, SUM(F36,J36,L36), ""))),"") -> 29896.05 | O36: 4961.87595 | P36: 12018.2121 | Q36: 4616.27265 | R36: 11181.1227 | S36: 2764.8264 | T36: 6696.7152
A37: 23 | B37: =Cases_Hosp!C36 -> 23 | E37: =IFERROR(IF(AND(CenterOpen=1, A37=SUM(WkCasesStartAppear,WKOpenCallCenter),A37 <PeakWk), Cases_Hosp!E36*CalltoHospRatioLow,IF(AND(CenterOpen=1, A37>SUM(WkCasesStartAppear,WKOpenCallCenter), A37 <PeakWk),(Cases_Hosp!E36*CalltoHospRatioLow),"")),"") ->  | F37: =IFERROR(IF(AND(CenterOpen=1,A37=SUM(WkCasesStartAppear,WKOpenCallCenter),A37 <PeakWk), Cases_Hosp!F36*CalltoHospRatioHigh,IF(AND(CenterOpen=1, A37>SUM(WkCasesStartAppear,WKOpenCallCenter), A37 <PeakWk),(Cases_Hosp!F36*CalltoHospRatioHigh),"")),"") ->  | G37: =IFERROR(IF(AND(CenterOpen = 1, Data_H= 2, Cases_Hosp!B36>=SUM(WkCasesStartAppear,WKOpenCallCenter)), (((Media_counts!#REF!/MediatoCallLow)/per100K)*USPop),""),"") ->  | H37: =IFERROR(IF(AND(CenterOpen = 1, Data_H = 2, Cases_Hosp!B36>=SUM(WkCasesStartAppear,WKOpenCallCenter), Cases_Hosp!B36<PeakWk), (((Media_counts!#REF!/MediatoCallHigh)/per100K)*USPop), ""),"") ->  | I37: =IFERROR(IF(AND(CenterOpen=1,Data_Start_to_Peak=3,Cases_Hosp!B36>=SUM(WkCasesStartAppear,WKOpenCallCenter),Cases_Hosp!B36<PeakWk),(((Media_counts!J26/MediatoCallLow)/per100K)*USPop),""),"") ->  | J37: =IFERROR(IF(AND(CenterOpen = 1, Data_Start_to_Peak = 3, Cases_Hosp!B36>=SUM(WkCasesStartAppear,WKOpenCallCenter), Cases_Hosp!B36<PeakWk), (((Media_counts!J26/MediatoCallLow)/per100K)*USPop), ""),"") ->  | K37: =IFERROR(IF(AND(CenterOpen=1,Cases_Hosp!B36>=PeakWk),(Cases_Hosp!E36*CalltoHospRatioLow),""),"") -> 4701.375 | L37: =IFERROR(IF(AND(CenterOpen=1,Cases_Hosp!B36>=PeakWk),(Cases_Hosp!F36*CalltoHospRatioHigh),""),"") -> 11387.25 | M37: =IFERROR(IF(Data_Start_to_Peak= 1, SUM(Calculations!C37, E37, K37), IF(Data_Start_to_Peak= 2, SUM(E37,G37, K37), IF(Data_Start_to_Peak= 3, SUM(E37,I37,K37), ""))),"") -> 4701.375 | N37: =IFERROR(IF(Data_Start_to_Peak= 1, SUM(Calculations!D37, F37, L37), IF(Data_Start_to_Peak= 2, SUM(F37,H37, L37), IF(Data_Start_to_Peak= 3, SUM(F37,J37,L37), ""))),"") -> 11387.25 | O37: 1889.95275 | P37: 4577.6745 | Q37: 1758.31425 | R37: 4258.8315 | S37: 1053.108 | T37: 2550.744
A38: 24 | B38: =Cases_Hosp!C37 -> 24 | E38: =IFERROR(IF(AND(CenterOpen=1, A38=SUM(WkCasesStartAppear,WKOpenCallCenter),A38 <PeakWk), Cases_Hosp!E37*CalltoHospRatioLow,IF(AND(CenterOpen=1, A38>SUM(WkCasesStartAppear,WKOpenCallCenter), A38 <PeakWk),(Cases_Hosp!E37*CalltoHospRatioLow),"")),"") ->  | F38: =IFERROR(IF(AND(CenterOpen=1,A38=SUM(WkCasesStartAppear,WKOpenCallCenter),A38 <PeakWk), Cases_Hosp!F37*CalltoHospRatioHigh,IF(AND(CenterOpen=1, A38>SUM(WkCasesStartAppear,WKOpenCallCenter), A38 <PeakWk),(Cases_Hosp!F37*CalltoHospRatioHigh),"")),"") ->  | G38: =IFERROR(IF(AND(CenterOpen = 1, Data_H= 2, Cases_Hosp!B37>=SUM(WkCasesStartAppear,WKOpenCallCenter)), (((Media_counts!#REF!/MediatoCallLow)/per100K)*USPop),""),"") ->  | H38: =IFERROR(IF(AND(CenterOpen = 1, Data_H = 2, Cases_Hosp!B37>=SUM(WkCasesStartAppear,WKOpenCallCenter), Cases_Hosp!B37<PeakWk), (((Media_counts!#REF!/MediatoCallHigh)/per100K)*USPop), ""),"") ->  | I38: =IFERROR(IF(AND(CenterOpen=1,Data_Start_to_Peak=3,Cases_Hosp!B37>=SUM(WkCasesStartAppear,WKOpenCallCenter),Cases_Hosp!B37<PeakWk),(((Media_counts!J27/MediatoCallLow)/per100K)*USPop),""),"") ->  | J38: =IFERROR(IF(AND(CenterOpen = 1, Data_Start_to_Peak = 3, Cases_Hosp!B37>=SUM(WkCasesStartAppear,WKOpenCallCenter), Cases_Hosp!B37<PeakWk), (((Media_counts!J27/MediatoCallLow)/per100K)*USPop), ""),"") ->  | K38: =IFERROR(IF(AND(CenterOpen=1,Cases_Hosp!B37>=PeakWk),(Cases_Hosp!E37*CalltoHospRatioLow),""),"") -> 1791 | L38: =IFERROR(IF(AND(CenterOpen=1,Cases_Hosp!B37>=PeakWk),(Cases_Hosp!F37*CalltoHospRatioHigh),""),"") -> 4338 | M38: =IFERROR(IF(Data_Start_to_Peak= 1, SUM(Calculations!C38, E38, K38), IF(Data_Start_to_Peak= 2, SUM(E38,G38, K38), IF(Data_Start_to_Peak= 3, SUM(E38,I38,K38), ""))),"") -> 1791 | N38: =IFERROR(IF(Data_Start_to_Peak= 1, SUM(Calculations!D38, F38, L38), IF(Data_Start_to_Peak= 2, SUM(F38,H38, L38), IF(Data_Start_to_Peak= 3, SUM(F38,J38,L38), ""))),"") -> 4338 | O38: 719.982 | P38: 1743.876 | Q38: 669.834 | R38: 1622.412 | S38: 401.184 | T38: 971.712
A39: 25 | B39: =Cases_Hosp!C38 -> 25 | E39: =IFERROR(IF(AND(CenterOpen=1, A39=SUM(WkCasesStartAppear,WKOpenCallCenter),A39 <PeakWk), Cases_Hosp!E38*CalltoHospRatioLow,IF(AND(CenterOpen=1, A39>SUM(WkCasesStartAppear,WKOpenCallCenter), A39 <PeakWk),(Cases_Hosp!E38*CalltoHospRatioLow),"")),"") ->  | F39: =IFERROR(IF(AND(CenterOpen=1,A39=SUM(WkCasesStartAppear,WKOpenCallCenter),A39 <PeakWk), Cases_Hosp!F38*CalltoHospRatioHigh,IF(AND(CenterOpen=1, A39>SUM(WkCasesStartAppear,WKOpenCallCenter), A39 <PeakWk),(Cases_Hosp!F38*CalltoHospRatioHigh),"")),"") ->  | G39: =IFERROR(IF(AND(CenterOpen = 1, Data_H= 2, Cases_Hosp!B38>=SUM(WkCasesStartAppear,WKOpenCallCenter)), (((Media_counts!#REF!/MediatoCallLow)/per100K)*USPop),""),"") ->  | H39: =IFERROR(IF(AND(CenterOpen = 1, Data_H = 2, Cases_Hosp!B38>=SUM(WkCasesStartAppear,WKOpenCallCenter), Cases_Hosp!B38<PeakWk), (((Media_counts!#REF!/MediatoCallHigh)/per100K)*USPop), ""),"") ->  | I39: =IFERROR(IF(AND(CenterOpen=1,Data_Start_to_Peak=3,Cases_Hosp!B38>=SUM(WkCasesStartAppear,WKOpenCallCenter),Cases_Hosp!B38<PeakWk),(((Media_counts!J28/MediatoCallLow)/per100K)*USPop),""),"") ->  | J39: =IFERROR(IF(AND(CenterOpen = 1, Data_Start_to_Peak = 3, Cases_Hosp!B38>=SUM(WkCasesStartAppear,WKOpenCallCenter), Cases_Hosp!B38<PeakWk), (((Media_counts!J28/MediatoCallLow)/per100K)*USPop), ""),"") ->  | K39: =IFERROR(IF(AND(CenterOpen=1,Cases_Hosp!B38>=PeakWk),(Cases_Hosp!E38*CalltoHospRatioLow),""),"") -> 686.55 | L39: =IFERROR(IF(AND(CenterOpen=1,Cases_Hosp!B38>=PeakWk),(Cases_Hosp!F38*CalltoHospRatioHigh),""),"") -> 1662.9 | M39: =IFERROR(IF(Data_Start_to_Peak= 1, SUM(Calculations!C39, E39, K39), IF(Data_Start_to_Peak= 2, SUM(E39,G39, K39), IF(Data_Start_to_Peak= 3, SUM(E39,I39,K39), ""))),"") -> 686.55 | N39: =IFERROR(IF(Data_Start_to_Peak= 1, SUM(Calculations!D39, F39, L39), IF(Data_Start_to_Peak= 2, SUM(F39,H39, L39), IF(Data_Start_to_Peak= 3, SUM(F39,J39,L39), ""))),"") -> 1662.9 | O39: 275.9931 | P39: 668.4858 | Q39: 256.7697 | R39: 621.9246 | S39: 153.7872 | T39: 372.4896
A40: 26 | B40: =Cases_Hosp!C39 -> 26 | E40: =IFERROR(IF(AND(CenterOpen=1, A40=SUM(WkCasesStartAppear,WKOpenCallCenter),A40 <PeakWk), Cases_Hosp!E39*CalltoHospRatioLow,IF(AND(CenterOpen=1, A40>SUM(WkCasesStartAppear,WKOpenCallCenter), A40 <PeakWk),(Cases_Hosp!E39*CalltoHospRatioLow),"")),"") ->  | F40: =IFERROR(IF(AND(CenterOpen=1,A40=SUM(WkCasesStartAppear,WKOpenCallCenter),A40 <PeakWk), Cases_Hosp!F39*CalltoHospRatioHigh,IF(AND(CenterOpen=1, A40>SUM(WkCasesStartAppear,WKOpenCallCenter), A40 <PeakWk),(Cases_Hosp!F39*CalltoHospRatioHigh),"")),"") ->  | G40: =IFERROR(IF(AND(CenterOpen = 1, Data_H= 2, Cases_Hosp!B39>=SUM(WkCasesStartAppear,WKOpenCallCenter)), (((Media_counts!#REF!/MediatoCallLow)/per100K)*USPop),""),"") ->  | H40: =IFERROR(IF(AND(CenterOpen = 1, Data_H = 2, Cases_Hosp!B39>=SUM(WkCasesStartAppear,WKOpenCallCenter), Cases_Hosp!B39<PeakWk), (((Media_counts!#REF!/MediatoCallHigh)/per100K)*USPop), ""),"") ->  | I40: =IFERROR(IF(AND(CenterOpen=1,Data_Start_to_Peak=3,Cases_Hosp!B39>=SUM(WkCasesStartAppear,WKOpenCallCenter),Cases_Hosp!B39<PeakWk),(((Media_counts!J29/MediatoCallLow)/per100K)*USPop),""),"") ->  | J40: =IFERROR(IF(AND(CenterOpen = 1, Data_Start_to_Peak = 3, Cases_Hosp!B39>=SUM(WkCasesStartAppear,WKOpenCallCenter), Cases_Hosp!B39<PeakWk), (((Media_counts!J29/MediatoCallLow)/per100K)*USPop), ""),"") ->  | K40: =IFERROR(IF(AND(CenterOpen=1,Cases_Hosp!B39>=PeakWk),(Cases_Hosp!E39*CalltoHospRatioLow),""),"") -> 253.725 | L40: =IFERROR(IF(AND(CenterOpen=1,Cases_Hosp!B39>=PeakWk),(Cases_Hosp!F39*CalltoHospRatioHigh),""),"") -> 614.55 | M40: =IFERROR(IF(Data_Start_to_Peak= 1, SUM(Calculations!C40, E40, K40), IF(Data_Start_to_Peak= 2, SUM(E40,G40, K40), IF(Data_Start_to_Peak= 3, SUM(E40,I40,K40), ""))),"") -> 253.725 | N40: =IFERROR(IF(Data_Start_to_Peak= 1, SUM(Calculations!D40, F40, L40), IF(Data_Start_to_Peak= 2, SUM(F40,H40, L40), IF(Data_Start_to_Peak= 3, SUM(F40,J40,L40), ""))),"") -> 614.55 | O40: 101.99745 | P40: 247.0491 | Q40: 94.89315 | R40: 229.8417 | S40: 56.8344 | T40: 137.6592
A41: 27 | B41: =Cases_Hosp!C40 -> 27 | E41: =IFERROR(IF(AND(CenterOpen=1, A41=SUM(WkCasesStartAppear,WKOpenCallCenter),A41 <PeakWk), Cases_Hosp!E40*CalltoHospRatioLow,IF(AND(CenterOpen=1, A41>SUM(WkCasesStartAppear,WKOpenCallCenter), A41 <PeakWk),(Cases_Hosp!E40*CalltoHospRatioLow),"")),"") ->  | F41: =IFERROR(IF(AND(CenterOpen=1,A41=SUM(WkCasesStartAppear,WKOpenCallCenter),A41 <PeakWk), Cases_Hosp!F40*CalltoHospRatioHigh,IF(AND(CenterOpen=1, A41>SUM(WkCasesStartAppear,WKOpenCallCenter), A41 <PeakWk),(Cases_Hosp!F40*CalltoHospRatioHigh),"")),"") ->  | G41: =IFERROR(IF(AND(CenterOpen = 1, Data_H= 2, Cases_Hosp!B40>=SUM(WkCasesStartAppear,WKOpenCallCenter)), (((Media_counts!#REF!/MediatoCallLow)/per100K)*USPop),""),"") ->  | H41: =IFERROR(IF(AND(CenterOpen = 1, Data_H = 2, Cases_Hosp!B40>=SUM(WkCasesStartAppear,WKOpenCallCenter), Cases_Hosp!B40<PeakWk), (((Media_counts!#REF!/MediatoCallHigh)/per100K)*USPop), ""),"") ->  | I41: =IFERROR(IF(AND(CenterOpen=1,Data_Start_to_Peak=3,Cases_Hosp!B40>=SUM(WkCasesStartAppear,WKOpenCallCenter),Cases_Hosp!B40<PeakWk),(((Media_counts!J30/MediatoCallLow)/per100K)*USPop),""),"") ->  | J41: =IFERROR(IF(AND(CenterOpen = 1, Data_Start_to_Peak = 3, Cases_Hosp!B40>=SUM(WkCasesStartAppear,WKOpenCallCenter), Cases_Hosp!B40<PeakWk), (((Media_counts!J30/MediatoCallLow)/per100K)*USPop), ""),"") ->  | K41: =IFERROR(IF(AND(CenterOpen=1,Cases_Hosp!B40>=PeakWk),(Cases_Hosp!E40*CalltoHospRatioLow),""),"") -> 89.55 | L41: =IFERROR(IF(AND(CenterOpen=1,Cases_Hosp!B40>=PeakWk),(Cases_Hosp!F40*CalltoHospRatioHigh),""),"") -> 216.9 | M41: =IFERROR(IF(Data_Start_to_Peak= 1, SUM(Calculations!C41, E41, K41), IF(Data_Start_to_Peak= 2, SUM(E41,G41, K41), IF(Data_Start_to_Peak= 3, SUM(E41,I41,K41), ""))),"") -> 89.55 | N41: =IFERROR(IF(Data_Start_to_Peak= 1, SUM(Calculations!D41, F41, L41), IF(Data_Start_to_Peak= 2, SUM(F41,H41, L41), IF(Data_Start_to_Peak= 3, SUM(F41,J41,L41), ""))),"") -> 216.9 | O41: 35.9991 | P41: 87.1938 | Q41: 33.4917 | R41: 81.1206 | S41: 20.0592 | T41: 48.5856
A42: 28 | B42: =Cases_Hosp!C41 -> 28 | E42: =IFERROR(IF(AND(CenterOpen=1, A42=SUM(WkCasesStartAppear,WKOpenCallCenter),A42 <PeakWk), Cases_Hosp!E41*CalltoHospRatioLow,IF(AND(CenterOpen=1, A42>SUM(WkCasesStartAppear,WKOpenCallCenter), A42 <PeakWk),(Cases_Hosp!E41*CalltoHospRatioLow),"")),"") ->  | F42: =IFERROR(IF(AND(CenterOpen=1,A42=SUM(WkCasesStartAppear,WKOpenCallCenter),A42 <PeakWk), Cases_Hosp!F41*CalltoHospRatioHigh,IF(AND(CenterOpen=1, A42>SUM(WkCasesStartAppear,WKOpenCallCenter), A42 <PeakWk),(Cases_Hosp!F41*CalltoHospRatioHigh),"")),"") ->  | G42: =IFERROR(IF(AND(CenterOpen = 1, Data_H= 2, Cases_Hosp!B41>=SUM(WkCasesStartAppear,WKOpenCallCenter)), (((Media_counts!#REF!/MediatoCallLow)/per100K)*USPop),""),"") ->  | H42: =IFERROR(IF(AND(CenterOpen = 1, Data_H = 2, Cases_Hosp!B41>=SUM(WkCasesStartAppear,WKOpenCallCenter), Cases_Hosp!B41<PeakWk), (((Media_counts!#REF!/MediatoCallHigh)/per100K)*USPop), ""),"") ->  | I42: =IFERROR(IF(AND(CenterOpen=1,Data_Start_to_Peak=3,Cases_Hosp!B41>=SUM(WkCasesStartAppear,WKOpenCallCenter),Cases_Hosp!B41<PeakWk),(((Media_counts!J31/MediatoCallLow)/per100K)*USPop),""),"") ->  | J42: =IFERROR(IF(AND(CenterOpen = 1, Data_Start_to_Peak = 3, Cases_Hosp!B41>=SUM(WkCasesStartAppear,WKOpenCallCenter), Cases_Hosp!B41<PeakWk), (((Media_counts!J31/MediatoCallLow)/per100K)*USPop), ""),"") ->  | K42: =IFERROR(IF(AND(CenterOpen=1,Cases_Hosp!B41>=PeakWk),(Cases_Hosp!E41*CalltoHospRatioLow),""),"") -> 14.925 | L42: =IFERROR(IF(AND(CenterOpen=1,Cases_Hosp!B41>=PeakWk),(Cases_Hosp!F41*CalltoHospRatioHigh),""),"") -> 36.15 | M42: =IFERROR(IF(Data_Start_to_Peak= 1, SUM(Calculations!C42, E42, K42), IF(Data_Start_to_Peak= 2, SUM(E42,G42, K42), IF(Data_Start_to_Peak= 3, SUM(E42,I42,K42), ""))),"") -> 14.925 | N42: =IFERROR(IF(Data_Start_to_Peak= 1, SUM(Calculations!D42, F42, L42), IF(Data_Start_to_Peak= 2, SUM(F42,H42, L42), IF(Data_Start_to_Peak= 3, SUM(F42,J42,L42), ""))),"") -> 36.15 | O42: 5.99985 | P42: 14.5323 | Q42: 5.58195 | R42: 13.5201 | S42: 3.3432 | T42: 8.0976
A43: 29 | B43: =Cases_Hosp!C42 -> 29 | E43: =IFERROR(IF(AND(CenterOpen=1, A43=SUM(WkCasesStartAppear,WKOpenCallCenter),A43 <PeakWk), Cases_Hosp!E42*CalltoHospRatioLow,IF(AND(CenterOpen=1, A43>SUM(WkCasesStartAppear,WKOpenCallCenter), A43 <PeakWk),(Cases_Hosp!E42*CalltoHospRatioLow),"")),"") ->  | F43: =IFERROR(IF(AND(CenterOpen=1,A43=SUM(WkCasesStartAppear,WKOpenCallCenter),A43 <PeakWk), Cases_Hosp!F42*CalltoHospRatioHigh,IF(AND(CenterOpen=1, A43>SUM(WkCasesStartAppear,WKOpenCallCenter), A43 <PeakWk),(Cases_Hosp!F42*CalltoHospRatioHigh),"")),"") ->  | G43: =IFERROR(IF(AND(CenterOpen = 1, Data_H= 2, Cases_Hosp!B42>=SUM(WkCasesStartAppear,WKOpenCallCenter)), (((Media_counts!#REF!/MediatoCallLow)/per100K)*USPop),""),"") ->  | H43: =IFERROR(IF(AND(CenterOpen = 1, Data_H = 2, Cases_Hosp!B42>=SUM(WkCasesStartAppear,WKOpenCallCenter), Cases_Hosp!B42<PeakWk), (((Media_counts!#REF!/MediatoCallHigh)/per100K)*USPop), ""),"") ->  | I43: =IFERROR(IF(AND(CenterOpen=1,Data_Start_to_Peak=3,Cases_Hosp!B42>=SUM(WkCasesStartAppear,WKOpenCallCenter),Cases_Hosp!B42<PeakWk),(((Media_counts!J32/MediatoCallLow)/per100K)*USPop),""),"") ->  | J43: =IFERROR(IF(AND(CenterOpen = 1, Data_Start_to_Peak = 3, Cases_Hosp!B42>=SUM(WkCasesStartAppear,WKOpenCallCenter), Cases_Hosp!B42<PeakWk), (((Media_counts!J32/MediatoCallLow)/per100K)*USPop), ""),"") ->  | K43: =IFERROR(IF(AND(CenterOpen=1,Cases_Hosp!B42>=PeakWk),(Cases_Hosp!E42*CalltoHospRatioLow),""),"") -> 14.925 | L43: =IFERROR(IF(AND(CenterOpen=1,Cases_Hosp!B42>=PeakWk),(Cases_Hosp!F42*CalltoHospRatioHigh),""),"") -> 36.15 | M43: =IFERROR(IF(Data_Start_to_Peak= 1, SUM(Calculations!C43, E43, K43), IF(Data_Start_to_Peak= 2, SUM(E43,G43, K43), IF(Data_Start_to_Peak= 3, SUM(E43,I43,K43), ""))),"") -> 14.925 | N43: =IFERROR(IF(Data_Start_to_Peak= 1, SUM(Calculations!D43, F43, L43), IF(Data_Start_to_Peak= 2, SUM(F43,H43, L43), IF(Data_Start_to_Peak= 3, SUM(F43,J43,L43), ""))),"") -> 36.15 | O43: 5.99985 | P43: 14.5323 | Q43: 5.58195 | R43: 13.5201 | S43: 3.3432 | T43: 8.0976
A44: 30 | B44: =Cases_Hosp!C43 ->  | E44: =IFERROR(IF(AND(CenterOpen=1, A44=SUM(WkCasesStartAppear,WKOpenCallCenter),A44 <PeakWk), Cases_Hosp!E43*CalltoHospRatioLow,IF(AND(CenterOpen=1, A44>SUM(WkCasesStartAppear,WKOpenCallCenter), A44 <PeakWk),(Cases_Hosp!E43*CalltoHospRatioLow),"")),"") ->  | F44: =IFERROR(IF(AND(CenterOpen=1,A44=SUM(WkCasesStartAppear,WKOpenCallCenter),A44 <PeakWk), Cases_Hosp!F43*CalltoHospRatioHigh,IF(AND(CenterOpen=1, A44>SUM(WkCasesStartAppear,WKOpenCallCenter), A44 <PeakWk),(Cases_Hosp!F43*CalltoHospRatioHigh),"")),"") ->  | G44: =IFERROR(IF(AND(CenterOpen = 1, Data_H= 2, Cases_Hosp!B43>=SUM(WkCasesStartAppear,WKOpenCallCenter)), (((Media_counts!#REF!/MediatoCallLow)/per100K)*USPop),""),"") ->  | H44: =IFERROR(IF(AND(CenterOpen = 1, Data_H = 2, Cases_Hosp!B43>=SUM(WkCasesStartAppear,WKOpenCallCenter), Cases_Hosp!B43<PeakWk), (((Media_counts!#REF!/MediatoCallHigh)/per100K)*USPop), ""),"") ->  | I44: =IFERROR(IF(AND(CenterOpen=1,Data_Start_to_Peak=3,Cases_Hosp!B43>=SUM(WkCasesStartAppear,WKOpenCallCenter),Cases_Hosp!B43<PeakWk),(((Media_counts!J33/MediatoCallLow)/per100K)*USPop),""),"") ->  | J44: =IFERROR(IF(AND(CenterOpen = 1, Data_Start_to_Peak = 3, Cases_Hosp!B43>=SUM(WkCasesStartAppear,WKOpenCallCenter), Cases_Hosp!B43<PeakWk), (((Media_counts!J33/MediatoCallLow)/per100K)*USPop), ""),"") ->  | K44: =IFERROR(IF(AND(CenterOpen=1,Cases_Hosp!B43>=PeakWk),(Cases_Hosp!E43*CalltoHospRatioLow),""),"") -> 0 | L44: =IFERROR(IF(AND(CenterOpen=1,Cases_Hosp!B43>=PeakWk),(Cases_Hosp!F43*CalltoHospRatioHigh),""),"") -> 0 | M44: =IFERROR(IF(Data_Start_to_Peak= 1, SUM(Calculations!C44, E44, K44), IF(Data_Start_to_Peak= 2, SUM(E44,G44, K44), IF(Data_Start_to_Peak= 3, SUM(E44,I44,K44), ""))),"") -> 0 | N44: =IFERROR(IF(Data_Start_to_Peak= 1, SUM(Calculations!D44, F44, L44), IF(Data_Start_to_Peak= 2, SUM(F44,H44, L44), IF(Data_Start_to_Peak= 3, SUM(F44,J44,L44), ""))),"") -> 0 | O44: 0 | P44: 0 | Q44: 0 | R44: 0 | S44: 0 | T44: 0
A45: 31 | B45: =Cases_Hosp!C44 ->  | E45: =IFERROR(IF(AND(CenterOpen=1, A45=SUM(WkCasesStartAppear,WKOpenCallCenter),A45 <PeakWk), Cases_Hosp!E44*CalltoHospRatioLow,IF(AND(CenterOpen=1, A45>SUM(WkCasesStartAppear,WKOpenCallCenter), A45 <PeakWk),(Cases_Hosp!E44*CalltoHospRatioLow),"")),"") ->  | F45: =IFERROR(IF(AND(CenterOpen=1,A45=SUM(WkCasesStartAppear,WKOpenCallCenter),A45 <PeakWk), Cases_Hosp!F44*CalltoHospRatioHigh,IF(AND(CenterOpen=1, A45>SUM(WkCasesStartAppear,WKOpenCallCenter), A45 <PeakWk),(Cases_Hosp!F44*CalltoHospRatioHigh),"")),"") ->  | G45: =IFERROR(IF(AND(CenterOpen = 1, Data_H= 2, Cases_Hosp!B44>=SUM(WkCasesStartAppear,WKOpenCallCenter)), (((Media_counts!#REF!/MediatoCallLow)/per100K)*USPop),""),"") ->  | H45: =IFERROR(IF(AND(CenterOpen = 1, Data_H = 2, Cases_Hosp!B44>=SUM(WkCasesStartAppear,WKOpenCallCenter), Cases_Hosp!B44<PeakWk), (((Media_counts!#REF!/MediatoCallHigh)/per100K)*USPop), ""),"") ->  | I45: =IFERROR(IF(AND(CenterOpen=1,Data_Start_to_Peak=3,Cases_Hosp!B44>=SUM(WkCasesStartAppear,WKOpenCallCenter),Cases_Hosp!B44<PeakWk),(((Media_counts!J34/MediatoCallLow)/per100K)*USPop),""),"") ->  | J45: =IFERROR(IF(AND(CenterOpen = 1, Data_Start_to_Peak = 3, Cases_Hosp!B44>=SUM(WkCasesStartAppear,WKOpenCallCenter), Cases_Hosp!B44<PeakWk), (((Media_counts!J34/MediatoCallLow)/per100K)*USPop), ""),"") ->  | K45: =IFERROR(IF(AND(CenterOpen=1,Cases_Hosp!B44>=PeakWk),(Cases_Hosp!E44*CalltoHospRatioLow),""),"") -> 0 | L45: =IFERROR(IF(AND(CenterOpen=1,Cases_Hosp!B44>=PeakWk),(Cases_Hosp!F44*CalltoHospRatioHigh),""),"") -> 0 | M45: =IFERROR(IF(Data_Start_to_Peak= 1, SUM(Calculations!C45, E45, K45), IF(Data_Start_to_Peak= 2, SUM(E45,G45, K45), IF(Data_Start_to_Peak= 3, SUM(E45,I45,K45), ""))),"") -> 0 | N45: =IFERROR(IF(Data_Start_to_Peak= 1, SUM(Calculations!D45, F45, L45), IF(Data_Start_to_Peak= 2, SUM(F45,H45, L45), IF(Data_Start_to_Peak= 3, SUM(F45,J45,L45), ""))),"") -> 0 | O45: 0 | P45: 0 | Q45: 0 | R45: 0 | S45: 0 | T45: 0
A46: 32 | B46: =Cases_Hosp!C45 ->  | E46: =IFERROR(IF(AND(CenterOpen=1, A46=SUM(WkCasesStartAppear,WKOpenCallCenter),A46 <PeakWk), Cases_Hosp!E45*CalltoHospRatioLow,IF(AND(CenterOpen=1, A46>SUM(WkCasesStartAppear,WKOpenCallCenter), A46 <PeakWk),(Cases_Hosp!E45*CalltoHospRatioLow),"")),"") ->  | F46: =IFERROR(IF(AND(CenterOpen=1,A46=SUM(WkCasesStartAppear,WKOpenCallCenter),A46 <PeakWk), Cases_Hosp!F45*CalltoHospRatioHigh,IF(AND(CenterOpen=1, A46>SUM(WkCasesStartAppear,WKOpenCallCenter), A46 <PeakWk),(Cases_Hosp!F45*CalltoHospRatioHigh),"")),"") ->  | G46: =IFERROR(IF(AND(CenterOpen = 1, Data_H= 2, Cases_Hosp!B45>=SUM(WkCasesStartAppear,WKOpenCallCenter)), (((Media_counts!#REF!/MediatoCallLow)/per100K)*USPop),""),"") ->  | H46: =IFERROR(IF(AND(CenterOpen = 1, Data_H = 2, Cases_Hosp!B45>=SUM(WkCasesStartAppear,WKOpenCallCenter), Cases_Hosp!B45<PeakWk), (((Media_counts!#REF!/MediatoCallHigh)/per100K)*USPop), ""),"") ->  | I46: =IFERROR(IF(AND(CenterOpen=1,Data_Start_to_Peak=3,Cases_Hosp!B45>=SUM(WkCasesStartAppear,WKOpenCallCenter),Cases_Hosp!B45<PeakWk),(((Media_counts!J35/MediatoCallLow)/per100K)*USPop),""),"") ->  | J46: =IFERROR(IF(AND(CenterOpen = 1, Data_Start_to_Peak = 3, Cases_Hosp!B45>=SUM(WkCasesStartAppear,WKOpenCallCenter), Cases_Hosp!B45<PeakWk), (((Media_counts!J35/MediatoCallLow)/per100K)*USPop), ""),"") ->  | K46: =IFERROR(IF(AND(CenterOpen=1,Cases_Hosp!B45>=PeakWk),(Cases_Hosp!E45*CalltoHospRatioLow),""),"") -> 0 | L46: =IFERROR(IF(AND(CenterOpen=1,Cases_Hosp!B45>=PeakWk),(Cases_Hosp!F45*CalltoHospRatioHigh),""),"") -> 0 | M46: =IFERROR(IF(Data_Start_to_Peak= 1, SUM(Calculations!C46, E46, K46), IF(Data_Start_to_Peak= 2, SUM(E46,G46, K46), IF(Data_Start_to_Peak= 3, SUM(E46,I46,K46), ""))),"") -> 0 | N46: =IFERROR(IF(Data_Start_to_Peak= 1, SUM(Calculations!D46, F46, L46), IF(Data_Start_to_Peak= 2, SUM(F46,H46, L46), IF(Data_Start_to_Peak= 3, SUM(F46,J46,L46), ""))),"") -> 0 | O46: 0 | P46: 0 | Q46: 0 | R46: 0 | S46: 0 | T46: 0
A47: 33 | B47: =Cases_Hosp!C46 ->  | E47: =IFERROR(IF(AND(CenterOpen=1, A47=SUM(WkCasesStartAppear,WKOpenCallCenter),A47 <PeakWk), Cases_Hosp!E46*CalltoHospRatioLow,IF(AND(CenterOpen=1, A47>SUM(WkCasesStartAppear,WKOpenCallCenter), A47 <PeakWk),(Cases_Hosp!E46*CalltoHospRatioLow),"")),"") ->  | F47: =IFERROR(IF(AND(CenterOpen=1,A47=SUM(WkCasesStartAppear,WKOpenCallCenter),A47 <PeakWk), Cases_Hosp!F46*CalltoHospRatioHigh,IF(AND(CenterOpen=1, A47>SUM(WkCasesStartAppear,WKOpenCallCenter), A47 <PeakWk),(Cases_Hosp!F46*CalltoHospRatioHigh),"")),"") ->  | G47: =IFERROR(IF(AND(CenterOpen = 1, Data_H= 2, Cases_Hosp!B46>=SUM(WkCasesStartAppear,WKOpenCallCenter)), (((Media_counts!#REF!/MediatoCallLow)/per100K)*USPop),""),"") ->  | H47: =IFERROR(IF(AND(CenterOpen = 1, Data_H = 2, Cases_Hosp!B46>=SUM(WkCasesStartAppear,WKOpenCallCenter), Cases_Hosp!B46<PeakWk), (((Media_counts!#REF!/MediatoCallHigh)/per100K)*USPop), ""),"") ->  | I47: =IFERROR(IF(AND(CenterOpen=1,Data_Start_to_Peak=3,Cases_Hosp!B46>=SUM(WkCasesStartAppear,WKOpenCallCenter),Cases_Hosp!B46<PeakWk),(((Media_counts!J36/MediatoCallLow)/per100K)*USPop),""),"") ->  | J47: =IFERROR(IF(AND(CenterOpen = 1, Data_Start_to_Peak = 3, Cases_Hosp!B46>=SUM(WkCasesStartAppear,WKOpenCallCenter), Cases_Hosp!B46<PeakWk), (((Media_counts!J36/MediatoCallLow)/per100K)*USPop), ""),"") ->  | K47: =IFERROR(IF(AND(CenterOpen=1,Cases_Hosp!B46>=PeakWk),(Cases_Hosp!E46*CalltoHospRatioLow),""),"") -> 0 | L47: =IFERROR(IF(AND(CenterOpen=1,Cases_Hosp!B46>=PeakWk),(Cases_Hosp!F46*CalltoHospRatioHigh),""),"") -> 0 | M47: =IFERROR(IF(Data_Start_to_Peak= 1, SUM(Calculations!C47, E47, K47), IF(Data_Start_to_Peak= 2, SUM(E47,G47, K47), IF(Data_Start_to_Peak= 3, SUM(E47,I47,K47), ""))),"") -> 0 | N47: =IFERROR(IF(Data_Start_to_Peak= 1, SUM(Calculations!D47, F47, L47), IF(Data_Start_to_Peak= 2, SUM(F47,H47, L47), IF(Data_Start_to_Peak= 3, SUM(F47,J47,L47), ""))),"") -> 0 | O47: 0 | P47: 0 | Q47: 0 | R47: 0 | S47: 0 | T47: 0
A48: 34 | B48: =Cases_Hosp!C47 ->  | E48: =IFERROR(IF(AND(CenterOpen=1, A48=SUM(WkCasesStartAppear,WKOpenCallCenter),A48 <PeakWk), Cases_Hosp!E47*CalltoHospRatioLow,IF(AND(CenterOpen=1, A48>SUM(WkCasesStartAppear,WKOpenCallCenter), A48 <PeakWk),(Cases_Hosp!E47*CalltoHospRatioLow),"")),"") ->  | F48: =IFERROR(IF(AND(CenterOpen=1,A48=SUM(WkCasesStartAppear,WKOpenCallCenter),A48 <PeakWk), Cases_Hosp!F47*CalltoHospRatioHigh,IF(AND(CenterOpen=1, A48>SUM(WkCasesStartAppear,WKOpenCallCenter), A48 <PeakWk),(Cases_Hosp!F47*CalltoHospRatioHigh),"")),"") ->  | G48: =IFERROR(IF(AND(CenterOpen = 1, Data_H= 2, Cases_Hosp!B47>=SUM(WkCasesStartAppear,WKOpenCallCenter)), (((Media_counts!#REF!/MediatoCallLow)/per100K)*USPop),""),"") ->  | H48: =IFERROR(IF(AND(CenterOpen = 1, Data_H = 2, Cases_Hosp!B47>=SUM(WkCasesStartAppear,WKOpenCallCenter), Cases_Hosp!B47<PeakWk), (((Media_counts!#REF!/MediatoCallHigh)/per100K)*USPop), ""),"") ->  | I48: =IFERROR(IF(AND(CenterOpen=1,Data_Start_to_Peak=3,Cases_Hosp!B47>=SUM(WkCasesStartAppear,WKOpenCallCenter),Cases_Hosp!B47<PeakWk),(((Media_counts!J37/MediatoCallLow)/per100K)*USPop),""),"") ->  | J48: =IFERROR(IF(AND(CenterOpen = 1, Data_Start_to_Peak = 3, Cases_Hosp!B47>=SUM(WkCasesStartAppear,WKOpenCallCenter), Cases_Hosp!B47<PeakWk), (((Media_counts!J37/MediatoCallLow)/per100K)*USPop), ""),"") ->  | K48: =IFERROR(IF(AND(CenterOpen=1,Cases_Hosp!B47>=PeakWk),(Cases_Hosp!E47*CalltoHospRatioLow),""),"") -> 0 | L48: =IFERROR(IF(AND(CenterOpen=1,Cases_Hosp!B47>=PeakWk),(Cases_Hosp!F47*CalltoHospRatioHigh),""),"") -> 0 | M48: =IFERROR(IF(Data_Start_to_Peak= 1, SUM(Calculations!C48, E48, K48), IF(Data_Start_to_Peak= 2, SUM(E48,G48, K48), IF(Data_Start_to_Peak= 3, SUM(E48,I48,K48), ""))),"") -> 0 | N48: =IFERROR(IF(Data_Start_to_Peak= 1, SUM(Calculations!D48, F48, L48), IF(Data_Start_to_Peak= 2, SUM(F48,H48, L48), IF(Data_Start_to_Peak= 3, SUM(F48,J48,L48), ""))),"") -> 0 | O48: 0 | P48: 0 | Q48: 0 | R48: 0 | S48: 0 | T48: 0
A49: 35 | B49: =Cases_Hosp!C48 ->  | E49: =IFERROR(IF(AND(CenterOpen=1, A49=SUM(WkCasesStartAppear,WKOpenCallCenter),A49 <PeakWk), Cases_Hosp!E48*CalltoHospRatioLow,IF(AND(CenterOpen=1, A49>SUM(WkCasesStartAppear,WKOpenCallCenter), A49 <PeakWk),(Cases_Hosp!E48*CalltoHospRatioLow),"")),"") ->  | F49: =IFERROR(IF(AND(CenterOpen=1,A49=SUM(WkCasesStartAppear,WKOpenCallCenter),A49 <PeakWk), Cases_Hosp!F48*CalltoHospRatioHigh,IF(AND(CenterOpen=1, A49>SUM(WkCasesStartAppear,WKOpenCallCenter), A49 <PeakWk),(Cases_Hosp!F48*CalltoHospRatioHigh),"")),"") ->  | G49: =IFERROR(IF(AND(CenterOpen = 1, Data_H= 2, Cases_Hosp!B48>=SUM(WkCasesStartAppear,WKOpenCallCenter)), (((Media_counts!#REF!/MediatoCallLow)/per100K)*USPop),""),"") ->  | H49: =IFERROR(IF(AND(CenterOpen = 1, Data_H = 2, Cases_Hosp!B48>=SUM(WkCasesStartAppear,WKOpenCallCenter), Cases_Hosp!B48<PeakWk), (((Media_counts!#REF!/MediatoCallHigh)/per100K)*USPop), ""),"") ->  | I49: =IFERROR(IF(AND(CenterOpen=1,Data_Start_to_Peak=3,Cases_Hosp!B48>=SUM(WkCasesStartAppear,WKOpenCallCenter),Cases_Hosp!B48<PeakWk),(((Media_counts!J38/MediatoCallLow)/per100K)*USPop),""),"") ->  | J49: =IFERROR(IF(AND(CenterOpen = 1, Data_Start_to_Peak = 3, Cases_Hosp!B48>=SUM(WkCasesStartAppear,WKOpenCallCenter), Cases_Hosp!B48<PeakWk), (((Media_counts!J38/MediatoCallLow)/per100K)*USPop), ""),"") ->  | K49: =IFERROR(IF(AND(CenterOpen=1,Cases_Hosp!B48>=PeakWk),(Cases_Hosp!E48*CalltoHospRatioLow),""),"") -> 0 | L49: =IFERROR(IF(AND(CenterOpen=1,Cases_Hosp!B48>=PeakWk),(Cases_Hosp!F48*CalltoHospRatioHigh),""),"") -> 0 | M49: =IFERROR(IF(Data_Start_to_Peak= 1, SUM(Calculations!C49, E49, K49), IF(Data_Start_to_Peak= 2, SUM(E49,G49, K49), IF(Data_Start_to_Peak= 3, SUM(E49,I49,K49), ""))),"") -> 0 | N49: =IFERROR(IF(Data_Start_to_Peak= 1, SUM(Calculations!D49, F49, L49), IF(Data_Start_to_Peak= 2, SUM(F49,H49, L49), IF(Data_Start_to_Peak= 3, SUM(F49,J49,L49), ""))),"") -> 0 | O49: 0 | P49: 0 | Q49: 0 | R49: 0 | S49: 0 | T49: 0
A50: 36 | B50: =Cases_Hosp!C49 ->  | E50: =IFERROR(IF(AND(CenterOpen=1, A50=SUM(WkCasesStartAppear,WKOpenCallCenter),A50 <PeakWk), Cases_Hosp!E49*CalltoHospRatioLow,IF(AND(CenterOpen=1, A50>SUM(WkCasesStartAppear,WKOpenCallCenter), A50 <PeakWk),(Cases_Hosp!E49*CalltoHospRatioLow),"")),"") ->  | F50: =IFERROR(IF(AND(CenterOpen=1,A50=SUM(WkCasesStartAppear,WKOpenCallCenter),A50 <PeakWk), Cases_Hosp!F49*CalltoHospRatioHigh,IF(AND(CenterOpen=1, A50>SUM(WkCasesStartAppear,WKOpenCallCenter), A50 <PeakWk),(Cases_Hosp!F49*CalltoHospRatioHigh),"")),"") ->  | G50: =IFERROR(IF(AND(CenterOpen = 1, Data_H= 2, Cases_Hosp!B49>=SUM(WkCasesStartAppear,WKOpenCallCenter)), (((Media_counts!#REF!/MediatoCallLow)/per100K)*USPop),""),"") ->  | H50: =IFERROR(IF(AND(CenterOpen = 1, Data_H = 2, Cases_Hosp!B49>=SUM(WkCasesStartAppear,WKOpenCallCenter), Cases_Hosp!B49<PeakWk), (((Media_counts!#REF!/MediatoCallHigh)/per100K)*USPop), ""),"") ->  | I50: =IFERROR(IF(AND(CenterOpen=1,Data_Start_to_Peak=3,Cases_Hosp!B49>=SUM(WkCasesStartAppear,WKOpenCallCenter),Cases_Hosp!B49<PeakWk),(((Media_counts!J39/MediatoCallLow)/per100K)*USPop),""),"") ->  | J50: =IFERROR(IF(AND(CenterOpen = 1, Data_Start_to_Peak = 3, Cases_Hosp!B49>=SUM(WkCasesStartAppear,WKOpenCallCenter), Cases_Hosp!B49<PeakWk), (((Media_counts!J39/MediatoCallLow)/per100K)*USPop), ""),"") ->  | K50: =IFERROR(IF(AND(CenterOpen=1,Cases_Hosp!B49>=PeakWk),(Cases_Hosp!E49*CalltoHospRatioLow),""),"") -> 0 | L50: =IFERROR(IF(AND(CenterOpen=1,Cases_Hosp!B49>=PeakWk),(Cases_Hosp!F49*CalltoHospRatioHigh),""),"") -> 0 | M50: =IFERROR(IF(Data_Start_to_Peak= 1, SUM(Calculations!C50, E50, K50), IF(Data_Start_to_Peak= 2, SUM(E50,G50, K50), IF(Data_Start_to_Peak= 3, SUM(E50,I50,K50), ""))),"") -> 0 | N50: =IFERROR(IF(Data_Start_to_Peak= 1, SUM(Calculations!D50, F50, L50), IF(Data_Start_to_Peak= 2, SUM(F50,H50, L50), IF(Data_Start_to_Peak= 3, SUM(F50,J50,L50), ""))),"") -> 0 | O50: 0 | P50: 0 | Q50: 0 | R50: 0 | S50: 0 | T50: 0
A51: 37 | B51: =Cases_Hosp!C50 ->  | E51: =IFERROR(IF(AND(CenterOpen=1, A51=SUM(WkCasesStartAppear,WKOpenCallCenter),A51 <PeakWk), Cases_Hosp!E50*CalltoHospRatioLow,IF(AND(CenterOpen=1, A51>SUM(WkCasesStartAppear,WKOpenCallCenter), A51 <PeakWk),(Cases_Hosp!E50*CalltoHospRatioLow),"")),"") ->  | F51: =IFERROR(IF(AND(CenterOpen=1,A51=SUM(WkCasesStartAppear,WKOpenCallCenter),A51 <PeakWk), Cases_Hosp!F50*CalltoHospRatioHigh,IF(AND(CenterOpen=1, A51>SUM(WkCasesStartAppear,WKOpenCallCenter), A51 <PeakWk),(Cases_Hosp!F50*CalltoHospRatioHigh),"")),"") ->  | G51: =IFERROR(IF(AND(CenterOpen = 1, Data_H= 2, Cases_Hosp!B50>=SUM(WkCasesStartAppear,WKOpenCallCenter)), (((Media_counts!#REF!/MediatoCallLow)/per100K)*USPop),""),"") ->  | H51: =IFERROR(IF(AND(CenterOpen = 1, Data_H = 2, Cases_Hosp!B50>=SUM(WkCasesStartAppear,WKOpenCallCenter), Cases_Hosp!B50<PeakWk), (((Media_counts!#REF!/MediatoCallHigh)/per100K)*USPop), ""),"") ->  | I51: =IFERROR(IF(AND(CenterOpen=1,Data_Start_to_Peak=3,Cases_Hosp!B50>=SUM(WkCasesStartAppear,WKOpenCallCenter),Cases_Hosp!B50<PeakWk),(((Media_counts!J40/MediatoCallLow)/per100K)*USPop),""),"") ->  | J51: =IFERROR(IF(AND(CenterOpen = 1, Data_Start_to_Peak = 3, Cases_Hosp!B50>=SUM(WkCasesStartAppear,WKOpenCallCenter), Cases_Hosp!B50<PeakWk), (((Media_counts!J40/MediatoCallLow)/per100K)*USPop), ""),"") ->  | K51: =IFERROR(IF(AND(CenterOpen=1,Cases_Hosp!B50>=PeakWk),(Cases_Hosp!E50*CalltoHospRatioLow),""),"") -> 0 | L51: =IFERROR(IF(AND(CenterOpen=1,Cases_Hosp!B50>=PeakWk),(Cases_Hosp!F50*CalltoHospRatioHigh),""),"") -> 0 | M51: =IFERROR(IF(Data_Start_to_Peak= 1, SUM(Calculations!C51, E51, K51), IF(Data_Start_to_Peak= 2, SUM(E51,G51, K51), IF(Data_Start_to_Peak= 3, SUM(E51,I51,K51), ""))),"") -> 0 | N51: =IFERROR(IF(Data_Start_to_Peak= 1, SUM(Calculations!D51, F51, L51), IF(Data_Start_to_Peak= 2, SUM(F51,H51, L51), IF(Data_Start_to_Peak= 3, SUM(F51,J51,L51), ""))),"") -> 0 | O51: 0 | P51: 0 | Q51: 0 | R51: 0 | S51: 0 | T51: 0
A52: 38 | B52: =Cases_Hosp!C51 ->  | E52: =IFERROR(IF(AND(CenterOpen=1, A52=SUM(WkCasesStartAppear,WKOpenCallCenter),A52 <PeakWk), Cases_Hosp!E51*CalltoHospRatioLow,IF(AND(CenterOpen=1, A52>SUM(WkCasesStartAppear,WKOpenCallCenter), A52 <PeakWk),(Cases_Hosp!E51*CalltoHospRatioLow),"")),"") ->  | F52: =IFERROR(IF(AND(CenterOpen=1,A52=SUM(WkCasesStartAppear,WKOpenCallCenter),A52 <PeakWk), Cases_Hosp!F51*CalltoHospRatioHigh,IF(AND(CenterOpen=1, A52>SUM(WkCasesStartAppear,WKOpenCallCenter), A52 <PeakWk),(Cases_Hosp!F51*CalltoHospRatioHigh),"")),"") ->  | G52: =IFERROR(IF(AND(CenterOpen = 1, Data_H= 2, Cases_Hosp!B51>=SUM(WkCasesStartAppear,WKOpenCallCenter)), (((Media_counts!#REF!/MediatoCallLow)/per100K)*USPop),""),"") ->  | H52: =IFERROR(IF(AND(CenterOpen = 1, Data_H = 2, Cases_Hosp!B51>=SUM(WkCasesStartAppear,WKOpenCallCenter), Cases_Hosp!B51<PeakWk), (((Media_counts!#REF!/MediatoCallHigh)/per100K)*USPop), ""),"") ->  | I52: =IFERROR(IF(AND(CenterOpen=1,Data_Start_to_Peak=3,Cases_Hosp!B51>=SUM(WkCasesStartAppear,WKOpenCallCenter),Cases_Hosp!B51<PeakWk),(((Media_counts!J41/MediatoCallLow)/per100K)*USPop),""),"") ->  | J52: =IFERROR(IF(AND(CenterOpen = 1, Data_Start_to_Peak = 3, Cases_Hosp!B51>=SUM(WkCasesStartAppear,WKOpenCallCenter), Cases_Hosp!B51<PeakWk), (((Media_counts!J41/MediatoCallLow)/per100K)*USPop), ""),"") ->  | K52: =IFERROR(IF(AND(CenterOpen=1,Cases_Hosp!B51>=PeakWk),(Cases_Hosp!E51*CalltoHospRatioLow),""),"") -> 0 | L52: =IFERROR(IF(AND(CenterOpen=1,Cases_Hosp!B51>=PeakWk),(Cases_Hosp!F51*CalltoHospRatioHigh),""),"") -> 0 | M52: =IFERROR(IF(Data_Start_to_Peak= 1, SUM(Calculations!C52, E52, K52), IF(Data_Start_to_Peak= 2, SUM(E52,G52, K52), IF(Data_Start_to_Peak= 3, SUM(E52,I52,K52), ""))),"") -> 0 | N52: =IFERROR(IF(Data_Start_to_Peak= 1, SUM(Calculations!D52, F52, L52), IF(Data_Start_to_Peak= 2, SUM(F52,H52, L52), IF(Data_Start_to_Peak= 3, SUM(F52,J52,L52), ""))),"") -> 0 | O52: 0 | P52: 0 | Q52: 0 | R52: 0 | S52: 0 | T52: 0
A53: 39 | B53: =Cases_Hosp!C52 ->  | E53: =IFERROR(IF(AND(CenterOpen=1, A53=SUM(WkCasesStartAppear,WKOpenCallCenter),A53 <PeakWk), Cases_Hosp!E52*CalltoHospRatioLow,IF(AND(CenterOpen=1, A53>SUM(WkCasesStartAppear,WKOpenCallCenter), A53 <PeakWk),(Cases_Hosp!E52*CalltoHospRatioLow),"")),"") ->  | F53: =IFERROR(IF(AND(CenterOpen=1,A53=SUM(WkCasesStartAppear,WKOpenCallCenter),A53 <PeakWk), Cases_Hosp!F52*CalltoHospRatioHigh,IF(AND(CenterOpen=1, A53>SUM(WkCasesStartAppear,WKOpenCallCenter), A53 <PeakWk),(Cases_Hosp!F52*CalltoHospRatioHigh),"")),"") ->  | G53: =IFERROR(IF(AND(CenterOpen = 1, Data_H= 2, Cases_Hosp!B52>=SUM(WkCasesStartAppear,WKOpenCallCenter)), (((Media_counts!#REF!/MediatoCallLow)/per100K)*USPop),""),"") ->  | H53: =IFERROR(IF(AND(CenterOpen = 1, Data_H = 2, Cases_Hosp!B52>=SUM(WkCasesStartAppear,WKOpenCallCenter), Cases_Hosp!B52<PeakWk), (((Media_counts!#REF!/MediatoCallHigh)/per100K)*USPop), ""),"") ->  | I53: =IFERROR(IF(AND(CenterOpen=1,Data_Start_to_Peak=3,Cases_Hosp!B52>=SUM(WkCasesStartAppear,WKOpenCallCenter),Cases_Hosp!B52<PeakWk),(((Media_counts!J42/MediatoCallLow)/per100K)*USPop),""),"") ->  | J53: =IFERROR(IF(AND(CenterOpen = 1, Data_Start_to_Peak = 3, Cases_Hosp!B52>=SUM(WkCasesStartAppear,WKOpenCallCenter), Cases_Hosp!B52<PeakWk), (((Media_counts!J42/MediatoCallLow)/per100K)*USPop), ""),"") ->  | K53: =IFERROR(IF(AND(CenterOpen=1,Cases_Hosp!B52>=PeakWk),(Cases_Hosp!E52*CalltoHospRatioLow),""),"") -> 0 | L53: =IFERROR(IF(AND(CenterOpen=1,Cases_Hosp!B52>=PeakWk),(Cases_Hosp!F52*CalltoHospRatioHigh),""),"") -> 0 | M53: =IFERROR(IF(Data_Start_to_Peak= 1, SUM(Calculations!C53, E53, K53), IF(Data_Start_to_Peak= 2, SUM(E53,G53, K53), IF(Data_Start_to_Peak= 3, SUM(E53,I53,K53), ""))),"") -> 0 | N53: =IFERROR(IF(Data_Start_to_Peak= 1, SUM(Calculations!D53, F53, L53), IF(Data_Start_to_Peak= 2, SUM(F53,H53, L53), IF(Data_Start_to_Peak= 3, SUM(F53,J53,L53), ""))),"") -> 0 | O53: 0 | P53: 0 | Q53: 0 | R53: 0 | S53: 0 | T53: 0
A54: 40 | B54: =Cases_Hosp!C53 ->  | E54: =IFERROR(IF(AND(CenterOpen=1, A54=SUM(WkCasesStartAppear,WKOpenCallCenter),A54 <PeakWk), Cases_Hosp!E53*CalltoHospRatioLow,IF(AND(CenterOpen=1, A54>SUM(WkCasesStartAppear,WKOpenCallCenter), A54 <PeakWk),(Cases_Hosp!E53*CalltoHospRatioLow),"")),"") ->  | F54: =IFERROR(IF(AND(CenterOpen=1,A54=SUM(WkCasesStartAppear,WKOpenCallCenter),A54 <PeakWk), Cases_Hosp!F53*CalltoHospRatioHigh,IF(AND(CenterOpen=1, A54>SUM(WkCasesStartAppear,WKOpenCallCenter), A54 <PeakWk),(Cases_Hosp!F53*CalltoHospRatioHigh),"")),"") ->  | G54: =IFERROR(IF(AND(CenterOpen = 1, Data_H= 2, Cases_Hosp!B53>=SUM(WkCasesStartAppear,WKOpenCallCenter)), (((Media_counts!#REF!/MediatoCallLow)/per100K)*USPop),""),"") ->  | H54: =IFERROR(IF(AND(CenterOpen = 1, Data_H = 2, Cases_Hosp!B53>=SUM(WkCasesStartAppear,WKOpenCallCenter), Cases_Hosp!B53<PeakWk), (((Media_counts!#REF!/MediatoCallHigh)/per100K)*USPop), ""),"") ->  | I54: =IFERROR(IF(AND(CenterOpen=1,Data_Start_to_Peak=3,Cases_Hosp!B53>=SUM(WkCasesStartAppear,WKOpenCallCenter),Cases_Hosp!B53<PeakWk),(((Media_counts!J43/MediatoCallLow)/per100K)*USPop),""),"") ->  | J54: =IFERROR(IF(AND(CenterOpen = 1, Data_Start_to_Peak = 3, Cases_Hosp!B53>=SUM(WkCasesStartAppear,WKOpenCallCenter), Cases_Hosp!B53<PeakWk), (((Media_counts!J43/MediatoCallLow)/per100K)*USPop), ""),"") ->  | K54: =IFERROR(IF(AND(CenterOpen=1,Cases_Hosp!B53>=PeakWk),(Cases_Hosp!E53*CalltoHospRatioLow),""),"") -> 0 | L54: =IFERROR(IF(AND(CenterOpen=1,Cases_Hosp!B53>=PeakWk),(Cases_Hosp!F53*CalltoHospRatioHigh),""),"") -> 0 | M54: =IFERROR(IF(Data_Start_to_Peak= 1, SUM(Calculations!C54, E54, K54), IF(Data_Start_to_Peak= 2, SUM(E54,G54, K54), IF(Data_Start_to_Peak= 3, SUM(E54,I54,K54), ""))),"") -> 0 | N54: =IFERROR(IF(Data_Start_to_Peak= 1, SUM(Calculations!D54, F54, L54), IF(Data_Start_to_Peak= 2, SUM(F54,H54, L54), IF(Data_Start_to_Peak= 3, SUM(F54,J54,L54), ""))),"") -> 0 | O54: 0 | P54: 0 | Q54: 0 | R54: 0 | S54: 0 | T54: 0
A55: 41 | B55: =Cases_Hosp!C54 ->  | E55: =IFERROR(IF(AND(CenterOpen=1, A55=SUM(WkCasesStartAppear,WKOpenCallCenter),A55 <PeakWk), Cases_Hosp!E54*CalltoHospRatioLow,IF(AND(CenterOpen=1, A55>SUM(WkCasesStartAppear,WKOpenCallCenter), A55 <PeakWk),(Cases_Hosp!E54*CalltoHospRatioLow),"")),"") ->  | F55: =IFERROR(IF(AND(CenterOpen=1,A55=SUM(WkCasesStartAppear,WKOpenCallCenter),A55 <PeakWk), Cases_Hosp!F54*CalltoHospRatioHigh,IF(AND(CenterOpen=1, A55>SUM(WkCasesStartAppear,WKOpenCallCenter), A55 <PeakWk),(Cases_Hosp!F54*CalltoHospRatioHigh),"")),"") ->  | G55: =IFERROR(IF(AND(CenterOpen = 1, Data_H= 2, Cases_Hosp!B54>=SUM(WkCasesStartAppear,WKOpenCallCenter)), (((Media_counts!#REF!/MediatoCallLow)/per100K)*USPop),""),"") ->  | H55: =IFERROR(IF(AND(CenterOpen = 1, Data_H = 2, Cases_Hosp!B54>=SUM(WkCasesStartAppear,WKOpenCallCenter), Cases_Hosp!B54<PeakWk), (((Media_counts!#REF!/MediatoCallHigh)/per100K)*USPop), ""),"") ->  | I55: =IFERROR(IF(AND(CenterOpen=1,Data_Start_to_Peak=3,Cases_Hosp!B54>=SUM(WkCasesStartAppear,WKOpenCallCenter),Cases_Hosp!B54<PeakWk),(((Media_counts!J44/MediatoCallLow)/per100K)*USPop),""),"") ->  | J55: =IFERROR(IF(AND(CenterOpen = 1, Data_Start_to_Peak = 3, Cases_Hosp!B54>=SUM(WkCasesStartAppear,WKOpenCallCenter), Cases_Hosp!B54<PeakWk), (((Media_counts!J44/MediatoCallLow)/per100K)*USPop), ""),"") ->  | K55: =IFERROR(IF(AND(CenterOpen=1,Cases_Hosp!B54>=PeakWk),(Cases_Hosp!E54*CalltoHospRatioLow),""),"") -> 0 | L55: =IFERROR(IF(AND(CenterOpen=1,Cases_Hosp!B54>=PeakWk),(Cases_Hosp!F54*CalltoHospRatioHigh),""),"") -> 0 | M55: =IFERROR(IF(Data_Start_to_Peak= 1, SUM(Calculations!C55, E55, K55), IF(Data_Start_to_Peak= 2, SUM(E55,G55, K55), IF(Data_Start_to_Peak= 3, SUM(E55,I55,K55), ""))),"") -> 0 | N55: =IFERROR(IF(Data_Start_to_Peak= 1, SUM(Calculations!D55, F55, L55), IF(Data_Start_to_Peak= 2, SUM(F55,H55, L55), IF(Data_Start_to_Peak= 3, SUM(F55,J55,L55), ""))),"") -> 0 | O55: 0 | P55: 0 | Q55: 0 | R55: 0 | S55: 0 | T55: 0
A56: 42 | B56: =Cases_Hosp!C55 ->  | E56: =IFERROR(IF(AND(CenterOpen=1, A56=SUM(WkCasesStartAppear,WKOpenCallCenter),A56 <PeakWk), Cases_Hosp!E55*CalltoHospRatioLow,IF(AND(CenterOpen=1, A56>SUM(WkCasesStartAppear,WKOpenCallCenter), A56 <PeakWk),(Cases_Hosp!E55*CalltoHospRatioLow),"")),"") ->  | F56: =IFERROR(IF(AND(CenterOpen=1,A56=SUM(WkCasesStartAppear,WKOpenCallCenter),A56 <PeakWk), Cases_Hosp!F55*CalltoHospRatioHigh,IF(AND(CenterOpen=1, A56>SUM(WkCasesStartAppear,WKOpenCallCenter), A56 <PeakWk),(Cases_Hosp!F55*CalltoHospRatioHigh),"")),"") ->  | G56: =IFERROR(IF(AND(CenterOpen = 1, Data_H= 2, Cases_Hosp!B55>=SUM(WkCasesStartAppear,WKOpenCallCenter)), (((Media_counts!#REF!/MediatoCallLow)/per100K)*USPop),""),"") ->  | H56: =IFERROR(IF(AND(CenterOpen = 1, Data_H = 2, Cases_Hosp!B55>=SUM(WkCasesStartAppear,WKOpenCallCenter), Cases_Hosp!B55<PeakWk), (((Media_counts!#REF!/MediatoCallHigh)/per100K)*USPop), ""),"") ->  | I56: =IFERROR(IF(AND(CenterOpen=1,Data_Start_to_Peak=3,Cases_Hosp!B55>=SUM(WkCasesStartAppear,WKOpenCallCenter),Cases_Hosp!B55<PeakWk),(((Media_counts!J45/MediatoCallLow)/per100K)*USPop),""),"") ->  | J56: =IFERROR(IF(AND(CenterOpen = 1, Data_Start_to_Peak = 3, Cases_Hosp!B55>=SUM(WkCasesStartAppear,WKOpenCallCenter), Cases_Hosp!B55<PeakWk), (((Media_counts!J45/MediatoCallLow)/per100K)*USPop), ""),"") ->  | K56: =IFERROR(IF(AND(CenterOpen=1,Cases_Hosp!B55>=PeakWk),(Cases_Hosp!E55*CalltoHospRatioLow),""),"") -> 0 | L56: =IFERROR(IF(AND(CenterOpen=1,Cases_Hosp!B55>=PeakWk),(Cases_Hosp!F55*CalltoHospRatioHigh),""),"") -> 0 | M56: =IFERROR(IF(Data_Start_to_Peak= 1, SUM(Calculations!C56, E56, K56), IF(Data_Start_to_Peak= 2, SUM(E56,G56, K56), IF(Data_Start_to_Peak= 3, SUM(E56,I56,K56), ""))),"") -> 0 | N56: =IFERROR(IF(Data_Start_to_Peak= 1, SUM(Calculations!D56, F56, L56), IF(Data_Start_to_Peak= 2, SUM(F56,H56, L56), IF(Data_Start_to_Peak= 3, SUM(F56,J56,L56), ""))),"") -> 0 | O56: 0 | P56: 0 | Q56: 0 | R56: 0 | S56: 0 | T56: 0
A57: 43 | B57: =Cases_Hosp!C56 ->  | E57: =IFERROR(IF(AND(CenterOpen=1, A57=SUM(WkCasesStartAppear,WKOpenCallCenter),A57 <PeakWk), Cases_Hosp!E56*CalltoHospRatioLow,IF(AND(CenterOpen=1, A57>SUM(WkCasesStartAppear,WKOpenCallCenter), A57 <PeakWk),(Cases_Hosp!E56*CalltoHospRatioLow),"")),"") ->  | F57: =IFERROR(IF(AND(CenterOpen=1,A57=SUM(WkCasesStartAppear,WKOpenCallCenter),A57 <PeakWk), Cases_Hosp!F56*CalltoHospRatioHigh,IF(AND(CenterOpen=1, A57>SUM(WkCasesStartAppear,WKOpenCallCenter), A57 <PeakWk),(Cases_Hosp!F56*CalltoHospRatioHigh),"")),"") ->  | G57: =IFERROR(IF(AND(CenterOpen = 1, Data_H= 2, Cases_Hosp!B56>=SUM(WkCasesStartAppear,WKOpenCallCenter)), (((Media_counts!#REF!/MediatoCallLow)/per100K)*USPop),""),"") ->  | H57: =IFERROR(IF(AND(CenterOpen = 1, Data_H = 2, Cases_Hosp!B56>=SUM(WkCasesStartAppear,WKOpenCallCenter), Cases_Hosp!B56<PeakWk), (((Media_counts!#REF!/MediatoCallHigh)/per100K)*USPop), ""),"") ->  | I57: =IFERROR(IF(AND(CenterOpen=1,Data_Start_to_Peak=3,Cases_Hosp!B56>=SUM(WkCasesStartAppear,WKOpenCallCenter),Cases_Hosp!B56<PeakWk),(((Media_counts!J46/MediatoCallLow)/per100K)*USPop),""),"") ->  | J57: =IFERROR(IF(AND(CenterOpen = 1, Data_Start_to_Peak = 3, Cases_Hosp!B56>=SUM(WkCasesStartAppear,WKOpenCallCenter), Cases_Hosp!B56<PeakWk), (((Media_counts!J46/MediatoCallLow)/per100K)*USPop), ""),"") ->  | K57: =IFERROR(IF(AND(CenterOpen=1,Cases_Hosp!B56>=PeakWk),(Cases_Hosp!E56*CalltoHospRatioLow),""),"") -> 0 | L57: =IFERROR(IF(AND(CenterOpen=1,Cases_Hosp!B56>=PeakWk),(Cases_Hosp!F56*CalltoHospRatioHigh),""),"") -> 0 | M57: =IFERROR(IF(Data_Start_to_Peak= 1, SUM(Calculations!C57, E57, K57), IF(Data_Start_to_Peak= 2, SUM(E57,G57, K57), IF(Data_Start_to_Peak= 3, SUM(E57,I57,K57), ""))),"") -> 0 | N57: =IFERROR(IF(Data_Start_to_Peak= 1, SUM(Calculations!D57, F57, L57), IF(Data_Start_to_Peak= 2, SUM(F57,H57, L57), IF(Data_Start_to_Peak= 3, SUM(F57,J57,L57), ""))),"") -> 0 | O57: 0 | P57: 0 | Q57: 0 | R57: 0 | S57: 0 | T57: 0
A58: 44 | B58: =Cases_Hosp!C57 ->  | E58: =IFERROR(IF(AND(CenterOpen=1, A58=SUM(WkCasesStartAppear,WKOpenCallCenter),A58 <PeakWk), Cases_Hosp!E57*CalltoHospRatioLow,IF(AND(CenterOpen=1, A58>SUM(WkCasesStartAppear,WKOpenCallCenter), A58 <PeakWk),(Cases_Hosp!E57*CalltoHospRatioLow),"")),"") ->  | F58: =IFERROR(IF(AND(CenterOpen=1,A58=SUM(WkCasesStartAppear,WKOpenCallCenter),A58 <PeakWk), Cases_Hosp!F57*CalltoHospRatioHigh,IF(AND(CenterOpen=1, A58>SUM(WkCasesStartAppear,WKOpenCallCenter), A58 <PeakWk),(Cases_Hosp!F57*CalltoHospRatioHigh),"")),"") ->  | G58: =IFERROR(IF(AND(CenterOpen = 1, Data_H= 2, Cases_Hosp!B57>=SUM(WkCasesStartAppear,WKOpenCallCenter)), (((Media_counts!D68/MediatoCallLow)/per100K)*USPop),""),"") ->  | H58: =IFERROR(IF(AND(CenterOpen = 1, Data_H = 2, Cases_Hosp!B57>=SUM(WkCasesStartAppear,WKOpenCallCenter), Cases_Hosp!B57<PeakWk), (((Media_counts!D68/MediatoCallHigh)/per100K)*USPop), ""),"") ->  | I58: =IFERROR(IF(AND(CenterOpen=1,Data_Start_to_Peak=3,Cases_Hosp!B57>=SUM(WkCasesStartAppear,WKOpenCallCenter),Cases_Hosp!B57<PeakWk),(((Media_counts!J47/MediatoCallLow)/per100K)*USPop),""),"") ->  | J58: =IFERROR(IF(AND(CenterOpen = 1, Data_Start_to_Peak = 3, Cases_Hosp!B57>=SUM(WkCasesStartAppear,WKOpenCallCenter), Cases_Hosp!B57<PeakWk), (((Media_counts!J47/MediatoCallLow)/per100K)*USPop), ""),"") ->  | K58: =IFERROR(IF(AND(CenterOpen=1,Cases_Hosp!B57>=PeakWk),(Cases_Hosp!E57*CalltoHospRatioLow),""),"") -> 0 | L58: =IFERROR(IF(AND(CenterOpen=1,Cases_Hosp!B57>=PeakWk),(Cases_Hosp!F57*CalltoHospRatioHigh),""),"") -> 0 | M58: =IFERROR(IF(Data_Start_to_Peak= 1, SUM(Calculations!C58, E58, K58), IF(Data_Start_to_Peak= 2, SUM(E58,G58, K58), IF(Data_Start_to_Peak= 3, SUM(E58,I58,K58), ""))),"") -> 0 | N58: =IFERROR(IF(Data_Start_to_Peak= 1, SUM(Calculations!D58, F58, L58), IF(Data_Start_to_Peak= 2, SUM(F58,H58, L58), IF(Data_Start_to_Peak= 3, SUM(F58,J58,L58), ""))),"") -> 0 | O58: 0 | P58: 0 | Q58: 0 | R58: 0 | S58: 0 | T58: 0
A59: 45 | B59: =Cases_Hosp!C58 ->  | E59: =IFERROR(IF(AND(CenterOpen=1, A59=SUM(WkCasesStartAppear,WKOpenCallCenter),A59 <PeakWk), Cases_Hosp!E58*CalltoHospRatioLow,IF(AND(CenterOpen=1, A59>SUM(WkCasesStartAppear,WKOpenCallCenter), A59 <PeakWk),(Cases_Hosp!E58*CalltoHospRatioLow),"")),"") ->  | F59: =IFERROR(IF(AND(CenterOpen=1,A59=SUM(WkCasesStartAppear,WKOpenCallCenter),A59 <PeakWk), Cases_Hosp!F58*CalltoHospRatioHigh,IF(AND(CenterOpen=1, A59>SUM(WkCasesStartAppear,WKOpenCallCenter), A59 <PeakWk),(Cases_Hosp!F58*CalltoHospRatioHigh),"")),"") ->  | G59: =IFERROR(IF(AND(CenterOpen = 1, Data_H= 2, Cases_Hosp!B58>=SUM(WkCasesStartAppear,WKOpenCallCenter)), (((Media_counts!D69/MediatoCallLow)/per100K)*USPop),""),"") ->  | H59: =IFERROR(IF(AND(CenterOpen = 1, Data_H = 2, Cases_Hosp!B58>=SUM(WkCasesStartAppear,WKOpenCallCenter), Cases_Hosp!B58<PeakWk), (((Media_counts!D69/MediatoCallHigh)/per100K)*USPop), ""),"") ->  | I59: =IFERROR(IF(AND(CenterOpen=1,Data_Start_to_Peak=3,Cases_Hosp!B58>=SUM(WkCasesStartAppear,WKOpenCallCenter),Cases_Hosp!B58<PeakWk),(((Media_counts!J48/MediatoCallLow)/per100K)*USPop),""),"") ->  | J59: =IFERROR(IF(AND(CenterOpen = 1, Data_Start_to_Peak = 3, Cases_Hosp!B58>=SUM(WkCasesStartAppear,WKOpenCallCenter), Cases_Hosp!B58<PeakWk), (((Media_counts!J48/MediatoCallLow)/per100K)*USPop), ""),"") ->  | K59: =IFERROR(IF(AND(CenterOpen=1,Cases_Hosp!B58>=PeakWk),(Cases_Hosp!E58*CalltoHospRatioLow),""),"") -> 0 | L59: =IFERROR(IF(AND(CenterOpen=1,Cases_Hosp!B58>=PeakWk),(Cases_Hosp!F58*CalltoHospRatioHigh),""),"") -> 0 | M59: =IFERROR(IF(Data_Start_to_Peak= 1, SUM(Calculations!C59, E59, K59), IF(Data_Start_to_Peak= 2, SUM(E59,G59, K59), IF(Data_Start_to_Peak= 3, SUM(E59,I59,K59), ""))),"") -> 0 | N59: =IFERROR(IF(Data_Start_to_Peak= 1, SUM(Calculations!D59, F59, L59), IF(Data_Start_to_Peak= 2, SUM(F59,H59, L59), IF(Data_Start_to_Peak= 3, SUM(F59,J59,L59), ""))),"") -> 0 | O59: 0 | P59: 0 | Q59: 0 | R59: 0 | S59: 0 | T59: 0
A60: 46 | B60: =Cases_Hosp!C59 ->  | E60: =IFERROR(IF(AND(CenterOpen=1, A60=SUM(WkCasesStartAppear,WKOpenCallCenter),A60 <PeakWk), Cases_Hosp!E59*CalltoHospRatioLow,IF(AND(CenterOpen=1, A60>SUM(WkCasesStartAppear,WKOpenCallCenter), A60 <PeakWk),(Cases_Hosp!E59*CalltoHospRatioLow),"")),"") ->  | F60: =IFERROR(IF(AND(CenterOpen=1,A60=SUM(WkCasesStartAppear,WKOpenCallCenter),A60 <PeakWk), Cases_Hosp!F59*CalltoHospRatioHigh,IF(AND(CenterOpen=1, A60>SUM(WkCasesStartAppear,WKOpenCallCenter), A60 <PeakWk),(Cases_Hosp!F59*CalltoHospRatioHigh),"")),"") ->  | G60: =IFERROR(IF(AND(CenterOpen = 1, Data_H= 2, Cases_Hosp!B59>=SUM(WkCasesStartAppear,WKOpenCallCenter)), (((Media_counts!D70/MediatoCallLow)/per100K)*USPop),""),"") ->  | H60: =IFERROR(IF(AND(CenterOpen = 1, Data_H = 2, Cases_Hosp!B59>=SUM(WkCasesStartAppear,WKOpenCallCenter), Cases_Hosp!B59<PeakWk), (((Media_counts!D70/MediatoCallHigh)/per100K)*USPop), ""),"") ->  | I60: =IFERROR(IF(AND(CenterOpen=1,Data_Start_to_Peak=3,Cases_Hosp!B59>=SUM(WkCasesStartAppear,WKOpenCallCenter),Cases_Hosp!B59<PeakWk),(((Media_counts!J49/MediatoCallLow)/per100K)*USPop),""),"") ->  | J60: =IFERROR(IF(AND(CenterOpen = 1, Data_Start_to_Peak = 3, Cases_Hosp!B59>=SUM(WkCasesStartAppear,WKOpenCallCenter), Cases_Hosp!B59<PeakWk), (((Media_counts!J49/MediatoCallLow)/per100K)*USPop), ""),"") ->  | K60: =IFERROR(IF(AND(CenterOpen=1,Cases_Hosp!B59>=PeakWk),(Cases_Hosp!E59*CalltoHospRatioLow),""),"") -> 0 | L60: =IFERROR(IF(AND(CenterOpen=1,Cases_Hosp!B59>=PeakWk),(Cases_Hosp!F59*CalltoHospRatioHigh),""),"") -> 0 | M60: =IFERROR(IF(Data_Start_to_Peak= 1, SUM(Calculations!C60, E60, K60), IF(Data_Start_to_Peak= 2, SUM(E60,G60, K60), IF(Data_Start_to_Peak= 3, SUM(E60,I60,K60), ""))),"") -> 0 | N60: =IFERROR(IF(Data_Start_to_Peak= 1, SUM(Calculations!D60, F60, L60), IF(Data_Start_to_Peak= 2, SUM(F60,H60, L60), IF(Data_Start_to_Peak= 3, SUM(F60,J60,L60), ""))),"") -> 0 | O60: 0 | P60: 0 | Q60: 0 | R60: 0 | S60: 0 | T60: 0
A61: 47 | B61: =Cases_Hosp!C60 ->  | E61: =IFERROR(IF(AND(CenterOpen=1, A61=SUM(WkCasesStartAppear,WKOpenCallCenter),A61 <PeakWk), Cases_Hosp!E60*CalltoHospRatioLow,IF(AND(CenterOpen=1, A61>SUM(WkCasesStartAppear,WKOpenCallCenter), A61 <PeakWk),(Cases_Hosp!E60*CalltoHospRatioLow),"")),"") ->  | F61: =IFERROR(IF(AND(CenterOpen=1, B61=SUM(WkCasesStartAppear,WKOpenCallCenter),B61 <PeakWk), Cases_Hosp!F60*CalltoHospRatioLow,IF(AND(CenterOpen=1, B61>SUM(WkCasesStartAppear,WKOpenCallCenter), B61 <PeakWk),(Cases_Hosp!F60*CalltoHospRatioLow),"")),"") ->  | G61: =IFERROR(IF(AND(CenterOpen = 1, Data_H= 2, Cases_Hosp!B60>=SUM(WkCasesStartAppear,WKOpenCallCenter)), (((Media_counts!D71/MediatoCallLow)/per100K)*USPop),""),"") ->  | H61: =IFERROR(IF(AND(CenterOpen = 1, Data_H = 2, Cases_Hosp!B60>=SUM(WkCasesStartAppear,WKOpenCallCenter), Cases_Hosp!B60<PeakWk), (((Media_counts!D71/MediatoCallHigh)/per100K)*USPop), ""),"") ->  | I61: =IFERROR(IF(AND(CenterOpen=1,Data_Start_to_Peak=3,Cases_Hosp!B60>=SUM(WkCasesStartAppear,WKOpenCallCenter),Cases_Hosp!B60<PeakWk),(((Media_counts!J50/MediatoCallLow)/per100K)*USPop),""),"") ->  | J61: =IFERROR(IF(AND(CenterOpen = 1, Data_Start_to_Peak = 3, Cases_Hosp!B60>=SUM(WkCasesStartAppear,WKOpenCallCenter), Cases_Hosp!B60<PeakWk), (((Media_counts!J50/MediatoCallLow)/per100K)*USPop), ""),"") ->  | K61: =IFERROR(IF(AND(CenterOpen=1,Cases_Hosp!B60>=PeakWk),(Cases_Hosp!E60*CalltoHospRatioLow),""),"") -> 0 | L61: =IFERROR(IF(AND(CenterOpen=1,Cases_Hosp!B60>=PeakWk),(Cases_Hosp!F60*CalltoHospRatioHigh),""),"") -> 0 | M61: =IFERROR(IF(Data_Start_to_Peak= 1, SUM(Calculations!C61, E61, K61), IF(Data_Start_to_Peak= 2, SUM(E61,G61, K61), IF(Data_Start_to_Peak= 3, SUM(E61,I61,K61), ""))),"") -> 0 | N61: =IFERROR(IF(Data_Start_to_Peak= 1, SUM(Calculations!D61, F61, L61), IF(Data_Start_to_Peak= 2, SUM(F61,H61, L61), IF(Data_Start_to_Peak= 3, SUM(F61,J61,L61), ""))),"") -> 0 | O61: 0 | P61: 0 | Q61: 0 | R61: 0 | S61: 0 | T61: 0
C62: =IFERROR(IF(AND(CenterOpen=1, Data_H = 1,A62=SUM(WkCasesStartAppear,WKOpenCallCenter), A62 <PeakWk ), InitialCallVol*MultAdjCallBasedMediaStart,IF(AND(CenterOpen=1, A62>SUM(WkCasesStartAppear,WKOpenCallCenter), A62 <PeakWk),(C61-(C61*DeclineRateHigh))*MultAdjCallBasedMediaDuring,"")),"") ->  | E62: =IFERROR(IF(AND(CenterOpen=1, A62=SUM(WkCasesStartAppear,WKOpenCallCenter),A62 <PeakWk), Cases_Hosp!E61*CalltoHospRatioLow,IF(AND(CenterOpen=1, A62>SUM(WkCasesStartAppear,WKOpenCallCenter), A62 <PeakWk),(Cases_Hosp!E61*CalltoHospRatioLow),"")),"") ->  | F62: =IFERROR(IF(AND(CenterOpen=1, B62=SUM(WkCasesStartAppear,WKOpenCallCenter),B62 <PeakWk), Cases_Hosp!F61*CalltoHospRatioLow,IF(AND(CenterOpen=1, B62>SUM(WkCasesStartAppear,WKOpenCallCenter), B62 <PeakWk),(Cases_Hosp!F61*CalltoHospRatioLow),"")),"") ->  | L62: Total | M62: =SUM(M15:M61) -> 28052382.26 | N62: =SUM(N15:N61) -> 67945971.09 | O62: 11277057.67 | P62: 27314280.38 | Q62: 10491590.96 | R62: 25411793.19 | S62: 6283733.625 | T62: 15219897.52
E63: =IFERROR(IF(AND(CenterOpen=1, A63=SUM(WkCasesStartAppear,WKOpenCallCenter),A63 <PeakWk), Cases_Hosp!E62*CalltoHospRatioLow,IF(AND(CenterOpen=1, A63>SUM(WkCasesStartAppear,WKOpenCallCenter), A63 <PeakWk),(Cases_Hosp!E62*CalltoHospRatioLow),"")),"") ->  | F63: =IFERROR(IF(AND(CenterOpen=1, B63=SUM(WkCasesStartAppear,WKOpenCallCenter),B63 <PeakWk), Cases_Hosp!F62*CalltoHospRatioLow,IF(AND(CenterOpen=1, B63>SUM(WkCasesStartAppear,WKOpenCallCenter), B63 <PeakWk),(Cases_Hosp!F62*CalltoHospRatioLow),"")),"") -> 
E64: =IFERROR(IF(AND(CenterOpen=1, A64=SUM(WkCasesStartAppear,WKOpenCallCenter),A64 <PeakWk), Cases_Hosp!E63*CalltoHospRatioLow,IF(AND(CenterOpen=1, A64>SUM(WkCasesStartAppear,WKOpenCallCenter), A64 <PeakWk),(Cases_Hosp!E63*CalltoHospRatioLow),"")),"") ->  | F64: =IFERROR(IF(AND(CenterOpen=1, B64=SUM(WkCasesStartAppear,WKOpenCallCenter),B64 <PeakWk), Cases_Hosp!F63*CalltoHospRatioLow,IF(AND(CenterOpen=1, B64>SUM(WkCasesStartAppear,WKOpenCallCenter), B64 <PeakWk),(Cases_Hosp!F63*CalltoHospRatioLow),"")),"") -> 
E65: =IFERROR(IF(AND(CenterOpen=1, A65=SUM(WkCasesStartAppear,WKOpenCallCenter),A65 <PeakWk), Cases_Hosp!E64*CalltoHospRatioLow,IF(AND(CenterOpen=1, A65>SUM(WkCasesStartAppear,WKOpenCallCenter), A65 <PeakWk),(Cases_Hosp!E64*CalltoHospRatioLow),"")),"") ->  | F65: =IFERROR(IF(AND(CenterOpen=1, B65=SUM(WkCasesStartAppear,WKOpenCallCenter),B65 <PeakWk), Cases_Hosp!F64*CalltoHospRatioLow,IF(AND(CenterOpen=1, B65>SUM(WkCasesStartAppear,WKOpenCallCenter), B65 <PeakWk),(Cases_Hosp!F64*CalltoHospRatioLow),"")),"") -> 

Sheet Calculations_M (hidden)
A1: Estimated call volumes by week after start of pandemic
H3: Data Selected from Dash Board
G4: Attack rate | H4: =IF(AttackRate_m=1,20,IF(AttackRate_m=2,30)) -> 20 | Q4: Low | R4: High
G5: Seed | H5: =IF(Seed_m=1,10,IF(Seed_m=2,100)) -> 10 | O5: Information only | Q5: =PropNonSymSeekInfoLow_m -> 0.2225 | R5: =PropNonSymSeekInfoHigh_m -> 0.2225
A6: Pandemic | G6: Flu line opened | H6: =WKOpenCallCenter_m -> 1 | I6: week(s) after | J6: =IF(CenterOpen_m = 1, "START", IF(CenterOpen_m = 2, "PEAK")) -> START | K6: of pandemic | O6: Symptomatic | Q6: =PropSympCallsLow_m -> 0.4139 | R6: =PropSympCallsHigh_m -> 0.4139
A7: Year | B7: 2009 | G7: Media activity level is | H7: =IF(MediaActivityCenterOpen_m= 1, "LOW", IF(MediaActivityCenterOpen_m= 2, "MODERATE", IF(MediaActivityCenterOpen_m = 3, "HIGH"))) -> LOW | I7: at start of pandemic | O7: Prematurely ended | Q7: =PropNonSymEndCallLow_m -> 0.3636 | R7: =PropNonSymEndCallHigh_m -> 0.3636
A8: Start | B8: =DATE(B7,1,-2)-WEEKDAY(DATE(B7,1,3))+A18*7 -> 2009-01-19 | G8: Media activity level is | H8: =IF(MediaActivityPandemic_m = 1, "LOW", IF(MediaActivityPandemic_m= 2, "MODERATE", IF(MediaActivityPandemic_m= 3, "HIGH"))) -> LOW | I8: throughout pandemic
A9: End | B9: =DATE(B7,1,-2)-WEEKDAY(DATE(B7,1,3))+A59*7 -> 2009-11-02 | G9: Method used to calculated call volume from start to peak of the pandemic | H9: =IF(Data_Start_to_Peak_m= 1, "HOSP-TO-CALL RATIO", IF(Data_Start_to_Peak_m= 2, "Media-to-call Rate", IF(Data_Start_to_Peak_m= "MEDIA COUNTS - 2nd WAVE",0))) -> Media-to-call Rate
G10: Definition: Low represents the lower bound and high is upper bound estimate
A12: =Media_Method!B20 -> 1957-Like Pandemic | C12: Media-to-Call Ratio method (1st wave) | I12: Types: Calls classification
A13: Week | B13: Week when pandemic starts | C13: 20% AR | E13: 30% AR | G13: Total Calls Selected Scenario | I13: Information-only | K13: Symptomatic | M13: End prematurely
C14: Low | D14: High | E14: Low | F14: High | G14: Low | H14: High | I14: Low | J14: High | K14: Low | L14: High | M14: Low | N14: High
A15: 1 | B15: =IF(Media_counts!D4>0,1,"") -> 1 | C15: =IFERROR(IF(AND(CenterOpen_m = 1, Data_m = 2, AttackRate_m=1,Media_counts!B4>=SUM(WkCasesStartAppear_m,WKOpenCallCenter_m)), (((Media_counts!E4*Media_Method!$C$28/Media_Method!J54*USPop_m/100000))),""),"") ->  | D15: =IFERROR(IF(AND(CenterOpen_m = 1, Data_m = 2, AttackRate_m=1,Media_counts!B4>=SUM(WkCasesStartAppear_m,WKOpenCallCenter_m)), (((Media_counts!F4*Media_Method!$C$28/Media_Method!J54*USPop_m/100000))),""),"") ->  | E15: =IFERROR(IF(AND(CenterOpen_m = 1, Data_m = 2, AttackRate_m=2,Media_counts!B4>=SUM(WkCasesStartAppear_m,WKOpenCallCenter_m)), (((Media_counts!E4*Media_Method!$C$28/Media_Method!J58*USPop_m/100000))),""),"") ->  | F15: =IFERROR(IF(AND(CenterOpen_m = 1, Data_m = 2, AttackRate_m=2,Media_counts!B4>=SUM(WkCasesStartAppear_m,WKOpenCallCenter_m)), (((Media_counts!F4*Media_Method!$C$28/Media_Method!J58*USPop_m/100000))),""),"") ->  | G15: =IFERROR(SUM(C15,E15),"") -> 0 | H15: =IFERROR(SUM(D15,F15),"") -> 0 | I15: =IFERROR(G15*PropNonSymSeekInfoLow_m,"") -> 0 | J15: =IFERROR(H15*PropNonSymSeekInfoLow_m,"") -> 0 | K15: =IFERROR(G15*PropSympCallsLow_m,"") -> 0 | L15: =IFERROR(H15*PropSympCallsHigh_m,"") -> 0 | M15: =IFERROR(G15*PropNonSymEndCallLow_m,"") -> 0 | N15: =IFERROR(H15*PropNonSymEndCallHigh_m,"") -> 0
A16: 2 | B16: =Media_counts!C5 -> 2 | C16: =IFERROR(IF(AND(CenterOpen_m = 1, Data_m = 2, AttackRate_m=1,Media_counts!B5>=SUM(WkCasesStartAppear_m,WKOpenCallCenter_m)), (((Media_counts!E5*Media_Method!$C$28/Media_Method!J55*USPop_m/100000))),""),"") ->  | D16: =IFERROR(IF(AND(CenterOpen_m = 1, Data_m = 2, AttackRate_m=1,Media_counts!B5>=SUM(WkCasesStartAppear_m,WKOpenCallCenter_m)), (((Media_counts!F5*Media_Method!$C$28/Media_Method!J55*USPop_m/100000))),""),"") ->  | E16: =IFERROR(IF(AND(CenterOpen_m = 1, Data_m = 2, AttackRate_m=2,Media_counts!B5>=SUM(WkCasesStartAppear_m,WKOpenCallCenter_m)), (((Media_counts!E5*Media_Method!$C$28/Media_Method!J59*USPop_m/100000))),""),"") ->  | F16: =IFERROR(IF(AND(CenterOpen_m = 1, Data_m = 2, AttackRate_m=2,Media_counts!B5>=SUM(WkCasesStartAppear_m,WKOpenCallCenter_m)), (((Media_counts!F5*Media_Method!$C$28/Media_Method!J59*USPop_m/100000))),""),"") ->  | G16: =IFERROR(SUM(C16,E16),"") -> 0 | H16: =IFERROR(SUM(D16,F16),"") -> 0 | I16: 0 | J16: 0 | K16: 0 | L16: 0 | M16: 0 | N16: 0
A17: 3 | B17: =Media_counts!C6 -> 3 | C17: =IFERROR(IF(AND(CenterOpen_m = 1, Data_m = 2, AttackRate_m=1,Media_counts!B6>=SUM(WkCasesStartAppear_m,WKOpenCallCenter_m)), (((Media_counts!E6*Media_Method!$C$28/Media_Method!J56*USPop_m/100000))),""),"") ->  | D17: =IFERROR(IF(AND(CenterOpen_m = 1, Data_m = 2, AttackRate_m=1,Media_counts!B6>=SUM(WkCasesStartAppear_m,WKOpenCallCenter_m)), (((Media_counts!F6*Media_Method!$C$28/Media_Method!J56*USPop_m/100000))),""),"") ->  | E17: =IFERROR(IF(AND(CenterOpen_m = 1, Data_m = 2, AttackRate_m=2,Media_counts!B6>=SUM(WkCasesStartAppear_m,WKOpenCallCenter_m)), (((Media_counts!E6*Media_Method!$C$28/Media_Method!J60*USPop_m/100000))),""),"") ->  | F17: =IFERROR(IF(AND(CenterOpen_m = 1, Data_m = 2, AttackRate_m=2,Media_counts!B6>=SUM(WkCasesStartAppear_m,WKOpenCallCenter_m)), (((Media_counts!F6*Media_Method!$C$28/Media_Method!J60*USPop_m/100000))),""),"") ->  | G17: 0 | H17: 0 | I17: 0 | J17: 0 | K17: 0 | L17: 0 | M17: 0 | N17: 0
A18: 4 | B18: =Media_counts!C7 -> 4 | C18: =IFERROR(IF(AND(CenterOpen_m = 1, Data_m = 2, AttackRate_m=1,Media_counts!B7>=SUM(WkCasesStartAppear_m,WKOpenCallCenter_m)), (((Media_counts!E7*Media_Method!$C$28/Media_Method!J57*USPop_m/100000))),""),"") ->  | D18: =IFERROR(IF(AND(CenterOpen_m = 1, Data_m = 2, AttackRate_m=1,Media_counts!B7>=SUM(WkCasesStartAppear_m,WKOpenCallCenter_m)), (((Media_counts!F7*Media_Method!$C$28/Media_Method!J57*USPop_m/100000))),""),"") ->  | E18: =IFERROR(IF(AND(CenterOpen_m = 1, Data_m = 2, AttackRate_m=2,Media_counts!B7>=SUM(WkCasesStartAppear_m,WKOpenCallCenter_m)), (((Media_counts!E7*Media_Method!$C$28/Media_Method!J61*USPop_m/100000))),""),"") ->  | F18: =IFERROR(IF(AND(CenterOpen_m = 1, Data_m = 2, AttackRate_m=2,Media_counts!B7>=SUM(WkCasesStartAppear_m,WKOpenCallCenter_m)), (((Media_counts!F7*Media_Method!$C$28/Media_Method!J61*USPop_m/100000))),""),"") ->  | G18: 0 | H18: 0 | I18: 0 | J18: 0 | K18: 0 | L18: 0 | M18: 0 | N18: 0
A19: 5 | B19: =Media_counts!C8 -> 5 | C19: =IFERROR(IF(AND(CenterOpen_m = 1, Data_m = 2, AttackRate_m=1,Media_counts!B8>=SUM(WkCasesStartAppear_m,WKOpenCallCenter_m)), (((Media_counts!E8*Media_Method!$C$28/Media_Method!J58*USPop_m/100000))),""),"") -> 231485.1737 | D19: =IFERROR(IF(AND(CenterOpen_m = 1, Data_m = 2, AttackRate_m=1,Media_counts!B8>=SUM(WkCasesStartAppear_m,WKOpenCallCenter_m)), (((Media_counts!F8*Media_Method!$C$28/Media_Method!J58*USPop_m/100000))),""),"") -> 300930.7258 | E19: =IFERROR(IF(AND(CenterOpen_m = 1, Data_m = 2, AttackRate_m=2,Media_counts!B8>=SUM(WkCasesStartAppear_m,WKOpenCallCenter_m)), (((Media_counts!E8*Media_Method!$C$28/Media_Method!J62*USPop_m/100000))),""),"") ->  | F19: =IFERROR(IF(AND(CenterOpen_m = 1, Data_m = 2, AttackRate_m=2,Media_counts!B8>=SUM(WkCasesStartAppear_m,WKOpenCallCenter_m)), (((Media_counts!F8*Media_Method!$C$28/Media_Method!J62*USPop_m/100000))),""),"") ->  | G19: 231485.1737 | H19: 300930.7258 | I19: 51505.45115 | J19: 66957.0865 | K19: 95811.7134 | L19: 124555.2274 | M19: 84168.00916 | N19: 109418.4119
A20: 6 | B20: =Media_counts!C9 -> 6 | C20: =IFERROR(IF(AND(CenterOpen_m = 1, Data_m = 2, AttackRate_m=1,Media_counts!B9>=SUM(WkCasesStartAppear_m,WKOpenCallCenter_m)), (((Media_counts!E9*Media_Method!$C$28/Media_Method!J59*USPop_m/100000))),""),"") -> 231485.1737 | D20: =IFERROR(IF(AND(CenterOpen_m = 1, Data_m = 2, AttackRate_m=1,Media_counts!B9>=SUM(WkCasesStartAppear_m,WKOpenCallCenter_m)), (((Media_counts!F9*Media_Method!$C$28/Media_Method!J59*USPop_m/100000))),""),"") -> 300930.7258 | E20: =IFERROR(IF(AND(CenterOpen_m = 1, Data_m = 2, AttackRate_m=2,Media_counts!B9>=SUM(WkCasesStartAppear_m,WKOpenCallCenter_m)), (((Media_counts!E9*Media_Method!$C$28/Media_Method!J63*USPop_m/100000))),""),"") ->  | F20: =IFERROR(IF(AND(CenterOpen_m = 1, Data_m = 2, AttackRate_m=2,Media_counts!B9>=SUM(WkCasesStartAppear_m,WKOpenCallCenter_m)), (((Media_counts!F9*Media_Method!$C$28/Media_Method!J63*USPop_m/100000))),""),"") ->  | G20: 231485.1737 | H20: 300930.7258 | I20: 51505.45115 | J20: 66957.0865 | K20: 95811.7134 | L20: 124555.2274 | M20: 84168.00916 | N20: 109418.4119
A21: 7 | B21: =Media_counts!C10 -> 7 | C21: =IFERROR(IF(AND(CenterOpen_m = 1, Data_m = 2, AttackRate_m=1,Media_counts!B10>=SUM(WkCasesStartAppear_m,WKOpenCallCenter_m)), (((Media_counts!E10*Media_Method!$C$28/Media_Method!J60*USPop_m/100000))),""),"") -> 414236.6266 | D21: =IFERROR(IF(AND(CenterOpen_m = 1, Data_m = 2, AttackRate_m=1,Media_counts!B10>=SUM(WkCasesStartAppear_m,WKOpenCallCenter_m)), (((Media_counts!F10*Media_Method!$C$28/Media_Method!J60*USPop_m/100000))),""),"") -> 538507.6146 | E21: =IFERROR(IF(AND(CenterOpen_m = 1, Data_m = 2, AttackRate_m=2,Media_counts!B10>=SUM(WkCasesStartAppear_m,WKOpenCallCenter_m)), (((Media_counts!E10*Media_Method!$C$28/Media_Method!J64*USPop_m/100000))),""),"") ->  | F21: =IFERROR(IF(AND(CenterOpen_m = 1, Data_m = 2, AttackRate_m=2,Media_counts!B10>=SUM(WkCasesStartAppear_m,WKOpenCallCenter_m)), (((Media_counts!F10*Media_Method!$C$28/Media_Method!J64*USPop_m/100000))),""),"") ->  | G21: 414236.6266 | H21: 538507.6146 | I21: 92167.64943 | J21: 119817.9443 | K21: 171452.5398 | L21: 222888.3017 | M21: 150616.4374 | N21: 195801.3687
A22: 8 | B22: =Media_counts!C11 -> 8 | C22: =IFERROR(IF(AND(CenterOpen_m = 1, Data_m = 2, AttackRate_m=1,Media_counts!B11>=SUM(WkCasesStartAppear_m,WKOpenCallCenter_m)), (((Media_counts!E11*Media_Method!$C$28/Media_Method!J61*USPop_m/100000))),""),"") -> 548254.3588 | D22: =IFERROR(IF(AND(CenterOpen_m = 1, Data_m = 2, AttackRate_m=1,Media_counts!B11>=SUM(WkCasesStartAppear_m,WKOpenCallCenter_m)), (((Media_counts!F11*Media_Method!$C$28/Media_Method!J61*USPop_m/100000))),""),"") -> 712730.6664 | E22: =IFERROR(IF(AND(CenterOpen_m = 1, Data_m = 2, AttackRate_m=2,Media_counts!B11>=SUM(WkCasesStartAppear_m,WKOpenCallCenter_m)), (((Media_counts!E11*Media_Method!$C$28/Media_Method!J65*USPop_m/100000))),""),"") ->  | F22: =IFERROR(IF(AND(CenterOpen_m = 1, Data_m = 2, AttackRate_m=2,Media_counts!B11>=SUM(WkCasesStartAppear_m,WKOpenCallCenter_m)), (((Media_counts!F11*Media_Method!$C$28/Media_Method!J65*USPop_m/100000))),""),"") ->  | G22: 548254.3588 | H22: 712730.6664 | I22: 121986.5948 | J22: 158582.5733 | K22: 226922.4791 | L22: 294999.2228 | M22: 199345.2849 | N22: 259148.8703
A23: 9 | B23: =Media_counts!C12 -> 9 | C23: =IFERROR(IF(AND(CenterOpen_m = 1, Data_m = 2, AttackRate_m=1,Media_counts!B12>=SUM(WkCasesStartAppear_m,WKOpenCallCenter_m)), (((Media_counts!E12*Media_Method!$C$28/Media_Method!J62*USPop_m/100000))),""),"") -> 414236.6266 | D23: =IFERROR(IF(AND(CenterOpen_m = 1, Data_m = 2, AttackRate_m=1,Media_counts!B12>=SUM(WkCasesStartAppear_m,WKOpenCallCenter_m)), (((Media_counts!F12*Media_Method!$C$28/Media_Method!J62*USPop_m/100000))),""),"") -> 538507.6146 | E23: =IFERROR(IF(AND(CenterOpen_m = 1, Data_m = 2, AttackRate_m=2,Media_counts!B12>=SUM(WkCasesStartAppear_m,WKOpenCallCenter_m)), (((Media_counts!E12*Media_Method!$C$28/Media_Method!J66*USPop_m/100000))),""),"") ->  | F23: =IFERROR(IF(AND(CenterOpen_m = 1, Data_m = 2, AttackRate_m=2,Media_counts!B12>=SUM(WkCasesStartAppear_m,WKOpenCallCenter_m)), (((Media_counts!F12*Media_Method!$C$28/Media_Method!J66*USPop_m/100000))),""),"") ->  | G23: 414236.6266 | H23: 538507.6146 | I23: 92167.64943 | J23: 119817.9443 | K23: 171452.5398 | L23: 222888.3017 | M23: 150616.4374 | N23: 195801.3687
A24: 10 | B24: =Media_counts!C13 -> 10 | C24: =IFERROR(IF(AND(CenterOpen_m = 1, Data_m = 2, AttackRate_m=1,Media_counts!B13>=SUM(WkCasesStartAppear_m,WKOpenCallCenter_m)), (((Media_counts!E13*Media_Method!$C$28/Media_Method!J63*USPop_m/100000))),""),"") -> 231485.1737 | D24: =IFERROR(IF(AND(CenterOpen_m = 1, Data_m = 2, AttackRate_m=1,Media_counts!B13>=SUM(WkCasesStartAppear_m,WKOpenCallCenter_m)), (((Media_counts!F13*Media_Method!$C$28/Media_Method!J63*USPop_m/100000))),""),"") -> 300930.7258 | E24: =IFERROR(IF(AND(CenterOpen_m = 1, Data_m = 2, AttackRate_m=2,Media_counts!B13>=SUM(WkCasesStartAppear_m,WKOpenCallCenter_m)), (((Media_counts!E13*Media_Method!$C$28/Media_Method!J67*USPop_m/100000))),""),"") ->  | F24: =IFERROR(IF(AND(CenterOpen_m = 1, Data_m = 2, AttackRate_m=2,Media_counts!B13>=SUM(WkCasesStartAppear_m,WKOpenCallCenter_m)), (((Media_counts!F13*Media_Method!$C$28/Media_Method!J67*USPop_m/100000))),""),"") ->  | G24: 231485.1737 | H24: 300930.7258 | I24: 51505.45115 | J24: 66957.0865 | K24: 95811.7134 | L24: 124555.2274 | M24: 84168.00916 | N24: 109418.4119
A25: 11 | B25: =Media_counts!C14 -> 11 | C25: =IFERROR(IF(AND(CenterOpen_m = 1, Data_m = 2, AttackRate_m=1,Media_counts!B14>=SUM(WkCasesStartAppear_m,WKOpenCallCenter_m)), (((Media_counts!E14*Media_Method!$C$28/Media_Method!J64*USPop_m/100000))),""),"") -> 134017.7322 | D25: =IFERROR(IF(AND(CenterOpen_m = 1, Data_m = 2, AttackRate_m=1,Media_counts!B14>=SUM(WkCasesStartAppear_m,WKOpenCallCenter_m)), (((Media_counts!F14*Media_Method!$C$28/Media_Method!J64*USPop_m/100000))),""),"") -> 174223.0518 | E25: =IFERROR(IF(AND(CenterOpen_m = 1, Data_m = 2, AttackRate_m=2,Media_counts!B14>=SUM(WkCasesStartAppear_m,WKOpenCallCenter_m)), (((Media_counts!E14*Media_Method!$C$28/Media_Method!J68*USPop_m/100000))),""),"") ->  | F25: =IFERROR(IF(AND(CenterOpen_m = 1, Data_m = 2, AttackRate_m=2,Media_counts!B14>=SUM(WkCasesStartAppear_m,WKOpenCallCenter_m)), (((Media_counts!F14*Media_Method!$C$28/Media_Method!J68*USPop_m/100000))),""),"") ->  | G25: 134017.7322 | H25: 174223.0518 | I25: 29818.9454 | J25: 38764.62902 | K25: 55469.93934 | L25: 72110.92114 | M25: 48728.84741 | N25: 63347.50163
A26: 12 | B26: =Media_counts!C15 -> 12 | C26: =IFERROR(IF(AND(CenterOpen_m = 1, Data_m = 2, AttackRate_m=1,Media_counts!B15>=SUM(WkCasesStartAppear_m,WKOpenCallCenter_m)), (((Media_counts!E15*Media_Method!$C$28/Media_Method!J65*USPop_m/100000))),""),"") -> 85284.01137 | D26: =IFERROR(IF(AND(CenterOpen_m = 1, Data_m = 2, AttackRate_m=1,Media_counts!B15>=SUM(WkCasesStartAppear_m,WKOpenCallCenter_m)), (((Media_counts!F15*Media_Method!$C$28/Media_Method!J65*USPop_m/100000))),""),"") -> 110869.2148 | E26: =IFERROR(IF(AND(CenterOpen_m = 1, Data_m = 2, AttackRate_m=2,Media_counts!B15>=SUM(WkCasesStartAppear_m,WKOpenCallCenter_m)), (((Media_counts!E15*Media_Method!$C$28/Media_Method!J69*USPop_m/100000))),""),"") ->  | F26: =IFERROR(IF(AND(CenterOpen_m = 1, Data_m = 2, AttackRate_m=2,Media_counts!B15>=SUM(WkCasesStartAppear_m,WKOpenCallCenter_m)), (((Media_counts!F15*Media_Method!$C$28/Media_Method!J69*USPop_m/100000))),""),"") ->  | G26: 85284.01137 | H26: 110869.2148 | I26: 18975.69253 | J26: 24668.40029 | K26: 35299.05231 | L26: 45888.768 | M26: 31009.26653 | N26: 40312.04649
A27: 13 | B27: =Media_counts!C16 -> 13 | C27: =IFERROR(IF(AND(CenterOpen_m = 1, Data_m = 2, AttackRate_m=1,Media_counts!B16>=SUM(WkCasesStartAppear_m,WKOpenCallCenter_m)), (((Media_counts!E16*Media_Method!$C$28/Media_Method!J66*USPop_m/100000))),""),"") -> 39596.14814 | D27: =IFERROR(IF(AND(CenterOpen_m = 1, Data_m = 2, AttackRate_m=1,Media_counts!B16>=SUM(WkCasesStartAppear_m,WKOpenCallCenter_m)), (((Media_counts!F16*Media_Method!$C$28/Media_Method!J66*USPop_m/100000))),""),"") -> 51474.99258 | E27: =IFERROR(IF(AND(CenterOpen_m = 1, Data_m = 2, AttackRate_m=2,Media_counts!B16>=SUM(WkCasesStartAppear_m,WKOpenCallCenter_m)), (((Media_counts!E16*Media_Method!$C$28/Media_Method!J70*USPop_m/100000))),""),"") ->  | F27: =IFERROR(IF(AND(CenterOpen_m = 1, Data_m = 2, AttackRate_m=2,Media_counts!B16>=SUM(WkCasesStartAppear_m,WKOpenCallCenter_m)), (((Media_counts!F16*Media_Method!$C$28/Media_Method!J70*USPop_m/100000))),""),"") ->  | G27: 39596.14814 | H27: 51474.99258 | I27: 8810.14296 | J27: 11453.18585 | K27: 16388.84571 | L27: 21305.49943 | M27: 14397.15946 | N27: 18716.3073
A28: 14 | B28: =Media_counts!C17 -> 14 | C28: =IFERROR(IF(AND(CenterOpen_m = 1, Data_m = 2, AttackRate_m=1,Media_counts!B17>=SUM(WkCasesStartAppear_m,WKOpenCallCenter_m)), (((Media_counts!E17*Media_Method!$C$28/Media_Method!J67*USPop_m/100000))),""),"") -> 18275.14529 | D28: =IFERROR(IF(AND(CenterOpen_m = 1, Data_m = 2, AttackRate_m=1,Media_counts!B17>=SUM(WkCasesStartAppear_m,WKOpenCallCenter_m)), (((Media_counts!F17*Media_Method!$C$28/Media_Method!J67*USPop_m/100000))),""),"") -> 23757.68888 | E28: =IFERROR(IF(AND(CenterOpen_m = 1, Data_m = 2, AttackRate_m=2,Media_counts!B17>=SUM(WkCasesStartAppear_m,WKOpenCallCenter_m)), (((Media_counts!E17*Media_Method!$C$28/Media_Method!J71*USPop_m/100000))),""),"") ->  | F28: =IFERROR(IF(AND(CenterOpen_m = 1, Data_m = 2, AttackRate_m=2,Media_counts!B17>=SUM(WkCasesStartAppear_m,WKOpenCallCenter_m)), (((Media_counts!F17*Media_Method!$C$28/Media_Method!J71*USPop_m/100000))),""),"") ->  | G28: 18275.14529 | H28: 23757.68888 | I28: 4066.219828 | J28: 5286.085776 | K28: 7564.082637 | L28: 9833.307428 | M28: 6644.842829 | N28: 8638.295677
A29: 15 | B29: =Media_counts!C18 -> 15 | C29: =IFERROR(IF(AND(CenterOpen_m = 1, Data_m = 2, AttackRate_m=1,Media_counts!B18>=SUM(WkCasesStartAppear_m,WKOpenCallCenter_m)), (((Media_counts!E18*Media_Method!$C$28/Media_Method!J68*USPop_m/100000))),""),"") -> 18275.14529 | D29: =IFERROR(IF(AND(CenterOpen_m = 1, Data_m = 2, AttackRate_m=1,Media_counts!B18>=SUM(WkCasesStartAppear_m,WKOpenCallCenter_m)), (((Media_counts!F18*Media_Method!$C$28/Media_Method!J68*USPop_m/100000))),""),"") -> 23757.68888 | E29: =IFERROR(IF(AND(CenterOpen_m = 1, Data_m = 2, AttackRate_m=2,Media_counts!B18>=SUM(WkCasesStartAppear_m,WKOpenCallCenter_m)), (((Media_counts!E18*Media_Method!$C$28/Media_Method!J72*USPop_m/100000))),""),"") ->  | F29: =IFERROR(IF(AND(CenterOpen_m = 1, Data_m = 2, AttackRate_m=2,Media_counts!B18>=SUM(WkCasesStartAppear_m,WKOpenCallCenter_m)), (((Media_counts!F18*Media_Method!$C$28/Media_Method!J72*USPop_m/100000))),""),"") ->  | G29: 18275.14529 | H29: 23757.68888 | I29: 4066.219828 | J29: 5286.085776 | K29: 7564.082637 | L29: 9833.307428 | M29: 6644.842829 | N29: 8638.295677
A30: 16 | B30: =Media_counts!C19 -> 16 | C30: =IFERROR(IF(AND(CenterOpen_m = 1, Data_m = 2, AttackRate_m=1,Media_counts!B19>=SUM(WkCasesStartAppear_m,WKOpenCallCenter_m)), (((Media_counts!E19*Media_Method!$C$28/Media_Method!J69*USPop_m/100000))),""),"") -> 18275.14529 | D30: =IFERROR(IF(AND(CenterOpen_m = 1, Data_m = 2, AttackRate_m=1,Media_counts!B19>=SUM(WkCasesStartAppear_m,WKOpenCallCenter_m)), (((Media_counts!F19*Media_Method!$C$28/Media_Method!J69*USPop_m/100000))),""),"") -> 23757.68888 | E30: =IFERROR(IF(AND(CenterOpen_m = 1, Data_m = 2, AttackRate_m=2,Media_counts!B19>=SUM(WkCasesStartAppear_m,WKOpenCallCenter_m)), (((Media_counts!E19*Media_Method!$C$28/Media_Method!J73*USPop_m/100000))),""),"") ->  | F30: =IFERROR(IF(AND(CenterOpen_m = 1, Data_m = 2, AttackRate_m=2,Media_counts!B19>=SUM(WkCasesStartAppear_m,WKOpenCallCenter_m)), (((Media_counts!F19*Media_Method!$C$28/Media_Method!J73*USPop_m/100000))),""),"") ->  | G30: 18275.14529 | H30: 23757.68888 | I30: 4066.219828 | J30: 5286.085776 | K30: 7564.082637 | L30: 9833.307428 | M30: 6644.842829 | N30: 8638.295677
A31: 17 | B31: =Media_counts!C20 -> 17 | C31: =IFERROR(IF(AND(CenterOpen_m = 1, Data_m = 2, AttackRate_m=1,Media_counts!B20>=SUM(WkCasesStartAppear_m,WKOpenCallCenter_m)), (((Media_counts!E20*Media_Method!$C$28/Media_Method!J70*USPop_m/100000))),""),"") -> 18275.14529 | D31: =IFERROR(IF(AND(CenterOpen_m = 1, Data_m = 2, AttackRate_m=1,Media_counts!B20>=SUM(WkCasesStartAppear_m,WKOpenCallCenter_m)), (((Media_counts!F20*Media_Method!$C$28/Media_Method!J70*USPop_m/100000))),""),"") -> 23757.68888 | E31: =IFERROR(IF(AND(CenterOpen_m = 1, Data_m = 2, AttackRate_m=2,Media_counts!B20>=SUM(WkCasesStartAppear_m,WKOpenCallCenter_m)), (((Media_counts!E20*Media_Method!$C$28/Media_Method!J74*USPop_m/100000))),""),"") ->  | F31: =IFERROR(IF(AND(CenterOpen_m = 1, Data_m = 2, AttackRate_m=2,Media_counts!B20>=SUM(WkCasesStartAppear_m,WKOpenCallCenter_m)), (((Media_counts!F20*Media_Method!$C$28/Media_Method!J74*USPop_m/100000))),""),"") ->  | G31: 18275.14529 | H31: 23757.68888 | I31: 4066.219828 | J31: 5286.085776 | K31: 7564.082637 | L31: 9833.307428 | M31: 6644.842829 | N31: 8638.295677
A32: 18 | B32: =Media_counts!C21 -> 18 | C32: =IFERROR(IF(AND(CenterOpen_m = 1, Data_m = 2, AttackRate_m=1,Media_counts!B21>=SUM(WkCasesStartAppear_m,WKOpenCallCenter_m)), (((Media_counts!E21*Media_Method!$C$28/Media_Method!J71*USPop_m/100000))),""),"") -> 18275.14529 | D32: =IFERROR(IF(AND(CenterOpen_m = 1, Data_m = 2, AttackRate_m=1,Media_counts!B21>=SUM(WkCasesStartAppear_m,WKOpenCallCenter_m)), (((Media_counts!F21*Media_Method!$C$28/Media_Method!J71*USPop_m/100000))),""),"") -> 23757.68888 | E32: =IFERROR(IF(AND(CenterOpen_m = 1, Data_m = 2, AttackRate_m=2,Media_counts!B21>=SUM(WkCasesStartAppear_m,WKOpenCallCenter_m)), (((Media_counts!E21*Media_Method!$C$28/Media_Method!J75*USPop_m/100000))),""),"") ->  | F32: =IFERROR(IF(AND(CenterOpen_m = 1, Data_m = 2, AttackRate_m=2,Media_counts!B21>=SUM(WkCasesStartAppear_m,WKOpenCallCenter_m)), (((Media_counts!F21*Media_Method!$C$28/Media_Method!J75*USPop_m/100000))),""),"") ->  | G32: 18275.14529 | H32: 23757.68888 | I32: 4066.219828 | J32: 5286.085776 | K32: 7564.082637 | L32: 9833.307428 | M32: 6644.842829 | N32: 8638.295677
A33: 19 | B33: =Media_counts!C22 -> 19 | C33: =IFERROR(IF(AND(CenterOpen_m = 1, Data_m = 2, AttackRate_m=1,Media_counts!B22>=SUM(WkCasesStartAppear_m,WKOpenCallCenter_m)), (((Media_counts!E22*Media_Method!$C$28/Media_Method!J72*USPop_m/100000))),""),"") -> 18275.14529 | D33: =IFERROR(IF(AND(CenterOpen_m = 1, Data_m = 2, AttackRate_m=1,Media_counts!B22>=SUM(WkCasesStartAppear_m,WKOpenCallCenter_m)), (((Media_counts!F22*Media_Method!$C$28/Media_Method!J72*USPop_m/100000))),""),"") -> 23757.68888 | E33: =IFERROR(IF(AND(CenterOpen_m = 1, Data_m = 2, AttackRate_m=2,Media_counts!B22>=SUM(WkCasesStartAppear_m,WKOpenCallCenter_m)), (((Media_counts!E22*Media_Method!$C$28/Media_Method!J76*USPop_m/100000))),""),"") ->  | F33: =IFERROR(IF(AND(CenterOpen_m = 1, Data_m = 2, AttackRate_m=2,Media_counts!B22>=SUM(WkCasesStartAppear_m,WKOpenCallCenter_m)), (((Media_counts!F22*Media_Method!$C$28/Media_Method!J76*USPop_m/100000))),""),"") ->  | G33: 18275.14529 | H33: 23757.68888 | I33: 4066.219828 | J33: 5286.085776 | K33: 7564.082637 | L33: 9833.307428 | M33: 6644.842829 | N33: 8638.295677
A34: 20 | B34: =Media_counts!C23 -> 20 | C34: =IFERROR(IF(AND(CenterOpen_m = 1, Data_m = 2, AttackRate_m=1,Media_counts!B23>=SUM(WkCasesStartAppear_m,WKOpenCallCenter_m)), (((Media_counts!E23*Media_Method!$C$28/Media_Method!J73*USPop_m/100000))),""),"") -> 18275.14529 | D34: =IFERROR(IF(AND(CenterOpen_m = 1, Data_m = 2, AttackRate_m=1,Media_counts!B23>=SUM(WkCasesStartAppear_m,WKOpenCallCenter_m)), (((Media_counts!F23*Media_Method!$C$28/Media_Method!J73*USPop_m/100000))),""),"") -> 23757.68888 | E34: =IFERROR(IF(AND(CenterOpen_m = 1, Data_m = 2, AttackRate_m=2,Media_counts!B23>=SUM(WkCasesStartAppear_m,WKOpenCallCenter_m)), (((Media_counts!E23*Media_Method!$C$28/Media_Method!J77*USPop_m/100000))),""),"") ->  | F34: =IFERROR(IF(AND(CenterOpen_m = 1, Data_m = 2, AttackRate_m=2,Media_counts!B23>=SUM(WkCasesStartAppear_m,WKOpenCallCenter_m)), (((Media_counts!F23*Media_Method!$C$28/Media_Method!J77*USPop_m/100000))),""),"") ->  | G34: 18275.14529 | H34: 23757.68888 | I34: 4066.219828 | J34: 5286.085776 | K34: 7564.082637 | L34: 9833.307428 | M34: 6644.842829 | N34: 8638.295677
A35: 21 | B35: =Media_counts!C24 -> 21 | C35: =IFERROR(IF(AND(CenterOpen_m = 1, Data_m = 2, AttackRate_m=1,Media_counts!B24>=SUM(WkCasesStartAppear_m,WKOpenCallCenter_m)), (((Media_counts!E24*Media_Method!$C$28/Media_Method!J74*USPop_m/100000))),""),"") -> 18275.14529 | D35: =IFERROR(IF(AND(CenterOpen_m = 1, Data_m = 2, AttackRate_m=1,Media_counts!B24>=SUM(WkCasesStartAppear_m,WKOpenCallCenter_m)), (((Media_counts!F24*Media_Method!$C$28/Media_Method!J74*USPop_m/100000))),""),"") -> 23757.68888 | E35: =IFERROR(IF(AND(CenterOpen_m = 1, Data_m = 2, AttackRate_m=2,Media_counts!B24>=SUM(WkCasesStartAppear_m,WKOpenCallCenter_m)), (((Media_counts!E24*Media_Method!$C$28/Media_Method!J78*USPop_m/100000))),""),"") ->  | F35: =IFERROR(IF(AND(CenterOpen_m = 1, Data_m = 2, AttackRate_m=2,Media_counts!B24>=SUM(WkCasesStartAppear_m,WKOpenCallCenter_m)), (((Media_counts!F24*Media_Method!$C$28/Media_Method!J78*USPop_m/100000))),""),"") ->  | G35: 18275.14529 | H35: 23757.68888 | I35: 4066.219828 | J35: 5286.085776 | K35: 7564.082637 | L35: 9833.307428 | M35: 6644.842829 | N35: 8638.295677
A36: 22 | B36: =Media_counts!C25 -> 22 | C36: =IFERROR(IF(AND(CenterOpen_m = 1, Data_m = 2, AttackRate_m=1,Media_counts!B25>=SUM(WkCasesStartAppear_m,WKOpenCallCenter_m)), (((Media_counts!E25*Media_Method!$C$28/Media_Method!J75*USPop_m/100000))),""),"") -> 18275.14529 | D36: =IFERROR(IF(AND(CenterOpen_m = 1, Data_m = 2, AttackRate_m=1,Media_counts!B25>=SUM(WkCasesStartAppear_m,WKOpenCallCenter_m)), (((Media_counts!F25*Media_Method!$C$28/Media_Method!J75*USPop_m/100000))),""),"") -> 23757.68888 | E36: =IFERROR(IF(AND(CenterOpen_m = 1, Data_m = 2, AttackRate_m=2,Media_counts!B25>=SUM(WkCasesStartAppear_m,WKOpenCallCenter_m)), (((Media_counts!E25*Media_Method!$C$28/Media_Method!J79*USPop_m/100000))),""),"") ->  | F36: =IFERROR(IF(AND(CenterOpen_m = 1, Data_m = 2, AttackRate_m=2,Media_counts!B25>=SUM(WkCasesStartAppear_m,WKOpenCallCenter_m)), (((Media_counts!F25*Media_Method!$C$28/Media_Method!J79*USPop_m/100000))),""),"") ->  | G36: 18275.14529 | H36: 23757.68888 | I36: 4066.219828 | J36: 5286.085776 | K36: 7564.082637 | L36: 9833.307428 | M36: 6644.842829 | N36: 8638.295677
A37: 23 | B37: =Media_counts!C26 -> 23 | C37: =IFERROR(IF(AND(CenterOpen_m = 1, Data_m = 2, AttackRate_m=1,Media_counts!B26>=SUM(WkCasesStartAppear_m,WKOpenCallCenter_m)), (((Media_counts!E26*Media_Method!$C$28/Media_Method!J76*USPop_m/100000))),""),"") -> 18275.14529 | D37: =IFERROR(IF(AND(CenterOpen_m = 1, Data_m = 2, AttackRate_m=1,Media_counts!B26>=SUM(WkCasesStartAppear_m,WKOpenCallCenter_m)), (((Media_counts!F26*Media_Method!$C$28/Media_Method!J76*USPop_m/100000))),""),"") -> 23757.68888 | E37: =IFERROR(IF(AND(CenterOpen_m = 1, Data_m = 2, AttackRate_m=2,Media_counts!B26>=SUM(WkCasesStartAppear_m,WKOpenCallCenter_m)), (((Media_counts!E26*Media_Method!$C$28/Media_Method!J80*USPop_m/100000))),""),"") ->  | F37: =IFERROR(IF(AND(CenterOpen_m = 1, Data_m = 2, AttackRate_m=2,Media_counts!B26>=SUM(WkCasesStartAppear_m,WKOpenCallCenter_m)), (((Media_counts!F26*Media_Method!$C$28/Media_Method!J80*USPop_m/100000))),""),"") ->  | G37: 18275.14529 | H37: 23757.68888 | I37: 4066.219828 | J37: 5286.085776 | K37: 7564.082637 | L37: 9833.307428 | M37: 6644.842829 | N37: 8638.295677
A38: 24 | B38: =Media_counts!C27 -> 24 | C38: =IFERROR(IF(AND(CenterOpen_m = 1, Data_m = 2, AttackRate_m=1,Media_counts!B27>=SUM(WkCasesStartAppear_m,WKOpenCallCenter_m)), (((Media_counts!E27*Media_Method!$C$28/Media_Method!J77*USPop_m/100000))),""),"") -> 18275.14529 | D38: =IFERROR(IF(AND(CenterOpen_m = 1, Data_m = 2, AttackRate_m=1,Media_counts!B27>=SUM(WkCasesStartAppear_m,WKOpenCallCenter_m)), (((Media_counts!F27*Media_Method!$C$28/Media_Method!J77*USPop_m/100000))),""),"") -> 23757.68888 | E38: =IFERROR(IF(AND(CenterOpen_m = 1, Data_m = 2, AttackRate_m=2,Media_counts!B27>=SUM(WkCasesStartAppear_m,WKOpenCallCenter_m)), (((Media_counts!E27*Media_Method!$C$28/Media_Method!J81*USPop_m/100000))),""),"") ->  | F38: =IFERROR(IF(AND(CenterOpen_m = 1, Data_m = 2, AttackRate_m=2,Media_counts!B27>=SUM(WkCasesStartAppear_m,WKOpenCallCenter_m)), (((Media_counts!F27*Media_Method!$C$28/Media_Method!J81*USPop_m/100000))),""),"") ->  | G38: 18275.14529 | H38: 23757.68888 | I38: 4066.219828 | J38: 5286.085776 | K38: 7564.082637 | L38: 9833.307428 | M38: 6644.842829 | N38: 8638.295677
A39: 25 | B39: =Media_counts!C28 -> 25 | C39: =IFERROR(IF(AND(CenterOpen_m = 1, Data_m = 2, AttackRate_m=1,Media_counts!B28>=SUM(WkCasesStartAppear_m,WKOpenCallCenter_m)), (((Media_counts!E28*Media_Method!$C$28/Media_Method!J78*USPop_m/100000))),""),"") -> 18275.14529 | D39: =IFERROR(IF(AND(CenterOpen_m = 1, Data_m = 2, AttackRate_m=1,Media_counts!B28>=SUM(WkCasesStartAppear_m,WKOpenCallCenter_m)), (((Media_counts!F28*Media_Method!$C$28/Media_Method!J78*USPop_m/100000))),""),"") -> 23757.68888 | E39: =IFERROR(IF(AND(CenterOpen_m = 1, Data_m = 2, AttackRate_m=2,Media_counts!B28>=SUM(WkCasesStartAppear_m,WKOpenCallCenter_m)), (((Media_counts!E28*Media_Method!$C$28/Media_Method!J82*USPop_m/100000))),""),"") ->  | F39: =IFERROR(IF(AND(CenterOpen_m = 1, Data_m = 2, AttackRate_m=2,Media_counts!B28>=SUM(WkCasesStartAppear_m,WKOpenCallCenter_m)), (((Media_counts!F28*Media_Method!$C$28/Media_Method!J82*USPop_m/100000))),""),"") ->  | G39: 18275.14529 | H39: 23757.68888 | I39: 4066.219828 | J39: 5286.085776 | K39: 7564.082637 | L39: 9833.307428 | M39: 6644.842829 | N39: 8638.295677
A40: 26 | B40: =Media_counts!C29 -> 26 | C40: =IFERROR(IF(AND(CenterOpen_m = 1, Data_m = 2, AttackRate_m=1,Media_counts!B29>=SUM(WkCasesStartAppear_m,WKOpenCallCenter_m)), (((Media_counts!E29*Media_Method!$C$28/Media_Method!J79*USPop_m/100000))),""),"") -> 18275.14529 | D40: =IFERROR(IF(AND(CenterOpen_m = 1, Data_m = 2, AttackRate_m=1,Media_counts!B29>=SUM(WkCasesStartAppear_m,WKOpenCallCenter_m)), (((Media_counts!F29*Media_Method!$C$28/Media_Method!J79*USPop_m/100000))),""),"") -> 23757.68888 | E40: =IFERROR(IF(AND(CenterOpen_m = 1, Data_m = 2, AttackRate_m=2,Media_counts!B29>=SUM(WkCasesStartAppear_m,WKOpenCallCenter_m)), (((Media_counts!E29*Media_Method!$C$28/Media_Method!J83*USPop_m/100000))),""),"") ->  | F40: =IFERROR(IF(AND(CenterOpen_m = 1, Data_m = 2, AttackRate_m=2,Media_counts!B29>=SUM(WkCasesStartAppear_m,WKOpenCallCenter_m)), (((Media_counts!F29*Media_Method!$C$28/Media_Method!J83*USPop_m/100000))),""),"") ->  | G40: 18275.14529 | H40: 23757.68888 | I40: 4066.219828 | J40: 5286.085776 | K40: 7564.082637 | L40: 9833.307428 | M40: 6644.842829 | N40: 8638.295677
A41: 27 | B41: =Media_counts!C30 -> 27 | C41: =IFERROR(IF(AND(CenterOpen_m = 1, Data_m = 2, AttackRate_m=1,Media_counts!B30>=SUM(WkCasesStartAppear_m,WKOpenCallCenter_m)), (((Media_counts!E30*Media_Method!$C$28/Media_Method!J80*USPop_m/100000))),""),"") -> 18275.14529 | D41: =IFERROR(IF(AND(CenterOpen_m = 1, Data_m = 2, AttackRate_m=1,Media_counts!B30>=SUM(WkCasesStartAppear_m,WKOpenCallCenter_m)), (((Media_counts!F30*Media_Method!$C$28/Media_Method!J80*USPop_m/100000))),""),"") -> 23757.68888 | E41: =IFERROR(IF(AND(CenterOpen_m = 1, Data_m = 2, AttackRate_m=2,Media_counts!B30>=SUM(WkCasesStartAppear_m,WKOpenCallCenter_m)), (((Media_counts!E30*Media_Method!$C$28/Media_Method!J84*USPop_m/100000))),""),"") ->  | F41: =IFERROR(IF(AND(CenterOpen_m = 1, Data_m = 2, AttackRate_m=2,Media_counts!B30>=SUM(WkCasesStartAppear_m,WKOpenCallCenter_m)), (((Media_counts!F30*Media_Method!$C$28/Media_Method!J84*USPop_m/100000))),""),"") ->  | G41: 18275.14529 | H41: 23757.68888 | I41: 4066.219828 | J41: 5286.085776 | K41: 7564.082637 | L41: 9833.307428 | M41: 6644.842829 | N41: 8638.295677
A42: 28 | B42: =Media_counts!C31 -> 28 | C42: =IFERROR(IF(AND(CenterOpen_m = 1, Data_m = 2, AttackRate_m=1,Media_counts!B31>=SUM(WkCasesStartAppear_m,WKOpenCallCenter_m)), (((Media_counts!E31*Media_Method!$C$28/Media_Method!J81*USPop_m/100000))),""),"") -> 18275.14529 | D42: =IFERROR(IF(AND(CenterOpen_m = 1, Data_m = 2, AttackRate_m=1,Media_counts!B31>=SUM(WkCasesStartAppear_m,WKOpenCallCenter_m)), (((Media_counts!F31*Media_Method!$C$28/Media_Method!J81*USPop_m/100000))),""),"") -> 23757.68888 | E42: =IFERROR(IF(AND(CenterOpen_m = 1, Data_m = 2, AttackRate_m=2,Media_counts!B31>=SUM(WkCasesStartAppear_m,WKOpenCallCenter_m)), (((Media_counts!E31*Media_Method!$C$28/Media_Method!J85*USPop_m/100000))),""),"") ->  | F42: =IFERROR(IF(AND(CenterOpen_m = 1, Data_m = 2, AttackRate_m=2,Media_counts!B31>=SUM(WkCasesStartAppear_m,WKOpenCallCenter_m)), (((Media_counts!F31*Media_Method!$C$28/Media_Method!J85*USPop_m/100000))),""),"") ->  | G42: 18275.14529 | H42: 23757.68888 | I42: 4066.219828 | J42: 5286.085776 | K42: 7564.082637 | L42: 9833.307428 | M42: 6644.842829 | N42: 8638.295677
A43: 29 | B43: =Media_counts!C32 -> 29 | C43: =IFERROR(IF(AND(CenterOpen_m = 1, Data_m = 2, AttackRate_m=1,Media_counts!B32>=SUM(WkCasesStartAppear_m,WKOpenCallCenter_m)), (((Media_counts!E32*Media_Method!$C$28/Media_Method!J82*USPop_m/100000))),""),"") -> 18275.14529 | D43: =IFERROR(IF(AND(CenterOpen_m = 1, Data_m = 2, AttackRate_m=1,Media_counts!B32>=SUM(WkCasesStartAppear_m,WKOpenCallCenter_m)), (((Media_counts!F32*Media_Method!$C$28/Media_Method!J82*USPop_m/100000))),""),"") -> 23757.68888 | E43: =IFERROR(IF(AND(CenterOpen_m = 1, Data_m = 2, AttackRate_m=2,Media_counts!B32>=SUM(WkCasesStartAppear_m,WKOpenCallCenter_m)), (((Media_counts!E32*Media_Method!$C$28/Media_Method!J86*USPop_m/100000))),""),"") ->  | F43: =IFERROR(IF(AND(CenterOpen_m = 1, Data_m = 2, AttackRate_m=2,Media_counts!B32>=SUM(WkCasesStartAppear_m,WKOpenCallCenter_m)), (((Media_counts!F32*Media_Method!$C$28/Media_Method!J86*USPop_m/100000))),""),"") ->  | G43: 18275.14529 | H43: 23757.68888 | I43: 4066.219828 | J43: 5286.085776 | K43: 7564.082637 | L43: 9833.307428 | M43: 6644.842829 | N43: 8638.295677
A44: 30 | B44: =Media_counts!C33 -> 30 | C44: =IFERROR(IF(AND(CenterOpen_m = 1, Data_m = 2, AttackRate_m=1,Media_counts!B33>=SUM(WkCasesStartAppear_m,WKOpenCallCenter_m)), (((Media_counts!E33*Media_Method!$C$28/Media_Method!J83*USPop_m/100000))),""),"") -> 18275.14529 | D44: =IFERROR(IF(AND(CenterOpen_m = 1, Data_m = 2, AttackRate_m=1,Media_counts!B33>=SUM(WkCasesStartAppear_m,WKOpenCallCenter_m)), (((Media_counts!F33*Media_Method!$C$28/Media_Method!J83*USPop_m/100000))),""),"") -> 23757.68888 | E44: =IFERROR(IF(AND(CenterOpen_m = 1, Data_m = 2, AttackRate_m=2,Media_counts!B33>=SUM(WkCasesStartAppear_m,WKOpenCallCenter_m)), (((Media_counts!E33*Media_Method!$C$28/Media_Method!J87*USPop_m/100000))),""),"") ->  | F44: =IFERROR(IF(AND(CenterOpen_m = 1, Data_m = 2, AttackRate_m=2,Media_counts!B33>=SUM(WkCasesStartAppear_m,WKOpenCallCenter_m)), (((Media_counts!F33*Media_Method!$C$28/Media_Method!J87*USPop_m/100000))),""),"") ->  | G44: 18275.14529 | H44: 23757.68888 | I44: 4066.219828 | J44: 5286.085776 | K44: 7564.082637 | L44: 9833.307428 | M44: 6644.842829 | N44: 8638.295677
A45: 31 | B45: =Media_counts!C34 -> 31 | C45: =IFERROR(IF(AND(CenterOpen_m = 1, Data_m = 2, AttackRate_m=1,Media_counts!B34>=SUM(WkCasesStartAppear_m,WKOpenCallCenter_m)), (((Media_counts!E34*Media_Method!$C$28/Media_Method!J84*USPop_m/100000))),""),"") -> 18275.14529 | D45: =IFERROR(IF(AND(CenterOpen_m = 1, Data_m = 2, AttackRate_m=1,Media_counts!B34>=SUM(WkCasesStartAppear_m,WKOpenCallCenter_m)), (((Media_counts!F34*Media_Method!$C$28/Media_Method!J84*USPop_m/100000))),""),"") -> 23757.68888 | E45: =IFERROR(IF(AND(CenterOpen_m = 1, Data_m = 2, AttackRate_m=2,Media_counts!B34>=SUM(WkCasesStartAppear_m,WKOpenCallCenter_m)), (((Media_counts!E34*Media_Method!$C$28/Media_Method!J88*USPop_m/100000))),""),"") ->  | F45: =IFERROR(IF(AND(CenterOpen_m = 1, Data_m = 2, AttackRate_m=2,Media_counts!B34>=SUM(WkCasesStartAppear_m,WKOpenCallCenter_m)), (((Media_counts!F34*Media_Method!$C$28/Media_Method!J88*USPop_m/100000))),""),"") ->  | G45: 18275.14529 | H45: 23757.68888 | I45: 4066.219828 | J45: 5286.085776 | K45: 7564.082637 | L45: 9833.307428 | M45: 6644.842829 | N45: 8638.295677
A46: 32 | B46: =Media_counts!C35 -> 32 | C46: =IFERROR(IF(AND(CenterOpen_m = 1, Data_m = 2, AttackRate_m=1,Media_counts!B35>=SUM(WkCasesStartAppear_m,WKOpenCallCenter_m)), (((Media_counts!E35*Media_Method!$C$28/Media_Method!J85*USPop_m/100000))),""),"") -> 18275.14529 | D46: =IFERROR(IF(AND(CenterOpen_m = 1, Data_m = 2, AttackRate_m=1,Media_counts!B35>=SUM(WkCasesStartAppear_m,WKOpenCallCenter_m)), (((Media_counts!F35*Media_Method!$C$28/Media_Method!J85*USPop_m/100000))),""),"") -> 23757.68888 | E46: =IFERROR(IF(AND(CenterOpen_m = 1, Data_m = 2, AttackRate_m=2,Media_counts!B35>=SUM(WkCasesStartAppear_m,WKOpenCallCenter_m)), (((Media_counts!E35*Media_Method!$C$28/Media_Method!J89*USPop_m/100000))),""),"") ->  | F46: =IFERROR(IF(AND(CenterOpen_m = 1, Data_m = 2, AttackRate_m=2,Media_counts!B35>=SUM(WkCasesStartAppear_m,WKOpenCallCenter_m)), (((Media_counts!F35*Media_Method!$C$28/Media_Method!J89*USPop_m/100000))),""),"") ->  | G46: 18275.14529 | H46: 23757.68888 | I46: 4066.219828 | J46: 5286.085776 | K46: 7564.082637 | L46: 9833.307428 | M46: 6644.842829 | N46: 8638.295677
A47: 33 | B47: =Media_counts!C36 -> 33 | C47: =IFERROR(IF(AND(CenterOpen_m = 1, Data_m = 2, AttackRate_m=1,Media_counts!B36>=SUM(WkCasesStartAppear_m,WKOpenCallCenter_m)), (((Media_counts!E36*Media_Method!$C$28/Media_Method!J86*USPop_m/100000))),""),"") -> 18275.14529 | D47: =IFERROR(IF(AND(CenterOpen_m = 1, Data_m = 2, AttackRate_m=1,Media_counts!B36>=SUM(WkCasesStartAppear_m,WKOpenCallCenter_m)), (((Media_counts!F36*Media_Method!$C$28/Media_Method!J86*USPop_m/100000))),""),"") -> 23757.68888 | E47: =IFERROR(IF(AND(CenterOpen_m = 1, Data_m = 2, AttackRate_m=2,Media_counts!B36>=SUM(WkCasesStartAppear_m,WKOpenCallCenter_m)), (((Media_counts!E36*Media_Method!$C$28/Media_Method!J90*USPop_m/100000))),""),"") ->  | F47: =IFERROR(IF(AND(CenterOpen_m = 1, Data_m = 2, AttackRate_m=2,Media_counts!B36>=SUM(WkCasesStartAppear_m,WKOpenCallCenter_m)), (((Media_counts!F36*Media_Method!$C$28/Media_Method!J90*USPop_m/100000))),""),"") ->  | G47: 18275.14529 | H47: 23757.68888 | I47: 4066.219828 | J47: 5286.085776 | K47: 7564.082637 | L47: 9833.307428 | M47: 6644.842829 | N47: 8638.295677
A48: 34 | B48: =Media_counts!C37 -> 34 | C48: =IFERROR(IF(AND(CenterOpen_m = 1, Data_m = 2, AttackRate_m=1,Media_counts!B37>=SUM(WkCasesStartAppear_m,WKOpenCallCenter_m)), (((Media_counts!E37*Media_Method!$C$28/Media_Method!J87*USPop_m/100000))),""),"") -> 18275.14529 | D48: =IFERROR(IF(AND(CenterOpen_m = 1, Data_m = 2, AttackRate_m=1,Media_counts!B37>=SUM(WkCasesStartAppear_m,WKOpenCallCenter_m)), (((Media_counts!F37*Media_Method!$C$28/Media_Method!J87*USPop_m/100000))),""),"") -> 23757.68888 | E48: =IFERROR(IF(AND(CenterOpen_m = 1, Data_m = 2, AttackRate_m=2,Media_counts!B37>=SUM(WkCasesStartAppear_m,WKOpenCallCenter_m)), (((Media_counts!E37*Media_Method!$C$28/Media_Method!J91*USPop_m/100000))),""),"") ->  | F48: =IFERROR(IF(AND(CenterOpen_m = 1, Data_m = 2, AttackRate_m=2,Media_counts!B37>=SUM(WkCasesStartAppear_m,WKOpenCallCenter_m)), (((Media_counts!F37*Media_Method!$C$28/Media_Method!J91*USPop_m/100000))),""),"") ->  | G48: 18275.14529 | H48: 23757.68888 | I48: 4066.219828 | J48: 5286.085776 | K48: 7564.082637 | L48: 9833.307428 | M48: 6644.842829 | N48: 8638.295677
A49: 35 | B49: =Media_counts!C38 -> 35 | C49: =IFERROR(IF(AND(CenterOpen_m = 1, Data_m = 2, AttackRate_m=1,Media_counts!B38>=SUM(WkCasesStartAppear_m,WKOpenCallCenter_m)), (((Media_counts!E38*Media_Method!$C$28/Media_Method!J88*USPop_m/100000))),""),"") -> 18275.14529 | D49: =IFERROR(IF(AND(CenterOpen_m = 1, Data_m = 2, AttackRate_m=1,Media_counts!B38>=SUM(WkCasesStartAppear_m,WKOpenCallCenter_m)), (((Media_counts!F38*Media_Method!$C$28/Media_Method!J88*USPop_m/100000))),""),"") -> 23757.68888 | E49: =IFERROR(IF(AND(CenterOpen_m = 1, Data_m = 2, AttackRate_m=2,Media_counts!B38>=SUM(WkCasesStartAppear_m,WKOpenCallCenter_m)), (((Media_counts!E38*Media_Method!$C$28/Media_Method!J92*USPop_m/100000))),""),"") ->  | F49: =IFERROR(IF(AND(CenterOpen_m = 1, Data_m = 2, AttackRate_m=2,Media_counts!B38>=SUM(WkCasesStartAppear_m,WKOpenCallCenter_m)), (((Media_counts!F38*Media_Method!$C$28/Media_Method!J92*USPop_m/100000))),""),"") ->  | G49: 18275.14529 | H49: 23757.68888 | I49: 4066.219828 | J49: 5286.085776 | K49: 7564.082637 | L49: 9833.307428 | M49: 6644.842829 | N49: 8638.295677
A50: 36 | B50: =Media_counts!C39 -> 36 | C50: =IFERROR(IF(AND(CenterOpen_m = 1, Data_m = 2, AttackRate_m=1,Media_counts!B39>=SUM(WkCasesStartAppear_m,WKOpenCallCenter_m)), (((Media_counts!E39*Media_Method!$C$28/Media_Method!J89*USPop_m/100000))),""),"") -> 18275.14529 | D50: =IFERROR(IF(AND(CenterOpen_m = 1, Data_m = 2, AttackRate_m=1,Media_counts!B39>=SUM(WkCasesStartAppear_m,WKOpenCallCenter_m)), (((Media_counts!F39*Media_Method!$C$28/Media_Method!J89*USPop_m/100000))),""),"") -> 23757.68888 | E50: =IFERROR(IF(AND(CenterOpen_m = 1, Data_m = 2, AttackRate_m=2,Media_counts!B39>=SUM(WkCasesStartAppear_m,WKOpenCallCenter_m)), (((Media_counts!E39*Media_Method!$C$28/Media_Method!J93*USPop_m/100000))),""),"") ->  | F50: =IFERROR(IF(AND(CenterOpen_m = 1, Data_m = 2, AttackRate_m=2,Media_counts!B39>=SUM(WkCasesStartAppear_m,WKOpenCallCenter_m)), (((Media_counts!F39*Media_Method!$C$28/Media_Method!J93*USPop_m/100000))),""),"") ->  | G50: 18275.14529 | H50: 23757.68888 | I50: 4066.219828 | J50: 5286.085776 | K50: 7564.082637 | L50: 9833.307428 | M50: 6644.842829 | N50: 8638.295677
A51: 37 | B51: =Media_counts!C40 -> 37 | C51: =IFERROR(IF(AND(CenterOpen_m = 1, Data_m = 2, AttackRate_m=1,Media_counts!B40>=SUM(WkCasesStartAppear_m,WKOpenCallCenter_m)), (((Media_counts!E40*Media_Method!$C$28/Media_Method!J90*USPop_m/100000))),""),"") -> 18275.14529 | D51: =IFERROR(IF(AND(CenterOpen_m = 1, Data_m = 2, AttackRate_m=1,Media_counts!B40>=SUM(WkCasesStartAppear_m,WKOpenCallCenter_m)), (((Media_counts!F40*Media_Method!$C$28/Media_Method!J90*USPop_m/100000))),""),"") -> 23757.68888 | E51: =IFERROR(IF(AND(CenterOpen_m = 1, Data_m = 2, AttackRate_m=2,Media_counts!B40>=SUM(WkCasesStartAppear_m,WKOpenCallCenter_m)), (((Media_counts!E40*Media_Method!$C$28/Media_Method!J94*USPop_m/100000))),""),"") ->  | F51: =IFERROR(IF(AND(CenterOpen_m = 1, Data_m = 2, AttackRate_m=2,Media_counts!B40>=SUM(WkCasesStartAppear_m,WKOpenCallCenter_m)), (((Media_counts!F40*Media_Method!$C$28/Media_Method!J94*USPop_m/100000))),""),"") ->  | G51: 18275.14529 | H51: 23757.68888 | I51: 4066.219828 | J51: 5286.085776 | K51: 7564.082637 | L51: 9833.307428 | M51: 6644.842829 | N51: 8638.295677
A52: 38 | B52: =Media_counts!C41 -> 38 | C52: =IFERROR(IF(AND(CenterOpen_m = 1, Data_m = 2, AttackRate_m=1,Media_counts!B41>=SUM(WkCasesStartAppear_m,WKOpenCallCenter_m)), (((Media_counts!E41*Media_Method!$C$28/Media_Method!J91*USPop_m/100000))),""),"") -> 18275.14529 | D52: =IFERROR(IF(AND(CenterOpen_m = 1, Data_m = 2, AttackRate_m=1,Media_counts!B41>=SUM(WkCasesStartAppear_m,WKOpenCallCenter_m)), (((Media_counts!F41*Media_Method!$C$28/Media_Method!J91*USPop_m/100000))),""),"") -> 23757.68888 | E52: =IFERROR(IF(AND(CenterOpen_m = 1, Data_m = 2, AttackRate_m=2,Media_counts!B41>=SUM(WkCasesStartAppear_m,WKOpenCallCenter_m)), (((Media_counts!E41*Media_Method!$C$28/Media_Method!J95*USPop_m/100000))),""),"") ->  | F52: =IFERROR(IF(AND(CenterOpen_m = 1, Data_m = 2, AttackRate_m=2,Media_counts!B41>=SUM(WkCasesStartAppear_m,WKOpenCallCenter_m)), (((Media_counts!F41*Media_Method!$C$28/Media_Method!J95*USPop_m/100000))),""),"") ->  | G52: 18275.14529 | H52: 23757.68888 | I52: 4066.219828 | J52: 5286.085776 | K52: 7564.082637 | L52: 9833.307428 | M52: 6644.842829 | N52: 8638.295677
A53: 39 | B53: =Media_counts!C42 -> 39 | C53: =IFERROR(IF(AND(CenterOpen_m = 1, Data_m = 2, AttackRate_m=1,Media_counts!B42>=SUM(WkCasesStartAppear_m,WKOpenCallCenter_m)), (((Media_counts!E42*Media_Method!$C$28/Media_Method!J92*USPop_m/100000))),""),"") -> 18275.14529 | D53: =IFERROR(IF(AND(CenterOpen_m = 1, Data_m = 2, AttackRate_m=1,Media_counts!B42>=SUM(WkCasesStartAppear_m,WKOpenCallCenter_m)), (((Media_counts!F42*Media_Method!$C$28/Media_Method!J92*USPop_m/100000))),""),"") -> 23757.68888 | E53: =IFERROR(IF(AND(CenterOpen_m = 1, Data_m = 2, AttackRate_m=2,Media_counts!B42>=SUM(WkCasesStartAppear_m,WKOpenCallCenter_m)), (((Media_counts!E42*Media_Method!$C$28/Media_Method!I96*USPop_m/100000))),""),"") ->  | F53: =IFERROR(IF(AND(CenterOpen_m = 1, Data_m = 2, AttackRate_m=2,Media_counts!B42>=SUM(WkCasesStartAppear_m,WKOpenCallCenter_m)), (((Media_counts!F42*Media_Method!$C$28/Media_Method!I96*USPop_m/100000))),""),"") ->  | G53: 18275.14529 | H53: 23757.68888 | I53: 4066.219828 | J53: 5286.085776 | K53: 7564.082637 | L53: 9833.307428 | M53: 6644.842829 | N53: 8638.295677
A54: 40 | B54: =Media_counts!C43 -> 40 | C54: =IFERROR(IF(AND(CenterOpen_m = 1, Data_m = 2, AttackRate_m=1,Media_counts!B43>=SUM(WkCasesStartAppear_m,WKOpenCallCenter_m)), (((Media_counts!E43*Media_Method!$C$28/Media_Method!J93*USPop_m/100000))),""),"") -> 18275.14529 | D54: =IFERROR(IF(AND(CenterOpen_m = 1, Data_m = 2, AttackRate_m=1,Media_counts!B43>=SUM(WkCasesStartAppear_m,WKOpenCallCenter_m)), (((Media_counts!F43*Media_Method!$C$28/Media_Method!J93*USPop_m/100000))),""),"") -> 23757.68888 | E54: =IFERROR(IF(AND(CenterOpen_m = 1, Data_m = 2, AttackRate_m=2,Media_counts!B43>=SUM(WkCasesStartAppear_m,WKOpenCallCenter_m)), (((Media_counts!E43*Media_Method!$C$28/Media_Method!I97*USPop_m/100000))),""),"") ->  | F54: =IFERROR(IF(AND(CenterOpen_m = 1, Data_m = 2, AttackRate_m=2,Media_counts!B43>=SUM(WkCasesStartAppear_m,WKOpenCallCenter_m)), (((Media_counts!F43*Media_Method!$C$28/Media_Method!I97*USPop_m/100000))),""),"") ->  | G54: 18275.14529 | H54: 23757.68888 | I54: 4066.219828 | J54: 5286.085776 | K54: 7564.082637 | L54: 9833.307428 | M54: 6644.842829 | N54: 8638.295677
A55: 41 | B55: =Media_counts!C44 -> 41 | C55: =IFERROR(IF(AND(CenterOpen_m = 1, Data_m = 2, AttackRate_m=1,Media_counts!B44>=SUM(WkCasesStartAppear_m,WKOpenCallCenter_m)), (((Media_counts!E44*Media_Method!$C$28/Media_Method!J94*USPop_m/100000))),""),"") -> 18275.14529 | D55: =IFERROR(IF(AND(CenterOpen_m = 1, Data_m = 2, AttackRate_m=1,Media_counts!B44>=SUM(WkCasesStartAppear_m,WKOpenCallCenter_m)), (((Media_counts!F44*Media_Method!$C$28/Media_Method!J94*USPop_m/100000))),""),"") -> 23757.68888 | E55: =IFERROR(IF(AND(CenterOpen_m = 1, Data_m = 2, AttackRate_m=2,Media_counts!B44>=SUM(WkCasesStartAppear_m,WKOpenCallCenter_m)), (((Media_counts!E44*Media_Method!$C$28/Media_Method!I98*USPop_m/100000))),""),"") ->  | F55: =IFERROR(IF(AND(CenterOpen_m = 1, Data_m = 2, AttackRate_m=2,Media_counts!B44>=SUM(WkCasesStartAppear_m,WKOpenCallCenter_m)), (((Media_counts!F44*Media_Method!$C$28/Media_Method!I98*USPop_m/100000))),""),"") ->  | G55: 18275.14529 | H55: 23757.68888 | I55: 4066.219828 | J55: 5286.085776 | K55: 7564.082637 | L55: 9833.307428 | M55: 6644.842829 | N55: 8638.295677
A56: 42 | B56: =Media_counts!C45 -> 42 | C56: =IFERROR(IF(AND(CenterOpen_m = 1, Data_m = 2, AttackRate_m=1,Media_counts!B45>=SUM(WkCasesStartAppear_m,WKOpenCallCenter_m)), (((Media_counts!E45*Media_Method!$C$28/Media_Method!J95*USPop_m/100000))),""),"") -> 18275.14529 | D56: =IFERROR(IF(AND(CenterOpen_m = 1, Data_m = 2, AttackRate_m=1,Media_counts!B45>=SUM(WkCasesStartAppear_m,WKOpenCallCenter_m)), (((Media_counts!F45*Media_Method!$C$28/Media_Method!J95*USPop_m/100000))),""),"") -> 23757.68888 | E56: =IFERROR(IF(AND(CenterOpen_m = 1, Data_m = 2, AttackRate_m=2,Media_counts!B45>=SUM(WkCasesStartAppear_m,WKOpenCallCenter_m)), (((Media_counts!E45*Media_Method!$C$28/Media_Method!I99*USPop_m/100000))),""),"") ->  | F56: =IFERROR(IF(AND(CenterOpen_m = 1, Data_m = 2, AttackRate_m=2,Media_counts!B45>=SUM(WkCasesStartAppear_m,WKOpenCallCenter_m)), (((Media_counts!F45*Media_Method!$C$28/Media_Method!I99*USPop_m/100000))),""),"") ->  | G56: 18275.14529 | H56: 23757.68888 | I56: 4066.219828 | J56: 5286.085776 | K56: 7564.082637 | L56: 9833.307428 | M56: 6644.842829 | N56: 8638.295677
A57: 43 | B57: =Media_counts!C46 -> 43 | C57: =IFERROR(IF(AND(CenterOpen_m = 1, Data_m = 2, AttackRate_m=1,Media_counts!B46>=SUM(WkCasesStartAppear_m,WKOpenCallCenter_m)), (((Media_counts!E46*Media_Method!$C$28/Media_Method!I96*USPop_m/100000))),""),"") ->  | D57: =IFERROR(IF(AND(CenterOpen_m = 1, Data_m = 2, AttackRate_m=1,Media_counts!B46>=SUM(WkCasesStartAppear_m,WKOpenCallCenter_m)), (((Media_counts!F46*Media_Method!$C$28/Media_Method!I96*USPop_m/100000))),""),"") ->  | E57: =IFERROR(IF(AND(CenterOpen_m = 1, Data_m = 2, AttackRate_m=2,Media_counts!B46>=SUM(WkCasesStartAppear_m,WKOpenCallCenter_m)), (((Media_counts!E46*Media_Method!$C$28/Media_Method!I100*USPop_m/100000))),""),"") ->  | F57: =IFERROR(IF(AND(CenterOpen_m = 1, Data_m = 2, AttackRate_m=2,Media_counts!B46>=SUM(WkCasesStartAppear_m,WKOpenCallCenter_m)), (((Media_counts!F46*Media_Method!$C$28/Media_Method!I100*USPop_m/100000))),""),"") ->  | G57: 0 | H57: 0 | I57: 0 | J57: 0 | K57: 0 | L57: 0 | M57: 0 | N57: 0
A58: 44 | B58: =Media_counts!C47 -> 44 | C58: =IFERROR(IF(AND(CenterOpen_m = 1, Data_m = 2, AttackRate_m=1,Media_counts!B47>=SUM(WkCasesStartAppear_m,WKOpenCallCenter_m)), (((Media_counts!E47*Media_Method!$C$28/Media_Method!I97*USPop_m/100000))),""),"") ->  | D58: =IFERROR(IF(AND(CenterOpen_m = 1, Data_m = 2, AttackRate_m=1,Media_counts!B47>=SUM(WkCasesStartAppear_m,WKOpenCallCenter_m)), (((Media_counts!F47*Media_Method!$C$28/Media_Method!I97*USPop_m/100000))),""),"") ->  | E58: =IFERROR(IF(AND(CenterOpen_m = 1, Data_m = 2, AttackRate_m=2,Media_counts!B47>=SUM(WkCasesStartAppear_m,WKOpenCallCenter_m)), (((Media_counts!E47*Media_Method!$C$28/Media_Method!I101*USPop_m/100000))),""),"") ->  | F58: =IFERROR(IF(AND(CenterOpen_m = 1, Data_m = 2, AttackRate_m=2,Media_counts!B47>=SUM(WkCasesStartAppear_m,WKOpenCallCenter_m)), (((Media_counts!F47*Media_Method!$C$28/Media_Method!I101*USPop_m/100000))),""),"") ->  | G58: 0 | H58: 0 | I58: 0 | J58: 0 | K58: 0 | L58: 0 | M58: 0 | N58: 0
A59: 45 | B59: =Media_counts!C48 -> 45 | C59: =IFERROR(IF(AND(CenterOpen_m = 1, Data_m = 2, AttackRate_m=1,Media_counts!B48>=SUM(WkCasesStartAppear_m,WKOpenCallCenter_m)), (((Media_counts!E48*Media_Method!$C$28/Media_Method!I98*USPop_m/100000))),""),"") ->  | D59: =IFERROR(IF(AND(CenterOpen_m = 1, Data_m = 2, AttackRate_m=1,Media_counts!B48>=SUM(WkCasesStartAppear_m,WKOpenCallCenter_m)), (((Media_counts!F48*Media_Method!$C$28/Media_Method!I98*USPop_m/100000))),""),"") ->  | E59: =IFERROR(IF(AND(CenterOpen_m = 1, Data_m = 2, AttackRate_m=2,Media_counts!B48>=SUM(WkCasesStartAppear_m,WKOpenCallCenter_m)), (((Media_counts!E48*Media_Method!$C$28/Media_Method!I102*USPop_m/100000))),""),"") ->  | F59: =IFERROR(IF(AND(CenterOpen_m = 1, Data_m = 2, AttackRate_m=2,Media_counts!B48>=SUM(WkCasesStartAppear_m,WKOpenCallCenter_m)), (((Media_counts!F48*Media_Method!$C$28/Media_Method!I102*USPop_m/100000))),""),"") ->  | G59: 0 | H59: 0 | I59: 0 | J59: 0 | K59: 0 | L59: 0 | M59: 0 | N59: 0
A60: 46 | B60: =Media_counts!C49 ->  | C60: =IFERROR(IF(AND(CenterOpen_m = 1, Data_m = 2, AttackRate_m=1,Media_counts!B49>=SUM(WkCasesStartAppear_m,WKOpenCallCenter_m)), (((Media_counts!E49*Media_Method!$C$28/Media_Method!I99*USPop_m/100000))),""),"") ->  | D60: =IFERROR(IF(AND(CenterOpen_m = 1, Data_m = 2, AttackRate_m=1,Media_counts!B49>=SUM(WkCasesStartAppear_m,WKOpenCallCenter_m)), (((Media_counts!F49*Media_Method!$C$28/Media_Method!I99*USPop_m/100000))),""),"") ->  | E60: =IFERROR(IF(AND(CenterOpen_m = 1, Data_m = 2, AttackRate_m=2,Media_counts!B49>=SUM(WkCasesStartAppear_m,WKOpenCallCenter_m)), (((Media_counts!E49*Media_Method!$C$28/Media_Method!I103*USPop_m/100000))),""),"") ->  | F60: =IFERROR(IF(AND(CenterOpen_m = 1, Data_m = 2, AttackRate_m=2,Media_counts!B49>=SUM(WkCasesStartAppear_m,WKOpenCallCenter_m)), (((Media_counts!F49*Media_Method!$C$28/Media_Method!I103*USPop_m/100000))),""),"") ->  | G60: 0 | H60: 0 | I60: 0 | J60: 0 | K60: 0 | L60: 0 | M60: 0 | N60: 0
A61: 47 | B61: =Media_counts!C50 -> 0 | C61: =IFERROR(IF(AND(CenterOpen_m = 1, Data_m = 2, AttackRate_m=1,Media_counts!B50>=SUM(WkCasesStartAppear_m,WKOpenCallCenter_m)), (((Media_counts!E50*Media_Method!$C$28/Media_Method!I100*USPop_m/100000))),""),"") ->  | D61: =IFERROR(IF(AND(CenterOpen_m = 1, Data_m = 2, AttackRate_m=1,Media_counts!B50>=SUM(WkCasesStartAppear_m,WKOpenCallCenter_m)), (((Media_counts!F50*Media_Method!$C$28/Media_Method!I100*USPop_m/100000))),""),"") ->  | E61: =IFERROR(IF(AND(CenterOpen_m = 1, Data_m = 2, AttackRate_m=2,Media_counts!B50>=SUM(WkCasesStartAppear_m,WKOpenCallCenter_m)), (((Media_counts!E50*Media_Method!$C$28/Media_Method!I104*USPop_m/100000))),""),"") ->  | F61: =IFERROR(IF(AND(CenterOpen_m = 1, Data_m = 2, AttackRate_m=2,Media_counts!B50>=SUM(WkCasesStartAppear_m,WKOpenCallCenter_m)), (((Media_counts!F50*Media_Method!$C$28/Media_Method!I104*USPop_m/100000))),""),"") ->  | G61: 0 | H61: 0 | I61: 0 | J61: 0 | K61: 0 | L61: 0 | M61: 0 | N61: 0
A62: Total | C62: =IFERROR(IF(AND(CenterOpen_m = 1, Data_m = 2, AttackRate_m=1,Media_counts!B51>=SUM(WkCasesStartAppear_m,WKOpenCallCenter_m)), (((Media_Method!#REF!))),""),"") ->  | D62: =IFERROR(IF(AND(CenterOpen_m = 1, Data_m = 2, AttackRate_m=1,Media_counts!B51>=SUM(WkCasesStartAppear_m,WKOpenCallCenter_m)), (((Media_Method!#REF!))),""),"") ->  | E62: =SUM(E15:E61) -> 0 | F62: 0 | G62: 2860060.238 | H62: 3718078.31 | I62: 636363.403 | J62: 827272.424 | K62: 1183778.933 | L62: 1538912.612 | M62: 1039917.903 | N62: 1351893.273

Sheet Results (hidden)
A2: =IF('Data Lists'!C40=4,"1957-Like Pandemic",IF('Data Lists'!C40=3,"1968-Like Pandemic",IF('Data Lists'!C40=2,"2009-Like Pandemic","Mild Pandemic "))) -> 1957-Like Pandemic
F4: Attack rate | G4: =IF(AttackRate=1,20,IF(AttackRate=2,30)) -> 30 | H4: %
F6: Seed | G6: =IF(Seed=1,10,IF(Seed=2,100)) -> 10 | H6: %
F8: Flu line opened | G8: =WKOpenCallCenter -> 1 | H8: week(s) after | I8: =IF(CenterOpen = 1, "START", IF(CenterOpen = 2, "PEAK")) -> START | J8: of pandemic | N8: (CenterOpen = 1, "START", IF(CenterOpen = 2, "PEAK"))
F10: Media activity level is | G10: =IF(MediaActivityCenterOpen= 1, "LOW", IF(MediaActivityCenterOpen= 2, "MODERATE", IF(MediaActivityCenterOpen = 3, "HIGH"))) -> LOW | H10: at start of pandemic
F12: Media activity level is | G12: =IF(MediaActivityPandemic = 1, "LOW", IF(MediaActivityPandemic= 2, "MODERATE", IF(MediaActivityPandemic= 3, "HIGH"))) -> LOW | H12: during pandemic | J12: Peak Week | K12: =PeakWk -> 14
F14: Method used to calculate call volume from start to peak of the pandemic | G14: =IF(Data_Start_to_Peak= 1, "Call-to-hospitalization", IF(Data_Start_to_Peak= 2, "MEDIA COUNTS TO CALL", IF(Data_Start_to_Peak= "MEDIA COUNTS - 2nd WAVE",0))) -> Call-to-hospitalization
B15: =IF(CenterOpen>1,"Table: Scroll Down to line 61 if call centers are open after the peak", "") ->  | F15: Week after case appear | G15: =WkCasesStartAppear -> 1
G17: =G8 -> 1
C18: Call-to-Hospital Ratio Method | E18: Media-to-Call Rate Ratio Method
C19: Lower Estimate | D19: Maximum | E19: Minimum | F19: Minimum | G19: ATTACK RATE: | H19: =Calculations!H4/100 -> 0.3 | I19: Modeling Method: Hospital-to-call-rate Ratio
B20: Number of information-only calls during first week of call center opening | C20: =IF(CenterOpen=2,"",(IFERROR(INDEX(Calculations!$O$15:$O$61,MATCH(SUM($G$15,$G$8),Cases_Hosp!$B$14:$B$60,0)),""))) -> 15.59961 | D20: =IF(CenterOpen=2,"",(IFERROR(INDEX(Calculations!$P$15:$P$61,MATCH(SUM($G$15,$G$8),Cases_Hosp!$B$14:$B$60,0)),""))) -> 37.78398 | E20: =Results_M!C20 -> 51505.45115 | F20: =Results_M!D20 -> 66957.0865
B21: Number of symptomatic calls during first week of call center opening | C21: =IF(CenterOpen=2,"",(IFERROR(INDEX(Calculations!$Q$15:$Q$61,MATCH(SUM($G$15,$G$8),Cases_Hosp!$B$14:$B$60,0)),""))) -> 14.51307 | D21: =IF(CenterOpen=2,"",(IFERROR(INDEX(Calculations!$R$15:$R$61,MATCH(SUM($G$15,$G$8),Cases_Hosp!$B$14:$B$60,0)),""))) -> 35.15226 | E21: =Results_M!C21 -> 95811.7134 | F21: =Results_M!D21 -> 124555.2274
B22: Number of calls ended prematurely during first week of call center opening | C22: =IF(CenterOpen=2,"",(IFERROR(INDEX(Calculations!$S$15:$S$61,MATCH(SUM($G$15,$G$8),Cases_Hosp!$B$14:$B$60,0)),""))) -> 8.69232 | D22: =IF(CenterOpen=2,"",(IFERROR(INDEX(Calculations!$T$15:$T$61,MATCH(SUM($G$15,$G$8),Cases_Hosp!$B$14:$B$60,0)),""))) -> 21.05376 | E22: =Results_M!C22 -> 84168.00916 | F22: =Results_M!D22 -> 109418.4119
B23: Total number of calls during first week of call center opening | C23: =IF(CenterOpen=2,"",(IFERROR(INDEX(Calculations!$M$15:$M$61,MATCH(SUM($G$15,$G$8),Cases_Hosp!$B$14:$B$60,0)),""))) -> 38.805 | D23: =IF(CenterOpen=2,"",(IFERROR(INDEX(Calculations!$N$15:$N$61,MATCH(SUM(G15,G8),Cases_Hosp!$B$14:$B$60,0)),""))) -> 93.99 | E23: =Results_M!C23 -> 231485.1737 | F23: =Results_M!D23 -> 300930.7258
B24: At peak of pandemic
B25: Number of information-only calls at peak week | C25: =IF(CenterOpen=2,"",IFERROR(INDEX(Calculations!$O$15:$O$61,MATCH($K$12,Cases_Hosp!$B$14:$B$60,0)),"")) -> 2943400.413 | D25: =IF(CenterOpen=2,"",(IFERROR(INDEX(Calculations!$P$15:$P$61,MATCH($K$12,Cases_Hosp!$B$14:$B$60,0)),""))) -> 7129241.202 | E25: =Results_M!C25 -> 51505.45115 | F25: =Results_M!D25 -> 66957.0865
B26: Number of symptomatic calls at peak week | C26: =IF(CenterOpen=2,"",(IFERROR(INDEX(Calculations!$Q$15:$Q$61,MATCH($K$12,Cases_Hosp!$B$14:$B$60,0)),""))) -> 2738387.449 | D26: =IF(CenterOpen=2,"",IFERROR(INDEX(Calculations!$R$15:$R$61,MATCH($K$12,Cases_Hosp!$B$14:$B$60,0)),"")) -> 6632677.138 | E26: =Results_M!C26 -> 95811.7134 | F26: =Results_M!D26 -> 124555.2274
B27: Number of calls ended prematurely at peak week | C27: =IF(CenterOpen=2,"",(IFERROR(INDEX(Calculations!$S$15:$S$61,MATCH($K$12,Cases_Hosp!$B$14:$B$60,0)),""))) -> 1640103.713 | D27: =IF(CenterOpen=2,"",(IFERROR(INDEX(Calculations!$T$15:$T$61,MATCH($K$12,Cases_Hosp!$B$14:$B$60,0)),""))) -> 3972512.51 | E27: =Results_M!C27 -> 84168.00916 | F27: =Results_M!D27 -> 109418.4119
B28: Total number of calls at peak week | C28: =IF(CenterOpen=2,"",(IFERROR(INDEX(Calculations!$M$15:$M$61,MATCH($K$12,Cases_Hosp!$B$14:$B$60,0)),""))) -> 7321891.575 | D28: =IF(CenterOpen=2,"",(IFERROR(INDEX(Calculations!$N$15:$N$61,MATCH($K$12,Cases_Hosp!$B$14:$B$60,0)),""))) -> 17734430.85 | E28: =Results_M!C28 -> 231485.1737 | F28: =Results_M!D28 -> 300930.7258
B29: * See Ref. 5 (Figure 3) for types of calls | E29: =SUM(C25:C26) -> 5681787.862 | F29: =SUM(D25:D26) -> 13761918.34 | I29: =A2 -> 1957-Like Pandemic
E30: Space Holder for Scenarios comparison: Copy and paste the results from column C and D.
B31: 1. Current scenario (Your Selection)
C33: Minimum | D33: Maximum | E33: Minimum | F33: Maximum | G33: Minimum | H33: Maximum | I33: Minimum | J33: Maximum | K33: Minimum | L33: Maximum
B34: Number of information-only calls during first week of call center opening | C34: =C20 -> 15.59961 | D34: 37.78398
B35: Number of symptomatic calls during first week of call center opening | C35: 14.51307 | D35: 35.15226
B36: Number of calls ended prematurely during first week of call center opening | C36: 8.69232 | D36: 21.05376
B37: Total number of calls during first week of call center opening | C37: 38.805 | D37: 93.99
B38: At peak | D38: =IF(CenterOpen=2,"",(IFERROR(INDEX(Calculations!$N$15:$N$61,MATCH(SUM(G30,G23),Cases_Hosp!$B$14:$B$60,0)),""))) -> 
B39: Number of information-only calls at peak week | C39: =IF(CenterOpen=2,"",IFERROR(INDEX(Calculations!$O$15:$O$61,MATCH($K$12,Cases_Hosp!$B$14:$B$60,0)),"")) -> 2943400.413 | D39: =IF(CenterOpen=2,"",(IFERROR(INDEX(Calculations!$P$15:$P$61,MATCH($K$12,Cases_Hosp!$B$14:$B$60,0)),""))) -> 7129241.202
B40: Number of symptomatic calls at peak week | C40: =IF(CenterOpen=2,"",(IFERROR(INDEX(Calculations!$Q$15:$Q$61,MATCH($K$12,Cases_Hosp!$B$14:$B$60,0)),""))) -> 2738387.449 | D40: =IF(CenterOpen=2,"",IFERROR(INDEX(Calculations!$R$15:$R$61,MATCH($K$12,Cases_Hosp!$B$14:$B$60,0)),"")) -> 6632677.138
B41: Number of calls ended prematurely at peak week | C41: =IF(CenterOpen=2,"",(IFERROR(INDEX(Calculations!$S$15:$S$61,MATCH($K$12,Cases_Hosp!$B$14:$B$60,0)),""))) -> 1640103.713 | D41: =IF(CenterOpen=2,"",(IFERROR(INDEX(Calculations!$T$15:$T$61,MATCH($K$12,Cases_Hosp!$B$14:$B$60,0)),""))) -> 3972512.51
B42: Total number of calls at peak week | C42: =IF(CenterOpen=2,"",(IFERROR(INDEX(Calculations!$M$15:$M$61,MATCH($K$12,Cases_Hosp!$B$14:$B$60,0)),""))) -> 7321891.575 | D42: =IF(CenterOpen=2,"",(IFERROR(INDEX(Calculations!$N$15:$N$61,MATCH($K$12,Cases_Hosp!$B$14:$B$60,0)),""))) -> 17734430.85
B44: Total calls during the pandemic | C44: =Calculations!M62 -> 28052382.26 | D44: =Calculations!N62 -> 67945971.09
C45: <======== Estimates are interactive =========> | E45: <============================================================================ Estimates are not interactive=================================================>
E51: =A2 -> 1957-Like Pandemic
A52: Formatted table for MS word
A53: Types of calls | D53: First week of call center opening | F53: At the peak week of the pandemic
C54: Method used | D54: Low estimate | E54: High estimate | F54: Low estimate | G54: High estimate
A55: Information only calls | C55: Hospital-to-Call | D55: =C20 -> 15.59961 | E55: =D20 -> 37.78398 | F55: =C25 -> 2943400.413 | G55: =D25 -> 7129241.202
C56: Media-to-Call | D56: =Results_M!C20 -> 51505.45115 | E56: =Results_M!D20 -> 66957.0865 | F56: =Results_M!C25 -> 51505.45115 | G56: =Results_M!D25 -> 66957.0865
A57: Symptomatic calls | C57: Hospital-to-Call | D57: =C21 -> 14.51307 | E57: =D21 -> 35.15226 | F57: =C26 -> 2738387.449 | G57: =D26 -> 6632677.138
C58: Media-to-Call | D58: =Results_M!C21 -> 95811.7134 | E58: =Results_M!D21 -> 124555.2274 | F58: =Results_M!C26 -> 95811.7134 | G58: =Results_M!D26 -> 124555.2274
A59: Calls ended prematurely | C59: Hospital-to-Call | D59: =C22 -> 8.69232 | E59: =D22 -> 21.05376 | F59: =C27 -> 1640103.713 | G59: =D27 -> 3972512.51
C60: Media-to-Call | D60: =Results_M!C22 -> 84168.00916 | E60: =Results_M!D22 -> 109418.4119 | F60: =Results_M!C27 -> 84168.00916 | G60: =Results_M!D27 -> 109418.4119
A61: Total calls per week | C61: Hospital-to-Call | D61: =C23 -> 38.805 | E61: =D23 -> 93.99 | F61: =C28 -> 7321891.575 | G61: =D28 -> 17734430.85
C62: Media-to-Call | D62: =Results_M!C23 -> 231485.1737 | E62: =Results_M!D23 -> 300930.7258 | F62: =Results_M!C28 -> 231485.1737 | G62: =Results_M!D28 -> 300930.7258
A63: Total calls during the pandemic: | D63: Low | F63: High
C64: Hospital-to-Call | D64: =C44 -> 28052382.26 | F64: =D44 -> 67945971.09
C65: Media-to-Call | D65: =Results_M!C44 -> 2860060.238 | F65: =Results_M!D44 -> 3718078.31
C82: Minimum | D82: Maximum
B83: Number of information-only calls during peak week | C83: =IFERROR(INDEX('Call_volume-peak'!$E$12:$E$58,SUM(MATCH(MAX(Cases_Hosp!$D$14:$D$60), Cases_Hosp!$D$14:$D$60,0), $G$8)),"") ->  | D83: =IFERROR(INDEX('Call_volume-peak'!$F$12:$F$58,SUM(MATCH(MAX(Cases_Hosp!$D$14:$D$60), Cases_Hosp!$D$14:$D$60,0), $G$8)),"") -> 
B84: Number of symptomatic calls during peak week | C84: =IFERROR(IF(CenterOpen = 2, INDEX('Call_volume-peak'!$G$12:$G$58,SUM(MATCH(MAX(Cases_Hosp!$D$14:$D$60), Cases_Hosp!$D$14:$D$60,0), $G$8)), ""),"") ->  | D84: =IFERROR(IF(CenterOpen = 2, INDEX('Call_volume-peak'!$H$12:$H$58,SUM(MATCH(MAX(Cases_Hosp!$D$14:$D$60), Cases_Hosp!$D$14:$D$60,0),$G$8)),""),"") -> 
B85: Number of calls ended prematurely during peak week | C85: =IFERROR(INDEX('Call_volume-peak'!$I$12:$I$58,SUM(MATCH(MAX(Cases_Hosp!$D$14:$D$60), Cases_Hosp!$D$14:$D$60,0), $G$8)),"") ->  | D85: =IFERROR(INDEX('Call_volume-peak'!$J$12:$J$58,SUM(MATCH(MAX(Cases_Hosp!$D$14:$D$60), Cases_Hosp!$D$14:$D$60,0), $G$8)),"") -> 
B86: Total number of calls during peak week | C86: =IFERROR(INDEX('Call_volume-peak'!$C$12:$C$58,SUM(MATCH(MAX(Cases_Hosp!$D$14:$D$60), Cases_Hosp!$D$14:$D$60,0), $G$8)),"") ->  | D86: =IFERROR(INDEX('Call_volume-peak'!$D$12:$D$58,SUM(MATCH(MAX(Cases_Hosp!$D$14:$D$60), Cases_Hosp!$D$14:$D$60,0),$G$8)),"") -> 
B88: Total Calls During the Pandemic | C88: ='Call_volume-peak'!C60 -> 0 | D88: ='Call_volume-peak'!D60 -> 0
B90: (Note: set the Peak-to-end method and flu line opened at "peak" to get table and graphs)

Sheet Results_M (hidden)
F4: Attack rate | G4: =IF(AttackRate_m=1,20,IF(AttackRate_m=2,30)) -> 20 | H4: %
F6: Seed | G6: =IF(Seed_m=1,10,IF(Seed_m=2,100)) -> 10 | H6: %
F8: Flu line opened | G8: =WKOpenCallCenter_m -> 1 | H8: week(s) after | I8: =IF(CenterOpen_m = 1, "START", IF(CenterOpen_m = 2, "PEAK")) -> START | J8: of pandemic | N8: (CenterOpen = 1, "START", IF(CenterOpen = 2, "PEAK"))
F10: Media activity level is | G10: =IF(MediaActivityCenterOpen_m= 1, "LOW", IF(MediaActivityCenterOpen_m= 2, "MODERATE", IF(MediaActivityCenterOpen_m = 3, "HIGH"))) -> LOW | H10: at start of pandemic
F12: Media activity level is | G12: =IF(MediaActivityPandemic_m = 1, "LOW", IF(MediaActivityPandemic_m= 2, "MODERATE", IF(MediaActivityPandemic_m= 3, "HIGH"))) -> LOW | H12: during pandemic | J12: Peak Week | K12: =PeakWk_m -> 23
F14: Method used to calculate call volume from start to peak of the pandemic | G14: =IF(Data_Start_to_Peak_m= 1, "HOSP-TO-CALL RATIO", IF(Data_Start_to_Peak_m= 2, "Media-to-call Rate", IF(Data_Start_to_Peak_m= "MEDIA COUNTS - 2nd WAVE",0))) -> Media-to-call Rate
B15: =IF(CenterOpen_m>1,"Table: Scroll Down to line 61 if call centers are open after the peak", "") ->  | F15: Week after case appear | G15: =WkCasesStartAppear_m -> 4
B16: Estimated call volumes by week after start of pandemic
B17: =IF('Data Lists'!C40=4,"1957-Like Pandemic",IF('Data Lists'!C40=3,"1968-Like Pandemic",IF('Data Lists'!C40=2,"2009-Like Pandemic","Mild Pandemic "))) -> 1957-Like Pandemic | G17: =G8 -> 1
C19: Minimum | D19: Maximum | E19: ATTACK RATE: | F19: =Calculations_M!H4/100 -> 0.2 | G19: Method: Media-to-call-rate Ratio
B20: Number of information-only calls during first week of call center opening | C20: =IF(CenterOpen_m=2,"",(IFERROR(INDEX(Calculations_M!$I$15:$I$61,MATCH(SUM($G$15,$G$8),Calculations_M!$A$15:$A$61,0)),""))) -> 51505.45115 | D20: =IF(CenterOpen_m=2,"",(IFERROR(INDEX(Calculations_M!$J$15:$J$61,MATCH(SUM($G$15,$G$8),Calculations_M!$A$15:$A$61,0)),""))) -> 66957.0865
B21: Number of symptomatic calls during first week of call center opening | C21: =IF(CenterOpen_m=2,"",(IFERROR(INDEX(Calculations_M!$K$15:$K$61,MATCH(SUM($G$15,$G$8),Calculations_M!$A$15:$A$61,0)),""))) -> 95811.7134 | D21: =IF(CenterOpen_m=2,"",(IFERROR(INDEX(Calculations_M!$L$15:$L$61,MATCH(SUM($G$15,$G$8),Calculations_M!$A$15:$A$61,0)),""))) -> 124555.2274
B22: Number of calls ended prematurely during first week of call center opening | C22: =IF(CenterOpen_m=2,"",(IFERROR(INDEX(Calculations_M!$M$15:$M$61,MATCH(SUM($G$15,$G$8),Calculations_M!$A$15:$A$61,0)),""))) -> 84168.00916 | D22: =IF(CenterOpen_m=2,"",(IFERROR(INDEX(Calculations_M!$N$15:$N$61,MATCH(SUM($G$15,$G$8),Calculations_M!$A$15:$A$61,0)),""))) -> 109418.4119
B23: Total number of calls during first week of call center opening | C23: =IF(CenterOpen_m=2,"",(IFERROR(INDEX(Calculations_M!$G$15:$G$61,MATCH(SUM($G$15,$G$8),Calculations_M!$A$15:$A$61,0)),""))) -> 231485.1737 | D23: =IF(CenterOpen_m=2,"",(IFERROR(INDEX(Calculations_M!$H$15:$H$61,MATCH(SUM($G$15,$G$8),Calculations_M!$A$15:$A$61,0)),""))) -> 300930.7258
B24: At peak
B25: Number of information-only calls at peak week | C25: =IF(CenterOpen_m=2,"",(IFERROR(INDEX(Calculations_M!$I$15:$I$61,MATCH(SUM($G$15,$G$8),Calculations_M!$A$15:$A$61,0)),""))) -> 51505.45115 | D25: =IF(CenterOpen_m=2,"",(IFERROR(INDEX(Calculations_M!$J$15:$J$61,MATCH(SUM($G$15,$G$8),Calculations_M!$A$15:$A$61,0)),""))) -> 66957.0865
B26: Number of symptomatic calls at peak week | C26: =IF(CenterOpen_m=2,"",(IFERROR(INDEX(Calculations_M!$K$15:$K$61,MATCH(SUM($G$15,$G$8),Calculations_M!$A$15:$A$61,0)),""))) -> 95811.7134 | D26: =IF(CenterOpen_m=2,"",(IFERROR(INDEX(Calculations_M!$L$15:$L$61,MATCH(SUM($G$15,$G$8),Calculations_M!$A$15:$A$61,0)),""))) -> 124555.2274
B27: Number of calls ended prematurely at peak week | C27: =IF(CenterOpen_m=2,"",(IFERROR(INDEX(Calculations_M!$M$15:$M$61,MATCH(SUM($G$15,$G$8),Calculations_M!$A$15:$A$61,0)),""))) -> 84168.00916 | D27: =IF(CenterOpen_m=2,"",(IFERROR(INDEX(Calculations_M!$N$15:$N$61,MATCH(SUM($G$15,$G$8),Calculations_M!$A$15:$A$61,0)),""))) -> 109418.4119
B28: Total number of calls at peak week | C28: =IF(CenterOpen_m=2,"",(IFERROR(INDEX(Calculations_M!$G$15:$G$61,MATCH(SUM($G$15,$G$8),Calculations_M!$A$15:$A$61,0)),""))) -> 231485.1737 | D28: =IF(CenterOpen_m=2,"",(IFERROR(INDEX(Calculations_M!$H$15:$H$61,MATCH(SUM($G$15,$G$8),Calculations_M!$A$15:$A$61,0)),""))) -> 300930.7258
B29: * See Ref. 5 (Figure 3) for types of calls | G29: =B17 -> 1957-Like Pandemic | H29: Note: Only one attack rate is chosen at a time
E30: Space Holder for Scenarios comparison: Copy and paste the results from column C and D.
B31: 1. Current scenario (Your Selection)
C33: Minimum | D33: Maximum | E33: Minimum | F33: Maximum | G33: Minimum | H33: Maximum | I33: Minimum | J33: Maximum | K33: Minimum | L33: Maximum
B34: Number of information-only calls during first week of call center opening | C34: =C20 -> 51505.45115 | D34: 66957.0865
B35: Number of symptomatic calls during first week of call center opening | C35: 95811.7134 | D35: 124555.2274
B36: Number of calls ended prematurely during first week of call center opening | C36: 84168.00916 | D36: 109418.4119
B37: Total number of calls during first week of call center opening | C37: 231485.1737 | D37: 300930.7258
B38: At peak | D38: =IF(CenterOpen_m=2,"",(IFERROR(INDEX(Calculations_M!#REF!,MATCH(SUM(G30,G23),Cases_Hosp_M!$B$14:$B$60,0)),""))) -> 
B39: Number of information-only calls at peak week | C39: 51505.45115 | D39: 66957.0865
B40: Number of symptomatic calls at peak week | C40: =C26 -> 95811.7134 | D40: 124555.2274
B41: Number of calls ended prematurely at peak week | C41: 84168.00916 | D41: 109418.4119
B42: Total number of calls at peak week | C42: 231485.1737 | D42: 300930.7258
B44: Total calls during the pandemic | C44: =Calculations_M!G62 -> 2860060.238 | D44: =Calculations_M!H62 -> 3718078.31
C45: <======== Estimates are interactive =========> | E45: <============================================================================ Estimates are not interactive=================================================>
A53: =B17 -> 1957-Like Pandemic
A55: Formatted table for MS word:
A56: Types of calls | D56: First week of call center opening | F56: At the peak week of the pandemic
C57: Modeling Method | D57: Low estimate | E57: High estimate | F57: Low estimate | G57: High estimate
A58: Information only calls | C58: Hospital-to-Call | D58: =Results!D55 -> 15.59961 | E58: =Results!E55 -> 37.78398 | F58: =Results!F55 -> 2943400.413 | G58: =Results!G55 -> 7129241.202
C59: Media-to-Call | D59: =Results!D56 -> 51505.45115 | E59: =Results!E56 -> 66957.0865 | F59: =Results!F56 -> 51505.45115 | G59: =Results!G56 -> 66957.0865
A60: Symptomatic calls | C60: Hospital-to-Call | D60: =Results!D57 -> 14.51307 | E60: =Results!E57 -> 35.15226 | F60: =Results!F57 -> 2738387.449 | G60: =Results!G57 -> 6632677.138
C61: Media-to-Call | D61: =Results!D58 -> 95811.7134 | E61: =Results!E58 -> 124555.2274 | F61: =Results!F58 -> 95811.7134 | G61: =Results!G58 -> 124555.2274
A62: Calls ended prematurely | C62: Hospital-to-Call | D62: =Results!D59 -> 8.69232 | E62: =Results!E59 -> 21.05376 | F62: =Results!F59 -> 1640103.713 | G62: =Results!G59 -> 3972512.51
C63: Media-to-Call | D63: =Results!D60 -> 84168.00916 | E63: =Results!E60 -> 109418.4119 | F63: =Results!F60 -> 84168.00916 | G63: =Results!G60 -> 109418.4119
A64: Total calls per week | C64: Hospital-to-Call | D64: =Results!D61 -> 38.805 | E64: =Results!E61 -> 93.99 | F64: =Results!F61 -> 7321891.575 | G64: =Results!G61 -> 17734430.85
C65: Media-to-Call | D65: =Results!D62 -> 231485.1737 | E65: =Results!E62 -> 300930.7258 | F65: =Results!F62 -> 231485.1737 | G65: =Results!G62 -> 300930.7258
A66: Total calls during the pandemic | D66: Low | F66: High
C67: Hospital-to-Call | D67: =Results!D64 -> 28052382.26 | F67: =Results!F64 -> 67945971.09
C68: Media-to-Call | D68: =Results!D65 -> 2860060.238 | F68: =Results!F65 -> 3718078.31
C92: Minimum | D92: Maximum
B93: Number of information-only calls during peak week | C93: =IFERROR(INDEX('Call_volume-peak_M'!$E$12:$E$58,SUM(MATCH(MAX(Cases_Hosp_M!$D$14:$D$60), Cases_Hosp_M!$D$14:$D$60,0), $G$8)),"") ->  | D93: =IFERROR(INDEX('Call_volume-peak_M'!$F$12:$F$58,SUM(MATCH(MAX(Cases_Hosp_M!$D$14:$D$60), Cases_Hosp_M!$D$14:$D$60,0), $G$8)),"") -> 
B94: Number of symptomatic calls during peak week | C94: =IFERROR(IF(CenterOpen_m = 2, INDEX('Call_volume-peak_M'!$G$12:$G$58,SUM(MATCH(MAX(Cases_Hosp_M!$D$14:$D$60), Cases_Hosp_M!$D$14:$D$60,0), $G$8)), ""),"") ->  | D94: =IFERROR(IF(CenterOpen_m = 2, INDEX('Call_volume-peak_M'!$H$12:$H$58,SUM(MATCH(MAX(Cases_Hosp_M!$D$14:$D$60), Cases_Hosp_M!$D$14:$D$60,0),$G$8)),""),"") -> 
B95: Number of calls ended prematurely during peak week | C95: =IFERROR(INDEX('Call_volume-peak_M'!$I$12:$I$58,SUM(MATCH(MAX(Cases_Hosp_M!$D$14:$D$60), Cases_Hosp_M!$D$14:$D$60,0), $G$8)),"") ->  | D95: =IFERROR(INDEX('Call_volume-peak_M'!$J$12:$J$58,SUM(MATCH(MAX(Cases_Hosp_M!$D$14:$D$60), Cases_Hosp_M!$D$14:$D$60,0), $G$8)),"") -> 
B96: Total number of calls during peak week | C96: =IFERROR(INDEX('Call_volume-peak_M'!$C$12:$C$58,SUM(MATCH(MAX(Cases_Hosp_M!$D$14:$D$60), Cases_Hosp_M!$D$14:$D$60,0), $G$8)),"") ->  | D96: =IFERROR(INDEX('Call_volume-peak_M'!$D$12:$D$58,SUM(MATCH(MAX(Cases_Hosp_M!$D$14:$D$60), Cases_Hosp_M!$D$14:$D$60,0),$G$8)),"") -> 
B98: Total Calls During the Pandemic | C98: ='Call_volume-peak_M'!C60 -> 0 | D98: ='Call_volume-peak_M'!D60 -> 0
B100: (Note: set the Peak-to-end method and flu line opened at "peak" to get table and graphs)

Sheet Charts
A1: =Model_Dashboard!E12 -> 1957-Like Pandemic | C1: Estimated call volumes by week after start of pandemic
A3: Cross check: Attack rate and Call center opening week match for both methods.
A4: Method | B4: Attack Rate | C4: Call Centre opening week after start of pandemic | D4: Scenario
A5: Call to hospitalization ratio | B5: =IF(AttackRate=1,20%,30%) -> 0.3 | C5: =WKOpenCallCenter -> 1 | D5: =Model_Dashboard!E12 -> 1957-Like Pandemic
A6: Media_Method | B6: =IF(AttackRate_m=1,20%,30%) -> 0.2 | C6: =WKOpenCallCenter_m -> 1
A37: Labels:
A38: High estimate
A39: Low estimate
C41: Call-to-hospitalization Ratio Method | H41: Media-to-call-rate Ratio Method
B42: These data are for making charts.
B43: Note: The model computes one scenario (method at a time). Please copy and paste the estimates from "column D and E" after choosing the scenario
I47: Media count
D48: Attack Rate | E48: =B5 -> 0.3
D49: Total Number of Estimated calls by Week
D50: 20% Attack Rate | H50: 30% Attack Rate
B51: Week | C51: Week when pandemic starts | D51: =C41 -> Call-to-hospitalization Ratio Method | F51: =H41 -> Media-to-call-rate Ratio Method | H51: =D51 -> Call-to-hospitalization Ratio Method | J51: =F51 -> Media-to-call-rate Ratio Method
B52: 0 | D52: Low | E52: High | F52: Low | G52: High | H52: Low | I52: High | J52: Low | K52: High
B53: =Calculations!A15 -> 1 | C53: =Calculations!B15 -> 1 | D53: =IF(AttackRate=1,Calculations!M15) -> FALSE | E53: =IF(AttackRate=1,Calculations!N15) -> FALSE | F53: =IF(AttackRate=1,Calculations_M!G15) -> FALSE | G53: =IF(AttackRate=1,Calculations_M!H15) -> FALSE | H53: =IF(AttackRate=2,Calculations!M15) -> 0 | I53: =IF(AttackRate=2,Calculations!N15) -> 0 | J53: =IF(AttackRate=2,Calculations_M!G15) -> 0 | K53: =IF(AttackRate=2,Calculations_M!H15) -> 0
B54: =Calculations!A16 -> 2 | C54: =Calculations!B16 -> 2 | D54: =IF(AttackRate=1,Calculations!M16) -> FALSE | E54: =IF(AttackRate=1,Calculations!N16) -> FALSE | F54: =IF(AttackRate=1,Calculations_M!G16) -> FALSE | G54: =IF(AttackRate=1,Calculations_M!H16) -> FALSE | H54: =IF(AttackRate=2,Calculations!M16) -> 38.805 | I54: =IF(AttackRate=2,Calculations!N16) -> 93.99 | J54: =IF(AttackRate=2,Calculations_M!G16) -> 0 | K54: =IF(AttackRate=2,Calculations_M!H16) -> 0
B55: =Calculations!A17 -> 3 | C55: =Calculations!B17 -> 3 | D55: =IF(AttackRate=1,Calculations!M17) -> FALSE | E55: =IF(AttackRate=1,Calculations!N17) -> FALSE | F55: =IF(AttackRate=1,Calculations_M!G17) -> FALSE | G55: =IF(AttackRate=1,Calculations_M!H17) -> FALSE | H55: =IF(AttackRate=2,Calculations!M17) -> 119.4 | I55: =IF(AttackRate=2,Calculations!N17) -> 289.2 | J55: =IF(AttackRate=2,Calculations_M!G17) -> 0 | K55: =IF(AttackRate=2,Calculations_M!H17) -> 0
B56: =Calculations!A18 -> 4 | C56: =Calculations!B18 -> 4 | D56: =IF(AttackRate=1,Calculations!M18) -> FALSE | E56: =IF(AttackRate=1,Calculations!N18) -> FALSE | F56: =IF(AttackRate=1,Calculations_M!G18) -> FALSE | G56: =IF(AttackRate=1,Calculations_M!H18) -> FALSE | H56: =IF(AttackRate=2,Calculations!M18) -> 358.2 | I56: =IF(AttackRate=2,Calculations!N18) -> 867.6 | J56: =IF(AttackRate=2,Calculations_M!G18) -> 0 | K56: =IF(AttackRate=2,Calculations_M!H18) -> 0
B57: =Calculations!A19 -> 5 | C57: =Calculations!B19 -> 5 | D57: =IF(AttackRate=1,Calculations!M19) -> FALSE | E57: =IF(AttackRate=1,Calculations!N19) -> FALSE | F57: =IF(AttackRate=1,Calculations_M!G19) -> FALSE | G57: =IF(AttackRate=1,Calculations_M!H19) -> FALSE | H57: =IF(AttackRate=2,Calculations!M19) -> 1014.9 | I57: =IF(AttackRate=2,Calculations!N19) -> 2458.2 | J57: =IF(AttackRate=2,Calculations_M!G19) -> 231485.1737 | K57: =IF(AttackRate=2,Calculations_M!H19) -> 300930.7258
B58: =Calculations!A20 -> 6 | C58: =Calculations!B20 -> 6 | D58: =IF(AttackRate=1,Calculations!M20) -> FALSE | E58: =IF(AttackRate=1,Calculations!N20) -> FALSE | F58: =IF(AttackRate=1,Calculations_M!G20) -> FALSE | G58: =IF(AttackRate=1,Calculations_M!H20) -> FALSE | H58: =IF(AttackRate=2,Calculations!M20) -> 3223.8 | I58: =IF(AttackRate=2,Calculations!N20) -> 7808.4 | J58: =IF(AttackRate=2,Calculations_M!G20) -> 231485.1737 | K58: =IF(AttackRate=2,Calculations_M!H20) -> 300930.7258
B59: =Calculations!A21 -> 7 | C59: =Calculations!B21 -> 7 | D59: =IF(AttackRate=1,Calculations!M21) -> FALSE | E59: =IF(AttackRate=1,Calculations!N21) -> FALSE | F59: =IF(AttackRate=1,Calculations_M!G21) -> FALSE | G59: =IF(AttackRate=1,Calculations_M!H21) -> FALSE | H59: =IF(AttackRate=2,Calculations!M21) -> 10193.775 | I59: =IF(AttackRate=2,Calculations!N21) -> 24690.45 | J59: =IF(AttackRate=2,Calculations_M!G21) -> 414236.6266 | K59: =IF(AttackRate=2,Calculations_M!H21) -> 538507.6146
B60: =Calculations!A22 -> 8 | C60: =Calculations!B22 -> 8 | D60: =IF(AttackRate=1,Calculations!M22) -> FALSE | E60: =IF(AttackRate=1,Calculations!N22) -> FALSE | F60: =IF(AttackRate=1,Calculations_M!G22) -> FALSE | G60: =IF(AttackRate=1,Calculations_M!H22) -> FALSE | H60: =IF(AttackRate=2,Calculations!M22) -> 31820.1 | I60: =IF(AttackRate=2,Calculations!N22) -> 77071.8 | J60: =IF(AttackRate=2,Calculations_M!G22) -> 548254.3588 | K60: =IF(AttackRate=2,Calculations_M!H22) -> 712730.6664
B61: =Calculations!A23 -> 9 | C61: =Calculations!B23 -> 9 | D61: =IF(AttackRate=1,Calculations!M23) -> FALSE | E61: =IF(AttackRate=1,Calculations!N23) -> FALSE | F61: =IF(AttackRate=1,Calculations_M!G23) -> FALSE | G61: =IF(AttackRate=1,Calculations_M!H23) -> FALSE | H61: =IF(AttackRate=2,Calculations!M23) -> 99012.45 | I61: =IF(AttackRate=2,Calculations!N23) -> 239819.1 | J61: =IF(AttackRate=2,Calculations_M!G23) -> 414236.6266 | K61: =IF(AttackRate=2,Calculations_M!H23) -> 538507.6146
B62: =Calculations!A24 -> 10 | C62: =Calculations!B24 -> 10 | D62: =IF(AttackRate=1,Calculations!M24) -> FALSE | E62: =IF(AttackRate=1,Calculations!N24) -> FALSE | F62: =IF(AttackRate=1,Calculations_M!G24) -> FALSE | G62: =IF(AttackRate=1,Calculations_M!H24) -> FALSE | H62: =IF(AttackRate=2,Calculations!M24) -> 304887.9 | I62: =IF(AttackRate=2,Calculations!N24) -> 738472.2 | J62: =IF(AttackRate=2,Calculations_M!G24) -> 231485.1737 | K62: =IF(AttackRate=2,Calculations_M!H24) -> 300930.7258
B63: =Calculations!A25 -> 11 | C63: =Calculations!B25 -> 11 | D63: =IF(AttackRate=1,Calculations!M25) -> FALSE | E63: =IF(AttackRate=1,Calculations!N25) -> FALSE | F63: =IF(AttackRate=1,Calculations_M!G25) -> FALSE | G63: =IF(AttackRate=1,Calculations_M!H25) -> FALSE | H63: =IF(AttackRate=2,Calculations!M25) -> 908156.4 | I63: =IF(AttackRate=2,Calculations!N25) -> 2199655.2 | J63: =IF(AttackRate=2,Calculations_M!G25) -> 134017.7322 | K63: =IF(AttackRate=2,Calculations_M!H25) -> 174223.0518
B64: =Calculations!A26 -> 12 | C64: =Calculations!B26 -> 12 | D64: =IF(AttackRate=1,Calculations!M26) -> FALSE | E64: =IF(AttackRate=1,Calculations!N26) -> FALSE | F64: =IF(AttackRate=1,Calculations_M!G26) -> FALSE | G64: =IF(AttackRate=1,Calculations_M!H26) -> FALSE | H64: =IF(AttackRate=2,Calculations!M26) -> 2459923.575 | I64: =IF(AttackRate=2,Calculations!N26) -> 5958206.85 | J64: =IF(AttackRate=2,Calculations_M!G26) -> 85284.01137 | K64: =IF(AttackRate=2,Calculations_M!H26) -> 110869.2148
B65: =Calculations!A27 -> 13 | C65: =Calculations!B27 -> 13 | D65: =IF(AttackRate=1,Calculations!M27) -> FALSE | E65: =IF(AttackRate=1,Calculations!N27) -> FALSE | F65: =IF(AttackRate=1,Calculations_M!G27) -> FALSE | G65: =IF(AttackRate=1,Calculations_M!H27) -> FALSE | H65: =IF(AttackRate=2,Calculations!M27) -> 5270151.825 | I65: =IF(AttackRate=2,Calculations!N27) -> 12764890.35 | J65: =IF(AttackRate=2,Calculations_M!G27) -> 39596.14814 | K65: =IF(AttackRate=2,Calculations_M!H27) -> 51474.99258
B66: =Calculations!A28 -> 14 | C66: =Calculations!B28 -> 14 | D66: =IF(AttackRate=1,Calculations!M28) -> FALSE | E66: =IF(AttackRate=1,Calculations!N28) -> FALSE | F66: =IF(AttackRate=1,Calculations_M!G28) -> FALSE | G66: =IF(AttackRate=1,Calculations_M!H28) -> FALSE | H66: =IF(AttackRate=2,Calculations!M28) -> 7321891.575 | I66: =IF(AttackRate=2,Calculations!N28) -> 17734430.85 | J66: =IF(AttackRate=2,Calculations_M!G28) -> 18275.14529 | K66: =IF(AttackRate=2,Calculations_M!H28) -> 23757.68888
B67: =Calculations!A29 -> 15 | C67: =Calculations!B29 -> 15 | D67: =IF(AttackRate=1,Calculations!M29) -> FALSE | E67: =IF(AttackRate=1,Calculations!N29) -> FALSE | F67: =IF(AttackRate=1,Calculations_M!G29) -> FALSE | G67: =IF(AttackRate=1,Calculations_M!H29) -> FALSE | H67: =IF(AttackRate=2,Calculations!M29) -> 6002491.725 | I67: =IF(AttackRate=2,Calculations!N29) -> 14538698.55 | J67: =IF(AttackRate=2,Calculations_M!G29) -> 18275.14529 | K67: =IF(AttackRate=2,Calculations_M!H29) -> 23757.68888
B68: =Calculations!A30 -> 16 | C68: =Calculations!B30 -> 16 | D68: =IF(AttackRate=1,Calculations!M30) -> FALSE | E68: =IF(AttackRate=1,Calculations!N30) -> FALSE | F68: =IF(AttackRate=1,Calculations_M!G30) -> FALSE | G68: =IF(AttackRate=1,Calculations_M!H30) -> FALSE | H68: =IF(AttackRate=2,Calculations!M30) -> 3267754.125 | I68: =IF(AttackRate=2,Calculations!N30) -> 7914861.75 | J68: =IF(AttackRate=2,Calculations_M!G30) -> 18275.14529 | K68: =IF(AttackRate=2,Calculations_M!H30) -> 23757.68888
B69: =Calculations!A31 -> 17 | C69: =Calculations!B31 -> 17 | D69: =IF(AttackRate=1,Calculations!M31) -> FALSE | E69: =IF(AttackRate=1,Calculations!N31) -> FALSE | F69: =IF(AttackRate=1,Calculations_M!G31) -> FALSE | G69: =IF(AttackRate=1,Calculations_M!H31) -> FALSE | H69: =IF(AttackRate=2,Calculations!M31) -> 1434576.075 | I69: =IF(AttackRate=2,Calculations!N31) -> 3474701.85 | J69: =IF(AttackRate=2,Calculations_M!G31) -> 18275.14529 | K69: =IF(AttackRate=2,Calculations_M!H31) -> 23757.68888
B70: =Calculations!A32 -> 18 | C70: =Calculations!B32 -> 18 | D70: =IF(AttackRate=1,Calculations!M32) -> FALSE | E70: =IF(AttackRate=1,Calculations!N32) -> FALSE | F70: =IF(AttackRate=1,Calculations_M!G32) -> FALSE | G70: =IF(AttackRate=1,Calculations_M!H32) -> FALSE | H70: =IF(AttackRate=2,Calculations!M32) -> 575761.725 | I70: =IF(AttackRate=2,Calculations!N32) -> 1394558.55 | J70: =IF(AttackRate=2,Calculations_M!G32) -> 18275.14529 | K70: =IF(AttackRate=2,Calculations_M!H32) -> 23757.68888
B71: =Calculations!A33 -> 19 | C71: =Calculations!B33 -> 19 | D71: =IF(AttackRate=1,Calculations!M33) -> FALSE | E71: =IF(AttackRate=1,Calculations!N33) -> FALSE | F71: =IF(AttackRate=1,Calculations_M!G33) -> FALSE | G71: =IF(AttackRate=1,Calculations_M!H33) -> FALSE | H71: =IF(AttackRate=2,Calculations!M33) -> 223203.375 | I71: =IF(AttackRate=2,Calculations!N33) -> 540623.25 | J71: =IF(AttackRate=2,Calculations_M!G33) -> 18275.14529 | K71: =IF(AttackRate=2,Calculations_M!H33) -> 23757.68888
B72: =Calculations!A34 -> 20 | C72: =Calculations!B34 -> 20 | D72: =IF(AttackRate=1,Calculations!M34) -> FALSE | E72: =IF(AttackRate=1,Calculations!N34) -> FALSE | F72: =IF(AttackRate=1,Calculations_M!G34) -> FALSE | G72: =IF(AttackRate=1,Calculations_M!H34) -> FALSE | H72: =IF(AttackRate=2,Calculations!M34) -> 85400.85 | I72: =IF(AttackRate=2,Calculations!N34) -> 206850.3 | J72: =IF(AttackRate=2,Calculations_M!G34) -> 18275.14529 | K72: =IF(AttackRate=2,Calculations_M!H34) -> 23757.68888
B73: =Calculations!A35 -> 21 | C73: =Calculations!B35 -> 21 | D73: =IF(AttackRate=1,Calculations!M35) -> FALSE | E73: =IF(AttackRate=1,Calculations!N35) -> FALSE | F73: =IF(AttackRate=1,Calculations_M!G35) -> FALSE | G73: =IF(AttackRate=1,Calculations_M!H35) -> FALSE | H73: =IF(AttackRate=2,Calculations!M35) -> 32506.65 | I73: =IF(AttackRate=2,Calculations!N35) -> 78734.7 | J73: =IF(AttackRate=2,Calculations_M!G35) -> 18275.14529 | K73: =IF(AttackRate=2,Calculations_M!H35) -> 23757.68888
B74: =Calculations!A36 -> 22 | C74: =Calculations!B36 -> 22 | D74: =IF(AttackRate=1,Calculations!M36) -> FALSE | E74: =IF(AttackRate=1,Calculations!N36) -> FALSE | F74: =IF(AttackRate=1,Calculations_M!G36) -> FALSE | G74: =IF(AttackRate=1,Calculations_M!H36) -> FALSE | H74: =IF(AttackRate=2,Calculations!M36) -> 12342.975 | I74: =IF(AttackRate=2,Calculations!N36) -> 29896.05 | J74: =IF(AttackRate=2,Calculations_M!G36) -> 18275.14529 | K74: =IF(AttackRate=2,Calculations_M!H36) -> 23757.68888
B75: =Calculations!A37 -> 23 | C75: =Calculations!B37 -> 23 | D75: =IF(AttackRate=1,Calculations!M37) -> FALSE | E75: =IF(AttackRate=1,Calculations!N37) -> FALSE | F75: =IF(AttackRate=1,Calculations_M!G37) -> FALSE | G75: =IF(AttackRate=1,Calculations_M!H37) -> FALSE | H75: =IF(AttackRate=2,Calculations!M37) -> 4701.375 | I75: =IF(AttackRate=2,Calculations!N37) -> 11387.25 | J75: =IF(AttackRate=2,Calculations_M!G37) -> 18275.14529 | K75: =IF(AttackRate=2,Calculations_M!H37) -> 23757.68888
B76: =Calculations!A38 -> 24 | C76: =Calculations!B38 -> 24 | D76: =IF(AttackRate=1,Calculations!M38) -> FALSE | E76: =IF(AttackRate=1,Calculations!N38) -> FALSE | F76: =IF(AttackRate=1,Calculations_M!G38) -> FALSE | G76: =IF(AttackRate=1,Calculations_M!H38) -> FALSE | H76: =IF(AttackRate=2,Calculations!M38) -> 1791 | I76: =IF(AttackRate=2,Calculations!N38) -> 4338 | J76: =IF(AttackRate=2,Calculations_M!G38) -> 18275.14529 | K76: =IF(AttackRate=2,Calculations_M!H38) -> 23757.68888
B77: =Calculations!A39 -> 25 | C77: =Calculations!B39 -> 25 | D77: =IF(AttackRate=1,Calculations!M39) -> FALSE | E77: =IF(AttackRate=1,Calculations!N39) -> FALSE | F77: =IF(AttackRate=1,Calculations_M!G39) -> FALSE | G77: =IF(AttackRate=1,Calculations_M!H39) -> FALSE | H77: =IF(AttackRate=2,Calculations!M39) -> 686.55 | I77: =IF(AttackRate=2,Calculations!N39) -> 1662.9 | J77: =IF(AttackRate=2,Calculations_M!G39) -> 18275.14529 | K77: =IF(AttackRate=2,Calculations_M!H39) -> 23757.68888
B78: =Calculations!A40 -> 26 | C78: =Calculations!B40 -> 26 | D78: =IF(AttackRate=1,Calculations!M40) -> FALSE | E78: =IF(AttackRate=1,Calculations!N40) -> FALSE | F78: =IF(AttackRate=1,Calculations_M!G40) -> FALSE | G78: =IF(AttackRate=1,Calculations_M!H40) -> FALSE | H78: =IF(AttackRate=2,Calculations!M40) -> 253.725 | I78: =IF(AttackRate=2,Calculations!N40) -> 614.55 | J78: =IF(AttackRate=2,Calculations_M!G40) -> 18275.14529 | K78: =IF(AttackRate=2,Calculations_M!H40) -> 23757.68888
B79: =Calculations!A41 -> 27 | C79: =Calculations!B41 -> 27 | D79: =IF(AttackRate=1,Calculations!M41) -> FALSE | E79: =IF(AttackRate=1,Calculations!N41) -> FALSE | F79: =IF(AttackRate=1,Calculations_M!G41) -> FALSE | G79: =IF(AttackRate=1,Calculations_M!H41) -> FALSE | H79: =IF(AttackRate=2,Calculations!M41) -> 89.55 | I79: =IF(AttackRate=2,Calculations!N41) -> 216.9 | J79: =IF(AttackRate=2,Calculations_M!G41) -> 18275.14529 | K79: =IF(AttackRate=2,Calculations_M!H41) -> 23757.68888
B80: =Calculations!A42 -> 28 | C80: =Calculations!B42 -> 28 | D80: =IF(AttackRate=1,Calculations!M42) -> FALSE | E80: =IF(AttackRate=1,Calculations!N42) -> FALSE | F80: =IF(AttackRate=1,Calculations_M!G42) -> FALSE | G80: =IF(AttackRate=1,Calculations_M!H42) -> FALSE | H80: =IF(AttackRate=2,Calculations!M42) -> 14.925 | I80: =IF(AttackRate=2,Calculations!N42) -> 36.15 | J80: =IF(AttackRate=2,Calculations_M!G42) -> 18275.14529 | K80: =IF(AttackRate=2,Calculations_M!H42) -> 23757.68888
B81: =Calculations!A43 -> 29 | C81: =Calculations!B43 -> 29 | D81: =IF(AttackRate=1,Calculations!M43) -> FALSE | E81: =IF(AttackRate=1,Calculations!N43) -> FALSE | F81: =IF(AttackRate=1,Calculations_M!G43) -> FALSE | G81: =IF(AttackRate=1,Calculations_M!H43) -> FALSE | H81: =IF(AttackRate=2,Calculations!M43) -> 14.925 | I81: =IF(AttackRate=2,Calculations!N43) -> 36.15 | J81: =IF(AttackRate=2,Calculations_M!G43) -> 18275.14529 | K81: =IF(AttackRate=2,Calculations_M!H43) -> 23757.68888
B82: =Calculations!A44 -> 30 | C82: =Calculations!B44 ->  | D82: =IF(AttackRate=1,Calculations!M44) -> FALSE | E82: =IF(AttackRate=1,Calculations!N44) -> FALSE | F82: =IF(AttackRate=1,Calculations_M!G44) -> FALSE | G82: =IF(AttackRate=1,Calculations_M!H44) -> FALSE | H82: =IF(AttackRate=2,Calculations!M44) -> 0 | I82: =IF(AttackRate=2,Calculations!N44) -> 0 | J82: =IF(AttackRate=2,Calculations_M!G44) -> 18275.14529 | K82: =IF(AttackRate=2,Calculations_M!H44) -> 23757.68888
B83: =Calculations!A45 -> 31 | C83: =Calculations!B45 ->  | D83: =IF(AttackRate=1,Calculations!M45) -> FALSE | E83: =IF(AttackRate=1,Calculations!N45) -> FALSE | F83: =IF(AttackRate=1,Calculations_M!G45) -> FALSE | G83: =IF(AttackRate=1,Calculations_M!H45) -> FALSE | H83: =IF(AttackRate=2,Calculations!M45) -> 0 | I83: =IF(AttackRate=2,Calculations!N45) -> 0 | J83: =IF(AttackRate=2,Calculations_M!G45) -> 18275.14529 | K83: =IF(AttackRate=2,Calculations_M!H45) -> 23757.68888
B84: =Calculations!A46 -> 32 | C84: =Calculations!B46 ->  | D84: =IF(AttackRate=1,Calculations!M46) -> FALSE | E84: =IF(AttackRate=1,Calculations!N46) -> FALSE | F84: =IF(AttackRate=1,Calculations_M!G46) -> FALSE | G84: =IF(AttackRate=1,Calculations_M!H46) -> FALSE | H84: =IF(AttackRate=2,Calculations!M46) -> 0 | I84: =IF(AttackRate=2,Calculations!N46) -> 0 | J84: =IF(AttackRate=2,Calculations_M!G46) -> 18275.14529 | K84: =IF(AttackRate=2,Calculations_M!H46) -> 23757.68888
B85: =Calculations!A47 -> 33 | C85: =Calculations!B47 ->  | D85: =IF(AttackRate=1,Calculations!M47) -> FALSE | E85: =IF(AttackRate=1,Calculations!N47) -> FALSE | F85: =IF(AttackRate=1,Calculations_M!G47) -> FALSE | G85: =IF(AttackRate=1,Calculations_M!H47) -> FALSE | H85: =IF(AttackRate=2,Calculations!M47) -> 0 | I85: =IF(AttackRate=2,Calculations!N47) -> 0 | J85: =IF(AttackRate=2,Calculations_M!G47) -> 18275.14529 | K85: =IF(AttackRate=2,Calculations_M!H47) -> 23757.68888
B86: =Calculations!A48 -> 34 | C86: =Calculations!B48 ->  | D86: =IF(AttackRate=1,Calculations!M48) -> FALSE | E86: =IF(AttackRate=1,Calculations!N48) -> FALSE | F86: =IF(AttackRate=1,Calculations_M!G48) -> FALSE | G86: =IF(AttackRate=1,Calculations_M!H48) -> FALSE | H86: =IF(AttackRate=2,Calculations!M48) -> 0 | I86: =IF(AttackRate=2,Calculations!N48) -> 0 | J86: =IF(AttackRate=2,Calculations_M!G48) -> 18275.14529 | K86: =IF(AttackRate=2,Calculations_M!H48) -> 23757.68888
B87: =Calculations!A49 -> 35 | C87: =Calculations!B49 ->  | D87: =IF(AttackRate=1,Calculations!M49) -> FALSE | E87: =IF(AttackRate=1,Calculations!N49) -> FALSE | F87: =IF(AttackRate=1,Calculations_M!G49) -> FALSE | G87: =IF(AttackRate=1,Calculations_M!H49) -> FALSE | H87: =IF(AttackRate=2,Calculations!M49) -> 0 | I87: =IF(AttackRate=2,Calculations!N49) -> 0 | J87: =IF(AttackRate=2,Calculations_M!G49) -> 18275.14529 | K87: =IF(AttackRate=2,Calculations_M!H49) -> 23757.68888
B88: =Calculations!A50 -> 36 | C88: =Calculations!B50 ->  | D88: =IF(AttackRate=1,Calculations!M50) -> FALSE | E88: =IF(AttackRate=1,Calculations!N50) -> FALSE | F88: =IF(AttackRate=1,Calculations_M!G50) -> FALSE | G88: =IF(AttackRate=1,Calculations_M!H50) -> FALSE | H88: =IF(AttackRate=2,Calculations!M50) -> 0 | I88: =IF(AttackRate=2,Calculations!N50) -> 0 | J88: =IF(AttackRate=2,Calculations_M!G50) -> 18275.14529 | K88: =IF(AttackRate=2,Calculations_M!H50) -> 23757.68888
B89: =Calculations!A51 -> 37 | C89: =Calculations!B51 ->  | D89: =IF(AttackRate=1,Calculations!M51) -> FALSE | E89: =IF(AttackRate=1,Calculations!N51) -> FALSE | F89: =IF(AttackRate=1,Calculations_M!G51) -> FALSE | G89: =IF(AttackRate=1,Calculations_M!H51) -> FALSE | H89: =IF(AttackRate=2,Calculations!M51) -> 0 | I89: =IF(AttackRate=2,Calculations!N51) -> 0 | J89: =IF(AttackRate=2,Calculations_M!G51) -> 18275.14529 | K89: =IF(AttackRate=2,Calculations_M!H51) -> 23757.68888
B90: =Calculations!A52 -> 38 | C90: =Calculations!B52 ->  | D90: =IF(AttackRate=1,Calculations!M52) -> FALSE | E90: =IF(AttackRate=1,Calculations!N52) -> FALSE | F90: =IF(AttackRate=1,Calculations_M!G52) -> FALSE | G90: =IF(AttackRate=1,Calculations_M!H52) -> FALSE | H90: =IF(AttackRate=2,Calculations!M52) -> 0 | I90: =IF(AttackRate=2,Calculations!N52) -> 0 | J90: =IF(AttackRate=2,Calculations_M!G52) -> 18275.14529 | K90: =IF(AttackRate=2,Calculations_M!H52) -> 23757.68888
B91: =Calculations!A53 -> 39 | C91: =Calculations!B53 ->  | D91: =IF(AttackRate=1,Calculations!M53) -> FALSE | E91: =IF(AttackRate=1,Calculations!N53) -> FALSE | F91: =IF(AttackRate=1,Calculations_M!G53) -> FALSE | G91: =IF(AttackRate=1,Calculations_M!H53) -> FALSE | H91: =IF(AttackRate=2,Calculations!M53) -> 0 | I91: =IF(AttackRate=2,Calculations!N53) -> 0 | J91: =IF(AttackRate=2,Calculations_M!G53) -> 18275.14529 | K91: =IF(AttackRate=2,Calculations_M!H53) -> 23757.68888
B92: =Calculations!A54 -> 40 | C92: =Calculations!B54 ->  | D92: =IF(AttackRate=1,Calculations!M54) -> FALSE | E92: =IF(AttackRate=1,Calculations!N54) -> FALSE | F92: =IF(AttackRate=1,Calculations_M!G54) -> FALSE | G92: =IF(AttackRate=1,Calculations_M!H54) -> FALSE | H92: =IF(AttackRate=2,Calculations!M54) -> 0 | I92: =IF(AttackRate=2,Calculations!N54) -> 0 | J92: =IF(AttackRate=2,Calculations_M!G54) -> 18275.14529 | K92: =IF(AttackRate=2,Calculations_M!H54) -> 23757.68888
B93: =Calculations!A55 -> 41 | C93: =Calculations!B55 ->  | D93: =IF(AttackRate=1,Calculations!M55) -> FALSE | E93: =IF(AttackRate=1,Calculations!N55) -> FALSE | F93: =IF(AttackRate=1,Calculations_M!G55) -> FALSE | G93: =IF(AttackRate=1,Calculations_M!H55) -> FALSE | H93: =IF(AttackRate=2,Calculations!M55) -> 0 | I93: =IF(AttackRate=2,Calculations!N55) -> 0 | J93: =IF(AttackRate=2,Calculations_M!G55) -> 18275.14529 | K93: =IF(AttackRate=2,Calculations_M!H55) -> 23757.68888
B94: =Calculations!A56 -> 42 | C94: =Calculations!B56 ->  | D94: =IF(AttackRate=1,Calculations!M56) -> FALSE | E94: =IF(AttackRate=1,Calculations!N56) -> FALSE | F94: =IF(AttackRate=1,Calculations_M!G56) -> FALSE | G94: =IF(AttackRate=1,Calculations_M!H56) -> FALSE | H94: =IF(AttackRate=2,Calculations!M56) -> 0 | I94: =IF(AttackRate=2,Calculations!N56) -> 0 | J94: =IF(AttackRate=2,Calculations_M!G56) -> 18275.14529 | K94: =IF(AttackRate=2,Calculations_M!H56) -> 23757.68888
B95: =Calculations!A57 -> 43 | C95: =Calculations!B57 ->  | D95: =IF(AttackRate=1,Calculations!M57) -> FALSE | E95: =IF(AttackRate=1,Calculations!N57) -> FALSE | F95: =IF(AttackRate=1,Calculations_M!G57) -> FALSE | G95: =IF(AttackRate=1,Calculations_M!H57) -> FALSE | H95: =IF(AttackRate=2,Calculations!M57) -> 0 | I95: =IF(AttackRate=2,Calculations!N57) -> 0 | J95: =IF(AttackRate=2,Calculations_M!G57) -> 0 | K95: =IF(AttackRate=2,Calculations_M!H57) -> 0
B96: =Calculations!A58 -> 44 | C96: =Calculations!B58 ->  | D96: =IF(AttackRate=1,Calculations!M58) -> FALSE | E96: =IF(AttackRate=1,Calculations!N58) -> FALSE | F96: =IF(AttackRate=1,Calculations_M!G58) -> FALSE | G96: =IF(AttackRate=1,Calculations_M!H58) -> FALSE | H96: =IF(AttackRate=2,Calculations!M58) -> 0 | I96: =IF(AttackRate=2,Calculations!N58) -> 0 | J96: =IF(AttackRate=2,Calculations_M!G58) -> 0 | K96: =IF(AttackRate=2,Calculations_M!H58) -> 0
B97: =Calculations!A59 -> 45 | C97: =Calculations!B59 ->  | D97: =IF(AttackRate=1,Calculations!M59) -> FALSE | E97: =IF(AttackRate=1,Calculations!N59) -> FALSE | F97: =IF(AttackRate=1,Calculations_M!G59) -> FALSE | G97: =IF(AttackRate=1,Calculations_M!H59) -> FALSE | H97: =IF(AttackRate=2,Calculations!M59) -> 0 | I97: =IF(AttackRate=2,Calculations!N59) -> 0 | J97: =IF(AttackRate=2,Calculations_M!G59) -> 0 | K97: =IF(AttackRate=2,Calculations_M!H59) -> 0
B98: =Calculations!A60 -> 46 | C98: =Calculations!B60 ->  | D98: =IF(AttackRate=1,Calculations!M60) -> FALSE | E98: =IF(AttackRate=1,Calculations!N60) -> FALSE | F98: =IF(AttackRate=1,Calculations_M!G60) -> FALSE | G98: =IF(AttackRate=1,Calculations_M!H60) -> FALSE | H98: =IF(AttackRate=2,Calculations!M60) -> 0 | I98: =IF(AttackRate=2,Calculations!N60) -> 0 | J98: =IF(AttackRate=2,Calculations_M!G60) -> 0 | K98: =IF(AttackRate=2,Calculations_M!H60) -> 0
B99: =Calculations!A61 -> 47 | C99: =Calculations!B61 ->  | D99: =IF(AttackRate=1,Calculations!M61) -> FALSE | E99: =IF(AttackRate=1,Calculations!N61) -> FALSE | F99: =IF(AttackRate=1,Calculations_M!G61) -> FALSE | G99: =IF(AttackRate=1,Calculations_M!H61) -> FALSE | H99: =IF(AttackRate=2,Calculations!M61) -> 0 | I99: =IF(AttackRate=2,Calculations!N61) -> 0 | J99: =IF(AttackRate=2,Calculations_M!G61) -> 0 | K99: =IF(AttackRate=2,Calculations_M!H61) -> 0
H100: =IF(AttackRate=2,Calculations!M62) -> 28052382.26 | I100: =IF(AttackRate=2,Calculations!N62) -> 67945971.09 | J100: =IF(AttackRate=2,Calculations_M!G62) -> 2860060.238 | K100: =IF(AttackRate=2,Calculations_M!H62) -> 3718078.31

Sheet Charts_Export
A1: =Model_Dashboard!E12 -> 1957-Like Pandemic | D1: Estimated call volumes by week after start of pandemic
A3: Cross check: Attack rate and Call center opening week match for both methods.
A4: Method | B4: Attack Rate | C4: Call Centre opening week | AK4: Labels:
A5: Hospital_Method | B5: =IF(AttackRate=1,20%,30%) -> 0.3 | C5: =WKOpenCallCenter -> 1 | AK5: Media-to-call-rate Method, Low
A6: Media_Method | B6: =IF(AttackRate_m=1,20%,30%) -> 0.2 | C6: =WKOpenCallCenter_m -> 1 | AK6: Media-to-call-rate method , High
AK7: Call-to-hospitalization method, High
AK8: Call-to-hospitalization method, Low
B10: 1957-Like pandemicc with 20% clinical attack rate | G10: 1957-Like pandemic with 30% clinical attack rate
B27: 1968-Like pandemic with 20% clinical attack rate | G27: 1968-Like pandemic with 30% clinical attack rate
C47: Call-to-hospitalization Ratio Method | H47: Media-to-call-rate Ratio Method
B48: These data are for making charts.
B49: Note: The model computes one scenario (method at a time). Please copy and paste the estimates from "column D and E" after choosing the scenario
I53: Media count
D54: Attack Rate | E54: =B5 -> 0.3
D55: Total Number of Estimated calls by Week
D56: 20% Attack Rate | H56: 30% Attack Rate
B57: Week | C57: Week when pandemic starts | D57: =C47 -> Call-to-hospitalization Ratio Method | F57: =H47 -> Media-to-call-rate Ratio Method | H57: =D57 -> Call-to-hospitalization Ratio Method | J57: =F57 -> Media-to-call-rate Ratio Method
B58: 0 | D58: Low | E58: High | F58: Low | G58: High | H58: Low | I58: High | J58: Low | K58: High
B59: =Calculations!A15 -> 1 | C59: =Calculations!B15 -> 1 | D59: =IF(AttackRate=1,Calculations!M15) -> FALSE | E59: =IF(AttackRate=1,Calculations!N15) -> FALSE | F59: =IF(AttackRate=1,Calculations_M!G15) -> FALSE | G59: =IF(AttackRate=1,Calculations_M!H15) -> FALSE | H59: =IF(AttackRate=2,Calculations!M15) -> 0 | I59: =IF(AttackRate=2,Calculations!N15) -> 0 | J59: =IF(AttackRate=2,Calculations_M!G15) -> 0 | K59: =IF(AttackRate=2,Calculations_M!H15) -> 0
B60: =Calculations!A16 -> 2 | C60: =Calculations!B16 -> 2 | D60: =IF(AttackRate=1,Calculations!M16) -> FALSE | E60: =IF(AttackRate=1,Calculations!N16) -> FALSE | F60: =IF(AttackRate=1,Calculations_M!G16) -> FALSE | G60: =IF(AttackRate=1,Calculations_M!H16) -> FALSE | H60: =IF(AttackRate=2,Calculations!M16) -> 38.805 | I60: =IF(AttackRate=2,Calculations!N16) -> 93.99 | J60: =IF(AttackRate=2,Calculations_M!G16) -> 0 | K60: =IF(AttackRate=2,Calculations_M!H16) -> 0
B61: =Calculations!A17 -> 3 | C61: =Calculations!B17 -> 3 | D61: =IF(AttackRate=1,Calculations!M17) -> FALSE | E61: =IF(AttackRate=1,Calculations!N17) -> FALSE | F61: =IF(AttackRate=1,Calculations_M!G17) -> FALSE | G61: =IF(AttackRate=1,Calculations_M!H17) -> FALSE | H61: =IF(AttackRate=2,Calculations!M17) -> 119.4 | I61: =IF(AttackRate=2,Calculations!N17) -> 289.2 | J61: =IF(AttackRate=2,Calculations_M!G17) -> 0 | K61: =IF(AttackRate=2,Calculations_M!H17) -> 0
B62: =Calculations!A18 -> 4 | C62: =Calculations!B18 -> 4 | D62: =IF(AttackRate=1,Calculations!M18) -> FALSE | E62: =IF(AttackRate=1,Calculations!N18) -> FALSE | F62: =IF(AttackRate=1,Calculations_M!G18) -> FALSE | G62: =IF(AttackRate=1,Calculations_M!H18) -> FALSE | H62: =IF(AttackRate=2,Calculations!M18) -> 358.2 | I62: =IF(AttackRate=2,Calculations!N18) -> 867.6 | J62: =IF(AttackRate=2,Calculations_M!G18) -> 0 | K62: =IF(AttackRate=2,Calculations_M!H18) -> 0
B63: =Calculations!A19 -> 5 | C63: =Calculations!B19 -> 5 | D63: =IF(AttackRate=1,Calculations!M19) -> FALSE | E63: =IF(AttackRate=1,Calculations!N19) -> FALSE | F63: =IF(AttackRate=1,Calculations_M!G19) -> FALSE | G63: =IF(AttackRate=1,Calculations_M!H19) -> FALSE | H63: =IF(AttackRate=2,Calculations!M19) -> 1014.9 | I63: =IF(AttackRate=2,Calculations!N19) -> 2458.2 | J63: =IF(AttackRate=2,Calculations_M!G19) -> 231485.1737 | K63: =IF(AttackRate=2,Calculations_M!H19) -> 300930.7258
B64: =Calculations!A20 -> 6 | C64: =Calculations!B20 -> 6 | D64: =IF(AttackRate=1,Calculations!M20) -> FALSE | E64: =IF(AttackRate=1,Calculations!N20) -> FALSE | F64: =IF(AttackRate=1,Calculations_M!G20) -> FALSE | G64: =IF(AttackRate=1,Calculations_M!H20) -> FALSE | H64: =IF(AttackRate=2,Calculations!M20) -> 3223.8 | I64: =IF(AttackRate=2,Calculations!N20) -> 7808.4 | J64: =IF(AttackRate=2,Calculations_M!G20) -> 231485.1737 | K64: =IF(AttackRate=2,Calculations_M!H20) -> 300930.7258
B65: =Calculations!A21 -> 7 | C65: =Calculations!B21 -> 7 | D65: =IF(AttackRate=1,Calculations!M21) -> FALSE | E65: =IF(AttackRate=1,Calculations!N21) -> FALSE | F65: =IF(AttackRate=1,Calculations_M!G21) -> FALSE | G65: =IF(AttackRate=1,Calculations_M!H21) -> FALSE | H65: =IF(AttackRate=2,Calculations!M21) -> 10193.775 | I65: =IF(AttackRate=2,Calculations!N21) -> 24690.45 | J65: =IF(AttackRate=2,Calculations_M!G21) -> 414236.6266 | K65: =IF(AttackRate=2,Calculations_M!H21) -> 538507.6146
B66: =Calculations!A22 -> 8 | C66: =Calculations!B22 -> 8 | D66: =IF(AttackRate=1,Calculations!M22) -> FALSE | E66: =IF(AttackRate=1,Calculations!N22) -> FALSE | F66: =IF(AttackRate=1,Calculations_M!G22) -> FALSE | G66: =IF(AttackRate=1,Calculations_M!H22) -> FALSE | H66: =IF(AttackRate=2,Calculations!M22) -> 31820.1 | I66: =IF(AttackRate=2,Calculations!N22) -> 77071.8 | J66: =IF(AttackRate=2,Calculations_M!G22) -> 548254.3588 | K66: =IF(AttackRate=2,Calculations_M!H22) -> 712730.6664
B67: =Calculations!A23 -> 9 | C67: =Calculations!B23 -> 9 | D67: =IF(AttackRate=1,Calculations!M23) -> FALSE | E67: =IF(AttackRate=1,Calculations!N23) -> FALSE | F67: =IF(AttackRate=1,Calculations_M!G23) -> FALSE | G67: =IF(AttackRate=1,Calculations_M!H23) -> FALSE | H67: =IF(AttackRate=2,Calculations!M23) -> 99012.45 | I67: =IF(AttackRate=2,Calculations!N23) -> 239819.1 | J67: =IF(AttackRate=2,Calculations_M!G23) -> 414236.6266 | K67: =IF(AttackRate=2,Calculations_M!H23) -> 538507.6146
B68: =Calculations!A24 -> 10 | C68: =Calculations!B24 -> 10 | D68: =IF(AttackRate=1,Calculations!M24) -> FALSE | E68: =IF(AttackRate=1,Calculations!N24) -> FALSE | F68: =IF(AttackRate=1,Calculations_M!G24) -> FALSE | G68: =IF(AttackRate=1,Calculations_M!H24) -> FALSE | H68: =IF(AttackRate=2,Calculations!M24) -> 304887.9 | I68: =IF(AttackRate=2,Calculations!N24) -> 738472.2 | J68: =IF(AttackRate=2,Calculations_M!G24) -> 231485.1737 | K68: =IF(AttackRate=2,Calculations_M!H24) -> 300930.7258
B69: =Calculations!A25 -> 11 | C69: =Calculations!B25 -> 11 | D69: =IF(AttackRate=1,Calculations!M25) -> FALSE | E69: =IF(AttackRate=1,Calculations!N25) -> FALSE | F69: =IF(AttackRate=1,Calculations_M!G25) -> FALSE | G69: =IF(AttackRate=1,Calculations_M!H25) -> FALSE | H69: =IF(AttackRate=2,Calculations!M25) -> 908156.4 | I69: =IF(AttackRate=2,Calculations!N25) -> 2199655.2 | J69: =IF(AttackRate=2,Calculations_M!G25) -> 134017.7322 | K69: =IF(AttackRate=2,Calculations_M!H25) -> 174223.0518
B70: =Calculations!A26 -> 12 | C70: =Calculations!B26 -> 12 | D70: =IF(AttackRate=1,Calculations!M26) -> FALSE | E70: =IF(AttackRate=1,Calculations!N26) -> FALSE | F70: =IF(AttackRate=1,Calculations_M!G26) -> FALSE | G70: =IF(AttackRate=1,Calculations_M!H26) -> FALSE | H70: =IF(AttackRate=2,Calculations!M26) -> 2459923.575 | I70: =IF(AttackRate=2,Calculations!N26) -> 5958206.85 | J70: =IF(AttackRate=2,Calculations_M!G26) -> 85284.01137 | K70: =IF(AttackRate=2,Calculations_M!H26) -> 110869.2148
B71: =Calculations!A27 -> 13 | C71: =Calculations!B27 -> 13 | D71: =IF(AttackRate=1,Calculations!M27) -> FALSE | E71: =IF(AttackRate=1,Calculations!N27) -> FALSE | F71: =IF(AttackRate=1,Calculations_M!G27) -> FALSE | G71: =IF(AttackRate=1,Calculations_M!H27) -> FALSE | H71: =IF(AttackRate=2,Calculations!M27) -> 5270151.825 | I71: =IF(AttackRate=2,Calculations!N27) -> 12764890.35 | J71: =IF(AttackRate=2,Calculations_M!G27) -> 39596.14814 | K71: =IF(AttackRate=2,Calculations_M!H27) -> 51474.99258
B72: =Calculations!A28 -> 14 | C72: =Calculations!B28 -> 14 | D72: =IF(AttackRate=1,Calculations!M28) -> FALSE | E72: =IF(AttackRate=1,Calculations!N28) -> FALSE | F72: =IF(AttackRate=1,Calculations_M!G28) -> FALSE | G72: =IF(AttackRate=1,Calculations_M!H28) -> FALSE | H72: =IF(AttackRate=2,Calculations!M28) -> 7321891.575 | I72: =IF(AttackRate=2,Calculations!N28) -> 17734430.85 | J72: =IF(AttackRate=2,Calculations_M!G28) -> 18275.14529 | K72: =IF(AttackRate=2,Calculations_M!H28) -> 23757.68888
B73: =Calculations!A29 -> 15 | C73: =Calculations!B29 -> 15 | D73: =IF(AttackRate=1,Calculations!M29) -> FALSE | E73: =IF(AttackRate=1,Calculations!N29) -> FALSE | F73: =IF(AttackRate=1,Calculations_M!G29) -> FALSE | G73: =IF(AttackRate=1,Calculations_M!H29) -> FALSE | H73: =IF(AttackRate=2,Calculations!M29) -> 6002491.725 | I73: =IF(AttackRate=2,Calculations!N29) -> 14538698.55 | J73: =IF(AttackRate=2,Calculations_M!G29) -> 18275.14529 | K73: =IF(AttackRate=2,Calculations_M!H29) -> 23757.68888
B74: =Calculations!A30 -> 16 | C74: =Calculations!B30 -> 16 | D74: =IF(AttackRate=1,Calculations!M30) -> FALSE | E74: =IF(AttackRate=1,Calculations!N30) -> FALSE | F74: =IF(AttackRate=1,Calculations_M!G30) -> FALSE | G74: =IF(AttackRate=1,Calculations_M!H30) -> FALSE | H74: =IF(AttackRate=2,Calculations!M30) -> 3267754.125 | I74: =IF(AttackRate=2,Calculations!N30) -> 7914861.75 | J74: =IF(AttackRate=2,Calculations_M!G30) -> 18275.14529 | K74: =IF(AttackRate=2,Calculations_M!H30) -> 23757.68888
B75: =Calculations!A31 -> 17 | C75: =Calculations!B31 -> 17 | D75: =IF(AttackRate=1,Calculations!M31) -> FALSE | E75: =IF(AttackRate=1,Calculations!N31) -> FALSE | F75: =IF(AttackRate=1,Calculations_M!G31) -> FALSE | G75: =IF(AttackRate=1,Calculations_M!H31) -> FALSE | H75: =IF(AttackRate=2,Calculations!M31) -> 1434576.075 | I75: =IF(AttackRate=2,Calculations!N31) -> 3474701.85 | J75: =IF(AttackRate=2,Calculations_M!G31) -> 18275.14529 | K75: =IF(AttackRate=2,Calculations_M!H31) -> 23757.68888
B76: =Calculations!A32 -> 18 | C76: =Calculations!B32 -> 18 | D76: =IF(AttackRate=1,Calculations!M32) -> FALSE | E76: =IF(AttackRate=1,Calculations!N32) -> FALSE | F76: =IF(AttackRate=1,Calculations_M!G32) -> FALSE | G76: =IF(AttackRate=1,Calculations_M!H32) -> FALSE | H76: =IF(AttackRate=2,Calculations!M32) -> 575761.725 | I76: =IF(AttackRate=2,Calculations!N32) -> 1394558.55 | J76: =IF(AttackRate=2,Calculations_M!G32) -> 18275.14529 | K76: =IF(AttackRate=2,Calculations_M!H32) -> 23757.68888
B77: =Calculations!A33 -> 19 | C77: =Calculations!B33 -> 19 | D77: =IF(AttackRate=1,Calculations!M33) -> FALSE | E77: =IF(AttackRate=1,Calculations!N33) -> FALSE | F77: =IF(AttackRate=1,Calculations_M!G33) -> FALSE | G77: =IF(AttackRate=1,Calculations_M!H33) -> FALSE | H77: =IF(AttackRate=2,Calculations!M33) -> 223203.375 | I77: =IF(AttackRate=2,Calculations!N33) -> 540623.25 | J77: =IF(AttackRate=2,Calculations_M!G33) -> 18275.14529 | K77: =IF(AttackRate=2,Calculations_M!H33) -> 23757.68888
B78: =Calculations!A34 -> 20 | C78: =Calculations!B34 -> 20 | D78: =IF(AttackRate=1,Calculations!M34) -> FALSE | E78: =IF(AttackRate=1,Calculations!N34) -> FALSE | F78: =IF(AttackRate=1,Calculations_M!G34) -> FALSE | G78: =IF(AttackRate=1,Calculations_M!H34) -> FALSE | H78: =IF(AttackRate=2,Calculations!M34) -> 85400.85 | I78: =IF(AttackRate=2,Calculations!N34) -> 206850.3 | J78: =IF(AttackRate=2,Calculations_M!G34) -> 18275.14529 | K78: =IF(AttackRate=2,Calculations_M!H34) -> 23757.68888
B79: =Calculations!A35 -> 21 | C79: =Calculations!B35 -> 21 | D79: =IF(AttackRate=1,Calculations!M35) -> FALSE | E79: =IF(AttackRate=1,Calculations!N35) -> FALSE | F79: =IF(AttackRate=1,Calculations_M!G35) -> FALSE | G79: =IF(AttackRate=1,Calculations_M!H35) -> FALSE | H79: =IF(AttackRate=2,Calculations!M35) -> 32506.65 | I79: =IF(AttackRate=2,Calculations!N35) -> 78734.7 | J79: =IF(AttackRate=2,Calculations_M!G35) -> 18275.14529 | K79: =IF(AttackRate=2,Calculations_M!H35) -> 23757.68888
B80: =Calculations!A36 -> 22 | C80: =Calculations!B36 -> 22 | D80: =IF(AttackRate=1,Calculations!M36) -> FALSE | E80: =IF(AttackRate=1,Calculations!N36) -> FALSE | F80: =IF(AttackRate=1,Calculations_M!G36) -> FALSE | G80: =IF(AttackRate=1,Calculations_M!H36) -> FALSE | H80: =IF(AttackRate=2,Calculations!M36) -> 12342.975 | I80: =IF(AttackRate=2,Calculations!N36) -> 29896.05 | J80: =IF(AttackRate=2,Calculations_M!G36) -> 18275.14529 | K80: =IF(AttackRate=2,Calculations_M!H36) -> 23757.68888
B81: =Calculations!A37 -> 23 | C81: =Calculations!B37 -> 23 | D81: =IF(AttackRate=1,Calculations!M37) -> FALSE | E81: =IF(AttackRate=1,Calculations!N37) -> FALSE | F81: =IF(AttackRate=1,Calculations_M!G37) -> FALSE | G81: =IF(AttackRate=1,Calculations_M!H37) -> FALSE | H81: =IF(AttackRate=2,Calculations!M37) -> 4701.375 | I81: =IF(AttackRate=2,Calculations!N37) -> 11387.25 | J81: =IF(AttackRate=2,Calculations_M!G37) -> 18275.14529 | K81: =IF(AttackRate=2,Calculations_M!H37) -> 23757.68888
B82: =Calculations!A38 -> 24 | C82: =Calculations!B38 -> 24 | D82: =IF(AttackRate=1,Calculations!M38) -> FALSE | E82: =IF(AttackRate=1,Calculations!N38) -> FALSE | F82: =IF(AttackRate=1,Calculations_M!G38) -> FALSE | G82: =IF(AttackRate=1,Calculations_M!H38) -> FALSE | H82: =IF(AttackRate=2,Calculations!M38) -> 1791 | I82: =IF(AttackRate=2,Calculations!N38) -> 4338 | J82: =IF(AttackRate=2,Calculations_M!G38) -> 18275.14529 | K82: =IF(AttackRate=2,Calculations_M!H38) -> 23757.68888
B83: =Calculations!A39 -> 25 | C83: =Calculations!B39 -> 25 | D83: =IF(AttackRate=1,Calculations!M39) -> FALSE | E83: =IF(AttackRate=1,Calculations!N39) -> FALSE | F83: =IF(AttackRate=1,Calculations_M!G39) -> FALSE | G83: =IF(AttackRate=1,Calculations_M!H39) -> FALSE | H83: =IF(AttackRate=2,Calculations!M39) -> 686.55 | I83: =IF(AttackRate=2,Calculations!N39) -> 1662.9 | J83: =IF(AttackRate=2,Calculations_M!G39) -> 18275.14529 | K83: =IF(AttackRate=2,Calculations_M!H39) -> 23757.68888
B84: =Calculations!A40 -> 26 | C84: =Calculations!B40 -> 26 | D84: =IF(AttackRate=1,Calculations!M40) -> FALSE | E84: =IF(AttackRate=1,Calculations!N40) -> FALSE | F84: =IF(AttackRate=1,Calculations_M!G40) -> FALSE | G84: =IF(AttackRate=1,Calculations_M!H40) -> FALSE | H84: =IF(AttackRate=2,Calculations!M40) -> 253.725 | I84: =IF(AttackRate=2,Calculations!N40) -> 614.55 | J84: =IF(AttackRate=2,Calculations_M!G40) -> 18275.14529 | K84: =IF(AttackRate=2,Calculations_M!H40) -> 23757.68888
B85: =Calculations!A41 -> 27 | C85: =Calculations!B41 -> 27 | D85: =IF(AttackRate=1,Calculations!M41) -> FALSE | E85: =IF(AttackRate=1,Calculations!N41) -> FALSE | F85: =IF(AttackRate=1,Calculations_M!G41) -> FALSE | G85: =IF(AttackRate=1,Calculations_M!H41) -> FALSE | H85: =IF(AttackRate=2,Calculations!M41) -> 89.55 | I85: =IF(AttackRate=2,Calculations!N41) -> 216.9 | J85: =IF(AttackRate=2,Calculations_M!G41) -> 18275.14529 | K85: =IF(AttackRate=2,Calculations_M!H41) -> 23757.68888
B86: =Calculations!A42 -> 28 | C86: =Calculations!B42 -> 28 | D86: =IF(AttackRate=1,Calculations!M42) -> FALSE | E86: =IF(AttackRate=1,Calculations!N42) -> FALSE | F86: =IF(AttackRate=1,Calculations_M!G42) -> FALSE | G86: =IF(AttackRate=1,Calculations_M!H42) -> FALSE | H86: =IF(AttackRate=2,Calculations!M42) -> 14.925 | I86: =IF(AttackRate=2,Calculations!N42) -> 36.15 | J86: =IF(AttackRate=2,Calculations_M!G42) -> 18275.14529 | K86: =IF(AttackRate=2,Calculations_M!H42) -> 23757.68888
B87: =Calculations!A43 -> 29 | C87: =Calculations!B43 -> 29 | D87: =IF(AttackRate=1,Calculations!M43) -> FALSE | E87: =IF(AttackRate=1,Calculations!N43) -> FALSE | F87: =IF(AttackRate=1,Calculations_M!G43) -> FALSE | G87: =IF(AttackRate=1,Calculations_M!H43) -> FALSE | H87: =IF(AttackRate=2,Calculations!M43) -> 14.925 | I87: =IF(AttackRate=2,Calculations!N43) -> 36.15 | J87: =IF(AttackRate=2,Calculations_M!G43) -> 18275.14529 | K87: =IF(AttackRate=2,Calculations_M!H43) -> 23757.68888
B88: =Calculations!A44 -> 30 | C88: =Calculations!B44 ->  | D88: =IF(AttackRate=1,Calculations!M44) -> FALSE | E88: =IF(AttackRate=1,Calculations!N44) -> FALSE | F88: =IF(AttackRate=1,Calculations_M!G44) -> FALSE | G88: =IF(AttackRate=1,Calculations_M!H44) -> FALSE | H88: =IF(AttackRate=2,Calculations!M44) -> 0 | I88: =IF(AttackRate=2,Calculations!N44) -> 0 | J88: =IF(AttackRate=2,Calculations_M!G44) -> 18275.14529 | K88: =IF(AttackRate=2,Calculations_M!H44) -> 23757.68888
B89: =Calculations!A45 -> 31 | C89: =Calculations!B45 ->  | D89: =IF(AttackRate=1,Calculations!M45) -> FALSE | E89: =IF(AttackRate=1,Calculations!N45) -> FALSE | F89: =IF(AttackRate=1,Calculations_M!G45) -> FALSE | G89: =IF(AttackRate=1,Calculations_M!H45) -> FALSE | H89: =IF(AttackRate=2,Calculations!M45) -> 0 | I89: =IF(AttackRate=2,Calculations!N45) -> 0 | J89: =IF(AttackRate=2,Calculations_M!G45) -> 18275.14529 | K89: =IF(AttackRate=2,Calculations_M!H45) -> 23757.68888
B90: =Calculations!A46 -> 32 | C90: =Calculations!B46 ->  | D90: =IF(AttackRate=1,Calculations!M46) -> FALSE | E90: =IF(AttackRate=1,Calculations!N46) -> FALSE | F90: =IF(AttackRate=1,Calculations_M!G46) -> FALSE | G90: =IF(AttackRate=1,Calculations_M!H46) -> FALSE | H90: =IF(AttackRate=2,Calculations!M46) -> 0 | I90: =IF(AttackRate=2,Calculations!N46) -> 0 | J90: =IF(AttackRate=2,Calculations_M!G46) -> 18275.14529 | K90: =IF(AttackRate=2,Calculations_M!H46) -> 23757.68888
B91: =Calculations!A47 -> 33 | C91: =Calculations!B47 ->  | D91: =IF(AttackRate=1,Calculations!M47) -> FALSE | E91: =IF(AttackRate=1,Calculations!N47) -> FALSE | F91: =IF(AttackRate=1,Calculations_M!G47) -> FALSE | G91: =IF(AttackRate=1,Calculations_M!H47) -> FALSE | H91: =IF(AttackRate=2,Calculations!M47) -> 0 | I91: =IF(AttackRate=2,Calculations!N47) -> 0 | J91: =IF(AttackRate=2,Calculations_M!G47) -> 18275.14529 | K91: =IF(AttackRate=2,Calculations_M!H47) -> 23757.68888
B92: =Calculations!A48 -> 34 | C92: =Calculations!B48 ->  | D92: =IF(AttackRate=1,Calculations!M48) -> FALSE | E92: =IF(AttackRate=1,Calculations!N48) -> FALSE | F92: =IF(AttackRate=1,Calculations_M!G48) -> FALSE | G92: =IF(AttackRate=1,Calculations_M!H48) -> FALSE | H92: =IF(AttackRate=2,Calculations!M48) -> 0 | I92: =IF(AttackRate=2,Calculations!N48) -> 0 | J92: =IF(AttackRate=2,Calculations_M!G48) -> 18275.14529 | K92: =IF(AttackRate=2,Calculations_M!H48) -> 23757.68888
B93: =Calculations!A49 -> 35 | C93: =Calculations!B49 ->  | D93: =IF(AttackRate=1,Calculations!M49) -> FALSE | E93: =IF(AttackRate=1,Calculations!N49) -> FALSE | F93: =IF(AttackRate=1,Calculations_M!G49) -> FALSE | G93: =IF(AttackRate=1,Calculations_M!H49) -> FALSE | H93: =IF(AttackRate=2,Calculations!M49) -> 0 | I93: =IF(AttackRate=2,Calculations!N49) -> 0 | J93: =IF(AttackRate=2,Calculations_M!G49) -> 18275.14529 | K93: =IF(AttackRate=2,Calculations_M!H49) -> 23757.68888
B94: =Calculations!A50 -> 36 | C94: =Calculations!B50 ->  | D94: =IF(AttackRate=1,Calculations!M50) -> FALSE | E94: =IF(AttackRate=1,Calculations!N50) -> FALSE | F94: =IF(AttackRate=1,Calculations_M!G50) -> FALSE | G94: =IF(AttackRate=1,Calculations_M!H50) -> FALSE | H94: =IF(AttackRate=2,Calculations!M50) -> 0 | I94: =IF(AttackRate=2,Calculations!N50) -> 0 | J94: =IF(AttackRate=2,Calculations_M!G50) -> 18275.14529 | K94: =IF(AttackRate=2,Calculations_M!H50) -> 23757.68888
B95: =Calculations!A51 -> 37 | C95: =Calculations!B51 ->  | D95: =IF(AttackRate=1,Calculations!M51) -> FALSE | E95: =IF(AttackRate=1,Calculations!N51) -> FALSE | F95: =IF(AttackRate=1,Calculations_M!G51) -> FALSE | G95: =IF(AttackRate=1,Calculations_M!H51) -> FALSE | H95: =IF(AttackRate=2,Calculations!M51) -> 0 | I95: =IF(AttackRate=2,Calculations!N51) -> 0 | J95: =IF(AttackRate=2,Calculations_M!G51) -> 18275.14529 | K95: =IF(AttackRate=2,Calculations_M!H51) -> 23757.68888
B96: =Calculations!A52 -> 38 | C96: =Calculations!B52 ->  | D96: =IF(AttackRate=1,Calculations!M52) -> FALSE | E96: =IF(AttackRate=1,Calculations!N52) -> FALSE | F96: =IF(AttackRate=1,Calculations_M!G52) -> FALSE | G96: =IF(AttackRate=1,Calculations_M!H52) -> FALSE | H96: =IF(AttackRate=2,Calculations!M52) -> 0 | I96: =IF(AttackRate=2,Calculations!N52) -> 0 | J96: =IF(AttackRate=2,Calculations_M!G52) -> 18275.14529 | K96: =IF(AttackRate=2,Calculations_M!H52) -> 23757.68888
B97: =Calculations!A53 -> 39 | C97: =Calculations!B53 ->  | D97: =IF(AttackRate=1,Calculations!M53) -> FALSE | E97: =IF(AttackRate=1,Calculations!N53) -> FALSE | F97: =IF(AttackRate=1,Calculations_M!G53) -> FALSE | G97: =IF(AttackRate=1,Calculations_M!H53) -> FALSE | H97: =IF(AttackRate=2,Calculations!M53) -> 0 | I97: =IF(AttackRate=2,Calculations!N53) -> 0 | J97: =IF(AttackRate=2,Calculations_M!G53) -> 18275.14529 | K97: =IF(AttackRate=2,Calculations_M!H53) -> 23757.68888
B98: =Calculations!A54 -> 40 | C98: =Calculations!B54 ->  | D98: =IF(AttackRate=1,Calculations!M54) -> FALSE | E98: =IF(AttackRate=1,Calculations!N54) -> FALSE | F98: =IF(AttackRate=1,Calculations_M!G54) -> FALSE | G98: =IF(AttackRate=1,Calculations_M!H54) -> FALSE | H98: =IF(AttackRate=2,Calculations!M54) -> 0 | I98: =IF(AttackRate=2,Calculations!N54) -> 0 | J98: =IF(AttackRate=2,Calculations_M!G54) -> 18275.14529 | K98: =IF(AttackRate=2,Calculations_M!H54) -> 23757.68888
B99: =Calculations!A55 -> 41 | C99: =Calculations!B55 ->  | D99: =IF(AttackRate=1,Calculations!M55) -> FALSE | E99: =IF(AttackRate=1,Calculations!N55) -> FALSE | F99: =IF(AttackRate=1,Calculations_M!G55) -> FALSE | G99: =IF(AttackRate=1,Calculations_M!H55) -> FALSE | H99: =IF(AttackRate=2,Calculations!M55) -> 0 | I99: =IF(AttackRate=2,Calculations!N55) -> 0 | J99: =IF(AttackRate=2,Calculations_M!G55) -> 18275.14529 | K99: =IF(AttackRate=2,Calculations_M!H55) -> 23757.68888
B100: =Calculations!A56 -> 42 | C100: =Calculations!B56 ->  | D100: =IF(AttackRate=1,Calculations!M56) -> FALSE | E100: =IF(AttackRate=1,Calculations!N56) -> FALSE | F100: =IF(AttackRate=1,Calculations_M!G56) -> FALSE | G100: =IF(AttackRate=1,Calculations_M!H56) -> FALSE | H100: =IF(AttackRate=2,Calculations!M56) -> 0 | I100: =IF(AttackRate=2,Calculations!N56) -> 0 | J100: =IF(AttackRate=2,Calculations_M!G56) -> 18275.14529 | K100: =IF(AttackRate=2,Calculations_M!H56) -> 23757.68888
B101: =Calculations!A57 -> 43 | C101: =Calculations!B57 ->  | D101: =IF(AttackRate=1,Calculations!M57) -> FALSE | E101: =IF(AttackRate=1,Calculations!N57) -> FALSE | F101: =IF(AttackRate=1,Calculations_M!G57) -> FALSE | G101: =IF(AttackRate=1,Calculations_M!H57) -> FALSE | H101: =IF(AttackRate=2,Calculations!M57) -> 0 | I101: =IF(AttackRate=2,Calculations!N57) -> 0 | J101: =IF(AttackRate=2,Calculations_M!G57) -> 0 | K101: =IF(AttackRate=2,Calculations_M!H57) -> 0
B102: =Calculations!A58 -> 44 | C102: =Calculations!B58 ->  | D102: =IF(AttackRate=1,Calculations!M58) -> FALSE | E102: =IF(AttackRate=1,Calculations!N58) -> FALSE | F102: =IF(AttackRate=1,Calculations_M!G58) -> FALSE | G102: =IF(AttackRate=1,Calculations_M!H58) -> FALSE | H102: =IF(AttackRate=2,Calculations!M58) -> 0 | I102: =IF(AttackRate=2,Calculations!N58) -> 0 | J102: =IF(AttackRate=2,Calculations_M!G58) -> 0 | K102: =IF(AttackRate=2,Calculations_M!H58) -> 0
B103: =Calculations!A59 -> 45 | C103: =Calculations!B59 ->  | D103: =IF(AttackRate=1,Calculations!M59) -> FALSE | E103: =IF(AttackRate=1,Calculations!N59) -> FALSE | F103: =IF(AttackRate=1,Calculations_M!G59) -> FALSE | G103: =IF(AttackRate=1,Calculations_M!H59) -> FALSE | H103: =IF(AttackRate=2,Calculations!M59) -> 0 | I103: =IF(AttackRate=2,Calculations!N59) -> 0 | J103: =IF(AttackRate=2,Calculations_M!G59) -> 0 | K103: =IF(AttackRate=2,Calculations_M!H59) -> 0
B104: =Calculations!A60 -> 46 | C104: =Calculations!B60 ->  | D104: =IF(AttackRate=1,Calculations!M60) -> FALSE | E104: =IF(AttackRate=1,Calculations!N60) -> FALSE | F104: =IF(AttackRate=1,Calculations_M!G60) -> FALSE | G104: =IF(AttackRate=1,Calculations_M!H60) -> FALSE | H104: =IF(AttackRate=2,Calculations!M60) -> 0 | I104: =IF(AttackRate=2,Calculations!N60) -> 0 | J104: =IF(AttackRate=2,Calculations_M!G60) -> 0 | K104: =IF(AttackRate=2,Calculations_M!H60) -> 0
B105: =Calculations!A61 -> 47 | C105: =Calculations!B61 ->  | D105: =IF(AttackRate=1,Calculations!M61) -> FALSE | E105: =IF(AttackRate=1,Calculations!N61) -> FALSE | F105: =IF(AttackRate=1,Calculations_M!G61) -> FALSE | G105: =IF(AttackRate=1,Calculations_M!H61) -> FALSE | H105: =IF(AttackRate=2,Calculations!M61) -> 0 | I105: =IF(AttackRate=2,Calculations!N61) -> 0 | J105: =IF(AttackRate=2,Calculations_M!G61) -> 0 | K105: =IF(AttackRate=2,Calculations_M!H61) -> 0
H106: =IF(AttackRate=2,Calculations!M62) -> 28052382.26 | I106: =IF(AttackRate=2,Calculations!N62) -> 67945971.09 | J106: =IF(AttackRate=2,Calculations_M!G62) -> 2860060.238 | K106: =IF(AttackRate=2,Calculations_M!H62) -> 3718078.31

Sheet Poster chart
B28: 8 | D28: High estimate:1968-like pandemic | H28: High estimate:1957-like pandemic | M28: 9
B29: 6 | D29: Low estimate: 1968-like pandemic | H29: Low estimate: 1957-like pandemic | M29: 7
E33: 20 AR | J33: 30 AR
E34: Severity 3 | G34: severity 4 | J34: Severity 3 | L34: severity 4
D36: Week | E36: Low | F36: High | G36: Low | H36: High | J36: Low | K36: High | L36: Low | M36: High
D37: 1 | E37: 0 | F37: 0 | G37: 0 | H37: 0 | J37: 0 | K37: 0 | L37: 0 | M37: 0
D38: 2 | E38: 3.98 | F38: 9.0375 | G38: 7.4625 | H38: 18.075 | J38: 20.696 | K38: 46.995 | L38: 38.805 | M38: 93.99
D39: 3 | E39: 7.96 | F39: 18.075 | G39: 14.925 | H39: 36.15 | J39: 63.68 | K39: 144.6 | L39: 119.4 | M39: 289.2
D40: 4 | E40: 15.92 | F40: 36.15 | G40: 29.85 | H40: 72.3 | J40: 191.04 | K40: 433.8 | L40: 358.2 | M40: 867.6
D41: 5 | E41: 63.68 | F41: 144.6 | G41: 119.4 | H41: 289.2 | J41: 541.28 | K41: 1229.1 | L41: 1014.9 | M41: 2458.2
D42: 6 | E42: 103.48 | F42: 234.975 | G42: 194.025 | H42: 469.95 | J42: 1719.36 | K42: 3904.2 | L42: 3223.8 | M42: 7808.4
D43: 7 | E43: 183.08 | F43: 415.725 | G43: 343.275 | H43: 831.45 | J43: 5436.68 | K43: 12345.225 | L43: 10193.775 | M43: 24690.45
D44: 8 | E44: 390.04 | F44: 885.675 | G44: 731.325 | H44: 1771.35 | J44: 16970.72 | K44: 38535.9 | L44: 31820.1 | M44: 77071.8
D45: 9 | E45: 692.52 | F45: 1572.525 | G45: 1298.475 | H45: 3145.05 | J45: 52806.64 | K45: 119909.55 | L45: 99012.45 | M45: 239819.1
D46: 10 | E46: 1353.2 | F46: 3072.75 | G46: 2537.25 | H46: 6145.5 | J46: 162606.88 | K46: 369236.1 | L46: 304887.9 | M46: 738472.2
D47: 11 | E47: 2594.96 | F47: 5892.45 | G47: 4865.55 | H47: 11784.9 | J47: 484350.08 | K47: 1099827.6 | L47: 908156.4 | M47: 2199655.2
D48: 12 | E48: 4951.12 | F48: 11242.65 | G48: 9283.35 | H48: 22485.3 | J48: 1311959.24 | K48: 2979103.425 | L48: 2459923.575 | M48: 5958206.85
D49: 13 | E49: 9440.56 | F49: 21436.95 | G49: 17701.05 | H49: 42873.9 | J49: 2810747.64 | K49: 6382445.175 | L49: 5270151.825 | M49: 12764890.35
D50: 14 | E50: 18029.4 | F50: 40939.875 | G50: 33805.125 | H50: 81879.75 | J50: 3905008.84 | K50: 8867215.425 | L50: 7321891.575 | M50: 17734430.85
D51: 15 | E51: 34235.96 | F51: 77740.575 | G51: 64192.425 | H51: 155481.15 | J51: 3201328.92 | K51: 7269349.275 | L51: 6002491.725 | M51: 14538698.55
D52: 16 | E52: 64842.16 | F52: 147238.95 | G52: 121579.05 | H52: 294477.9 | J52: 1742802.2 | K52: 3957430.875 | L52: 3267754.125 | M52: 7914861.75
D53: 17 | E53: 121517.36 | F53: 275932.95 | G53: 227845.05 | H53: 551865.9 | J53: 765107.24 | K53: 1737350.925 | L53: 1434576.075 | M53: 3474701.85
D54: 18 | E54: 223683.96 | F54: 507925.575 | G54: 419407.425 | H54: 1015851.15 | J54: 307072.92 | K54: 697279.275 | L54: 575761.725 | M54: 1394558.55
D55: 19 | E55: 398565.16 | F55: 905033.325 | G55: 747309.675 | H55: 1810066.65 | J55: 119041.8 | K55: 270311.625 | L55: 223203.375 | M55: 540623.25
D56: 20 | E56: 670932.48 | F56: 1523505.6 | G56: 1257998.4 | H56: 3047011.2 | J56: 45547.12 | K56: 103425.15 | L56: 85400.85 | M56: 206850.3
D57: 21 | E57: 1029331.48 | F57: 2337332.475 | G57: 1929996.525 | H57: 4674664.95 | J57: 17336.88 | K57: 39367.35 | L57: 32506.65 | M57: 78734.7
D58: 22 | E58: 1378186.44 | F58: 3129487.425 | G58: 2584099.575 | H58: 6258974.85 | J58: 6582.92 | K58: 14948.025 | L58: 12342.975 | M58: 29896.05
D59: 23 | E59: 1551881.6 | F59: 3523902 | G59: 2909778 | H59: 7047804 | J59: 2507.4 | K59: 5693.625 | L59: 4701.375 | M59: 11387.25
D60: 24 | E60: 1450916.96 | F60: 3294638.7 | G60: 2720469.3 | H60: 6589277.4 | J60: 955.2 | K60: 2169 | L60: 1791 | M60: 4338
D61: 25 | E61: 1147609.12 | F61: 2605908.9 | G61: 2151767.1 | H61: 5211817.8 | J61: 366.16 | K61: 831.45 | L61: 686.55 | M61: 1662.9
D62: 26 | E62: 798228.8 | F62: 1812561 | G62: 1496679 | H62: 3625122 | J62: 135.32 | K62: 307.275 | L62: 253.725 | M62: 614.55
D63: 27 | E63: 508540.52 | F63: 1154757.525 | G63: 953513.475 | H63: 2309515.05 | J63: 47.76 | K63: 108.45 | L63: 89.55 | M63: 216.9
D64: 28 | E64: 306714.72 | F64: 696465.9 | G64: 575090.1 | H64: 1392931.8 | J64: 7.96 | K64: 18.075 | L64: 14.925 | M64: 36.15
D65: 29 | E65: 178980.6 | F65: 406416.375 | G65: 335588.625 | H65: 812832.75 | J65: 7.96 | K65: 18.075 | L65: 14.925 | M65: 36.15
D66: 30 | E66: 102492.96 | F66: 232733.7 | G66: 192174.3 | H66: 465467.4 | J66: 0 | K66: 0 | L66: 0 | M66: 0
D67: 31 | E67: 58060.24 | F67: 131839.05 | G67: 108862.95 | H67: 263678.1 | J67: 0 | K67: 0 | L67: 0 | M67: 0
D68: 32 | E68: 32667.84 | F68: 74179.8 | G68: 61252.2 | H68: 148359.6 | J68: 0 | K68: 0 | L68: 0 | M68: 0
D69: 33 | E69: 18339.84 | F69: 41644.8 | G69: 34387.2 | H69: 83289.6 | J69: 0 | K69: 0 | L69: 0 | M69: 0
D70: 34 | E70: 10276.36 | F70: 23334.825 | G70: 19268.175 | H70: 46669.65 | J70: 0 | K70: 0 | L70: 0 | M70: 0
D71: 35 | E71: 5739.16 | F71: 13032.075 | G71: 10760.925 | H71: 26064.15 | J71: 0 | K71: 0 | L71: 0 | M71: 0
D72: 36 | E72: 3199.92 | F72: 7266.15 | G72: 5999.85 | H72: 14532.3 | J72: 0 | K72: 0 | L72: 0 | M72: 0
D73: 37 | E73: 1798.96 | F73: 4084.95 | G73: 3373.05 | H73: 8169.9 | J73: 0 | K73: 0 | L73: 0 | M73: 0
D74: 38 | E74: 1002.96 | F74: 2277.45 | G74: 1880.55 | H74: 4554.9 | J74: 0 | K74: 0 | L74: 0 | M74: 0
D75: 39 | E75: 549.24 | F75: 1247.175 | G75: 1029.825 | H75: 2494.35 | J75: 0 | K75: 0 | L75: 0 | M75: 0
D76: 40 | E76: 318.4 | F76: 723 | G76: 597 | H76: 1446 | J76: 0 | K76: 0 | L76: 0 | M76: 0
D77: 41 | E77: 175.12 | F77: 397.65 | G77: 328.35 | H77: 795.3 | J77: 0 | K77: 0 | L77: 0 | M77: 0
D78: 42 | E78: 103.48 | F78: 234.975 | G78: 194.025 | H78: 469.95 | J78: 0 | K78: 0 | L78: 0 | M78: 0
D79: 43 | E79: 55.72 | F79: 126.525 | G79: 104.475 | H79: 253.05 | J79: 0 | K79: 0 | L79: 0 | M79: 0
D80: 44 | E80: 47.76 | F80: 108.45 | G80: 89.55 | H80: 216.9 | J80: 0 | K80: 0 | L80: 0 | M80: 0
D81: 45 | E81: 7.96 | F81: 18.075 | G81: 14.925 | H81: 36.15 | J81: 0 | K81: 0 | L81: 0 | M81: 0
D82: 45 | E82: 0 | F82: 0 | G82: 0 | H82: 0 | J82: 0 | K82: 0 | L82: 0 | M82: 0

Sheet Data Lists
B1: Input Range | C1: Cell Link
A2: When does call center open? | B2: START | C2: 1
B3: PEAK
A5: Level of media activity (start))
A6: LOW | C6: 1
A7: MODERATE
A8: HIGH
A9: Level of media activity (during pandemic)
A10: LOW
A11: MODERATE | C11: 1
A12: HIGH
A14: Multiplier to adjust call volume based on media activity at start | C14: =IF($C$6 = 1, MediaAdjFactorLow, IF($C$6 = 2, MediaAdjFactorMod, IF($C$6 = 3, MediaAdjFactorHigh))) -> 1
A18: Multiplier to adjust call volume based on media activity during pandemic | C18: =IF($C$11 = 1, MediaAdjFactorLow, IF($C$11 = 2, MediaAdjFactorMod, IF($C$11 = 3, MediaAdjFactorHigh))) -> 1
A20: Initial call volume
A21: Low | B21: =(Model_Dashboard!$D$46)/('Data Lists'!$B$36)*(Model_Dashboard!$D$15) -> 0 | C21: Computed:initia call *population size
A22: High | B22: =(Model_Dashboard!$E$46)/('Data Lists'!$B$36)*(Model_Dashboard!$D$15) -> 0
A25: Attack rate | B25: 0.2 | C25: 2
B26: 0.3
A28: Seed | B28: 10 | C28: 1
B29: 100
A32: Maximum number of cases at peak week | B32: =MAX(Cases_Hosp!D14:D60) -> 24528950
A33: Week number corresponding to when cases begin to appear | B33: =MATCH(TRUE, Cases_Hosp!$D14:$D60>0,0) -> 1
A34: Peak week (week at which maximum number of cases occur) | B34: =MATCH(MAX(Cases_Hosp!$D$14:$D$60),Cases_Hosp!$D$14:$D$60, 0) -> 14
A36: Call rate is per 100,000 population | B36: 100000
A38: Minnesota population | B38: 5303925
A40: Severity level | B40: 1 | C40: 4
B41: 2
B42: 3
B43: 4
B47: Severity | C47: Low | D47: High
A48: Case hospitalization ratio by severity level | B48: 1 | C48: 0.001 | D48: 0.005
B49: 2 | C49: 0.005 | D49: 0.008
A50: Note: The source doesn't have low estimate at severity 1 | B50: 3 | C50: 0.008 | D50: 0.015
A51: and high estimate in severity 7 (the values are assumed) | B51: 4 | C51: 0.015 | D51: 0.03
B52: 5 | C52: 0.03 | D52: 0.05
B53: 6 | C53: 0.05 | D53: 0.07
B54: 7 | C54: 0.07 | D54: 0.09
A56: Option used to calculate call volume from start-to-peak | B56: "Call-to-hospitalization" Ratio | C56: 1
B57: "Media-to-call-rate" Ratio | F57: Media Activities (April-May 2009)
B58: "Media-to-call-rate" Ratio Fall | F58: Media Activites (Aug. '09 to Jan. '10)
A59: Number of weeks in pandemic in which there is a case | B59: =COUNTIF(Cases_Hosp!$D$14:$D$60,">0") -> 29
A116: Proportion of callers that are symptomatic based on Minnesota 2009 data | B116: 0.66

Sheet Sensitivity Analysis_M (hidden)
A1: Sensitivity Analysis
B2: Peak-to-end- rate Method and Media Activities Level
B3: Moderate media activities | D3: Low media activities | F3: High media activities
B4: Lower estimate | C4: Upper estimate | D4: Lower estimate | E4: Upper estimate | F4: Lower estimate | G4: Upper estimate
A5: Calls first week | B5: 24879 | C5: 44824 | D5: 22843 | E5: 41593 | F5: 28950 | G5: 51286
A6: Calls at peak week | B6: 857824 | C6: 3200756 | D6: 779840 | E6: 2909778 | F6: 1013792 | G6: 3782711
A7: Total calls | B7: 5461281 | C7: 20349645 | D7: 5138408 | E7: 19128974 | F7: 6120872 | G7: 22935732
A8: % of Base Case | B8: =B7/B7 -> 1 | C8: =C7/C7 -> 1 | D8: =D7/B7 -> 0.9408796215 | E8: =E7/C7 -> 0.9400151207 | F8: =F7/B7 -> 1.120775877 | G8: =G7/C7 -> 1.127082659
B9: Peak-to-end- rate Method and Flu Severity Level
B10: Flu severity level=3 | D10: Flu severity level:1 | F10: Flu severity level:7
B11: Lower estimate | C11: Upper estimate | D11: Lower estimate | E11: Upper estimate | F11: Lower estimate | G11: Upper estimate
A12: Calls first week | B12: 24879 | C12: 44824 | D12: 22702 | E12: 38635 | F12: 44161 | G12: 91241
A13: Calls at peak week | B13: 857824 | C13: 3200756 | D13: 734876 | E13: 6913151 | F13: 7505960 | G13: 19204535
A14: Total calls | B14: 5461281 | C14: 20349645 | D14: 851201 | E14: 7954811 | F14: 47323725 | G14: 121123349
A15: % of Base Case | B15: =B14/B14 -> 1 | C15: =C14/C14 -> 1 | D15: =D14/B14 -> 0.1558610516 | E15: =E14/C14 -> 0.3909066227 | F15: =F14/B14 -> 8.665315885 | G15: =G14/C14 -> 5.952111155
A18: It is not updated yet

Sheet Call_volume-peak (hidden)
C1: Call volume When Call center opened at (week ) after Peak of Pandemic
E3: (The estimates are only applicable if at Call_Center_Data Tab)
O5: Low | P5: High
A6: Peak Week | B6: =PeakWk -> 14 | M6: Information only | O6: =PropNonSymSeekInfoLow -> 0.402 | P6: =PropNonSymSeekInfoHigh -> 0.402
M7: Symptomatic | O7: =PropSympCallsLow -> 0.374 | P7: =PropSympCallsHigh -> 0.374
M8: Prematurly ended | O8: =PropNonSymEndCallLow -> 0.224 | P8: =PropNonSymEndCallHigh -> 0.224
C9: Total | E9: Information-only | G9: Symptomatic | I9: End prematurely
A10: Week | B10: Week when pandemic starts | C10: Low | D10: High | E10: Low | F10: High | G10: Low | H10: High | I10: Low | J10: High
A12: 1 | B12: =Cases_Hosp!C14 -> 1 | C12: =IFERROR(IF(AND(CenterOpen = 2, Cases_Hosp!B14>=SUM(PeakWk,WKOpenCallCenter)), SUM(InitialCallVol, Cases_Hosp!E14*CalltoHospRatioLow)*(MultAdjCallBasedMediaDuring), ""),"") ->  | D12: =IFERROR(IF(AND(CenterOpen = 2, Cases_Hosp!B14>=SUM(PeakWk,WKOpenCallCenter)), SUM(InitialCallVolHigh, Cases_Hosp!F14*CalltoHospRatioLow)*(MultAdjCallBasedMediaDuring), ""),"") ->  | E12: =IFERROR(C12*$O$6,"") ->  | F12: =IFERROR(D12*$P$6,"") ->  | G12: =IFERROR(C12*$O$7,"") ->  | H12: =IFERROR(D12*$P$7,"") ->  | I12: =IFERROR(C12*$O$8,"") ->  | J12: =IFERROR(D12*$P$8,"") -> 
A13: 2 | B13: =Cases_Hosp!C15 -> 2 | C13: =IFERROR(IF(AND(CenterOpen = 2, Cases_Hosp!B15>=SUM(PeakWk,WKOpenCallCenter)), SUM(InitialCallVol, Cases_Hosp!E15*CalltoHospRatioLow)*(MultAdjCallBasedMediaDuring), ""),"") ->  | D13: =IFERROR(IF(AND(CenterOpen = 2, Cases_Hosp!B15>=SUM(PeakWk,WKOpenCallCenter)), SUM(InitialCallVolHigh, Cases_Hosp!F15*CalltoHospRatioLow)*(MultAdjCallBasedMediaDuring), ""),"") ->  | E13: =IFERROR(C13*$O$6,"") ->  | F13: =IFERROR(D13*$P$6,"") ->  | G13: =IFERROR(C13*$O$7,"") ->  | H13: =IFERROR(D13*$P$7,"") ->  | I13: =IFERROR(C13*$O$8,"") ->  | J13: =IFERROR(D13*$P$8,"") -> 
A14: 3 | B14: =Cases_Hosp!C16 -> 3 | C14: =IFERROR(IF(AND(CenterOpen = 2, Cases_Hosp!B16>=SUM(PeakWk,WKOpenCallCenter)), SUM(InitialCallVol, Cases_Hosp!E16*CalltoHospRatioLow)*(MultAdjCallBasedMediaDuring), ""),"") ->  | D14: =IFERROR(IF(AND(CenterOpen = 2, Cases_Hosp!B16>=SUM(PeakWk,WKOpenCallCenter)), SUM(InitialCallVolHigh, Cases_Hosp!F16*CalltoHospRatioLow)*(MultAdjCallBasedMediaDuring), ""),"") -> 
A15: 4 | B15: =Cases_Hosp!C17 -> 4 | C15: =IFERROR(IF(AND(CenterOpen = 2, Cases_Hosp!B17>=SUM(PeakWk,WKOpenCallCenter)), SUM(InitialCallVol, Cases_Hosp!E17*CalltoHospRatioLow)*(MultAdjCallBasedMediaDuring), ""),"") ->  | D15: =IFERROR(IF(AND(CenterOpen = 2, Cases_Hosp!B17>=SUM(PeakWk,WKOpenCallCenter)), SUM(InitialCallVolHigh, Cases_Hosp!F17*CalltoHospRatioLow)*(MultAdjCallBasedMediaDuring), ""),"") -> 
A16: 5 | B16: =Cases_Hosp!C18 -> 5 | C16: =IFERROR(IF(AND(CenterOpen = 2, Cases_Hosp!B18>=SUM(PeakWk,WKOpenCallCenter)), SUM(InitialCallVol, Cases_Hosp!E18*CalltoHospRatioLow)*(MultAdjCallBasedMediaDuring), ""),"") ->  | D16: =IFERROR(IF(AND(CenterOpen = 2, Cases_Hosp!B18>=SUM(PeakWk,WKOpenCallCenter)), SUM(InitialCallVolHigh, Cases_Hosp!F18*CalltoHospRatioLow)*(MultAdjCallBasedMediaDuring), ""),"") -> 
A17: 6 | B17: =Cases_Hosp!C19 -> 6 | C17: =IFERROR(IF(AND(CenterOpen = 2, Cases_Hosp!B19>=SUM(PeakWk,WKOpenCallCenter)), SUM(InitialCallVol, Cases_Hosp!E19*CalltoHospRatioLow)*(MultAdjCallBasedMediaDuring), ""),"") ->  | D17: =IFERROR(IF(AND(CenterOpen = 2, Cases_Hosp!B19>=SUM(PeakWk,WKOpenCallCenter)), SUM(InitialCallVolHigh, Cases_Hosp!F19*CalltoHospRatioLow)*(MultAdjCallBasedMediaDuring), ""),"") -> 
A18: 7 | B18: =Cases_Hosp!C20 -> 7 | C18: =IFERROR(IF(AND(CenterOpen = 2, Cases_Hosp!B20>=SUM(PeakWk,WKOpenCallCenter)), SUM(InitialCallVol, Cases_Hosp!E20*CalltoHospRatioLow)*(MultAdjCallBasedMediaDuring), ""),"") ->  | D18: =IFERROR(IF(AND(CenterOpen = 2, Cases_Hosp!B20>=SUM(PeakWk,WKOpenCallCenter)), SUM(InitialCallVolHigh, Cases_Hosp!F20*CalltoHospRatioLow)*(MultAdjCallBasedMediaDuring), ""),"") -> 
A19: 8 | B19: =Cases_Hosp!C21 -> 8 | C19: =IFERROR(IF(AND(CenterOpen = 2, Cases_Hosp!B21>=SUM(PeakWk,WKOpenCallCenter)), SUM(InitialCallVol, Cases_Hosp!E21*CalltoHospRatioLow)*(MultAdjCallBasedMediaDuring), ""),"") ->  | D19: =IFERROR(IF(AND(CenterOpen = 2, Cases_Hosp!B21>=SUM(PeakWk,WKOpenCallCenter)), SUM(InitialCallVolHigh, Cases_Hosp!F21*CalltoHospRatioLow)*(MultAdjCallBasedMediaDuring), ""),"") -> 
A20: 9 | B20: =Cases_Hosp!C22 -> 9 | C20: =IFERROR(IF(AND(CenterOpen = 2, Cases_Hosp!B22>=SUM(PeakWk,WKOpenCallCenter)), SUM(InitialCallVol, Cases_Hosp!E22*CalltoHospRatioLow)*(MultAdjCallBasedMediaDuring), ""),"") ->  | D20: =IFERROR(IF(AND(CenterOpen = 2, Cases_Hosp!B22>=SUM(PeakWk,WKOpenCallCenter)), SUM(InitialCallVolHigh, Cases_Hosp!F22*CalltoHospRatioLow)*(MultAdjCallBasedMediaDuring), ""),"") -> 
A21: 10 | B21: =Cases_Hosp!C23 -> 10 | C21: =IFERROR(IF(AND(CenterOpen = 2, Cases_Hosp!B23>=SUM(PeakWk,WKOpenCallCenter)), SUM(InitialCallVol, Cases_Hosp!E23*CalltoHospRatioLow)*(MultAdjCallBasedMediaDuring), ""),"") ->  | D21: =IFERROR(IF(AND(CenterOpen = 2, Cases_Hosp!B23>=SUM(PeakWk,WKOpenCallCenter)), SUM(InitialCallVolHigh, Cases_Hosp!F23*CalltoHospRatioLow)*(MultAdjCallBasedMediaDuring), ""),"") -> 
A22: 11 | B22: =Cases_Hosp!C24 -> 11 | C22: =IFERROR(IF(AND(CenterOpen = 2, Cases_Hosp!B24>=SUM(PeakWk,WKOpenCallCenter)), SUM(InitialCallVol, Cases_Hosp!E24*CalltoHospRatioLow)*(MultAdjCallBasedMediaDuring), ""),"") ->  | D22: =IFERROR(IF(AND(CenterOpen = 2, Cases_Hosp!B24>=SUM(PeakWk,WKOpenCallCenter)), SUM(InitialCallVolHigh, Cases_Hosp!F24*CalltoHospRatioLow)*(MultAdjCallBasedMediaDuring), ""),"") -> 
A23: 12 | B23: =Cases_Hosp!C25 -> 12 | C23: =IFERROR(IF(AND(CenterOpen = 2, Cases_Hosp!B25>=SUM(PeakWk,WKOpenCallCenter)), SUM(InitialCallVol, Cases_Hosp!E25*CalltoHospRatioLow)*(MultAdjCallBasedMediaDuring), ""),"") ->  | D23: =IFERROR(IF(AND(CenterOpen = 2, Cases_Hosp!B25>=SUM(PeakWk,WKOpenCallCenter)), SUM(InitialCallVolHigh, Cases_Hosp!F25*CalltoHospRatioLow)*(MultAdjCallBasedMediaDuring), ""),"") -> 
A24: 13 | B24: =Cases_Hosp!C26 -> 13 | C24: =IFERROR(IF(AND(CenterOpen = 2, Cases_Hosp!B26>=SUM(PeakWk,WKOpenCallCenter)), SUM(InitialCallVol, Cases_Hosp!E26*CalltoHospRatioLow)*(MultAdjCallBasedMediaDuring), ""),"") ->  | D24: =IFERROR(IF(AND(CenterOpen = 2, Cases_Hosp!B26>=SUM(PeakWk,WKOpenCallCenter)), SUM(InitialCallVolHigh, Cases_Hosp!F26*CalltoHospRatioLow)*(MultAdjCallBasedMediaDuring), ""),"") -> 
A25: 14 | B25: =Cases_Hosp!C27 -> 14 | C25: =IFERROR(IF(AND(CenterOpen = 2, Cases_Hosp!B27>=SUM(PeakWk,WKOpenCallCenter)), SUM(InitialCallVol, Cases_Hosp!E27*CalltoHospRatioLow)*(MultAdjCallBasedMediaDuring), ""),"") ->  | D25: =IFERROR(IF(AND(CenterOpen = 2, Cases_Hosp!B27>=SUM(PeakWk,WKOpenCallCenter)), SUM(InitialCallVolHigh, Cases_Hosp!F27*CalltoHospRatioLow)*(MultAdjCallBasedMediaDuring), ""),"") -> 
A26: 15 | B26: =Cases_Hosp!C28 -> 15 | C26: =IFERROR(IF(AND(CenterOpen = 2, Cases_Hosp!B28>=SUM(PeakWk,WKOpenCallCenter)), SUM(InitialCallVol, Cases_Hosp!E28*CalltoHospRatioLow)*(MultAdjCallBasedMediaDuring), ""),"") ->  | D26: =IFERROR(IF(AND(CenterOpen = 2, Cases_Hosp!B28>=SUM(PeakWk,WKOpenCallCenter)), SUM(InitialCallVolHigh, Cases_Hosp!F28*CalltoHospRatioLow)*(MultAdjCallBasedMediaDuring), ""),"") -> 
A27: 16 | B27: =Cases_Hosp!C29 -> 16 | C27: =IFERROR(IF(AND(CenterOpen = 2, Cases_Hosp!B29>=SUM(PeakWk,WKOpenCallCenter)), SUM(InitialCallVol, Cases_Hosp!E29*CalltoHospRatioLow)*(MultAdjCallBasedMediaDuring), ""),"") ->  | D27: =IFERROR(IF(AND(CenterOpen = 2, Cases_Hosp!B29>=SUM(PeakWk,WKOpenCallCenter)), SUM(InitialCallVolHigh, Cases_Hosp!F29*CalltoHospRatioLow)*(MultAdjCallBasedMediaDuring), ""),"") -> 
A28: 17 | B28: =Cases_Hosp!C30 -> 17 | C28: =IFERROR(IF(AND(CenterOpen = 2, Cases_Hosp!B30>=SUM(PeakWk,WKOpenCallCenter)), SUM(InitialCallVol, Cases_Hosp!E30*CalltoHospRatioLow)*(MultAdjCallBasedMediaDuring), ""),"") ->  | D28: =IFERROR(IF(AND(CenterOpen = 2, Cases_Hosp!B30>=SUM(PeakWk,WKOpenCallCenter)), SUM(InitialCallVolHigh, Cases_Hosp!F30*CalltoHospRatioLow)*(MultAdjCallBasedMediaDuring), ""),"") -> 
A29: 18 | B29: =Cases_Hosp!C31 -> 18 | C29: =IFERROR(IF(AND(CenterOpen = 2, Cases_Hosp!B31>=SUM(PeakWk,WKOpenCallCenter)), SUM(InitialCallVol, Cases_Hosp!E31*CalltoHospRatioLow)*(MultAdjCallBasedMediaDuring), ""),"") ->  | D29: =IFERROR(IF(AND(CenterOpen = 2, Cases_Hosp!B31>=SUM(PeakWk,WKOpenCallCenter)), SUM(InitialCallVolHigh, Cases_Hosp!F31*CalltoHospRatioLow)*(MultAdjCallBasedMediaDuring), ""),"") -> 
A30: 19 | B30: =Cases_Hosp!C32 -> 19 | C30: =IFERROR(IF(AND(CenterOpen = 2, Cases_Hosp!B32>=SUM(PeakWk,WKOpenCallCenter)), SUM(InitialCallVol, Cases_Hosp!E32*CalltoHospRatioLow)*(MultAdjCallBasedMediaDuring), ""),"") ->  | D30: =IFERROR(IF(AND(CenterOpen = 2, Cases_Hosp!B32>=SUM(PeakWk,WKOpenCallCenter)), SUM(InitialCallVolHigh, Cases_Hosp!F32*CalltoHospRatioLow)*(MultAdjCallBasedMediaDuring), ""),"") -> 
A31: 20 | B31: =Cases_Hosp!C33 -> 20 | C31: =IFERROR(IF(AND(CenterOpen = 2, Cases_Hosp!B33>=SUM(PeakWk,WKOpenCallCenter)), SUM(InitialCallVol, Cases_Hosp!E33*CalltoHospRatioLow)*(MultAdjCallBasedMediaDuring), ""),"") ->  | D31: =IFERROR(IF(AND(CenterOpen = 2, Cases_Hosp!B33>=SUM(PeakWk,WKOpenCallCenter)), SUM(InitialCallVolHigh, Cases_Hosp!F33*CalltoHospRatioLow)*(MultAdjCallBasedMediaDuring), ""),"") -> 
A32: 21 | B32: =Cases_Hosp!C34 -> 21 | C32: =IFERROR(IF(AND(CenterOpen = 2, Cases_Hosp!B34>=SUM(PeakWk,WKOpenCallCenter)), SUM(InitialCallVol, Cases_Hosp!E34*CalltoHospRatioLow)*(MultAdjCallBasedMediaDuring), ""),"") ->  | D32: =IFERROR(IF(AND(CenterOpen = 2, Cases_Hosp!B34>=SUM(PeakWk,WKOpenCallCenter)), SUM(InitialCallVolHigh, Cases_Hosp!F34*CalltoHospRatioLow)*(MultAdjCallBasedMediaDuring), ""),"") -> 
A33: 22 | B33: =Cases_Hosp!C35 -> 22 | C33: =IFERROR(IF(AND(CenterOpen = 2, Cases_Hosp!B35>=SUM(PeakWk,WKOpenCallCenter)), SUM(InitialCallVol, Cases_Hosp!E35*CalltoHospRatioLow)*(MultAdjCallBasedMediaDuring), ""),"") ->  | D33: =IFERROR(IF(AND(CenterOpen = 2, Cases_Hosp!B35>=SUM(PeakWk,WKOpenCallCenter)), SUM(InitialCallVolHigh, Cases_Hosp!F35*CalltoHospRatioLow)*(MultAdjCallBasedMediaDuring), ""),"") -> 
A34: 23 | B34: =Cases_Hosp!C36 -> 23 | C34: =IFERROR(IF(AND(CenterOpen = 2, Cases_Hosp!B36>=SUM(PeakWk,WKOpenCallCenter)), SUM(InitialCallVol, Cases_Hosp!E36*CalltoHospRatioLow)*(MultAdjCallBasedMediaDuring), ""),"") ->  | D34: =IFERROR(IF(AND(CenterOpen = 2, Cases_Hosp!B36>=SUM(PeakWk,WKOpenCallCenter)), SUM(InitialCallVolHigh, Cases_Hosp!F36*CalltoHospRatioLow)*(MultAdjCallBasedMediaDuring), ""),"") -> 
A35: 24 | B35: =Cases_Hosp!C37 -> 24 | C35: =IFERROR(IF(AND(CenterOpen = 2, Cases_Hosp!B37>=SUM(PeakWk,WKOpenCallCenter)), SUM(InitialCallVol, Cases_Hosp!E37*CalltoHospRatioLow)*(MultAdjCallBasedMediaDuring), ""),"") ->  | D35: =IFERROR(IF(AND(CenterOpen = 2, Cases_Hosp!B37>=SUM(PeakWk,WKOpenCallCenter)), SUM(InitialCallVolHigh, Cases_Hosp!F37*CalltoHospRatioLow)*(MultAdjCallBasedMediaDuring), ""),"") -> 
A36: 25 | B36: =Cases_Hosp!C38 -> 25 | C36: =IFERROR(IF(AND(CenterOpen = 2, Cases_Hosp!B38>=SUM(PeakWk,WKOpenCallCenter)), SUM(InitialCallVol, Cases_Hosp!E38*CalltoHospRatioLow)*(MultAdjCallBasedMediaDuring), ""),"") ->  | D36: =IFERROR(IF(AND(CenterOpen = 2, Cases_Hosp!B38>=SUM(PeakWk,WKOpenCallCenter)), SUM(InitialCallVolHigh, Cases_Hosp!F38*CalltoHospRatioLow)*(MultAdjCallBasedMediaDuring), ""),"") -> 
A37: 26 | B37: =Cases_Hosp!C39 -> 26 | C37: =IFERROR(IF(AND(CenterOpen = 2, Cases_Hosp!B39>=SUM(PeakWk,WKOpenCallCenter)), SUM(InitialCallVol, Cases_Hosp!E39*CalltoHospRatioLow)*(MultAdjCallBasedMediaDuring), ""),"") ->  | D37: =IFERROR(IF(AND(CenterOpen = 2, Cases_Hosp!B39>=SUM(PeakWk,WKOpenCallCenter)), SUM(InitialCallVolHigh, Cases_Hosp!F39*CalltoHospRatioLow)*(MultAdjCallBasedMediaDuring), ""),"") -> 
A38: 27 | B38: =Cases_Hosp!C40 -> 27 | C38: =IFERROR(IF(AND(CenterOpen = 2, Cases_Hosp!B40>=SUM(PeakWk,WKOpenCallCenter)), SUM(InitialCallVol, Cases_Hosp!E40*CalltoHospRatioLow)*(MultAdjCallBasedMediaDuring), ""),"") ->  | D38: =IFERROR(IF(AND(CenterOpen = 2, Cases_Hosp!B40>=SUM(PeakWk,WKOpenCallCenter)), SUM(InitialCallVolHigh, Cases_Hosp!F40*CalltoHospRatioLow)*(MultAdjCallBasedMediaDuring), ""),"") -> 
A39: 28 | B39: =Cases_Hosp!C41 -> 28 | C39: =IFERROR(IF(AND(CenterOpen = 2, Cases_Hosp!B41>=SUM(PeakWk,WKOpenCallCenter)), SUM(InitialCallVol, Cases_Hosp!E41*CalltoHospRatioLow)*(MultAdjCallBasedMediaDuring), ""),"") ->  | D39: =IFERROR(IF(AND(CenterOpen = 2, Cases_Hosp!B41>=SUM(PeakWk,WKOpenCallCenter)), SUM(InitialCallVolHigh, Cases_Hosp!F41*CalltoHospRatioLow)*(MultAdjCallBasedMediaDuring), ""),"") -> 
A40: 29 | B40: =Cases_Hosp!C42 -> 29 | C40: =IFERROR(IF(AND(CenterOpen = 2, Cases_Hosp!B42>=SUM(PeakWk,WKOpenCallCenter)), SUM(InitialCallVol, Cases_Hosp!E42*CalltoHospRatioLow)*(MultAdjCallBasedMediaDuring), ""),"") ->  | D40: =IFERROR(IF(AND(CenterOpen = 2, Cases_Hosp!B42>=SUM(PeakWk,WKOpenCallCenter)), SUM(InitialCallVolHigh, Cases_Hosp!F42*CalltoHospRatioLow)*(MultAdjCallBasedMediaDuring), ""),"") -> 
A41: 30 | B41: =Cases_Hosp!C43 ->  | C41: =IFERROR(IF(AND(CenterOpen = 2, Cases_Hosp!B43>=SUM(PeakWk,WKOpenCallCenter)), SUM(InitialCallVol, Cases_Hosp!E43*CalltoHospRatioLow)*(MultAdjCallBasedMediaDuring), ""),"") ->  | D41: =IFERROR(IF(AND(CenterOpen = 2, Cases_Hosp!B43>=SUM(PeakWk,WKOpenCallCenter)), SUM(InitialCallVolHigh, Cases_Hosp!F43*CalltoHospRatioLow)*(MultAdjCallBasedMediaDuring), ""),"") -> 
A42: 31 | B42: =Cases_Hosp!C44 ->  | C42: =IFERROR(IF(AND(CenterOpen = 2, Cases_Hosp!B44>=SUM(PeakWk,WKOpenCallCenter)), SUM(InitialCallVol, Cases_Hosp!E44*CalltoHospRatioLow)*(MultAdjCallBasedMediaDuring), ""),"") ->  | D42: =IFERROR(IF(AND(CenterOpen = 2, Cases_Hosp!B44>=SUM(PeakWk,WKOpenCallCenter)), SUM(InitialCallVolHigh, Cases_Hosp!F44*CalltoHospRatioLow)*(MultAdjCallBasedMediaDuring), ""),"") -> 
A43: 32 | B43: =Cases_Hosp!C45 ->  | C43: =IFERROR(IF(AND(CenterOpen = 2, Cases_Hosp!B45>=SUM(PeakWk,WKOpenCallCenter)), SUM(InitialCallVol, Cases_Hosp!E45*CalltoHospRatioLow)*(MultAdjCallBasedMediaDuring), ""),"") ->  | D43: =IFERROR(IF(AND(CenterOpen = 2, Cases_Hosp!B45>=SUM(PeakWk,WKOpenCallCenter)), SUM(InitialCallVolHigh, Cases_Hosp!F45*CalltoHospRatioLow)*(MultAdjCallBasedMediaDuring), ""),"") -> 
A44: 33 | B44: =Cases_Hosp!C46 ->  | C44: =IFERROR(IF(AND(CenterOpen = 2, Cases_Hosp!B46>=SUM(PeakWk,WKOpenCallCenter)), SUM(InitialCallVol, Cases_Hosp!E46*CalltoHospRatioLow)*(MultAdjCallBasedMediaDuring), ""),"") ->  | D44: =IFERROR(IF(AND(CenterOpen = 2, Cases_Hosp!B46>=SUM(PeakWk,WKOpenCallCenter)), SUM(InitialCallVolHigh, Cases_Hosp!F46*CalltoHospRatioLow)*(MultAdjCallBasedMediaDuring), ""),"") -> 
A45: 34 | B45: =Cases_Hosp!C47 ->  | C45: =IFERROR(IF(AND(CenterOpen = 2, Cases_Hosp!B47>=SUM(PeakWk,WKOpenCallCenter)), SUM(InitialCallVol, Cases_Hosp!E47*CalltoHospRatioLow)*(MultAdjCallBasedMediaDuring), ""),"") ->  | D45: =IFERROR(IF(AND(CenterOpen = 2, Cases_Hosp!B47>=SUM(PeakWk,WKOpenCallCenter)), SUM(InitialCallVolHigh, Cases_Hosp!F47*CalltoHospRatioLow)*(MultAdjCallBasedMediaDuring), ""),"") -> 
A46: 35 | B46: =Cases_Hosp!C48 ->  | C46: =IFERROR(IF(AND(CenterOpen = 2, Cases_Hosp!B48>=SUM(PeakWk,WKOpenCallCenter)), SUM(InitialCallVol, Cases_Hosp!E48*CalltoHospRatioLow)*(MultAdjCallBasedMediaDuring), ""),"") ->  | D46: =IFERROR(IF(AND(CenterOpen = 2, Cases_Hosp!B48>=SUM(PeakWk,WKOpenCallCenter)), SUM(InitialCallVolHigh, Cases_Hosp!F48*CalltoHospRatioLow)*(MultAdjCallBasedMediaDuring), ""),"") -> 
A47: 36 | B47: =Cases_Hosp!C49 ->  | C47: =IFERROR(IF(AND(CenterOpen = 2, Cases_Hosp!B49>=SUM(PeakWk,WKOpenCallCenter)), SUM(InitialCallVol, Cases_Hosp!E49*CalltoHospRatioLow)*(MultAdjCallBasedMediaDuring), ""),"") ->  | D47: =IFERROR(IF(AND(CenterOpen = 2, Cases_Hosp!B49>=SUM(PeakWk,WKOpenCallCenter)), SUM(InitialCallVolHigh, Cases_Hosp!F49*CalltoHospRatioLow)*(MultAdjCallBasedMediaDuring), ""),"") -> 
A48: 37 | B48: =Cases_Hosp!C50 ->  | C48: =IFERROR(IF(AND(CenterOpen = 2, Cases_Hosp!B50>=SUM(PeakWk,WKOpenCallCenter)), SUM(InitialCallVol, Cases_Hosp!E50*CalltoHospRatioLow)*(MultAdjCallBasedMediaDuring), ""),"") ->  | D48: =IFERROR(IF(AND(CenterOpen = 2, Cases_Hosp!B50>=SUM(PeakWk,WKOpenCallCenter)), SUM(InitialCallVolHigh, Cases_Hosp!F50*CalltoHospRatioLow)*(MultAdjCallBasedMediaDuring), ""),"") -> 
A49: 38 | B49: =Cases_Hosp!C51 ->  | C49: =IFERROR(IF(AND(CenterOpen = 2, Cases_Hosp!B51>=SUM(PeakWk,WKOpenCallCenter)), SUM(InitialCallVol, Cases_Hosp!E51*CalltoHospRatioLow)*(MultAdjCallBasedMediaDuring), ""),"") ->  | D49: =IFERROR(IF(AND(CenterOpen = 2, Cases_Hosp!B51>=SUM(PeakWk,WKOpenCallCenter)), SUM(InitialCallVolHigh, Cases_Hosp!F51*CalltoHospRatioLow)*(MultAdjCallBasedMediaDuring), ""),"") -> 
A50: 39 | B50: =Cases_Hosp!C52 ->  | C50: =IFERROR(IF(AND(CenterOpen = 2, Cases_Hosp!B52>=SUM(PeakWk,WKOpenCallCenter)), SUM(InitialCallVol, Cases_Hosp!E52*CalltoHospRatioLow)*(MultAdjCallBasedMediaDuring), ""),"") ->  | D50: =IFERROR(IF(AND(CenterOpen = 2, Cases_Hosp!B52>=SUM(PeakWk,WKOpenCallCenter)), SUM(InitialCallVolHigh, Cases_Hosp!F52*CalltoHospRatioLow)*(MultAdjCallBasedMediaDuring), ""),"") -> 
A51: 40 | B51: =Cases_Hosp!C53 ->  | C51: =IFERROR(IF(AND(CenterOpen = 2, Cases_Hosp!B53>=SUM(PeakWk,WKOpenCallCenter)), SUM(InitialCallVol, Cases_Hosp!E53*CalltoHospRatioLow)*(MultAdjCallBasedMediaDuring), ""),"") ->  | D51: =IFERROR(IF(AND(CenterOpen = 2, Cases_Hosp!B53>=SUM(PeakWk,WKOpenCallCenter)), SUM(InitialCallVolHigh, Cases_Hosp!F53*CalltoHospRatioLow)*(MultAdjCallBasedMediaDuring), ""),"") -> 
A52: 41 | B52: =Cases_Hosp!C54 ->  | C52: =IFERROR(IF(AND(CenterOpen = 2, Cases_Hosp!B54>=SUM(PeakWk,WKOpenCallCenter)), SUM(InitialCallVol, Cases_Hosp!E54*CalltoHospRatioLow)*(MultAdjCallBasedMediaDuring), ""),"") ->  | D52: =IFERROR(IF(AND(CenterOpen = 2, Cases_Hosp!B54>=SUM(PeakWk,WKOpenCallCenter)), SUM(InitialCallVolHigh, Cases_Hosp!F54*CalltoHospRatioLow)*(MultAdjCallBasedMediaDuring), ""),"") -> 
A53: 42 | B53: =Cases_Hosp!C55 ->  | C53: =IFERROR(IF(AND(CenterOpen = 2, Cases_Hosp!B55>=SUM(PeakWk,WKOpenCallCenter)), SUM(InitialCallVol, Cases_Hosp!E55*CalltoHospRatioLow)*(MultAdjCallBasedMediaDuring), ""),"") ->  | D53: =IFERROR(IF(AND(CenterOpen = 2, Cases_Hosp!B55>=SUM(PeakWk,WKOpenCallCenter)), SUM(InitialCallVolHigh, Cases_Hosp!F55*CalltoHospRatioLow)*(MultAdjCallBasedMediaDuring), ""),"") -> 
